Workbook

Sheet Menu
C2: Menu
F3: Colour Codes | K3: File Name: | M3: =IFERROR(File_name(),"") -> 
C4: Control | G4: Inputs | I4: 1234567890
G5: Section Titles | I5: TITLE ROW | K5: Last Save Date | M5: =IFERROR(lastsaved(),"") -> 
C6: Project Database | G6: Sum Column | I6: 1000000000
D7: General Inputs | G7: True or 1 | I7: =1=1 -> TRUE | K7: Last Save By | M7: =IFERROR(last_save_by(),"") -> 
D8: O&M Cost Inputs | G8: False or 0 | I8: =1=2 -> FALSE
D9: Financing Assumptions and Results | G9: Other Sheet Links | I9: |||||||||||||||||||
D10: Financial Inputs for Stress/P99 Case
C12: Sizing Summary
D13: P50 Case
D14: P99 Analysis
D15: Debt Applied
D16: Credit Analysis
D17: Duration and Average Life
D18: Prepayment Analysis
D19: Yield Analysis
C21: Template
D22: Operating Cash Flow
D23: P99 Stress Case
D24: Credit Analysis
C26: General Inputs
C28: MA SMART PRICING
D29: Assumed Rate Inflation
D30: Project Name
D31: Utility
D32: Customer Discount Rate
D33: Project Name
D34: Utility
D35: Customer Discount Rate
D36: Project Name
D37: Utility
D38: Customer Discount Rate
D39: Project Name
D40: Utility
D41: Customer Discount Rate
D42: Project Name
D43: Utility
C45: Production Tables
C47: Economics
D48: Source
D49: Loan Amount
D50: Origination Fee
D51: Series A Proceeds
D52: Series B Proceeds
D53: Gross
D54: Pts
D55: Expenses
D56: Pts
D57: Net Cash For Distribution
D58: Pts
D59: Total Points
D60: Origination Split
D61: LOB recieves 100% of remaining pts up to 2.0 Cumulative pts
D62: RW recieves 100% of remaining pts up to 2.0 cumulative pts
D63: Remaining pts are split 50/50
D64: Cash Distributed
D65: Rockwood Residual Income
D66: Servicing Income
D67: Total Proceeds
C69: PROJECTS
C71: New Marlborough
D72: Operating Cash Flow
D73: P99 Stress Case
D74: Credit Analysis
C76: Peru
D77: Operating Cash Flow
D78: P99 Stress Case
D79: Credit Analysis
C81: Russell
D82: Operating Cash Flow
D83: P99 Stress Case
D84: Credit Analysis
C86: Westport
D87: Operating Cash Flow
D88: P99 Stress Case
D89: Credit Analysis
C91: Tolland
D92: Operating Cash Flow
D93: P99 Stress Case
D94: Credit Analysis

Sheet Control
D2: Operation Sensitivity | F2: Scenario Number | G2: 8
D3: Senior Debt Sizing - P50
D4: Senior Debt Sizing - P99
D5: Credit Analysis
D6: Outputs
F8: Dates | K8: Senior Debt Sizing Assumptions in P50 Case | S8: Senior P99/Downside Case Debt Sizing | Y8: Operation Sensitivity for Credit Analysis (After Debt Size) | AF8: Results - Debt Characteristics | AN8: Results - Credit Analysis
E9: Start Date | F9: Months Modelled in Period (12 Annual; 1 Monthly | G9: Project Life (Years) | H9: PPA Life (Years) | J9: Target DSCR P50 Case | K9: Target DSCR P99 Case | L9: Apply DSCR or Input Debt (True)/Input (False) | M9: Senior Margin in P50 Case | N9: LIBOR Swap Rate | O9: Total Rate Floor | P9: Tenor | R9: Direct Input Stress or P99 (TRUE for Direct) | S9: Credit Spread Increase in Stress | T9: Target DSCR in Stress Case | U9: Revenue Sensitivity (yr 1-10) if Direct Input | V9: Revenue Sensitivity (yr 11+) if Direct Input | Y9: Percent Reduction in Revenues P99 Case | Z9: Number of Curtailmement Events | AA9: Year of Curtailment/Problem | AB9: Percent of Revenue | AF9: Aggregate Senior Debt Size (P50 Case) | AG9: Aggregate Senior Debt Size (P99 Case) | AH9: Aggregate Senior Debt Size Applied | AI9: P50 DSCR | AJ9: Average Debt Life | AK9: Macualay Duration | AL9: Modified Duration | AQ9: Origination Split | AR9: LOB recieves 100% of remaining pts up to 2.0 Cumulative pts | AS9: RW recieves 100% of remaining pts up to 2.0 cumulative pts | AT9: Remaining pts are split 50/50 | AU9: Cash Distributed | AV9: Rockwood Residual Income | AW9: Servicing Income | AX9: Total Proceeds
D10: Base Case | E10: 2020-01-01 | F10: 12 | G10: 20 | H10: 20 | J10: 1.34 | K10: 1 | L10: TRUE | M10: 0.0325 | N10: 0.0211 | O10: 0.0425 | P10: 20 | R10: TRUE | S10: 0.005 | T10: 1 | U10: 0.15 | V10: 0.25
D11: Longer Life | E11: 2020-01-01 | F11: 12 | G11: 20 | H11: 35 | J11: 1.34 | K11: 1 | L11: TRUE | M11: 0.0325 | N11: 0.0211 | O11: 0.0425 | P11: 20 | R11: TRUE | S11: 0.005 | T11: 1 | U11: 0.15 | V11: 0.25
D12: Curtailment Scenario | E12: 2020-01-01 | F12: 12 | G12: 20 | H12: 30 | J12: 1.34 | K12: 1 | L12: TRUE | M12: 0.0325 | N12: 0.0211 | O12: 0.0425 | P12: 20 | R12: TRUE | S12: 0.005 | T12: 1 | U12: 0.15 | V12: 0.25
D13: Alternative Credit Spread | E13: 2020-01-01 | F13: 12 | G13: 20 | H13: 20 | J13: 1.34 | K13: 1 | L13: TRUE | M13: 0.0325 | N13: 0.0211 | O13: 0.0425 | P13: 20 | R13: TRUE | S13: 0.005 | T13: 1 | U13: 0.15 | V13: 0.25
D14: Pre-payment in Year 10 | E14: 2020-01-01 | F14: 12 | G14: 20 | H14: 20 | J14: 1.34 | K14: 1 | L14: TRUE | M14: 0.0325 | N14: 0.0211 | O14: 0.0425 | P14: 20 | R14: TRUE | S14: 0.005 | T14: 1 | U14: 0.15 | V14: 0.25
D15: Pre-payment in Year 15 | E15: 2020-01-01 | F15: 12 | G15: 20 | H15: 20 | J15: 1.34 | K15: 1 | L15: TRUE | M15: 0.0325 | N15: 0.0211 | O15: 0.0425 | P15: 20 | R15: TRUE | S15: 0.005 | T15: 1 | U15: 0.15 | V15: 0.25
D16: Monthly Analysis | E16: 2020-01-01 | F16: 1 | G16: 20 | H16: 20 | J16: 1.34 | K16: 1 | L16: TRUE | M16: 0.0325 | N16: 0.0211 | O16: 0.0425 | P16: 20 | R16: TRUE | S16: 0.005 | T16: 1 | U16: 0.15 | V16: 0.25
D17: Size P50 from DSCR | E17: 2020-01-01 | F17: 12 | G17: 20 | H17: 20 | J17: 1.34 | K17: 1 | L17: FALSE | M17: 0.0325 | N17: 0.0211 | O17: 0.0425 | P17: 20 | R17: FALSE | S17: 0.005 | T17: 1 | U17: 0.15 | V17: 0.25
D20: =INDEX(D10:D18,$G$2) -> Size P50 from DSCR | E20: =INDEX(E10:E18,$G$2) -> 2020-01-01 | F20: =INDEX(F10:F18,$G$2) -> 12 | G20: =INDEX(G10:G18,$G$2) -> 20 | H20: =INDEX(H10:H18,$G$2) -> 20 | J20: =INDEX(J10:J18,$G$2) -> 1.34 | K20: =INDEX(K10:K18,$G$2) -> 1 | L20: =INDEX(L10:L18,$G$2) -> FALSE | M20: =INDEX(M10:M18,$G$2) -> 0.0325 | N20: =INDEX(N10:N18,$G$2) -> 0.0211 | O20: =INDEX(O10:O18,$G$2) -> 0.0425 | P20: =INDEX(P10:P18,$G$2) -> 20 | R20: =INDEX(R10:R18,$G$2) -> FALSE | S20: =INDEX(S10:S18,$G$2) -> 0.005 | T20: =INDEX(T10:T18,$G$2) -> 1 | U20: =INDEX(U10:U18,$G$2) -> 0.15 | V20: =INDEX(V10:V18,$G$2) -> 0.25 | Y20: =INDEX(Y10:Y18,$G$2) -> 0 | Z20: =INDEX(Z10:Z18,$G$2) -> 0 | AA20: =INDEX(AA10:AA18,$G$2) -> 0 | AB20: =INDEX(AB10:AB18,$G$2) -> 0 | AF20: =INDEX(AF10:AF18,$G$2) -> 0 | AG20: =INDEX(AG10:AG18,$G$2) -> 0 | AH20: =INDEX(AH10:AH18,$G$2) -> 0 | AI20: =INDEX(AI10:AI18,$G$2) -> 0 | AJ20: =INDEX(AJ10:AJ18,$G$2) -> 0 | AK20: =INDEX(AK10:AK18,$G$2) -> 0 | AL20: =INDEX(AL10:AL18,$G$2) -> 0

Sheet Project Database
B3: General Inputs
E4: =E6 -> New Marlborough | F4: =F6 -> Peru | G4: =G6 -> Russell | H4: =CONCATENATE(H6) -> Westport | I4: =I6 -> Tolland
D5: Developer | E5: Cap Vert Energie | F5: Cap Vert Energie | G5: Cap Vert Energie | H5: Cap Vert Energie | I5: Cap Vert Energie
D6: Site Name | E6: New Marlborough | F6: Peru | G6: Russell | H6: Westport | I6: Tolland
D7: Location | E7: New Marlborough, MA | F7: Peru, MA | G7: Russell, MA | H7: Westport, MA | I7: Tolland, MA
D8: NERC Region | E8: ISONE - WCMA | F8: ISONE - WCMA | G8: ISONE - WCMA | H8: ISONE - SEMA | I8: ISONE - WCMA
D9: PPA Off-Taker | E9: NGRID | F9: Eversource | G9: Eversource | H9: NSTAR | I9: Eversource
D11: Project Life | E11: 20 | F11: 20 | G11: 20 | H11: 20 | I11: 20
D12: PPA Term (years) | E12: 20 | F12: 20 | G12: 20 | H12: 20 | I12: 20
D13: LOB Loan Term (years) | E13: 20 | F13: 20 | G13: 20 | H13: 20 | I13: 20
D14: Apply Semi-Annual Payments | E14: TRUE | F14: TRUE | G14: TRUE | H14: TRUE | I14: TRUE
C16: Operation Inputs
D17: Degradation | E17: -0.005 | F17: -0.005 | G17: -0.005 | H17: -0.005 | I17: -0.005
D18: Size (MW DC) | E18: 6.5232 | F18: 4.43664 | G18: 3.99582 | H18: 3.3264 | I18: 6.65101
D19: P50 1st year annual prod (kWh) | E19: 8101814.4 | F19: 5673000 | G19: 5230528 | H19: 4563821 | I19: 8672917
D20: P50 1st year annual Production Table (kWh) | E20: ='Production Tables'!D14*1000 -> 8102000 | F20: ='Production Tables'!Y14*1000 -> 5668000 | G20: ='Production Tables'!AF14*1000 -> 5231000 | H20: ='Production Tables'!R14*1000 -> 4565000 | I20: ='Production Tables'!AM14*1000 -> 8677000
D21: Yield (kWh/kWp) | E21: =E19/E18/1000 -> 1242 | F21: =F19/F18/1000 -> 1278.670345 | G21: =G19/G18/1000 -> 1308.999905 | H21: =H19/H18/1000 -> 1372.00006 | I21: =I19/I18/1000 -> 1303.999994
D22: Capacity Factor | E22: =E21/8760 -> 0.1417808219 | F22: =F21/8760 -> 0.1459669344 | G22: =G21/8760 -> 0.1494292129 | H22: =H21/8760 -> 0.1566210114 | I22: =I21/8760 -> 0.1488584468
D23: Availability | E23: 0.99 | F23: 0.99 | G23: 0.99 | H23: 0.99 | I23: 0.99
C25: Alternative Cases
D26: P90 Case Production First year (kWh) | E26: ='Production Tables'!F14*1000 -> 7384000 | F26: ='Production Tables'!AA14*1000 -> 5127000 | G26: ='Production Tables'!AH14*1000 -> 4732000 | H26: ='Production Tables'!T14*1000 -> 4184000 | I26: ='Production Tables'!AO14*1000 -> 7999000
D27: P90 versus P50 Case | E27: =E26/E20 -> 0.9113799062 | F27: =F26/F20 -> 0.9045518701 | G27: =G26/G20 -> 0.9046071497 | H27: =H26/H20 -> 0.9165388828 | I27: =I26/I20 -> 0.9218623948
D29: P99 Case Production First year (kWh) | E29: ='Production Tables'!G14*1000 -> 6799000 | F29: ='Production Tables'!AI14*1000 -> 4325000 | G29: ='Production Tables'!AI14*1000 -> 4325000 | H29: ='Production Tables'!U14*1000 -> 3874000 | I29: ='Production Tables'!AP14*1000 -> 7446000
D30: P99 versus P50 Case | E30: =E29/E20 -> 0.8391755122 | F30: =F29/F20 -> 0.7630557516 | G30: =G29/G20 -> 0.8268017587 | H30: =H29/H20 -> 0.8486308872 | I30: =I29/I20 -> 0.8581306903
C32: PPA Incputs
D33: Contracted PPA Rate ($/kWh) | I33: =K126 -> 0
D34: Apply All-in Rate (False is no CS Adder) | E34: TRUE | F34: TRUE | G34: TRUE | H34: TRUE | I34: TRUE
D35: Pollinator Adder | E35: 0.0025 | F35: 0.0025 | G35: 0.0025 | H35: 0.0025 | I35: 0.0025
D36: Total Project Revenue Rate Projections ($/kWh) ALL-IN RATE
D37: 2020 | E37: ='MA SMART PRICING'!H32 -> 0.17163 | F37: ='MA SMART PRICING'!F32 -> 0.154622 | G37: ='MA SMART PRICING'!D32 -> 0.146472 | H37: ='MA SMART PRICING'!E32 -> 0.199482 | I37: ='MA SMART PRICING'!C32 -> 0.166792
D38: 2021 | E38: ='MA SMART PRICING'!H33 -> 0.1715785 | F38: ='MA SMART PRICING'!F33 -> 0.15456716 | G38: ='MA SMART PRICING'!D33 -> 0.14641716 | H38: ='MA SMART PRICING'!E33 -> 0.19942556 | I38: ='MA SMART PRICING'!C33 -> 0.16673716
D39: 2022 | E39: ='MA SMART PRICING'!H34 -> 0.1715267425 | F39: ='MA SMART PRICING'!F34 -> 0.1545120458 | G39: ='MA SMART PRICING'!D34 -> 0.1463620458 | H39: ='MA SMART PRICING'!E34 -> 0.1993688378 | I39: ='MA SMART PRICING'!C34 -> 0.1666820458
D40: 2023 | E40: ='MA SMART PRICING'!H35 -> 0.1714747262 | F40: ='MA SMART PRICING'!F35 -> 0.154456656 | G40: ='MA SMART PRICING'!D35 -> 0.146306656 | H40: ='MA SMART PRICING'!E35 -> 0.199311832 | I40: ='MA SMART PRICING'!C35 -> 0.166626656
D41: 2024 | E41: ='MA SMART PRICING'!H36 -> 0.1714224498 | F41: ='MA SMART PRICING'!F36 -> 0.1544009893 | G41: ='MA SMART PRICING'!D36 -> 0.1462509893 | H41: ='MA SMART PRICING'!E36 -> 0.1992545411 | I41: ='MA SMART PRICING'!C36 -> 0.1665709893
D42: 2025 | E42: ='MA SMART PRICING'!H37 -> 0.1713699121 | F42: ='MA SMART PRICING'!F37 -> 0.1543450443 | G42: ='MA SMART PRICING'!D37 -> 0.1461950443 | H42: ='MA SMART PRICING'!E37 -> 0.1991969639 | I42: ='MA SMART PRICING'!C37 -> 0.1665150443
D43: 2026 | E43: ='MA SMART PRICING'!H38 -> 0.1713171117 | F43: ='MA SMART PRICING'!F38 -> 0.1542888195 | G43: ='MA SMART PRICING'!D38 -> 0.1461388195 | H43: ='MA SMART PRICING'!E38 -> 0.1991390987 | I43: ='MA SMART PRICING'!C38 -> 0.1664588195
D44: 2027 | E44: ='MA SMART PRICING'!H39 -> 0.1712640472 | F44: ='MA SMART PRICING'!F39 -> 0.1542323136 | G44: ='MA SMART PRICING'!D39 -> 0.1460823136 | H44: ='MA SMART PRICING'!E39 -> 0.1990809442 | I44: ='MA SMART PRICING'!C39 -> 0.1664023136
D45: 2028 | E45: ='MA SMART PRICING'!H40 -> 0.1712107174 | F45: ='MA SMART PRICING'!F40 -> 0.1541755251 | G45: ='MA SMART PRICING'!D40 -> 0.1460255251 | H45: ='MA SMART PRICING'!E40 -> 0.1990224989 | I45: ='MA SMART PRICING'!C40 -> 0.1663455251
D46: 2029 | E46: ='MA SMART PRICING'!H41 -> 0.171157121 | F46: ='MA SMART PRICING'!F41 -> 0.1541184528 | G46: ='MA SMART PRICING'!D41 -> 0.1459684528 | H46: ='MA SMART PRICING'!E41 -> 0.1989637614 | I46: ='MA SMART PRICING'!C41 -> 0.1662884528
D47: 2030 | E47: ='MA SMART PRICING'!H42 -> 0.1711032566 | F47: ='MA SMART PRICING'!F42 -> 0.154061095 | G47: ='MA SMART PRICING'!D42 -> 0.145911095 | H47: ='MA SMART PRICING'!E42 -> 0.1989047302 | I47: ='MA SMART PRICING'!C42 -> 0.166231095
D48: 2031 | E48: ='MA SMART PRICING'!H43 -> 0.1710491229 | F48: ='MA SMART PRICING'!F43 -> 0.1540034505 | G48: ='MA SMART PRICING'!D43 -> 0.1458534505 | H48: ='MA SMART PRICING'!E43 -> 0.1988454038 | I48: ='MA SMART PRICING'!C43 -> 0.1661734505
D49: 2032 | E49: ='MA SMART PRICING'!H44 -> 0.1709947185 | F49: ='MA SMART PRICING'!F44 -> 0.1539455178 | G49: ='MA SMART PRICING'!D44 -> 0.1457955178 | H49: ='MA SMART PRICING'!E44 -> 0.1987857809 | I49: ='MA SMART PRICING'!C44 -> 0.1661155178
D50: 2033 | E50: ='MA SMART PRICING'!H45 -> 0.1709400421 | F50: ='MA SMART PRICING'!F45 -> 0.1538872953 | G50: ='MA SMART PRICING'!D45 -> 0.1457372953 | H50: ='MA SMART PRICING'!E45 -> 0.1987258598 | I50: ='MA SMART PRICING'!C45 -> 0.1660572953
D51: 2034 | E51: ='MA SMART PRICING'!H46 -> 0.1708850923 | F51: ='MA SMART PRICING'!F46 -> 0.1538287818 | G51: ='MA SMART PRICING'!D46 -> 0.1456787818 | H51: ='MA SMART PRICING'!E46 -> 0.1986656391 | I51: ='MA SMART PRICING'!C46 -> 0.1659987818
D52: 2035 | E52: ='MA SMART PRICING'!H47 -> 0.1708298678 | F52: ='MA SMART PRICING'!F47 -> 0.1537699757 | G52: ='MA SMART PRICING'!D47 -> 0.1456199757 | H52: ='MA SMART PRICING'!E47 -> 0.1986051173 | I52: ='MA SMART PRICING'!C47 -> 0.1659399757
D53: 2036 | E53: ='MA SMART PRICING'!H48 -> 0.1707743671 | F53: ='MA SMART PRICING'!F48 -> 0.1537108756 | G53: ='MA SMART PRICING'!D48 -> 0.1455608756 | H53: ='MA SMART PRICING'!E48 -> 0.1985442928 | I53: ='MA SMART PRICING'!C48 -> 0.1658808756
D54: 2037 | E54: ='MA SMART PRICING'!H49 -> 0.170718589 | F54: ='MA SMART PRICING'!F49 -> 0.15365148 | G54: ='MA SMART PRICING'!D49 -> 0.14550148 | H54: ='MA SMART PRICING'!E49 -> 0.1984831643 | I54: ='MA SMART PRICING'!C49 -> 0.16582148
D55: 2038 | E55: ='MA SMART PRICING'!H50 -> 0.1706625319 | F55: ='MA SMART PRICING'!F50 -> 0.1535917874 | G55: ='MA SMART PRICING'!D50 -> 0.1454417874 | H55: ='MA SMART PRICING'!E50 -> 0.1984217301 | I55: ='MA SMART PRICING'!C50 -> 0.1657617874
D56: 2039 | E56: ='MA SMART PRICING'!H51 -> 0.1706061946 | F56: ='MA SMART PRICING'!F51 -> 0.1535317963 | G56: ='MA SMART PRICING'!D51 -> 0.1453817963 | H56: ='MA SMART PRICING'!E51 -> 0.1983599888 | I56: ='MA SMART PRICING'!C51 -> 0.1657017963
D58: Total Project Revenue Rate Projections ($/kWh) NO CS ADDER
D59: 2020 | E59: ='MA SMART PRICING'!H58 -> 0.12739 | F59: ='MA SMART PRICING'!F58 -> 0.110382 | G59: ='MA SMART PRICING'!D58 -> 0.102232 | H59: ='MA SMART PRICING'!E58 -> 0.158712 | I59: ='MA SMART PRICING'!C58 -> 0.120712
D60: 2021 | E60: ='MA SMART PRICING'!H59 -> 0.1273385 | F60: ='MA SMART PRICING'!F59 -> 0.11032716 | G60: ='MA SMART PRICING'!D59 -> 0.10217716 | H60: ='MA SMART PRICING'!E59 -> 0.15865556 | I60: ='MA SMART PRICING'!C59 -> 0.12065716
D61: 2022 | E61: ='MA SMART PRICING'!H60 -> 0.1272867425 | F61: ='MA SMART PRICING'!F60 -> 0.1102720458 | G61: ='MA SMART PRICING'!D60 -> 0.1021220458 | H61: ='MA SMART PRICING'!E60 -> 0.1585988378 | I61: ='MA SMART PRICING'!C60 -> 0.1206020458
D62: 2023 | E62: ='MA SMART PRICING'!H61 -> 0.1272347262 | F62: ='MA SMART PRICING'!F61 -> 0.110216656 | G62: ='MA SMART PRICING'!D61 -> 0.102066656 | H62: ='MA SMART PRICING'!E61 -> 0.158541832 | I62: ='MA SMART PRICING'!C61 -> 0.120546656
D63: 2024 | E63: ='MA SMART PRICING'!H62 -> 0.1271824498 | F63: ='MA SMART PRICING'!F62 -> 0.1101609893 | G63: ='MA SMART PRICING'!D62 -> 0.1020109893 | H63: ='MA SMART PRICING'!E62 -> 0.1584845411 | I63: ='MA SMART PRICING'!C62 -> 0.1204909893
D64: 2025 | E64: ='MA SMART PRICING'!H63 -> 0.1271299121 | F64: ='MA SMART PRICING'!F63 -> 0.1101050443 | G64: ='MA SMART PRICING'!D63 -> 0.1019550443 | H64: ='MA SMART PRICING'!E63 -> 0.1584269639 | I64: ='MA SMART PRICING'!C63 -> 0.1204350443
D65: 2026 | E65: ='MA SMART PRICING'!H64 -> 0.1270771117 | F65: ='MA SMART PRICING'!F64 -> 0.1100488195 | G65: ='MA SMART PRICING'!D64 -> 0.1018988195 | H65: ='MA SMART PRICING'!E64 -> 0.1583690987 | I65: ='MA SMART PRICING'!C64 -> 0.1203788195
D66: 2027 | E66: ='MA SMART PRICING'!H65 -> 0.1270240472 | F66: ='MA SMART PRICING'!F65 -> 0.1099923136 | G66: ='MA SMART PRICING'!D65 -> 0.1018423136 | H66: ='MA SMART PRICING'!E65 -> 0.1583109442 | I66: ='MA SMART PRICING'!C65 -> 0.1203223136
D67: 2028 | E67: ='MA SMART PRICING'!H66 -> 0.1269707174 | F67: ='MA SMART PRICING'!F66 -> 0.1099355251 | G67: ='MA SMART PRICING'!D66 -> 0.1017855251 | H67: ='MA SMART PRICING'!E66 -> 0.1582524989 | I67: ='MA SMART PRICING'!C66 -> 0.1202655251
D68: 2029 | E68: ='MA SMART PRICING'!H67 -> 0.126917121 | F68: ='MA SMART PRICING'!F67 -> 0.1098784528 | G68: ='MA SMART PRICING'!D67 -> 0.1017284528 | H68: ='MA SMART PRICING'!E67 -> 0.1581937614 | I68: ='MA SMART PRICING'!C67 -> 0.1202084528
D69: 2030 | E69: ='MA SMART PRICING'!H68 -> 0.1268632566 | F69: ='MA SMART PRICING'!F68 -> 0.109821095 | G69: ='MA SMART PRICING'!D68 -> 0.101671095 | H69: ='MA SMART PRICING'!E68 -> 0.1581347302 | I69: ='MA SMART PRICING'!C68 -> 0.120151095
D70: 2031 | E70: ='MA SMART PRICING'!H69 -> 0.1268091229 | F70: ='MA SMART PRICING'!F69 -> 0.1097634505 | G70: ='MA SMART PRICING'!D69 -> 0.1016134505 | H70: ='MA SMART PRICING'!E69 -> 0.1580754038 | I70: ='MA SMART PRICING'!C69 -> 0.1200934505
D71: 2032 | E71: ='MA SMART PRICING'!H70 -> 0.1267547185 | F71: ='MA SMART PRICING'!F70 -> 0.1097055178 | G71: ='MA SMART PRICING'!D70 -> 0.1015555178 | H71: ='MA SMART PRICING'!E70 -> 0.1580157809 | I71: ='MA SMART PRICING'!C70 -> 0.1200355178
D72: 2033 | E72: ='MA SMART PRICING'!H71 -> 0.1267000421 | F72: ='MA SMART PRICING'!F71 -> 0.1096472953 | G72: ='MA SMART PRICING'!D71 -> 0.1014972953 | H72: ='MA SMART PRICING'!E71 -> 0.1579558598 | I72: ='MA SMART PRICING'!C71 -> 0.1199772953
D73: 2034 | E73: ='MA SMART PRICING'!H72 -> 0.1266450923 | F73: ='MA SMART PRICING'!F72 -> 0.1095887818 | G73: ='MA SMART PRICING'!D72 -> 0.1014387818 | H73: ='MA SMART PRICING'!E72 -> 0.1578956391 | I73: ='MA SMART PRICING'!C72 -> 0.1199187818
D74: 2035 | E74: ='MA SMART PRICING'!H73 -> 0.1265898678 | F74: ='MA SMART PRICING'!F73 -> 0.1095299757 | G74: ='MA SMART PRICING'!D73 -> 0.1013799757 | H74: ='MA SMART PRICING'!E73 -> 0.1578351173 | I74: ='MA SMART PRICING'!C73 -> 0.1198599757
D75: 2036 | E75: ='MA SMART PRICING'!H74 -> 0.1265343671 | F75: ='MA SMART PRICING'!F74 -> 0.1094708756 | G75: ='MA SMART PRICING'!D74 -> 0.1013208756 | H75: ='MA SMART PRICING'!E74 -> 0.1577742928 | I75: ='MA SMART PRICING'!C74 -> 0.1198008756
D76: 2037 | E76: ='MA SMART PRICING'!H75 -> 0.126478589 | F76: ='MA SMART PRICING'!F75 -> 0.10941148 | G76: ='MA SMART PRICING'!D75 -> 0.10126148 | H76: ='MA SMART PRICING'!E75 -> 0.1577131643 | I76: ='MA SMART PRICING'!C75 -> 0.11974148
D77: 2038 | E77: ='MA SMART PRICING'!H76 -> 0.1264225319 | F77: ='MA SMART PRICING'!F76 -> 0.1093517874 | G77: ='MA SMART PRICING'!D76 -> 0.1012017874 | H77: ='MA SMART PRICING'!E76 -> 0.1576517301 | I77: ='MA SMART PRICING'!C76 -> 0.1196817874
D78: 2039 | E78: ='MA SMART PRICING'!H77 -> 0.1263661946 | F78: ='MA SMART PRICING'!F77 -> 0.1092917963 | G78: ='MA SMART PRICING'!D77 -> 0.1011417963 | H78: ='MA SMART PRICING'!E77 -> 0.1575899888 | I78: ='MA SMART PRICING'!C77 -> 0.1196217963
B80: O&M Cost Inputs
C81: O&M Cost per Year without Inflation
D82: O&M | E82: 74729 | F82: 57681 | G82: 52500 | H82: 45005 | I82: 79193
D83: Insurance | E83: 18308 | F83: 12090 | G83: 11628 | H83: 45558 | I83: 18235
D84: Rent/Lease | E84: 95200 | F84: 44000 | G84: 37800 | H84: 35200 | I84: 54921
D85: PILOT Expense | E85: 45750 | F85: 50259 | G85: 49196 | H85: 31000 | I85: 36307
D86: Property Tax Pmt | E86: 404 | F86: 840 | G86: 3473 | H86: 469 | I86: 2196
D87: Audit Fee | E87: 10008 | F87: 7226 | G87: 6504 | H87: 5455 | I87: 10839
D88: Community Solar Fees | E88: 79747 | F88: 53165 | G88: 46519 | H88: 39874 | I88: 79747
D89: Other Exp (Accounting) | E89: 6523 | F89: 4437 | G89: 3996 | H89: 3326 | I89: 6655
D90: Other Exp (Ins Deductibles) | E90: 1563 | F90: 1563 | G90: 1563 | H90: 1563 | I90: 1563
D91: Other Exp (Meter fees) | E91: 4573 | F91: 3293 | G91: 2964 | H91: 2486 | I91: 4939
C93: O&M Cost Inflation
D94: O&M | E94: 0.015 | F94: 0.015 | G94: 0.015 | H94: 0.015 | I94: 0.015
D95: Insurance | E95: 0 | F95: 0 | G95: 0 | H95: 0 | I95: 0
D96: Rent/Lease | E96: 0 | F96: 0.02 | G96: 0 | H96: 0 | I96: 0
D97: PILOT Expense | E97: 0 | F97: 0.01 | G97: 0.01 | H97: 0.025 | I97: 0
D98: Property Tax Pmt | E98: 0.02 | F98: 0.02 | G98: 0.02 | H98: 0.02 | I98: 0.02
D99: Audit Fee | E99: 0.02 | F99: 0.02 | G99: 0.02 | H99: 0.02 | I99: 0.02
D100: Community Solar Fees | E100: 0.02 | F100: 0.02 | G100: 0.02 | H100: 0.02 | I100: 0.02
D101: Other Exp (Accounting) | E101: 0.02 | F101: 0.02 | G101: 0.02 | H101: 0.02 | I101: 0.02
D102: Other Exp (Ins Deductibles) | E102: 0.02 | F102: 0.02 | G102: 0.02 | H102: 0.02 | I102: 0.02
D103: Other Exp (Meter fees) | E103: 0.02 | F103: 0.02 | G103: 0.02 | H103: 0.02 | I103: 0.02
C105: O&M Cost/kW-yr
D106: O&M | E106: =E82/E$18/1000 -> 11.45588055 | F106: 13.00105485 | G106: 13.13872997 | H106: 13.52964165 | I106: 11.90691339
D107: Insurance | E107: 2.806597989 | F107: 2.725035162 | G107: 2.910040993 | H107: 13.69588745 | I107: 2.741688856
D108: Rent/Lease | E108: 14.59406426 | F108: 9.917414981 | G108: 9.45988558 | H108: 10.58201058 | I108: 8.257542839
D109: PILOT Expense | E109: 7.013428992 | F109: 11.32816726 | G109: 12.3118659 | H109: 9.319384319 | I109: 5.458870157
D110: Property Tax Pmt | E110: 0.06193279372 | F110: 0.1893324678 | G110: 0.8691582704 | H110: 0.140993266 | I110: 0.330175417
D111: Audit Fee | E111: 1.534216336 | F111: 1.628710015 | G111: 1.627700947 | H111: 1.639911015 | I111: 1.629677297
D112: Community Solar Fees | E112: 12.2251349 | F112: 11.98316744 | G112: 11.6419158 | H112: 11.98713324 | I112: 11.99020901
D113: Other Exp (Accounting) | E113: 0.9999693402 | F113: 1.000081142 | G113: 1.000045047 | H113: 0.9998797499 | I113: 1.000599909
D114: Other Exp (Ins Deductibles) | E114: 0.2396063282 | F114: 0.3522936276 | G114: 0.3911587609 | H114: 0.4698773449 | I114: 0.235001902
D115: Other Exp (Meter fees) | E115: 0.7010363012 | F115: 0.742228353 | G115: 0.741775155 | H115: 0.7473544974 | I115: 0.742593982
D116: Total | E116: =SUM(E106:E115) -> 51.63186779 | F116: =SUM(F106:F115) -> 52.8674853 | G116: =SUM(G106:G115) -> 54.09227643 | H116: =SUM(H106:H115) -> 63.11207311 | I116: =SUM(I106:I115) -> 44.29327275
D119: Parasitic Power Consumption | E119: 0.0027 | F119: 0.0027 | G119: 0.0027 | H119: 0.0027 | I119: 0.0027
D120: Inverter Repalacement Cost | E120: 35 | F120: 35 | G120: 35 | H120: 35 | I120: 35
D121: Start Year for Investment Reserve | E121: 6 | F121: 6 | G121: 6 | H121: 6 | I121: 6
D122: Years of Inverter Reserve | E122: 10 | F122: 10 | G122: 10 | H122: 10 | I122: 10
D123: End Year of Inverter Reserve | E123: =E121+E122 -> 16 | F123: =F121+F122 -> 16 | G123: =G121+G122 -> 16 | H123: =H121+H122 -> 16 | I123: =I121+I122 -> 16
B125: Financing Assumptions and Results
E126: Normal | F126: Normal | G126: Normal | H126: Normal | I126: Normal
D127: Loan Amount in Fixed Case | E127: 8575000 | F127: 5183000 | G127: 4565000 | H127: 6030000 | I127: 9765000
D128: DSCR Applied in Sizing Calculation Alternative
D129: REAP Amount
D130: REAP Guarantee % | E130: =IF(E129=0,0,IF(E129<=600000,0.85,IF(AND(E129>600000,E129<=5000000),0.8,IF(AND(E129>5000000,E129<=10000000),0.7,IF(E129>10000000,0.6))))) -> 0 | F130: =IF(F129=0,0,IF(F129<=600000,0.85,IF(AND(F129>600000,F129<=5000000),0.8,IF(AND(F129>5000000,F129<=10000000),0.7,IF(F129>10000000,0.6))))) -> 0 | G130: =IF(G129=0,0,IF(G129<=600000,0.85,IF(AND(G129>600000,G129<=5000000),0.8,IF(AND(G129>5000000,G129<=10000000),0.7,IF(G129>10000000,0.6))))) -> 0 | H130: =IF(H129=0,0,IF(H129<=600000,0.85,IF(AND(H129>600000,H129<=5000000),0.8,IF(AND(H129>5000000,H129<=10000000),0.7,IF(H129>10000000,0.6))))) -> 0 | I130: =IF(I129=0,0,IF(I129<=600000,0.85,IF(AND(I129>600000,I129<=5000000),0.8,IF(AND(I129>5000000,I129<=10000000),0.7,IF(I129>10000000,0.6))))) -> 0
D131: B&I Amount
D132: B&I Guarantee % | E132: =IF(E131=0,0,IF(E131<=5000000,0.8,IF(AND(E131>5000000,E131<=10000000),0.7,IF(E131>10000000,0.6)))) -> 0 | F132: =IF(F131=0,0,IF(F131<=5000000,0.8,IF(AND(F131>5000000,F131<=10000000),0.7,IF(F131>10000000,0.6)))) -> 0 | G132: =IF(G131=0,0,IF(G131<=5000000,0.8,IF(AND(G131>5000000,G131<=10000000),0.7,IF(G131>10000000,0.6)))) -> 0 | H132: =IF(H131=0,0,IF(H131<=5000000,0.8,IF(AND(H131>5000000,H131<=10000000),0.7,IF(H131>10000000,0.6)))) -> 0 | I132: =IF(I131=0,0,IF(I131<=5000000,0.8,IF(AND(I131>5000000,I131<=10000000),0.7,IF(I131>10000000,0.6)))) -> 0
D133: Weighted GTY Interest Rate | E133: =(((E129/E127)*0.0025)*E130)+(((E131/E127)*0.005)*E132) -> 0 | F133: =(((F129/F127)*0.0025)*F130)+(((F131/F127)*0.005)*F132) -> 0 | G133: =(((G129/G127)*0.0025)*G130)+(((G131/G127)*0.005)*G132) -> 0 | H133: =(((H129/H127)*0.0025)*H130)+(((H131/H127)*0.005)*H132) -> 0 | I133: =(((I129/I127)*0.0025)*I130)+(((I131/I127)*0.005)*I132) -> 0
D134: Interest Rate LIBOR Swap (yr) | E134: 20 | F134: 20 | G134: 20 | H134: 20 | I134: 20
D135: Interest Rate LIBOR Swap (%) | E135: ='General Inputs'!$F$19 -> 0.0211 | F135: ='General Inputs'!$F$19 -> 0.0211 | G135: ='General Inputs'!$F$19 -> 0.0211 | H135: ='General Inputs'!$F$19 -> 0.0211 | I135: ='General Inputs'!$F$19 -> 0.0211
D136: Base Rate Spread | E136: 0.0325 | F136: 0.0325 | G136: 0.0325 | H136: 0.0325 | I136: 0.0325
D137: Interest Rate Plus Credit Spread | E137: =E135+E136 -> 0.0536 | F137: =F135+F136 -> 0.0536 | G137: =G135+G136 -> 0.0536 | H137: =H135+H136 -> 0.0536 | I137: =I135+I136 -> 0.0536
D138: Overall Interest Rate Cap | E138: ='General Inputs'!$F$21 -> 0.0425 | F138: ='General Inputs'!$F$21 -> 0.0425 | G138: ='General Inputs'!$F$21 -> 0.0425 | H138: ='General Inputs'!$F$21 -> 0.0425 | I138: ='General Inputs'!$F$21 -> 0.0425
D139: Interest Rate Applied | E139: =MAX(E138,E137) -> 0.0536 | F139: =MAX(F138,F137) -> 0.0536 | G139: =MAX(G138,G137) -> 0.0536 | H139: =MAX(H138,H137) -> 0.0536 | I139: =MAX(I138,I137) -> 0.0536
D140: Base Interest Rate w/o USDA (365 Days) | E140: =IF(SUM(E135:E136)<0.0425,0.0425,SUM(E135:E136)) -> 0.0536 | F140: =IF(SUM(F135:F136)<0.0425,0.0425,SUM(F135:F136)) -> 0.0536 | G140: =IF(SUM(G135:G136)<0.0425,0.0425,SUM(G135:G136)) -> 0.0536 | H140: =IF(SUM(H135:H136)<0.0425,0.0425,SUM(H135:H136)) -> 0.0536 | I140: =IF(SUM(I135:I136)<0.0425,0.0425,SUM(I135:I136)) -> 0.0536
D141: 360/365 Day Factor for USDA | E141: =365/360 -> 1.013888889 | F141: =365/360 -> 1.013888889 | G141: =365/360 -> 1.013888889 | H141: =365/360 -> 1.013888889 | I141: =365/360 -> 1.013888889
D142: Accrued Interest Rate w/ USDA | E142: =E140*E141 -> 0.05434444444 | F142: =F140*F141 -> 0.05434444444 | G142: =G140*G141 -> 0.05434444444 | H142: =H140*H141 -> 0.05434444444 | I142: =I140*I141 -> 0.05434444444
D143: Interest Rate with B&I Gurantee | E143: =E142+E132 -> 0.05434444444 | F143: =F142+F132 -> 0.05434444444 | G143: =G142+G132 -> 0.05434444444 | H143: =H142+H132 -> 0.05434444444 | I143: =I142+I132 -> 0.05434444444
D144: Term (Years) | E144: =E134 -> 20 | F144: =F13 -> 20 | G144: =G13 -> 20 | H144: =H13 -> 20 | I144: =I13 -> 20
D145: Est. Annual Payment w/ USDA | E145: =PMT(E143,E144,E127) -> -713652.6117 | F145: =PMT(F143,F134,F127) -> -431354.1092 | G145: =PMT(G143,G134,G127) -> -379921.1863 | H145: =PMT(H143,H144,H127) -> -501845.51 | I145: =PMT(I143,I144,I127) -> -812690.117
D146: Payment Structure | E146: P+I | F146: P+I | G146: P+I | H146: P+I | I146: P+I
B148: Financial Inputs for Stress/P99 Case
D149: Target DSCR
D150: Loan Amount | E150: Stressed | F150: Stressed | G150: Stressed | H150: Stressed | I150: Stressed
D151: REAP Amount | E151: =E127 -> 8575000 | F151: =F127 -> 5183000 | G151: =G127 -> 4565000 | H151: =H127 -> 6030000 | I151: =I127 -> 9765000
D152: REAP Guarantee %
D153: B&I Amount
D154: B&I Guarantee %
D155: Weighted GTY Interest Rate
D156: Interest Rate LIBOR Swap (yr)
D157: Interest Rate LIBOR Swap (%) | E157: =E134 -> 20 | F157: =E157 -> 20 | G157: =F157 -> 20 | H157: =G157 -> 20 | I157: =H157 -> 20
D158: Additional Credit Spread in Stress Case | E158: 0.005 | F158: 0.005 | G158: 0.005 | H158: 0.005 | I158: 0.005
D159: Base Rate Spread | E159: =E135+E158 -> 0.0261 | F159: =F135+F158 -> 0.0261 | G159: 0.0261 | H159: 0.0261 | I159: 0.0261
D160: Base Interest Rate w/o USDA | E160: =E136 -> 0.0325 | F160: =E160 -> 0.0325 | G160: =F160 -> 0.0325 | H160: =G160 -> 0.0325 | I160: =H160 -> 0.0325
D161: Accrued Interest Rate w/o USDA | E161: =E140+E158 -> 0.0586 | F161: =F140+F158 -> 0.0586 | G161: 0.0586 | H161: 0.0586 | I161: 0.0586
D162: Accrued Interest Rate w/ USDA | E162: =E143+E158 -> 0.05934444444 | F162: =F143+F158 -> 0.05934444444 | G162: 0.05934444444 | H162: 0.05934444444 | I162: 0.05934444444
D163: Interest Rate with B&I Gurantee | E163: =E158+E143 -> 0.05934444444 | F163: =F158+F143 -> 0.05934444444 | G163: 0.05934444444 | H163: 0.05934444444 | I163: 0.05934444444
D164: Term | E164: 20 | F164: 20 | G164: 20 | H164: 20 | I164: 20
D165: Est. Annual Payment w/ USDA | E165: =PMT(E163,E164,E151) -> -743633.8426 | F165: =PMT(F163,F164,F151) -> -449475.7092 | G165: =PMT(G163,G164,G151) -> -395882.0398 | H165: =PMT(H163,H164,H151) -> -522928.5214 | I165: =PMT(I163,I164,I151) -> -846832.0085

Sheet Sizing Summary
G3: =Template!I3 -> 2020-12-31 | H3: =Template!J3 -> 2021-12-31 | I3: =Template!K3 -> 2022-12-31 | J3: =Template!L3 -> 2023-12-31 | K3: =Template!M3 -> 2024-12-31 | L3: =Template!N3 -> 2025-12-31 | M3: =Template!O3 -> 2026-12-31 | N3: =Template!P3 -> 2027-12-31 | O3: =Template!Q3 -> 2028-12-31 | P3: =Template!R3 -> 2029-12-31 | Q3: =Template!S3 -> 2030-12-31 | R3: =Template!T3 -> 2031-12-31 | S3: =Template!U3 -> 2032-12-31 | T3: =Template!V3 -> 2033-12-31 | U3: =Template!W3 -> 2034-12-31 | V3: =Template!X3 -> 2035-12-31 | W3: =Template!Y3 -> 2036-12-31 | X3: =Template!Z3 -> 2037-12-31 | Y3: =Template!AA3 -> 2038-12-31 | Z3: =Template!AB3 -> 2039-12-31 | AA3: =Template!AC3 -> 2040-12-31 | AB3: =Template!AD3 -> 2041-12-31 | AC3: =Template!AE3 -> 2042-12-31 | AD3: =Template!AF3 -> 2043-12-31 | AE3: =Template!AG3 -> 2044-12-31 | AF3: =Template!AH3 -> 2045-12-31 | AG3: =Template!AI3 -> 2046-12-31 | AH3: =Template!AJ3 -> 2047-12-31 | AI3: =Template!AK3 -> 2048-12-31 | AJ3: =Template!AL3 -> 2049-12-31 | AK3: =Template!AM3 -> 2050-12-31 | AL3: =Template!AN3 -> 2051-12-31 | AM3: =Template!AO3 -> 2052-12-31 | AN3: =Template!AP3 -> 2053-12-31 | AO3: =Template!AQ3 -> 2054-12-31 | AP3: =Template!AR3 -> 2055-12-31 | AQ3: =Template!AS3 -> 2056-12-31 | AR3: =Template!AT3 -> 2057-12-31 | AS3: =Template!AU3 -> 2058-12-31 | AT3: =Template!AV3 -> 2059-12-31
F7: =Template!H164 -> H | G7: =Template!I164 -> I | H7: =Template!J164 -> J | I7: =Template!K164 -> K | J7: =Template!L164 -> L | K7: =Template!M164 -> M | L7: =Template!N164 -> N | M7: =Template!O164 -> O | N7: =Template!P164 -> P | O7: =Template!Q164 -> Q | P7: =Template!R164 -> R | Q7: =Template!S164 -> S | R7: =Template!T164 -> T | S7: =Template!U164 -> U | T7: =Template!V164 -> V | U7: =Template!W164 -> W | V7: =Template!X164 -> X | W7: =Template!Y164 -> Y | X7: =Template!Z164 -> Z | Y7: =Template!AA164 -> A | Z7: =Template!AB164 -> A | AA7: =Template!AC164 -> A | AB7: =Template!AD164 -> A | AC7: =Template!AE164 -> A | AD7: =Template!AF164 -> A | AE7: =Template!AG164 -> A | AF7: =Template!AH164 -> A | AG7: =Template!AI164 -> A | AH7: =Template!AJ164 -> A | AI7: =Template!AK164 -> A | AJ7: =Template!AL164 -> A | AK7: =Template!AM164 -> A | AL7: =Template!AN164 -> A | AM7: =Template!AO164 -> A | AN7: =Template!AP164 -> A | AO7: =Template!AQ164 -> A | AP7: =Template!AR164 -> A | AQ7: =Template!AS164 -> A | AR7: =Template!AT164 -> A | AS7: =Template!AU164 -> A | AT7: =Template!AV164 -> A
D8: Loan size as a % of total
D9: Net Loan Amount
D10: Net Loan amount rounded
D11: Holdback
D13: Collateral Reserve*
D14: Inverter Reserve
B17: P50 Case
C18: Revenues | E18: Row
D19: =TRANSPOSE('Project Database'!E4:I4) -> New Marlborough | E19: =ROW(Template!E38) -> 38 | G19: =INDIRECT("'"&$D19&"'!"&G$7&$E19) -> 1396661.252 | H19: =INDIRECT("'"&$D19&"'!"&H$7&$E19) -> 1036201.114 | I19: =INDIRECT("'"&$D19&"'!"&I$7&$E19) -> 1030609.113 | J19: =INDIRECT("'"&$D19&"'!"&J$7&$E19) -> 1374589.077 | K19: =INDIRECT("'"&$D19&"'!"&K$7&$E19) -> 1367305.157 | L19: =INDIRECT("'"&$D19&"'!"&L$7&$E19) -> 1360057.666 | M19: =INDIRECT("'"&$D19&"'!"&M$7&$E19) -> 1352846.424 | N19: =INDIRECT("'"&$D19&"'!"&N$7&$E19) -> 1345671.248 | O19: =INDIRECT("'"&$D19&"'!"&O$7&$E19) -> 1338531.958 | P19: =INDIRECT("'"&$D19&"'!"&P$7&$E19) -> 1331428.374 | Q19: =INDIRECT("'"&$D19&"'!"&Q$7&$E19) -> 1324360.319 | R19: =INDIRECT("'"&$D19&"'!"&R$7&$E19) -> 1317327.615 | S19: =INDIRECT("'"&$D19&"'!"&S$7&$E19) -> 1310330.084 | T19: =INDIRECT("'"&$D19&"'!"&T$7&$E19) -> 1303367.551 | U19: =INDIRECT("'"&$D19&"'!"&U$7&$E19) -> 1296439.841 | V19: =INDIRECT("'"&$D19&"'!"&V$7&$E19) -> 1289546.78 | W19: =INDIRECT("'"&$D19&"'!"&W$7&$E19) -> 1282688.195 | X19: =INDIRECT("'"&$D19&"'!"&X$7&$E19) -> 1275863.913 | Y19: =INDIRECT("'"&$D19&"'!"&Y$7&$E19) -> 0 | Z19: =INDIRECT("'"&$D19&"'!"&Z$7&$E19) -> 0 | AA19: =INDIRECT("'"&$D19&"'!"&AA$7&$E19) -> 0 | AB19: =INDIRECT("'"&$D19&"'!"&AB$7&$E19) -> 0 | AC19: =INDIRECT("'"&$D19&"'!"&AC$7&$E19) -> 0 | AD19: =INDIRECT("'"&$D19&"'!"&AD$7&$E19) -> 0 | AE19: =INDIRECT("'"&$D19&"'!"&AE$7&$E19) -> 0 | AF19: =INDIRECT("'"&$D19&"'!"&AF$7&$E19) -> 0 | AG19: =INDIRECT("'"&$D19&"'!"&AG$7&$E19) -> 0 | AH19: =INDIRECT("'"&$D19&"'!"&AH$7&$E19) -> 0 | AI19: =INDIRECT("'"&$D19&"'!"&AI$7&$E19) -> 0 | AJ19: =INDIRECT("'"&$D19&"'!"&AJ$7&$E19) -> 0 | AK19: =INDIRECT("'"&$D19&"'!"&AK$7&$E19) -> 0 | AL19: =INDIRECT("'"&$D19&"'!"&AL$7&$E19) -> 0 | AM19: =INDIRECT("'"&$D19&"'!"&AM$7&$E19) -> 0 | AN19: =INDIRECT("'"&$D19&"'!"&AN$7&$E19) -> 0 | AO19: =INDIRECT("'"&$D19&"'!"&AO$7&$E19) -> 0 | AP19: =INDIRECT("'"&$D19&"'!"&AP$7&$E19) -> 0 | AQ19: =INDIRECT("'"&$D19&"'!"&AQ$7&$E19) -> 0 | AR19: =INDIRECT("'"&$D19&"'!"&AR$7&$E19) -> 0 | AS19: =INDIRECT("'"&$D19&"'!"&AS$7&$E19) -> 0 | AT19: =INDIRECT("'"&$D19&"'!"&AT$7&$E19) -> 0
D20: Peru | E20: =E19 -> 38 | G20: =INDIRECT("'"&$D20&"'!"&G$7&$E20) -> 882439.5749 | H20: =INDIRECT("'"&$D20&"'!"&H$7&$E20) -> 630499.4549 | I20: =INDIRECT("'"&$D20&"'!"&I$7&$E20) -> 627040.509 | J20: =INDIRECT("'"&$D20&"'!"&J$7&$E20) -> 868354.2973 | K20: =INDIRECT("'"&$D20&"'!"&K$7&$E20) -> 863706.0925 | L20: =INDIRECT("'"&$D20&"'!"&L$7&$E20) -> 859081.1365 | M20: =INDIRECT("'"&$D20&"'!"&M$7&$E20) -> 854479.3128 | N20: =INDIRECT("'"&$D20&"'!"&N$7&$E20) -> 849900.506 | O20: =INDIRECT("'"&$D20&"'!"&O$7&$E20) -> 845344.6008 | P20: =INDIRECT("'"&$D20&"'!"&P$7&$E20) -> 840811.4828 | Q20: =INDIRECT("'"&$D20&"'!"&Q$7&$E20) -> 836301.0381 | R20: =INDIRECT("'"&$D20&"'!"&R$7&$E20) -> 831813.1532 | S20: =INDIRECT("'"&$D20&"'!"&S$7&$E20) -> 827347.7154 | T20: =INDIRECT("'"&$D20&"'!"&T$7&$E20) -> 822904.6125 | U20: =INDIRECT("'"&$D20&"'!"&U$7&$E20) -> 818483.7328 | V20: =INDIRECT("'"&$D20&"'!"&V$7&$E20) -> 814084.9651 | W20: =INDIRECT("'"&$D20&"'!"&W$7&$E20) -> 809708.1989 | X20: =INDIRECT("'"&$D20&"'!"&X$7&$E20) -> 805353.3242 | Y20: =INDIRECT("'"&$D20&"'!"&Y$7&$E20) -> 0 | Z20: =INDIRECT("'"&$D20&"'!"&Z$7&$E20) -> 0 | AA20: =INDIRECT("'"&$D20&"'!"&AA$7&$E20) -> 0 | AB20: =INDIRECT("'"&$D20&"'!"&AB$7&$E20) -> 0 | AC20: =INDIRECT("'"&$D20&"'!"&AC$7&$E20) -> 0 | AD20: =INDIRECT("'"&$D20&"'!"&AD$7&$E20) -> 0 | AE20: =INDIRECT("'"&$D20&"'!"&AE$7&$E20) -> 0 | AF20: =INDIRECT("'"&$D20&"'!"&AF$7&$E20) -> 0 | AG20: =INDIRECT("'"&$D20&"'!"&AG$7&$E20) -> 0 | AH20: =INDIRECT("'"&$D20&"'!"&AH$7&$E20) -> 0 | AI20: =INDIRECT("'"&$D20&"'!"&AI$7&$E20) -> 0 | AJ20: =INDIRECT("'"&$D20&"'!"&AJ$7&$E20) -> 0 | AK20: =INDIRECT("'"&$D20&"'!"&AK$7&$E20) -> 0 | AL20: =INDIRECT("'"&$D20&"'!"&AL$7&$E20) -> 0 | AM20: =INDIRECT("'"&$D20&"'!"&AM$7&$E20) -> 0 | AN20: =INDIRECT("'"&$D20&"'!"&AN$7&$E20) -> 0 | AO20: =INDIRECT("'"&$D20&"'!"&AO$7&$E20) -> 0 | AP20: =INDIRECT("'"&$D20&"'!"&AP$7&$E20) -> 0 | AQ20: =INDIRECT("'"&$D20&"'!"&AQ$7&$E20) -> 0 | AR20: =INDIRECT("'"&$D20&"'!"&AR$7&$E20) -> 0 | AS20: =INDIRECT("'"&$D20&"'!"&AS$7&$E20) -> 0 | AT20: =INDIRECT("'"&$D20&"'!"&AT$7&$E20) -> 0
D21: Russell | E21: =E20 -> 38 | G21: =INDIRECT("'"&$D21&"'!"&G$7&$E21) -> 771410.195 | H21: =INDIRECT("'"&$D21&"'!"&H$7&$E21) -> 539331.4399 | I21: =INDIRECT("'"&$D21&"'!"&I$7&$E21) -> 536352.2359 | J21: =INDIRECT("'"&$D21&"'!"&J$7&$E21) -> 759053.3923 | K21: =INDIRECT("'"&$D21&"'!"&K$7&$E21) -> 754975.5926 | L21: =INDIRECT("'"&$D21&"'!"&L$7&$E21) -> 750918.1891 | M21: =INDIRECT("'"&$D21&"'!"&M$7&$E21) -> 746881.0796 | N21: =INDIRECT("'"&$D21&"'!"&N$7&$E21) -> 742864.1627 | O21: =INDIRECT("'"&$D21&"'!"&O$7&$E21) -> 738867.3374 | P21: =INDIRECT("'"&$D21&"'!"&P$7&$E21) -> 734890.5034 | Q21: =INDIRECT("'"&$D21&"'!"&Q$7&$E21) -> 730933.5606 | R21: =INDIRECT("'"&$D21&"'!"&R$7&$E21) -> 726996.4095 | S21: =INDIRECT("'"&$D21&"'!"&S$7&$E21) -> 723078.9513 | T21: =INDIRECT("'"&$D21&"'!"&T$7&$E21) -> 719181.0875 | U21: =INDIRECT("'"&$D21&"'!"&U$7&$E21) -> 715302.72 | V21: =INDIRECT("'"&$D21&"'!"&V$7&$E21) -> 711443.7514 | W21: =INDIRECT("'"&$D21&"'!"&W$7&$E21) -> 707604.0847 | X21: =INDIRECT("'"&$D21&"'!"&X$7&$E21) -> 703783.6234 | Y21: =INDIRECT("'"&$D21&"'!"&Y$7&$E21) -> 0 | Z21: =INDIRECT("'"&$D21&"'!"&Z$7&$E21) -> 0 | AA21: =INDIRECT("'"&$D21&"'!"&AA$7&$E21) -> 0 | AB21: =INDIRECT("'"&$D21&"'!"&AB$7&$E21) -> 0 | AC21: =INDIRECT("'"&$D21&"'!"&AC$7&$E21) -> 0 | AD21: =INDIRECT("'"&$D21&"'!"&AD$7&$E21) -> 0 | AE21: =INDIRECT("'"&$D21&"'!"&AE$7&$E21) -> 0 | AF21: =INDIRECT("'"&$D21&"'!"&AF$7&$E21) -> 0 | AG21: =INDIRECT("'"&$D21&"'!"&AG$7&$E21) -> 0 | AH21: =INDIRECT("'"&$D21&"'!"&AH$7&$E21) -> 0 | AI21: =INDIRECT("'"&$D21&"'!"&AI$7&$E21) -> 0 | AJ21: =INDIRECT("'"&$D21&"'!"&AJ$7&$E21) -> 0 | AK21: =INDIRECT("'"&$D21&"'!"&AK$7&$E21) -> 0 | AL21: =INDIRECT("'"&$D21&"'!"&AL$7&$E21) -> 0 | AM21: =INDIRECT("'"&$D21&"'!"&AM$7&$E21) -> 0 | AN21: =INDIRECT("'"&$D21&"'!"&AN$7&$E21) -> 0 | AO21: =INDIRECT("'"&$D21&"'!"&AO$7&$E21) -> 0 | AP21: =INDIRECT("'"&$D21&"'!"&AP$7&$E21) -> 0 | AQ21: =INDIRECT("'"&$D21&"'!"&AQ$7&$E21) -> 0 | AR21: =INDIRECT("'"&$D21&"'!"&AR$7&$E21) -> 0 | AS21: =INDIRECT("'"&$D21&"'!"&AS$7&$E21) -> 0 | AT21: =INDIRECT("'"&$D21&"'!"&AT$7&$E21) -> 0
D22: Westport | E22: 38 | G22: =INDIRECT("'"&$D22&"'!"&G$7&$E22) -> 912591.5963 | H22: =INDIRECT("'"&$D22&"'!"&H$7&$E22) -> 724489.6263 | I22: =INDIRECT("'"&$D22&"'!"&I$7&$E22) -> 720613.4533 | J22: =INDIRECT("'"&$D22&"'!"&J$7&$E22) -> 898213.6776 | K22: =INDIRECT("'"&$D22&"'!"&K$7&$E22) -> 893468.8971 | L22: =INDIRECT("'"&$D22&"'!"&L$7&$E22) -> 888747.8468 | M22: =INDIRECT("'"&$D22&"'!"&M$7&$E22) -> 884050.408 | N22: =INDIRECT("'"&$D22&"'!"&N$7&$E22) -> 879376.4629 | O22: =INDIRECT("'"&$D22&"'!"&O$7&$E22) -> 874725.8937 | P22: =INDIRECT("'"&$D22&"'!"&P$7&$E22) -> 870098.5838 | Q22: =INDIRECT("'"&$D22&"'!"&Q$7&$E22) -> 865494.4168 | R22: =INDIRECT("'"&$D22&"'!"&R$7&$E22) -> 860913.2769 | S22: =INDIRECT("'"&$D22&"'!"&S$7&$E22) -> 856355.0491 | T22: =INDIRECT("'"&$D22&"'!"&T$7&$E22) -> 851819.6187 | U22: =INDIRECT("'"&$D22&"'!"&U$7&$E22) -> 847306.8719 | V22: =INDIRECT("'"&$D22&"'!"&V$7&$E22) -> 842816.6951 | W22: =INDIRECT("'"&$D22&"'!"&W$7&$E22) -> 838348.9756 | X22: =INDIRECT("'"&$D22&"'!"&X$7&$E22) -> 833903.6009 | Y22: =INDIRECT("'"&$D22&"'!"&Y$7&$E22) -> 0 | Z22: =INDIRECT("'"&$D22&"'!"&Z$7&$E22) -> 0 | AA22: =INDIRECT("'"&$D22&"'!"&AA$7&$E22) -> 0 | AB22: =INDIRECT("'"&$D22&"'!"&AB$7&$E22) -> 0 | AC22: =INDIRECT("'"&$D22&"'!"&AC$7&$E22) -> 0 | AD22: =INDIRECT("'"&$D22&"'!"&AD$7&$E22) -> 0 | AE22: =INDIRECT("'"&$D22&"'!"&AE$7&$E22) -> 0 | AF22: =INDIRECT("'"&$D22&"'!"&AF$7&$E22) -> 0 | AG22: =INDIRECT("'"&$D22&"'!"&AG$7&$E22) -> 0 | AH22: =INDIRECT("'"&$D22&"'!"&AH$7&$E22) -> 0 | AI22: =INDIRECT("'"&$D22&"'!"&AI$7&$E22) -> 0 | AJ22: =INDIRECT("'"&$D22&"'!"&AJ$7&$E22) -> 0 | AK22: =INDIRECT("'"&$D22&"'!"&AK$7&$E22) -> 0 | AL22: =INDIRECT("'"&$D22&"'!"&AL$7&$E22) -> 0 | AM22: =INDIRECT("'"&$D22&"'!"&AM$7&$E22) -> 0 | AN22: =INDIRECT("'"&$D22&"'!"&AN$7&$E22) -> 0 | AO22: =INDIRECT("'"&$D22&"'!"&AO$7&$E22) -> 0 | AP22: =INDIRECT("'"&$D22&"'!"&AP$7&$E22) -> 0 | AQ22: =INDIRECT("'"&$D22&"'!"&AQ$7&$E22) -> 0 | AR22: =INDIRECT("'"&$D22&"'!"&AR$7&$E22) -> 0 | AS22: =INDIRECT("'"&$D22&"'!"&AS$7&$E22) -> 0 | AT22: =INDIRECT("'"&$D22&"'!"&AT$7&$E22) -> 0
D23: Tolland | E23: 38 | G23: =INDIRECT("'"&$D23&"'!"&G$7&$E23) -> 1453572.91 | H23: =INDIRECT("'"&$D23&"'!"&H$7&$E23) -> 1052163.256 | I23: =INDIRECT("'"&$D23&"'!"&I$7&$E23) -> 1046433.939 | J23: =INDIRECT("'"&$D23&"'!"&J$7&$E23) -> 1430479.667 | K23: =INDIRECT("'"&$D23&"'!"&K$7&$E23) -> 1422858.792 | L23: =INDIRECT("'"&$D23&"'!"&L$7&$E23) -> 1415276.032 | M23: =INDIRECT("'"&$D23&"'!"&M$7&$E23) -> 1407731.199 | N23: =INDIRECT("'"&$D23&"'!"&N$7&$E23) -> 1400224.101 | O23: =INDIRECT("'"&$D23&"'!"&O$7&$E23) -> 1392754.55 | P23: =INDIRECT("'"&$D23&"'!"&P$7&$E23) -> 1385322.359 | Q23: =INDIRECT("'"&$D23&"'!"&Q$7&$E23) -> 1377927.34 | R23: =INDIRECT("'"&$D23&"'!"&R$7&$E23) -> 1370569.308 | S23: =INDIRECT("'"&$D23&"'!"&S$7&$E23) -> 1363248.078 | T23: =INDIRECT("'"&$D23&"'!"&T$7&$E23) -> 1355963.466 | U23: =INDIRECT("'"&$D23&"'!"&U$7&$E23) -> 1348715.289 | V23: =INDIRECT("'"&$D23&"'!"&V$7&$E23) -> 1341503.364 | W23: =INDIRECT("'"&$D23&"'!"&W$7&$E23) -> 1334327.511 | X23: =INDIRECT("'"&$D23&"'!"&X$7&$E23) -> 1327187.549 | Y23: =INDIRECT("'"&$D23&"'!"&Y$7&$E23) -> 0 | Z23: =INDIRECT("'"&$D23&"'!"&Z$7&$E23) -> 0 | AA23: =INDIRECT("'"&$D23&"'!"&AA$7&$E23) -> 0 | AB23: =INDIRECT("'"&$D23&"'!"&AB$7&$E23) -> 0 | AC23: =INDIRECT("'"&$D23&"'!"&AC$7&$E23) -> 0 | AD23: =INDIRECT("'"&$D23&"'!"&AD$7&$E23) -> 0 | AE23: =INDIRECT("'"&$D23&"'!"&AE$7&$E23) -> 0 | AF23: =INDIRECT("'"&$D23&"'!"&AF$7&$E23) -> 0 | AG23: =INDIRECT("'"&$D23&"'!"&AG$7&$E23) -> 0 | AH23: =INDIRECT("'"&$D23&"'!"&AH$7&$E23) -> 0 | AI23: =INDIRECT("'"&$D23&"'!"&AI$7&$E23) -> 0 | AJ23: =INDIRECT("'"&$D23&"'!"&AJ$7&$E23) -> 0 | AK23: =INDIRECT("'"&$D23&"'!"&AK$7&$E23) -> 0 | AL23: =INDIRECT("'"&$D23&"'!"&AL$7&$E23) -> 0 | AM23: =INDIRECT("'"&$D23&"'!"&AM$7&$E23) -> 0 | AN23: =INDIRECT("'"&$D23&"'!"&AN$7&$E23) -> 0 | AO23: =INDIRECT("'"&$D23&"'!"&AO$7&$E23) -> 0 | AP23: =INDIRECT("'"&$D23&"'!"&AP$7&$E23) -> 0 | AQ23: =INDIRECT("'"&$D23&"'!"&AQ$7&$E23) -> 0 | AR23: =INDIRECT("'"&$D23&"'!"&AR$7&$E23) -> 0 | AS23: =INDIRECT("'"&$D23&"'!"&AS$7&$E23) -> 0 | AT23: =INDIRECT("'"&$D23&"'!"&AT$7&$E23) -> 0
D24: Total P50 Revenues | G24: =SUM(G19:G23) -> 5416675.528 | H24: =SUM(H19:H23) -> 3982684.891 | I24: 3961049.25 | J24: 5330690.111 | K24: 5302314.531 | L24: 5274080.871 | M24: 5245988.423 | N24: 5218036.48 | O24: 5190224.34 | P24: 5162551.303 | Q24: 5135016.675 | R24: 5107619.763 | S24: 5080359.878 | T24: 5053236.336 | U24: 5026248.455 | V24: 4999395.556 | W24: 4972676.965 | X24: 4946092.01 | Y24: 0 | Z24: 0 | AA24: 0 | AB24: 0 | AC24: 0 | AD24: 0 | AE24: 0 | AF24: 0 | AG24: 0 | AH24: 0 | AI24: 0 | AJ24: 0 | AK24: 0 | AL24: 0 | AM24: 0 | AN24: 0 | AO24: 0 | AP24: 0 | AQ24: 0 | AR24: 0 | AS24: 0 | AT24: 0
C26: Operating Expense
D27: =D19 -> New Marlborough | E27: =ROW(Template!F55) -> 55 | G27: =INDIRECT("'"&$D27&"'!"&G$7&$E27) -> 340575.9854 | H27: =INDIRECT("'"&$D27&"'!"&H$7&$E27) -> 344654.818 | I27: =INDIRECT("'"&$D27&"'!"&I$7&$E27) -> 349767.5757 | J27: =INDIRECT("'"&$D27&"'!"&J$7&$E27) -> 355901.0956 | K27: =INDIRECT("'"&$D27&"'!"&K$7&$E27) -> 361164.2746 | L27: =INDIRECT("'"&$D27&"'!"&L$7&$E27) -> 389337.9946 | M27: =INDIRECT("'"&$D27&"'!"&M$7&$E27) -> 394761.0439 | N27: =INDIRECT("'"&$D27&"'!"&N$7&$E27) -> 400265.8283 | O27: =INDIRECT("'"&$D27&"'!"&O$7&$E27) -> 405853.5719 | P27: =INDIRECT("'"&$D27&"'!"&P$7&$E27) -> 411525.5173 | Q27: =INDIRECT("'"&$D27&"'!"&Q$7&$E27) -> 417282.9254 | R27: =INDIRECT("'"&$D27&"'!"&R$7&$E27) -> 423127.0764 | S27: =INDIRECT("'"&$D27&"'!"&S$7&$E27) -> 429059.2695 | T27: =INDIRECT("'"&$D27&"'!"&T$7&$E27) -> 435080.8233 | U27: =INDIRECT("'"&$D27&"'!"&U$7&$E27) -> 441193.0764 | V27: =INDIRECT("'"&$D27&"'!"&V$7&$E27) -> 424566.1875 | W27: =INDIRECT("'"&$D27&"'!"&W$7&$E27) -> 430863.9355 | X27: =INDIRECT("'"&$D27&"'!"&X$7&$E27) -> 437256.5201 | Y27: =INDIRECT("'"&$D27&"'!"&Y$7&$E27) -> 0 | Z27: =INDIRECT("'"&$D27&"'!"&Z$7&$E27) -> 0 | AA27: =INDIRECT("'"&$D27&"'!"&AA$7&$E27) -> 0 | AB27: =INDIRECT("'"&$D27&"'!"&AB$7&$E27) -> 0 | AC27: =INDIRECT("'"&$D27&"'!"&AC$7&$E27) -> 0 | AD27: =INDIRECT("'"&$D27&"'!"&AD$7&$E27) -> 0 | AE27: =INDIRECT("'"&$D27&"'!"&AE$7&$E27) -> 0 | AF27: =INDIRECT("'"&$D27&"'!"&AF$7&$E27) -> 0 | AG27: =INDIRECT("'"&$D27&"'!"&AG$7&$E27) -> 0 | AH27: =INDIRECT("'"&$D27&"'!"&AH$7&$E27) -> 0 | AI27: =INDIRECT("'"&$D27&"'!"&AI$7&$E27) -> 0 | AJ27: =INDIRECT("'"&$D27&"'!"&AJ$7&$E27) -> 0 | AK27: =INDIRECT("'"&$D27&"'!"&AK$7&$E27) -> 0 | AL27: =INDIRECT("'"&$D27&"'!"&AL$7&$E27) -> 0 | AM27: =INDIRECT("'"&$D27&"'!"&AM$7&$E27) -> 0 | AN27: =INDIRECT("'"&$D27&"'!"&AN$7&$E27) -> 0 | AO27: =INDIRECT("'"&$D27&"'!"&AO$7&$E27) -> 0 | AP27: =INDIRECT("'"&$D27&"'!"&AP$7&$E27) -> 0 | AQ27: =INDIRECT("'"&$D27&"'!"&AQ$7&$E27) -> 0 | AR27: =INDIRECT("'"&$D27&"'!"&AR$7&$E27) -> 0 | AS27: =INDIRECT("'"&$D27&"'!"&AS$7&$E27) -> 0 | AT27: =INDIRECT("'"&$D27&"'!"&AT$7&$E27) -> 0
D28: =D20 -> Peru | E28: =E27 -> 55 | G28: =INDIRECT("'"&$D28&"'!"&G$7&$E28) -> 236936.5869 | H28: =INDIRECT("'"&$D28&"'!"&H$7&$E28) -> 239774.6585 | I28: =INDIRECT("'"&$D28&"'!"&I$7&$E28) -> 243336.404 | J28: =INDIRECT("'"&$D28&"'!"&J$7&$E28) -> 247612.6022 | K28: =INDIRECT("'"&$D28&"'!"&K$7&$E28) -> 251279.0727 | L28: =INDIRECT("'"&$D28&"'!"&L$7&$E28) -> 270529.0313 | M28: =INDIRECT("'"&$D28&"'!"&M$7&$E28) -> 274306.8255 | N28: =INDIRECT("'"&$D28&"'!"&N$7&$E28) -> 278141.5351 | O28: =INDIRECT("'"&$D28&"'!"&O$7&$E28) -> 282034.0126 | P28: =INDIRECT("'"&$D28&"'!"&P$7&$E28) -> 285985.1233 | Q28: =INDIRECT("'"&$D28&"'!"&Q$7&$E28) -> 289995.7455 | R28: =INDIRECT("'"&$D28&"'!"&R$7&$E28) -> 294066.7706 | S28: =INDIRECT("'"&$D28&"'!"&S$7&$E28) -> 298199.1034 | T28: =INDIRECT("'"&$D28&"'!"&T$7&$E28) -> 302393.6624 | U28: =INDIRECT("'"&$D28&"'!"&U$7&$E28) -> 306651.3797 | V28: =INDIRECT("'"&$D28&"'!"&V$7&$E28) -> 295444.9616 | W28: =INDIRECT("'"&$D28&"'!"&W$7&$E28) -> 299831.8483 | X28: =INDIRECT("'"&$D28&"'!"&X$7&$E28) -> 304284.7747 | Y28: =INDIRECT("'"&$D28&"'!"&Y$7&$E28) -> 0 | Z28: =INDIRECT("'"&$D28&"'!"&Z$7&$E28) -> 0 | AA28: =INDIRECT("'"&$D28&"'!"&AA$7&$E28) -> 0 | AB28: =INDIRECT("'"&$D28&"'!"&AB$7&$E28) -> 0 | AC28: =INDIRECT("'"&$D28&"'!"&AC$7&$E28) -> 0 | AD28: =INDIRECT("'"&$D28&"'!"&AD$7&$E28) -> 0 | AE28: =INDIRECT("'"&$D28&"'!"&AE$7&$E28) -> 0 | AF28: =INDIRECT("'"&$D28&"'!"&AF$7&$E28) -> 0 | AG28: =INDIRECT("'"&$D28&"'!"&AG$7&$E28) -> 0 | AH28: =INDIRECT("'"&$D28&"'!"&AH$7&$E28) -> 0 | AI28: =INDIRECT("'"&$D28&"'!"&AI$7&$E28) -> 0 | AJ28: =INDIRECT("'"&$D28&"'!"&AJ$7&$E28) -> 0 | AK28: =INDIRECT("'"&$D28&"'!"&AK$7&$E28) -> 0 | AL28: =INDIRECT("'"&$D28&"'!"&AL$7&$E28) -> 0 | AM28: =INDIRECT("'"&$D28&"'!"&AM$7&$E28) -> 0 | AN28: =INDIRECT("'"&$D28&"'!"&AN$7&$E28) -> 0 | AO28: =INDIRECT("'"&$D28&"'!"&AO$7&$E28) -> 0 | AP28: =INDIRECT("'"&$D28&"'!"&AP$7&$E28) -> 0 | AQ28: =INDIRECT("'"&$D28&"'!"&AQ$7&$E28) -> 0 | AR28: =INDIRECT("'"&$D28&"'!"&AR$7&$E28) -> 0 | AS28: =INDIRECT("'"&$D28&"'!"&AS$7&$E28) -> 0 | AT28: =INDIRECT("'"&$D28&"'!"&AT$7&$E28) -> 0
D29: Russell | E29: =E28 -> 55 | G29: =INDIRECT("'"&$D29&"'!"&G$7&$E29) -> 218225.8075 | H29: =INDIRECT("'"&$D29&"'!"&H$7&$E29) -> 220841.3399 | I29: =INDIRECT("'"&$D29&"'!"&I$7&$E29) -> 224124.0732 | J29: =INDIRECT("'"&$D29&"'!"&J$7&$E29) -> 228065.5052 | K29: =INDIRECT("'"&$D29&"'!"&K$7&$E29) -> 231444.736 | L29: =INDIRECT("'"&$D29&"'!"&L$7&$E29) -> 248860.2456 | M29: =INDIRECT("'"&$D29&"'!"&M$7&$E29) -> 252342.0563 | N29: =INDIRECT("'"&$D29&"'!"&N$7&$E29) -> 255876.3122 | O29: =INDIRECT("'"&$D29&"'!"&O$7&$E29) -> 259463.799 | P29: =INDIRECT("'"&$D29&"'!"&P$7&$E29) -> 263105.3138 | Q29: =INDIRECT("'"&$D29&"'!"&Q$7&$E29) -> 266801.6662 | R29: =INDIRECT("'"&$D29&"'!"&R$7&$E29) -> 270553.6775 | S29: =INDIRECT("'"&$D29&"'!"&S$7&$E29) -> 274362.1816 | T29: =INDIRECT("'"&$D29&"'!"&T$7&$E29) -> 278228.0248 | U29: =INDIRECT("'"&$D29&"'!"&U$7&$E29) -> 282152.0662 | V29: =INDIRECT("'"&$D29&"'!"&V$7&$E29) -> 272149.8077 | W29: =INDIRECT("'"&$D29&"'!"&W$7&$E29) -> 276192.8743 | X29: =INDIRECT("'"&$D29&"'!"&X$7&$E29) -> 280296.7942 | Y29: =INDIRECT("'"&$D29&"'!"&Y$7&$E29) -> 0 | Z29: =INDIRECT("'"&$D29&"'!"&Z$7&$E29) -> 0 | AA29: =INDIRECT("'"&$D29&"'!"&AA$7&$E29) -> 0 | AB29: =INDIRECT("'"&$D29&"'!"&AB$7&$E29) -> 0 | AC29: =INDIRECT("'"&$D29&"'!"&AC$7&$E29) -> 0 | AD29: =INDIRECT("'"&$D29&"'!"&AD$7&$E29) -> 0 | AE29: =INDIRECT("'"&$D29&"'!"&AE$7&$E29) -> 0 | AF29: =INDIRECT("'"&$D29&"'!"&AF$7&$E29) -> 0 | AG29: =INDIRECT("'"&$D29&"'!"&AG$7&$E29) -> 0 | AH29: =INDIRECT("'"&$D29&"'!"&AH$7&$E29) -> 0 | AI29: =INDIRECT("'"&$D29&"'!"&AI$7&$E29) -> 0 | AJ29: =INDIRECT("'"&$D29&"'!"&AJ$7&$E29) -> 0 | AK29: =INDIRECT("'"&$D29&"'!"&AK$7&$E29) -> 0 | AL29: =INDIRECT("'"&$D29&"'!"&AL$7&$E29) -> 0 | AM29: =INDIRECT("'"&$D29&"'!"&AM$7&$E29) -> 0 | AN29: =INDIRECT("'"&$D29&"'!"&AN$7&$E29) -> 0 | AO29: =INDIRECT("'"&$D29&"'!"&AO$7&$E29) -> 0 | AP29: =INDIRECT("'"&$D29&"'!"&AP$7&$E29) -> 0 | AQ29: =INDIRECT("'"&$D29&"'!"&AQ$7&$E29) -> 0 | AR29: =INDIRECT("'"&$D29&"'!"&AR$7&$E29) -> 0 | AS29: =INDIRECT("'"&$D29&"'!"&AS$7&$E29) -> 0 | AT29: =INDIRECT("'"&$D29&"'!"&AT$7&$E29) -> 0
D30: Westport | E30: 55 | G30: =INDIRECT("'"&$D30&"'!"&G$7&$E30) -> 212399.9973 | H30: =INDIRECT("'"&$D30&"'!"&H$7&$E30) -> 215041.162 | I30: =INDIRECT("'"&$D30&"'!"&I$7&$E30) -> 218226.9719 | J30: =INDIRECT("'"&$D30&"'!"&J$7&$E30) -> 221950.7123 | K30: =INDIRECT("'"&$D30&"'!"&K$7&$E30) -> 225230.7844 | L30: =INDIRECT("'"&$D30&"'!"&L$7&$E30) -> 240202.7138 | M30: =INDIRECT("'"&$D30&"'!"&M$7&$E30) -> 243582.4412 | N30: =INDIRECT("'"&$D30&"'!"&N$7&$E30) -> 247013.1181 | O30: =INDIRECT("'"&$D30&"'!"&O$7&$E30) -> 250495.5076 | P30: =INDIRECT("'"&$D30&"'!"&P$7&$E30) -> 254030.3841 | Q30: =INDIRECT("'"&$D30&"'!"&Q$7&$E30) -> 257618.5336 | R30: =INDIRECT("'"&$D30&"'!"&R$7&$E30) -> 261260.754 | S30: =INDIRECT("'"&$D30&"'!"&S$7&$E30) -> 264957.8551 | T30: =INDIRECT("'"&$D30&"'!"&T$7&$E30) -> 268710.6589 | U30: =INDIRECT("'"&$D30&"'!"&U$7&$E30) -> 272519.9996 | V30: =INDIRECT("'"&$D30&"'!"&V$7&$E30) -> 264744.3242 | W30: =INDIRECT("'"&$D30&"'!"&W$7&$E30) -> 268669.2922 | X30: =INDIRECT("'"&$D30&"'!"&X$7&$E30) -> 272653.3759 | Y30: =INDIRECT("'"&$D30&"'!"&Y$7&$E30) -> 0 | Z30: =INDIRECT("'"&$D30&"'!"&Z$7&$E30) -> 0 | AA30: =INDIRECT("'"&$D30&"'!"&AA$7&$E30) -> 0 | AB30: =INDIRECT("'"&$D30&"'!"&AB$7&$E30) -> 0 | AC30: =INDIRECT("'"&$D30&"'!"&AC$7&$E30) -> 0 | AD30: =INDIRECT("'"&$D30&"'!"&AD$7&$E30) -> 0 | AE30: =INDIRECT("'"&$D30&"'!"&AE$7&$E30) -> 0 | AF30: =INDIRECT("'"&$D30&"'!"&AF$7&$E30) -> 0 | AG30: =INDIRECT("'"&$D30&"'!"&AG$7&$E30) -> 0 | AH30: =INDIRECT("'"&$D30&"'!"&AH$7&$E30) -> 0 | AI30: =INDIRECT("'"&$D30&"'!"&AI$7&$E30) -> 0 | AJ30: =INDIRECT("'"&$D30&"'!"&AJ$7&$E30) -> 0 | AK30: =INDIRECT("'"&$D30&"'!"&AK$7&$E30) -> 0 | AL30: =INDIRECT("'"&$D30&"'!"&AL$7&$E30) -> 0 | AM30: =INDIRECT("'"&$D30&"'!"&AM$7&$E30) -> 0 | AN30: =INDIRECT("'"&$D30&"'!"&AN$7&$E30) -> 0 | AO30: =INDIRECT("'"&$D30&"'!"&AO$7&$E30) -> 0 | AP30: =INDIRECT("'"&$D30&"'!"&AP$7&$E30) -> 0 | AQ30: =INDIRECT("'"&$D30&"'!"&AQ$7&$E30) -> 0 | AR30: =INDIRECT("'"&$D30&"'!"&AR$7&$E30) -> 0 | AS30: =INDIRECT("'"&$D30&"'!"&AS$7&$E30) -> 0 | AT30: =INDIRECT("'"&$D30&"'!"&AT$7&$E30) -> 0
D31: Tolland | E31: 55 | G31: =INDIRECT("'"&$D31&"'!"&G$7&$E31) -> 298519.6469 | H31: =INDIRECT("'"&$D31&"'!"&H$7&$E31) -> 301854.7658 | I31: =INDIRECT("'"&$D31&"'!"&I$7&$E31) -> 306324.5055 | J31: =INDIRECT("'"&$D31&"'!"&J$7&$E31) -> 311913.916 | K31: =INDIRECT("'"&$D31&"'!"&K$7&$E31) -> 316514.1139 | L31: =INDIRECT("'"&$D31&"'!"&L$7&$E31) -> 344462.2614 | M31: =INDIRECT("'"&$D31&"'!"&M$7&$E31) -> 349202.3276 | N31: =INDIRECT("'"&$D31&"'!"&N$7&$E31) -> 354013.9022 | O31: =INDIRECT("'"&$D31&"'!"&O$7&$E31) -> 358898.0558 | P31: =INDIRECT("'"&$D31&"'!"&P$7&$E31) -> 363855.8752 | Q31: =INDIRECT("'"&$D31&"'!"&Q$7&$E31) -> 368888.4632 | R31: =INDIRECT("'"&$D31&"'!"&R$7&$E31) -> 373996.9393 | S31: =INDIRECT("'"&$D31&"'!"&S$7&$E31) -> 379182.44 | T31: =INDIRECT("'"&$D31&"'!"&T$7&$E31) -> 384446.1186 | U31: =INDIRECT("'"&$D31&"'!"&U$7&$E31) -> 389789.1458 | V31: =INDIRECT("'"&$D31&"'!"&V$7&$E31) -> 371934.1748 | W31: =INDIRECT("'"&$D31&"'!"&W$7&$E31) -> 377439.4817 | X31: =INDIRECT("'"&$D31&"'!"&X$7&$E31) -> 383027.7558 | Y31: =INDIRECT("'"&$D31&"'!"&Y$7&$E31) -> 0 | Z31: =INDIRECT("'"&$D31&"'!"&Z$7&$E31) -> 0 | AA31: =INDIRECT("'"&$D31&"'!"&AA$7&$E31) -> 0 | AB31: =INDIRECT("'"&$D31&"'!"&AB$7&$E31) -> 0 | AC31: =INDIRECT("'"&$D31&"'!"&AC$7&$E31) -> 0 | AD31: =INDIRECT("'"&$D31&"'!"&AD$7&$E31) -> 0 | AE31: =INDIRECT("'"&$D31&"'!"&AE$7&$E31) -> 0 | AF31: =INDIRECT("'"&$D31&"'!"&AF$7&$E31) -> 0 | AG31: =INDIRECT("'"&$D31&"'!"&AG$7&$E31) -> 0 | AH31: =INDIRECT("'"&$D31&"'!"&AH$7&$E31) -> 0 | AI31: =INDIRECT("'"&$D31&"'!"&AI$7&$E31) -> 0 | AJ31: =INDIRECT("'"&$D31&"'!"&AJ$7&$E31) -> 0 | AK31: =INDIRECT("'"&$D31&"'!"&AK$7&$E31) -> 0 | AL31: =INDIRECT("'"&$D31&"'!"&AL$7&$E31) -> 0 | AM31: =INDIRECT("'"&$D31&"'!"&AM$7&$E31) -> 0 | AN31: =INDIRECT("'"&$D31&"'!"&AN$7&$E31) -> 0 | AO31: =INDIRECT("'"&$D31&"'!"&AO$7&$E31) -> 0 | AP31: =INDIRECT("'"&$D31&"'!"&AP$7&$E31) -> 0 | AQ31: =INDIRECT("'"&$D31&"'!"&AQ$7&$E31) -> 0 | AR31: =INDIRECT("'"&$D31&"'!"&AR$7&$E31) -> 0 | AS31: =INDIRECT("'"&$D31&"'!"&AS$7&$E31) -> 0 | AT31: =INDIRECT("'"&$D31&"'!"&AT$7&$E31) -> 0
D32: Total Expenses | G32: =SUM(G27:G31) -> 1306658.024 | H32: =SUM(H27:H31) -> 1322166.744 | I32: 1341779.53 | J32: 1365443.831 | K32: 1385632.982 | L32: 1493392.247 | M32: 1514194.694 | N32: 1535310.696 | O32: 1556744.947 | P32: 1578502.214 | Q32: 1600587.334 | R32: 1623005.218 | S32: 1645760.85 | T32: 1668859.288 | U32: 1692305.668 | V32: 1628839.456 | W32: 1652997.432 | X32: 1677519.221 | Y32: 0 | Z32: 0 | AA32: 0 | AB32: 0 | AC32: 0 | AD32: 0 | AE32: 0 | AF32: 0 | AG32: 0 | AH32: 0 | AI32: 0 | AJ32: 0 | AK32: 0 | AL32: 0 | AM32: 0 | AN32: 0 | AO32: 0 | AP32: 0 | AQ32: 0 | AR32: 0 | AS32: 0 | AT32: 0
D34: Net Cash Flow | G34: =G24-G32 -> 4110017.505 | H34: =H24-H32 -> 2660518.147 | I34: 2619269.72 | J34: 3965246.28 | K34: 3916681.549 | L34: 3780688.624 | M34: 3731793.728 | N34: 3682725.784 | O34: 3633479.393 | P34: 3584049.09 | Q34: 3534429.341 | R34: 3484614.545 | S34: 3434599.029 | T34: 3384377.048 | U34: 3333942.787 | V34: 3370556.101 | W34: 3319679.533 | X34: 3268572.789 | Y34: 0 | Z34: 0 | AA34: 0 | AB34: 0 | AC34: 0 | AD34: 0 | AE34: 0 | AF34: 0 | AG34: 0 | AH34: 0 | AI34: 0 | AJ34: 0 | AK34: 0 | AL34: 0 | AM34: 0 | AN34: 0 | AO34: 0 | AP34: 0 | AQ34: 0 | AR34: 0 | AS34: 0 | AT34: 0
C36: P50 Debt Service
D37: =D27 -> New Marlborough | E37: =ROW(Template!F75) -> 75 | G37: =INDIRECT("'"&$D37&"'!"&G$7&$E37) -> 788123.3333 | H37: =INDIRECT("'"&$D37&"'!"&H$7&$E37) -> 516079.3253 | I37: =INDIRECT("'"&$D37&"'!"&I$7&$E37) -> 508090.6994 | J37: =INDIRECT("'"&$D37&"'!"&J$7&$E37) -> 760214.9114 | K37: =INDIRECT("'"&$D37&"'!"&K$7&$E37) -> 750851.4046 | L37: =INDIRECT("'"&$D37&"'!"&L$7&$E37) -> 724417.6655 | M37: =INDIRECT("'"&$D37&"'!"&M$7&$E37) -> 714989.0895 | N37: =INDIRECT("'"&$D37&"'!"&N$7&$E37) -> 705526.4324 | O37: =INDIRECT("'"&$D37&"'!"&O$7&$E37) -> 696028.6461 | P37: =INDIRECT("'"&$D37&"'!"&P$7&$E37) -> 686494.6695 | Q37: =INDIRECT("'"&$D37&"'!"&Q$7&$E37) -> 676923.4283 | R37: =INDIRECT("'"&$D37&"'!"&R$7&$E37) -> 667313.8346 | S37: =INDIRECT("'"&$D37&"'!"&S$7&$E37) -> 657664.7871 | T37: =INDIRECT("'"&$D37&"'!"&T$7&$E37) -> 647975.1702 | U37: =INDIRECT("'"&$D37&"'!"&U$7&$E37) -> 638243.8545 | V37: =INDIRECT("'"&$D37&"'!"&V$7&$E37) -> 645507.9052 | W37: =INDIRECT("'"&$D37&"'!"&W$7&$E37) -> 635689.7459 | X37: =INDIRECT("'"&$D37&"'!"&X$7&$E37) -> 625826.4124 | Y37: =INDIRECT("'"&$D37&"'!"&Y$7&$E37) -> 0 | Z37: =INDIRECT("'"&$D37&"'!"&Z$7&$E37) -> 0 | AA37: =INDIRECT("'"&$D37&"'!"&AA$7&$E37) -> 0 | AB37: =INDIRECT("'"&$D37&"'!"&AB$7&$E37) -> 0 | AC37: =INDIRECT("'"&$D37&"'!"&AC$7&$E37) -> 0 | AD37: =INDIRECT("'"&$D37&"'!"&AD$7&$E37) -> 0 | AE37: =INDIRECT("'"&$D37&"'!"&AE$7&$E37) -> 0 | AF37: =INDIRECT("'"&$D37&"'!"&AF$7&$E37) -> 0 | AG37: =INDIRECT("'"&$D37&"'!"&AG$7&$E37) -> 0 | AH37: =INDIRECT("'"&$D37&"'!"&AH$7&$E37) -> 0 | AI37: =INDIRECT("'"&$D37&"'!"&AI$7&$E37) -> 0 | AJ37: =INDIRECT("'"&$D37&"'!"&AJ$7&$E37) -> 0 | AK37: =INDIRECT("'"&$D37&"'!"&AK$7&$E37) -> 0 | AL37: =INDIRECT("'"&$D37&"'!"&AL$7&$E37) -> 0 | AM37: =INDIRECT("'"&$D37&"'!"&AM$7&$E37) -> 0 | AN37: =INDIRECT("'"&$D37&"'!"&AN$7&$E37) -> 0 | AO37: =INDIRECT("'"&$D37&"'!"&AO$7&$E37) -> 0 | AP37: =INDIRECT("'"&$D37&"'!"&AP$7&$E37) -> 0 | AQ37: =INDIRECT("'"&$D37&"'!"&AQ$7&$E37) -> 0 | AR37: =INDIRECT("'"&$D37&"'!"&AR$7&$E37) -> 0 | AS37: =INDIRECT("'"&$D37&"'!"&AS$7&$E37) -> 0 | AT37: =INDIRECT("'"&$D37&"'!"&AT$7&$E37) -> 0
D38: =D28 -> Peru | E38: =E37 -> 75 | G38: =INDIRECT("'"&$D38&"'!"&G$7&$E38) -> 481718.6478 | H38: =INDIRECT("'"&$D38&"'!"&H$7&$E38) -> 291585.669 | I38: =INDIRECT("'"&$D38&"'!"&I$7&$E38) -> 286346.347 | J38: =INDIRECT("'"&$D38&"'!"&J$7&$E38) -> 463240.071 | K38: =INDIRECT("'"&$D38&"'!"&K$7&$E38) -> 457035.0894 | L38: =INDIRECT("'"&$D38&"'!"&L$7&$E38) -> 439217.9889 | M38: =INDIRECT("'"&$D38&"'!"&M$7&$E38) -> 432964.5428 | N38: =INDIRECT("'"&$D38&"'!"&N$7&$E38) -> 426685.7992 | O38: =INDIRECT("'"&$D38&"'!"&O$7&$E38) -> 420381.036 | P38: =INDIRECT("'"&$D38&"'!"&P$7&$E38) -> 414049.522 | Q38: =INDIRECT("'"&$D38&"'!"&Q$7&$E38) -> 407690.5169 | R38: =INDIRECT("'"&$D38&"'!"&R$7&$E38) -> 401303.2706 | S38: =INDIRECT("'"&$D38&"'!"&S$7&$E38) -> 394887.0239 | T38: =INDIRECT("'"&$D38&"'!"&T$7&$E38) -> 388441.0076 | U38: =INDIRECT("'"&$D38&"'!"&U$7&$E38) -> 381964.4426 | V38: =INDIRECT("'"&$D38&"'!"&V$7&$E38) -> 387044.7788 | W38: =INDIRECT("'"&$D38&"'!"&W$7&$E38) -> 380504.7393 | X38: =INDIRECT("'"&$D38&"'!"&X$7&$E38) -> 373931.7534 | Y38: =INDIRECT("'"&$D38&"'!"&Y$7&$E38) -> 0 | Z38: =INDIRECT("'"&$D38&"'!"&Z$7&$E38) -> 0 | AA38: =INDIRECT("'"&$D38&"'!"&AA$7&$E38) -> 0 | AB38: =INDIRECT("'"&$D38&"'!"&AB$7&$E38) -> 0 | AC38: =INDIRECT("'"&$D38&"'!"&AC$7&$E38) -> 0 | AD38: =INDIRECT("'"&$D38&"'!"&AD$7&$E38) -> 0 | AE38: =INDIRECT("'"&$D38&"'!"&AE$7&$E38) -> 0 | AF38: =INDIRECT("'"&$D38&"'!"&AF$7&$E38) -> 0 | AG38: =INDIRECT("'"&$D38&"'!"&AG$7&$E38) -> 0 | AH38: =INDIRECT("'"&$D38&"'!"&AH$7&$E38) -> 0 | AI38: =INDIRECT("'"&$D38&"'!"&AI$7&$E38) -> 0 | AJ38: =INDIRECT("'"&$D38&"'!"&AJ$7&$E38) -> 0 | AK38: =INDIRECT("'"&$D38&"'!"&AK$7&$E38) -> 0 | AL38: =INDIRECT("'"&$D38&"'!"&AL$7&$E38) -> 0 | AM38: =INDIRECT("'"&$D38&"'!"&AM$7&$E38) -> 0 | AN38: =INDIRECT("'"&$D38&"'!"&AN$7&$E38) -> 0 | AO38: =INDIRECT("'"&$D38&"'!"&AO$7&$E38) -> 0 | AP38: =INDIRECT("'"&$D38&"'!"&AP$7&$E38) -> 0 | AQ38: =INDIRECT("'"&$D38&"'!"&AQ$7&$E38) -> 0 | AR38: =INDIRECT("'"&$D38&"'!"&AR$7&$E38) -> 0 | AS38: =INDIRECT("'"&$D38&"'!"&AS$7&$E38) -> 0 | AT38: =INDIRECT("'"&$D38&"'!"&AT$7&$E38) -> 0
D39: Russell | E39: =E38 -> 75 | G39: =INDIRECT("'"&$D39&"'!"&G$7&$E39) -> 412824.1698 | H39: =INDIRECT("'"&$D39&"'!"&H$7&$E39) -> 237679.1791 | I39: =INDIRECT("'"&$D39&"'!"&I$7&$E39) -> 233006.0916 | J39: =INDIRECT("'"&$D39&"'!"&J$7&$E39) -> 396259.6172 | K39: =INDIRECT("'"&$D39&"'!"&K$7&$E39) -> 390694.6691 | L39: =INDIRECT("'"&$D39&"'!"&L$7&$E39) -> 374670.1071 | M39: =INDIRECT("'"&$D39&"'!"&M$7&$E39) -> 369058.9726 | N39: =INDIRECT("'"&$D39&"'!"&N$7&$E39) -> 363423.769 | O39: =INDIRECT("'"&$D39&"'!"&O$7&$E39) -> 357763.8347 | P39: =INDIRECT("'"&$D39&"'!"&P$7&$E39) -> 352078.4997 | Q39: =INDIRECT("'"&$D39&"'!"&Q$7&$E39) -> 346367.0854 | R39: =INDIRECT("'"&$D39&"'!"&R$7&$E39) -> 340628.9045 | S39: =INDIRECT("'"&$D39&"'!"&S$7&$E39) -> 334863.261 | T39: =INDIRECT("'"&$D39&"'!"&T$7&$E39) -> 329069.4497 | U39: =INDIRECT("'"&$D39&"'!"&U$7&$E39) -> 323246.7565 | V39: =INDIRECT("'"&$D39&"'!"&V$7&$E39) -> 327831.3012 | W39: =INDIRECT("'"&$D39&"'!"&W$7&$E39) -> 321948.6645 | X39: =INDIRECT("'"&$D39&"'!"&X$7&$E39) -> 316034.9472 | Y39: =INDIRECT("'"&$D39&"'!"&Y$7&$E39) -> 0 | Z39: =INDIRECT("'"&$D39&"'!"&Z$7&$E39) -> 0 | AA39: =INDIRECT("'"&$D39&"'!"&AA$7&$E39) -> 0 | AB39: =INDIRECT("'"&$D39&"'!"&AB$7&$E39) -> 0 | AC39: =INDIRECT("'"&$D39&"'!"&AC$7&$E39) -> 0 | AD39: =INDIRECT("'"&$D39&"'!"&AD$7&$E39) -> 0 | AE39: =INDIRECT("'"&$D39&"'!"&AE$7&$E39) -> 0 | AF39: =INDIRECT("'"&$D39&"'!"&AF$7&$E39) -> 0 | AG39: =INDIRECT("'"&$D39&"'!"&AG$7&$E39) -> 0 | AH39: =INDIRECT("'"&$D39&"'!"&AH$7&$E39) -> 0 | AI39: =INDIRECT("'"&$D39&"'!"&AI$7&$E39) -> 0 | AJ39: =INDIRECT("'"&$D39&"'!"&AJ$7&$E39) -> 0 | AK39: =INDIRECT("'"&$D39&"'!"&AK$7&$E39) -> 0 | AL39: =INDIRECT("'"&$D39&"'!"&AL$7&$E39) -> 0 | AM39: =INDIRECT("'"&$D39&"'!"&AM$7&$E39) -> 0 | AN39: =INDIRECT("'"&$D39&"'!"&AN$7&$E39) -> 0 | AO39: =INDIRECT("'"&$D39&"'!"&AO$7&$E39) -> 0 | AP39: =INDIRECT("'"&$D39&"'!"&AP$7&$E39) -> 0 | AQ39: =INDIRECT("'"&$D39&"'!"&AQ$7&$E39) -> 0 | AR39: =INDIRECT("'"&$D39&"'!"&AR$7&$E39) -> 0 | AS39: =INDIRECT("'"&$D39&"'!"&AS$7&$E39) -> 0 | AT39: =INDIRECT("'"&$D39&"'!"&AT$7&$E39) -> 0
D40: Westport | E40: 75 | G40: =INDIRECT("'"&$D40&"'!"&G$7&$E40) -> 522531.044 | H40: =INDIRECT("'"&$D40&"'!"&H$7&$E40) -> 380185.4211 | I40: =INDIRECT("'"&$D40&"'!"&I$7&$E40) -> 374915.2846 | J40: =INDIRECT("'"&$D40&"'!"&J$7&$E40) -> 504673.8548 | K40: =INDIRECT("'"&$D40&"'!"&K$7&$E40) -> 498685.1587 | L40: =INDIRECT("'"&$D40&"'!"&L$7&$E40) -> 483988.9052 | M40: =INDIRECT("'"&$D40&"'!"&M$7&$E40) -> 477961.1693 | N40: =INDIRECT("'"&$D40&"'!"&N$7&$E40) -> 471912.9439 | O40: =INDIRECT("'"&$D40&"'!"&O$7&$E40) -> 465843.5718 | P40: =INDIRECT("'"&$D40&"'!"&P$7&$E40) -> 459752.3879 | Q40: =INDIRECT("'"&$D40&"'!"&Q$7&$E40) -> 453638.7188 | R40: =INDIRECT("'"&$D40&"'!"&R$7&$E40) -> 447501.8828 | S40: =INDIRECT("'"&$D40&"'!"&S$7&$E40) -> 441341.1895 | T40: =INDIRECT("'"&$D40&"'!"&T$7&$E40) -> 435155.9402 | U40: =INDIRECT("'"&$D40&"'!"&U$7&$E40) -> 428945.4271 | V40: =INDIRECT("'"&$D40&"'!"&V$7&$E40) -> 431397.2917 | W40: =INDIRECT("'"&$D40&"'!"&W$7&$E40) -> 425134.0921 | X40: =INDIRECT("'"&$D40&"'!"&X$7&$E40) -> 418843.4515 | Y40: =INDIRECT("'"&$D40&"'!"&Y$7&$E40) -> 0 | Z40: =INDIRECT("'"&$D40&"'!"&Z$7&$E40) -> 0 | AA40: =INDIRECT("'"&$D40&"'!"&AA$7&$E40) -> 0 | AB40: =INDIRECT("'"&$D40&"'!"&AB$7&$E40) -> 0 | AC40: =INDIRECT("'"&$D40&"'!"&AC$7&$E40) -> 0 | AD40: =INDIRECT("'"&$D40&"'!"&AD$7&$E40) -> 0 | AE40: =INDIRECT("'"&$D40&"'!"&AE$7&$E40) -> 0 | AF40: =INDIRECT("'"&$D40&"'!"&AF$7&$E40) -> 0 | AG40: =INDIRECT("'"&$D40&"'!"&AG$7&$E40) -> 0 | AH40: =INDIRECT("'"&$D40&"'!"&AH$7&$E40) -> 0 | AI40: =INDIRECT("'"&$D40&"'!"&AI$7&$E40) -> 0 | AJ40: =INDIRECT("'"&$D40&"'!"&AJ$7&$E40) -> 0 | AK40: =INDIRECT("'"&$D40&"'!"&AK$7&$E40) -> 0 | AL40: =INDIRECT("'"&$D40&"'!"&AL$7&$E40) -> 0 | AM40: =INDIRECT("'"&$D40&"'!"&AM$7&$E40) -> 0 | AN40: =INDIRECT("'"&$D40&"'!"&AN$7&$E40) -> 0 | AO40: =INDIRECT("'"&$D40&"'!"&AO$7&$E40) -> 0 | AP40: =INDIRECT("'"&$D40&"'!"&AP$7&$E40) -> 0 | AQ40: =INDIRECT("'"&$D40&"'!"&AQ$7&$E40) -> 0 | AR40: =INDIRECT("'"&$D40&"'!"&AR$7&$E40) -> 0 | AS40: =INDIRECT("'"&$D40&"'!"&AS$7&$E40) -> 0 | AT40: =INDIRECT("'"&$D40&"'!"&AT$7&$E40) -> 0
D41: Tolland | E41: 75 | G41: =INDIRECT("'"&$D41&"'!"&G$7&$E41) -> 861980.0472 | H41: =INDIRECT("'"&$D41&"'!"&H$7&$E41) -> 559931.709 | I41: =INDIRECT("'"&$D41&"'!"&I$7&$E41) -> 552320.4728 | J41: =INDIRECT("'"&$D41&"'!"&J$7&$E41) -> 834750.5606 | K41: =INDIRECT("'"&$D41&"'!"&K$7&$E41) -> 825630.3566 | L41: =INDIRECT("'"&$D41&"'!"&L$7&$E41) -> 799114.7545 | M41: =INDIRECT("'"&$D41&"'!"&M$7&$E41) -> 789946.9187 | N41: =INDIRECT("'"&$D41&"'!"&N$7&$E41) -> 780753.8795 | O41: =INDIRECT("'"&$D41&"'!"&O$7&$E41) -> 771534.6971 | P41: =INDIRECT("'"&$D41&"'!"&P$7&$E41) -> 762288.4206 | Q41: =INDIRECT("'"&$D41&"'!"&Q$7&$E41) -> 753014.0873 | R41: =INDIRECT("'"&$D41&"'!"&R$7&$E41) -> 743710.7231 | S41: =INDIRECT("'"&$D41&"'!"&S$7&$E41) -> 734377.3421 | T41: =INDIRECT("'"&$D41&"'!"&T$7&$E41) -> 725012.9461 | U41: =INDIRECT("'"&$D41&"'!"&U$7&$E41) -> 715616.5248 | V41: =INDIRECT("'"&$D41&"'!"&V$7&$E41) -> 723559.0967 | W41: =INDIRECT("'"&$D41&"'!"&W$7&$E41) -> 714095.5442 | X41: =INDIRECT("'"&$D41&"'!"&X$7&$E41) -> 704596.8603 | Y41: =INDIRECT("'"&$D41&"'!"&Y$7&$E41) -> 0 | Z41: =INDIRECT("'"&$D41&"'!"&Z$7&$E41) -> 0 | AA41: =INDIRECT("'"&$D41&"'!"&AA$7&$E41) -> 0 | AB41: =INDIRECT("'"&$D41&"'!"&AB$7&$E41) -> 0 | AC41: =INDIRECT("'"&$D41&"'!"&AC$7&$E41) -> 0 | AD41: =INDIRECT("'"&$D41&"'!"&AD$7&$E41) -> 0 | AE41: =INDIRECT("'"&$D41&"'!"&AE$7&$E41) -> 0 | AF41: =INDIRECT("'"&$D41&"'!"&AF$7&$E41) -> 0 | AG41: =INDIRECT("'"&$D41&"'!"&AG$7&$E41) -> 0 | AH41: =INDIRECT("'"&$D41&"'!"&AH$7&$E41) -> 0 | AI41: =INDIRECT("'"&$D41&"'!"&AI$7&$E41) -> 0 | AJ41: =INDIRECT("'"&$D41&"'!"&AJ$7&$E41) -> 0 | AK41: =INDIRECT("'"&$D41&"'!"&AK$7&$E41) -> 0 | AL41: =INDIRECT("'"&$D41&"'!"&AL$7&$E41) -> 0 | AM41: =INDIRECT("'"&$D41&"'!"&AM$7&$E41) -> 0 | AN41: =INDIRECT("'"&$D41&"'!"&AN$7&$E41) -> 0 | AO41: =INDIRECT("'"&$D41&"'!"&AO$7&$E41) -> 0 | AP41: =INDIRECT("'"&$D41&"'!"&AP$7&$E41) -> 0 | AQ41: =INDIRECT("'"&$D41&"'!"&AQ$7&$E41) -> 0 | AR41: =INDIRECT("'"&$D41&"'!"&AR$7&$E41) -> 0 | AS41: =INDIRECT("'"&$D41&"'!"&AS$7&$E41) -> 0 | AT41: =INDIRECT("'"&$D41&"'!"&AT$7&$E41) -> 0
D42: Total Debt Service | G42: =SUM(G37:G41) -> 3067177.242 | H42: =SUM(H37:H41) -> 1985461.304 | I42: 1954678.895 | J42: 2959139.015 | K42: 2922896.678 | L42: 2821409.421 | M42: 2784920.693 | N42: 2748302.824 | O42: 2711551.786 | P42: 2674663.5 | Q42: 2637633.837 | R42: 2600458.616 | S42: 2563133.604 | T42: 2525654.514 | U42: 2488017.005 | V42: 2515340.374 | W42: 2477372.786 | X42: 2439233.425 | Y42: 0 | Z42: 0 | AA42: 0 | AB42: 0 | AC42: 0 | AD42: 0 | AE42: 0 | AF42: 0 | AG42: 0 | AH42: 0 | AI42: 0 | AJ42: 0 | AK42: 0 | AL42: 0 | AM42: 0 | AN42: 0 | AO42: 0 | AP42: 0 | AQ42: 0 | AR42: 0 | AS42: 0 | AT42: 0
C44: P50 Debt Balance Closing Debt Balance
D45: =D37 -> New Marlborough | E45: =ROW(Template!F79) -> 79 | F45: =INDIRECT("'"&$D45&"'!"&F$7&$E45) -> 8575000 | G45: =INDIRECT("'"&$D45&"'!"&G$7&$E45) -> 8252880.278 | H45: =INDIRECT("'"&$D45&"'!"&H$7&$E45) -> 8185299.146 | I45: =INDIRECT("'"&$D45&"'!"&I$7&$E45) -> 8122033.982 | J45: =INDIRECT("'"&$D45&"'!"&J$7&$E45) -> 7803206.495 | K45: =INDIRECT("'"&$D45&"'!"&K$7&$E45) -> 7476416.012 | L45: =INDIRECT("'"&$D45&"'!"&L$7&$E45) -> 7158300.021 | M45: =INDIRECT("'"&$D45&"'!"&M$7&$E45) -> 6832324.769 | N45: =INDIRECT("'"&$D45&"'!"&N$7&$E45) -> 6498097.231 | O45: =INDIRECT("'"&$D45&"'!"&O$7&$E45) -> 6155204.069 | P45: =INDIRECT("'"&$D45&"'!"&P$7&$E45) -> 5803210.545 | Q45: =INDIRECT("'"&$D45&"'!"&Q$7&$E45) -> 5441659.369 | R45: =INDIRECT("'"&$D45&"'!"&R$7&$E45) -> 5070069.49 | S45: =INDIRECT("'"&$D45&"'!"&S$7&$E45) -> 4687934.813 | T45: =INDIRECT("'"&$D45&"'!"&T$7&$E45) -> 4294722.856 | U45: =INDIRECT("'"&$D45&"'!"&U$7&$E45) -> 3889873.329 | V45: =INDIRECT("'"&$D45&"'!"&V$7&$E45) -> 3455758.428 | W45: =INDIRECT("'"&$D45&"'!"&W$7&$E45) -> 3007869.955 | X45: =INDIRECT("'"&$D45&"'!"&X$7&$E45) -> 2545504.564 | Y45: =INDIRECT("'"&$D45&"'!"&Y$7&$E45) -> 0 | Z45: =INDIRECT("'"&$D45&"'!"&Z$7&$E45) -> 0 | AA45: =INDIRECT("'"&$D45&"'!"&AA$7&$E45) -> 0 | AB45: =INDIRECT("'"&$D45&"'!"&AB$7&$E45) -> 0 | AC45: =INDIRECT("'"&$D45&"'!"&AC$7&$E45) -> 0 | AD45: =INDIRECT("'"&$D45&"'!"&AD$7&$E45) -> 0 | AE45: =INDIRECT("'"&$D45&"'!"&AE$7&$E45) -> 0 | AF45: =INDIRECT("'"&$D45&"'!"&AF$7&$E45) -> 0 | AG45: =INDIRECT("'"&$D45&"'!"&AG$7&$E45) -> 0 | AH45: =INDIRECT("'"&$D45&"'!"&AH$7&$E45) -> 0 | AI45: =INDIRECT("'"&$D45&"'!"&AI$7&$E45) -> 0 | AJ45: =INDIRECT("'"&$D45&"'!"&AJ$7&$E45) -> 0 | AK45: =INDIRECT("'"&$D45&"'!"&AK$7&$E45) -> 0 | AL45: =INDIRECT("'"&$D45&"'!"&AL$7&$E45) -> 0 | AM45: =INDIRECT("'"&$D45&"'!"&AM$7&$E45) -> 0 | AN45: =INDIRECT("'"&$D45&"'!"&AN$7&$E45) -> 0 | AO45: =INDIRECT("'"&$D45&"'!"&AO$7&$E45) -> 0 | AP45: =INDIRECT("'"&$D45&"'!"&AP$7&$E45) -> 0 | AQ45: =INDIRECT("'"&$D45&"'!"&AQ$7&$E45) -> 0 | AR45: =INDIRECT("'"&$D45&"'!"&AR$7&$E45) -> 0 | AS45: =INDIRECT("'"&$D45&"'!"&AS$7&$E45) -> 0 | AT45: =INDIRECT("'"&$D45&"'!"&AT$7&$E45) -> 0
D46: =D38 -> Peru | E46: =E45 -> 79 | F46: =INDIRECT("'"&$D46&"'!"&F$7&$E46) -> 5183000 | G46: =INDIRECT("'"&$D46&"'!"&G$7&$E46) -> 4982948.608 | H46: =INDIRECT("'"&$D46&"'!"&H$7&$E46) -> 4962158.513 | I46: =INDIRECT("'"&$D46&"'!"&I$7&$E46) -> 4945477.913 | J46: =INDIRECT("'"&$D46&"'!"&J$7&$E46) -> 4750997.092 | K46: =INDIRECT("'"&$D46&"'!"&K$7&$E46) -> 4552152.3 | L46: =INDIRECT("'"&$D46&"'!"&L$7&$E46) -> 4360318.499 | M46: =INDIRECT("'"&$D46&"'!"&M$7&$E46) -> 4164313.042 | N46: =INDIRECT("'"&$D46&"'!"&N$7&$E46) -> 3963934.522 | O46: =INDIRECT("'"&$D46&"'!"&O$7&$E46) -> 3758971.305 | P46: =INDIRECT("'"&$D46&"'!"&P$7&$E46) -> 3549200.991 | Q46: =INDIRECT("'"&$D46&"'!"&Q$7&$E46) -> 3334389.83 | R46: =INDIRECT("'"&$D46&"'!"&R$7&$E46) -> 3114292.122 | S46: =INDIRECT("'"&$D46&"'!"&S$7&$E46) -> 2888649.573 | T46: =INDIRECT("'"&$D46&"'!"&T$7&$E46) -> 2657190.622 | U46: =INDIRECT("'"&$D46&"'!"&U$7&$E46) -> 2419629.728 | V46: =INDIRECT("'"&$D46&"'!"&V$7&$E46) -> 2164078.382 | W46: =INDIRECT("'"&$D46&"'!"&W$7&$E46) -> 1901179.28 | X46: =INDIRECT("'"&$D46&"'!"&X$7&$E46) -> 1630566.059 | Y46: =INDIRECT("'"&$D46&"'!"&Y$7&$E46) -> 0 | Z46: =INDIRECT("'"&$D46&"'!"&Z$7&$E46) -> 0 | AA46: =INDIRECT("'"&$D46&"'!"&AA$7&$E46) -> 0 | AB46: =INDIRECT("'"&$D46&"'!"&AB$7&$E46) -> 0 | AC46: =INDIRECT("'"&$D46&"'!"&AC$7&$E46) -> 0 | AD46: =INDIRECT("'"&$D46&"'!"&AD$7&$E46) -> 0 | AE46: =INDIRECT("'"&$D46&"'!"&AE$7&$E46) -> 0 | AF46: =INDIRECT("'"&$D46&"'!"&AF$7&$E46) -> 0 | AG46: =INDIRECT("'"&$D46&"'!"&AG$7&$E46) -> 0 | AH46: =INDIRECT("'"&$D46&"'!"&AH$7&$E46) -> 0 | AI46: =INDIRECT("'"&$D46&"'!"&AI$7&$E46) -> 0 | AJ46: =INDIRECT("'"&$D46&"'!"&AJ$7&$E46) -> 0 | AK46: =INDIRECT("'"&$D46&"'!"&AK$7&$E46) -> 0 | AL46: =INDIRECT("'"&$D46&"'!"&AL$7&$E46) -> 0 | AM46: =INDIRECT("'"&$D46&"'!"&AM$7&$E46) -> 0 | AN46: =INDIRECT("'"&$D46&"'!"&AN$7&$E46) -> 0 | AO46: =INDIRECT("'"&$D46&"'!"&AO$7&$E46) -> 0 | AP46: =INDIRECT("'"&$D46&"'!"&AP$7&$E46) -> 0 | AQ46: =INDIRECT("'"&$D46&"'!"&AQ$7&$E46) -> 0 | AR46: =INDIRECT("'"&$D46&"'!"&AR$7&$E46) -> 0 | AS46: =INDIRECT("'"&$D46&"'!"&AS$7&$E46) -> 0 | AT46: =INDIRECT("'"&$D46&"'!"&AT$7&$E46) -> 0
D47: Russell | E47: =E46 -> 79 | F47: =INDIRECT("'"&$D47&"'!"&F$7&$E47) -> 4565000 | G47: =INDIRECT("'"&$D47&"'!"&G$7&$E47) -> 4400258.219 | H47: =INDIRECT("'"&$D47&"'!"&H$7&$E47) -> 4401708.628 | I47: =INDIRECT("'"&$D47&"'!"&I$7&$E47) -> 4407910.947 | J47: =INDIRECT("'"&$D47&"'!"&J$7&$E47) -> 4251196.801 | K47: =INDIRECT("'"&$D47&"'!"&K$7&$E47) -> 4091531.06 | L47: =INDIRECT("'"&$D47&"'!"&L$7&$E47) -> 3939212.936 | M47: =INDIRECT("'"&$D47&"'!"&M$7&$E47) -> 3784228.302 | N47: =INDIRECT("'"&$D47&"'!"&N$7&$E47) -> 3626456.317 | O47: =INDIRECT("'"&$D47&"'!"&O$7&$E47) -> 3465770.236 | P47: =INDIRECT("'"&$D47&"'!"&P$7&$E47) -> 3302037.095 | Q47: =INDIRECT("'"&$D47&"'!"&Q$7&$E47) -> 3135117.381 | R47: =INDIRECT("'"&$D47&"'!"&R$7&$E47) -> 2964864.689 | S47: =INDIRECT("'"&$D47&"'!"&S$7&$E47) -> 2791125.352 | T47: =INDIRECT("'"&$D47&"'!"&T$7&$E47) -> 2613738.059 | U47: =INDIRECT("'"&$D47&"'!"&U$7&$E47) -> 2432533.445 | V47: =INDIRECT("'"&$D47&"'!"&V$7&$E47) -> 2236896.823 | W47: =INDIRECT("'"&$D47&"'!"&W$7&$E47) -> 2036511.073 | X47: =INDIRECT("'"&$D47&"'!"&X$7&$E47) -> 1831149.189 | Y47: =INDIRECT("'"&$D47&"'!"&Y$7&$E47) -> 0 | Z47: =INDIRECT("'"&$D47&"'!"&Z$7&$E47) -> 0 | AA47: =INDIRECT("'"&$D47&"'!"&AA$7&$E47) -> 0 | AB47: =INDIRECT("'"&$D47&"'!"&AB$7&$E47) -> 0 | AC47: =INDIRECT("'"&$D47&"'!"&AC$7&$E47) -> 0 | AD47: =INDIRECT("'"&$D47&"'!"&AD$7&$E47) -> 0 | AE47: =INDIRECT("'"&$D47&"'!"&AE$7&$E47) -> 0 | AF47: =INDIRECT("'"&$D47&"'!"&AF$7&$E47) -> 0 | AG47: =INDIRECT("'"&$D47&"'!"&AG$7&$E47) -> 0 | AH47: =INDIRECT("'"&$D47&"'!"&AH$7&$E47) -> 0 | AI47: =INDIRECT("'"&$D47&"'!"&AI$7&$E47) -> 0 | AJ47: =INDIRECT("'"&$D47&"'!"&AJ$7&$E47) -> 0 | AK47: =INDIRECT("'"&$D47&"'!"&AK$7&$E47) -> 0 | AL47: =INDIRECT("'"&$D47&"'!"&AL$7&$E47) -> 0 | AM47: =INDIRECT("'"&$D47&"'!"&AM$7&$E47) -> 0 | AN47: =INDIRECT("'"&$D47&"'!"&AN$7&$E47) -> 0 | AO47: =INDIRECT("'"&$D47&"'!"&AO$7&$E47) -> 0 | AP47: =INDIRECT("'"&$D47&"'!"&AP$7&$E47) -> 0 | AQ47: =INDIRECT("'"&$D47&"'!"&AQ$7&$E47) -> 0 | AR47: =INDIRECT("'"&$D47&"'!"&AR$7&$E47) -> 0 | AS47: =INDIRECT("'"&$D47&"'!"&AS$7&$E47) -> 0 | AT47: =INDIRECT("'"&$D47&"'!"&AT$7&$E47) -> 0
D48: Westport | E48: 79 | F48: =INDIRECT("'"&$D48&"'!"&F$7&$E48) -> 6030000 | G48: =INDIRECT("'"&$D48&"'!"&G$7&$E48) -> 5835165.956 | H48: =INDIRECT("'"&$D48&"'!"&H$7&$E48) -> 5772089.387 | I48: =INDIRECT("'"&$D48&"'!"&I$7&$E48) -> 5710855.093 | J48: =INDIRECT("'"&$D48&"'!"&J$7&$E48) -> 5516534.486 | K48: =INDIRECT("'"&$D48&"'!"&K$7&$E48) -> 5317642.329 | L48: =INDIRECT("'"&$D48&"'!"&L$7&$E48) -> 5122637.742 | M48: =INDIRECT("'"&$D48&"'!"&M$7&$E48) -> 4923063.475 | N48: =INDIRECT("'"&$D48&"'!"&N$7&$E48) -> 4718691.681 | O48: =INDIRECT("'"&$D48&"'!"&O$7&$E48) -> 4509282.787 | P48: =INDIRECT("'"&$D48&"'!"&P$7&$E48) -> 4294584.867 | Q48: =INDIRECT("'"&$D48&"'!"&Q$7&$E48) -> 4074332.977 | R48: =INDIRECT("'"&$D48&"'!"&R$7&$E48) -> 3848248.456 | S48: =INDIRECT("'"&$D48&"'!"&S$7&$E48) -> 3616038.191 | T48: =INDIRECT("'"&$D48&"'!"&T$7&$E48) -> 3377393.837 | U48: =INDIRECT("'"&$D48&"'!"&U$7&$E48) -> 3131991.002 | V48: =INDIRECT("'"&$D48&"'!"&V$7&$E48) -> 2870800.021 | W48: =INDIRECT("'"&$D48&"'!"&W$7&$E48) -> 2601677.961 | X48: =INDIRECT("'"&$D48&"'!"&X$7&$E48) -> 2324221.253 | Y48: =INDIRECT("'"&$D48&"'!"&Y$7&$E48) -> 0 | Z48: =INDIRECT("'"&$D48&"'!"&Z$7&$E48) -> 0 | AA48: =INDIRECT("'"&$D48&"'!"&AA$7&$E48) -> 0 | AB48: =INDIRECT("'"&$D48&"'!"&AB$7&$E48) -> 0 | AC48: =INDIRECT("'"&$D48&"'!"&AC$7&$E48) -> 0 | AD48: =INDIRECT("'"&$D48&"'!"&AD$7&$E48) -> 0 | AE48: =INDIRECT("'"&$D48&"'!"&AE$7&$E48) -> 0 | AF48: =INDIRECT("'"&$D48&"'!"&AF$7&$E48) -> 0 | AG48: =INDIRECT("'"&$D48&"'!"&AG$7&$E48) -> 0 | AH48: =INDIRECT("'"&$D48&"'!"&AH$7&$E48) -> 0 | AI48: =INDIRECT("'"&$D48&"'!"&AI$7&$E48) -> 0 | AJ48: =INDIRECT("'"&$D48&"'!"&AJ$7&$E48) -> 0 | AK48: =INDIRECT("'"&$D48&"'!"&AK$7&$E48) -> 0 | AL48: =INDIRECT("'"&$D48&"'!"&AL$7&$E48) -> 0 | AM48: =INDIRECT("'"&$D48&"'!"&AM$7&$E48) -> 0 | AN48: =INDIRECT("'"&$D48&"'!"&AN$7&$E48) -> 0 | AO48: =INDIRECT("'"&$D48&"'!"&AO$7&$E48) -> 0 | AP48: =INDIRECT("'"&$D48&"'!"&AP$7&$E48) -> 0 | AQ48: =INDIRECT("'"&$D48&"'!"&AQ$7&$E48) -> 0 | AR48: =INDIRECT("'"&$D48&"'!"&AR$7&$E48) -> 0 | AS48: =INDIRECT("'"&$D48&"'!"&AS$7&$E48) -> 0 | AT48: =INDIRECT("'"&$D48&"'!"&AT$7&$E48) -> 0
D49: Tolland | E49: 79 | F49: =INDIRECT("'"&$D49&"'!"&F$7&$E49) -> 9765000 | G49: =INDIRECT("'"&$D49&"'!"&G$7&$E49) -> 9433693.453 | H49: =INDIRECT("'"&$D49&"'!"&H$7&$E49) -> 9386430.574 | I49: =INDIRECT("'"&$D49&"'!"&I$7&$E49) -> 9344210.456 | J49: =INDIRECT("'"&$D49&"'!"&J$7&$E49) -> 9017265.821 | K49: =INDIRECT("'"&$D49&"'!"&K$7&$E49) -> 8681673.766 | L49: =INDIRECT("'"&$D49&"'!"&L$7&$E49) -> 8354359.749 | M49: =INDIRECT("'"&$D49&"'!"&M$7&$E49) -> 8018425.87 | N49: =INDIRECT("'"&$D49&"'!"&N$7&$E49) -> 7673428.889 | O49: =INDIRECT("'"&$D49&"'!"&O$7&$E49) -> 7318902.422 | P49: =INDIRECT("'"&$D49&"'!"&P$7&$E49) -> 6954355.688 | Q49: =INDIRECT("'"&$D49&"'!"&Q$7&$E49) -> 6579272.197 | R49: =INDIRECT("'"&$D49&"'!"&R$7&$E49) -> 6193108.366 | S49: =INDIRECT("'"&$D49&"'!"&S$7&$E49) -> 5795292.057 | T49: =INDIRECT("'"&$D49&"'!"&T$7&$E49) -> 5385221.039 | U49: =INDIRECT("'"&$D49&"'!"&U$7&$E49) -> 4962261.359 | V49: =INDIRECT("'"&$D49&"'!"&V$7&$E49) -> 4508373.599 | W49: =INDIRECT("'"&$D49&"'!"&W$7&$E49) -> 4039283.114 | X49: =INDIRECT("'"&$D49&"'!"&X$7&$E49) -> 3554198.85 | Y49: =INDIRECT("'"&$D49&"'!"&Y$7&$E49) -> 0 | Z49: =INDIRECT("'"&$D49&"'!"&Z$7&$E49) -> 0 | AA49: =INDIRECT("'"&$D49&"'!"&AA$7&$E49) -> 0 | AB49: =INDIRECT("'"&$D49&"'!"&AB$7&$E49) -> 0 | AC49: =INDIRECT("'"&$D49&"'!"&AC$7&$E49) -> 0 | AD49: =INDIRECT("'"&$D49&"'!"&AD$7&$E49) -> 0 | AE49: =INDIRECT("'"&$D49&"'!"&AE$7&$E49) -> 0 | AF49: =INDIRECT("'"&$D49&"'!"&AF$7&$E49) -> 0 | AG49: =INDIRECT("'"&$D49&"'!"&AG$7&$E49) -> 0 | AH49: =INDIRECT("'"&$D49&"'!"&AH$7&$E49) -> 0 | AI49: =INDIRECT("'"&$D49&"'!"&AI$7&$E49) -> 0 | AJ49: =INDIRECT("'"&$D49&"'!"&AJ$7&$E49) -> 0 | AK49: =INDIRECT("'"&$D49&"'!"&AK$7&$E49) -> 0 | AL49: =INDIRECT("'"&$D49&"'!"&AL$7&$E49) -> 0 | AM49: =INDIRECT("'"&$D49&"'!"&AM$7&$E49) -> 0 | AN49: =INDIRECT("'"&$D49&"'!"&AN$7&$E49) -> 0 | AO49: =INDIRECT("'"&$D49&"'!"&AO$7&$E49) -> 0 | AP49: =INDIRECT("'"&$D49&"'!"&AP$7&$E49) -> 0 | AQ49: =INDIRECT("'"&$D49&"'!"&AQ$7&$E49) -> 0 | AR49: =INDIRECT("'"&$D49&"'!"&AR$7&$E49) -> 0 | AS49: =INDIRECT("'"&$D49&"'!"&AS$7&$E49) -> 0 | AT49: =INDIRECT("'"&$D49&"'!"&AT$7&$E49) -> 0
D50: Total Closing Balance | F50: =SUM(F45:F49) -> 34118000 | G50: =SUM(G45:G49) -> 32904946.51 | H50: =SUM(H45:H49) -> 32707686.25 | I50: 32530488.39 | J50: 31339200.69 | K50: 30119415.47 | L50: 28934828.95 | M50: 27722355.46 | N50: 26480608.64 | O50: 25208130.82 | P50: 23903389.18 | Q50: 22564771.75 | R50: 21190583.12 | S50: 19779039.99 | T50: 18328266.41 | U50: 16836288.86 | V50: 15235907.25 | W50: 13586521.38 | X50: 11885639.92 | Y50: 0 | Z50: 0 | AA50: 0 | AB50: 0 | AC50: 0 | AD50: 0 | AE50: 0 | AF50: 0 | AG50: 0 | AH50: 0 | AI50: 0 | AJ50: 0 | AK50: 0 | AL50: 0 | AM50: 0 | AN50: 0 | AO50: 0 | AP50: 0 | AQ50: 0 | AR50: 0 | AS50: 0 | AT50: 0
B53: P99 Analysis
B64: Debt Applied
B74: Credit Analysis
B83: Duration and Average Life
B91: Prepayment Analysis
B98: Yield Analysis

Sheet Template
D1: New Marlborough | F1: Column Number | G1: =MATCH(D1,'Project Database'!4:4,0) -> 5
D3: Date of Model | E3: Months in Period | F3: ='General Inputs'!F7 -> 12 | H3: ='General Inputs'!F6-1 -> 2019-12-31 | I3: =EDATE(H3,$F$3) -> 2020-12-31 | J3: =EDATE(I3,$F$3) -> 2021-12-31 | K3: 2022-12-31 | L3: 2023-12-31 | M3: 2024-12-31 | N3: 2025-12-31 | O3: 2026-12-31 | P3: 2027-12-31 | Q3: 2028-12-31 | R3: 2029-12-31 | S3: 2030-12-31 | T3: 2031-12-31 | U3: 2032-12-31 | V3: 2033-12-31 | W3: 2034-12-31 | X3: 2035-12-31 | Y3: 2036-12-31 | Z3: 2037-12-31 | AA3: 2038-12-31 | AB3: 2039-12-31 | AC3: 2040-12-31 | AD3: 2041-12-31 | AE3: 2042-12-31 | AF3: 2043-12-31 | AG3: 2044-12-31 | AH3: 2045-12-31 | AI3: 2046-12-31 | AJ3: 2047-12-31 | AK3: 2048-12-31 | AL3: 2049-12-31 | AM3: 2050-12-31 | AN3: 2051-12-31 | AO3: 2052-12-31 | AP3: 2053-12-31 | AQ3: 2054-12-31 | AR3: 2055-12-31 | AS3: 2056-12-31 | AT3: 2057-12-31 | AU3: 2058-12-31 | AV3: 2059-12-31
D4: Month of Model | E4: Month | H4: =MONTH(H3) -> 12 | I4: 12 | J4: 12 | K4: 12 | L4: 12 | M4: 12 | N4: 12 | O4: 12 | P4: 12 | Q4: 12 | R4: 12 | S4: 12 | T4: 12 | U4: 12 | V4: 12 | W4: 12 | X4: 12 | Y4: 12 | Z4: 12 | AA4: 12 | AB4: 12 | AC4: 12 | AD4: 12 | AE4: 12 | AF4: 12 | AG4: 12 | AH4: 12 | AI4: 12 | AJ4: 12 | AK4: 12 | AL4: 12 | AM4: 12 | AN4: 12 | AO4: 12 | AP4: 12 | AQ4: 12 | AR4: 12 | AS4: 12 | AT4: 12 | AU4: 12 | AV4: 12
D5: Year of Model | E5: Year | H5: =YEAR(H3) -> 2019 | I5: =YEAR(I3) -> 2020 | J5: =YEAR(J3) -> 2021 | K5: 2022 | L5: 2023 | M5: 2024 | N5: 2025 | O5: 2026 | P5: 2027 | Q5: 2028 | R5: 2029 | S5: 2030 | T5: 2031 | U5: 2032 | V5: 2033 | W5: 2034 | X5: 2035 | Y5: 2036 | Z5: 2037 | AA5: 2038 | AB5: 2039 | AC5: 2040 | AD5: 2041 | AE5: 2042 | AF5: 2043 | AG5: 2044 | AH5: 2045 | AI5: 2046 | AJ5: 2047 | AK5: 2048 | AL5: 2049 | AM5: 2050 | AN5: 2051 | AO5: 2052 | AP5: 2053 | AQ5: 2054 | AR5: 2055 | AS5: 2056 | AT5: 2057 | AU5: 2058 | AV5: 2059
D6: New Year Flag | E6: Flag | I6: =I5<>H5 -> TRUE | J6: =J5<>I5 -> TRUE | K6: TRUE | L6: TRUE | M6: TRUE | N6: TRUE | O6: TRUE | P6: TRUE | Q6: TRUE | R6: TRUE | S6: TRUE | T6: TRUE | U6: TRUE | V6: TRUE | W6: TRUE | X6: TRUE | Y6: TRUE | Z6: TRUE | AA6: TRUE | AB6: TRUE | AC6: TRUE | AD6: TRUE | AE6: TRUE | AF6: TRUE | AG6: TRUE | AH6: TRUE | AI6: TRUE | AJ6: TRUE | AK6: TRUE | AL6: TRUE | AM6: TRUE | AN6: TRUE | AO6: TRUE | AP6: TRUE | AQ6: TRUE | AR6: TRUE | AS6: TRUE | AT6: TRUE | AU6: TRUE | AV6: TRUE
D7: Year Counter for Row Number | E7: Period | H7: 0 | I7: 1 | J7: =I7+1 -> 2 | K7: =J7+1 -> 3 | L7: 4 | M7: 5 | N7: 6 | O7: 7 | P7: 8 | Q7: 9 | R7: 10 | S7: 11 | T7: 12 | U7: 13 | V7: 14 | W7: 15 | X7: 16 | Y7: 17 | Z7: 18 | AA7: 19 | AB7: 20 | AC7: =AB7+1 -> 21 | AD7: 22 | AE7: 23 | AF7: 24 | AG7: 25 | AH7: 26 | AI7: 27 | AJ7: 28 | AK7: 29 | AL7: 30 | AM7: 31 | AN7: 32 | AO7: 33 | AP7: 34 | AQ7: 35 | AR7: 36 | AS7: 37 | AT7: 38 | AU7: 39 | AV7: 40
D8: Project Life | E8: Flag | F8: =INDEX('Project Database'!11:11,colum_num) -> 20 | I8: =I7<=$F$8 -> TRUE | J8: TRUE | K8: TRUE | L8: TRUE | M8: TRUE | N8: TRUE | O8: TRUE | P8: TRUE | Q8: TRUE | R8: TRUE | S8: TRUE | T8: TRUE | U8: TRUE | V8: TRUE | W8: TRUE | X8: TRUE | Y8: TRUE | Z8: TRUE | AA8: TRUE | AB8: TRUE | AC8: FALSE | AD8: FALSE | AE8: FALSE | AF8: FALSE | AG8: FALSE | AH8: FALSE | AI8: FALSE | AJ8: FALSE | AK8: FALSE | AL8: FALSE | AM8: FALSE | AN8: FALSE | AO8: FALSE | AP8: FALSE | AQ8: FALSE | AR8: FALSE | AS8: FALSE | AT8: FALSE | AU8: FALSE | AV8: FALSE
D9: PPA Term (years) | E9: Flag | F9: =INDEX('Project Database'!12:12,colum_num) -> 20 | I9: =I7<=$F$9 -> TRUE | J9: TRUE | K9: TRUE | L9: TRUE | M9: TRUE | N9: TRUE | O9: TRUE | P9: TRUE | Q9: TRUE | R9: TRUE | S9: TRUE | T9: TRUE | U9: TRUE | V9: TRUE | W9: TRUE | X9: TRUE | Y9: TRUE | Z9: TRUE | AA9: TRUE | AB9: TRUE | AC9: FALSE | AD9: FALSE | AE9: FALSE | AF9: FALSE | AG9: FALSE | AH9: FALSE | AI9: FALSE | AJ9: FALSE | AK9: FALSE | AL9: FALSE | AM9: FALSE | AN9: FALSE | AO9: FALSE | AP9: FALSE | AQ9: FALSE | AR9: FALSE | AS9: FALSE | AT9: FALSE | AU9: FALSE | AV9: FALSE
D10: LOB Loan Term (years) | E10: Flag | F10: =INDEX('Project Database'!13:13,colum_num) -> 20 | I10: =I7<=$F$10 -> TRUE | J10: TRUE | K10: TRUE | L10: TRUE | M10: TRUE | N10: TRUE | O10: TRUE | P10: TRUE | Q10: TRUE | R10: TRUE | S10: TRUE | T10: TRUE | U10: TRUE | V10: TRUE | W10: TRUE | X10: TRUE | Y10: TRUE | Z10: TRUE | AA10: TRUE | AB10: TRUE | AC10: FALSE | AD10: FALSE | AE10: FALSE | AF10: FALSE | AG10: FALSE | AH10: FALSE | AI10: FALSE | AJ10: FALSE | AK10: FALSE | AL10: FALSE | AM10: FALSE | AN10: FALSE | AO10: FALSE | AP10: FALSE | AQ10: FALSE | AR10: FALSE | AS10: FALSE | AT10: FALSE | AU10: FALSE | AV10: FALSE
D11: Debt Repayment Period | E11: Flag | F11: ='General Inputs'!F23 -> 12 | I11: =IF(I10,I4=$F$11) -> TRUE | J11: TRUE | K11: TRUE | L11: TRUE | M11: TRUE | N11: TRUE | O11: TRUE | P11: TRUE | Q11: TRUE | R11: TRUE | S11: TRUE | T11: TRUE | U11: TRUE | V11: TRUE | W11: TRUE | X11: TRUE | Y11: TRUE | Z11: TRUE | AA11: TRUE | AB11: TRUE | AC11: FALSE | AD11: FALSE | AE11: FALSE | AF11: FALSE | AG11: FALSE | AH11: FALSE | AI11: FALSE | AJ11: FALSE | AK11: FALSE | AL11: FALSE | AM11: FALSE | AN11: FALSE | AO11: FALSE | AP11: FALSE | AQ11: FALSE | AR11: FALSE | AS11: FALSE | AT11: FALSE | AU11: FALSE | AV11: FALSE
D13: Developer | E13: =INDEX('Project Database'!5:5,colum_num) -> Cap Vert Energie | H13: Location | J13: New Marlborough, MA | M13: NERC Region | N13: =INDEX('Project Database'!8:8,colum_num) -> ISONE - WCMA | P13: PPA Off-Taker | Q13: =INDEX('Project Database'!9:9,colum_num) -> NGRID | T13: Knight Road
B15: Operating Cash Flow
C16: Production
D17: Capacity (MW DC) | E17: MWp | F17: =INDEX('Project Database'!18:18,colum_num) -> 6.5232 | I17: =$F$17 -> 6.5232 | J17: =$F$17 -> 6.5232 | K17: 6.5232 | L17: 6.5232 | M17: 6.5232 | N17: 6.5232 | O17: 6.5232 | P17: 6.5232 | Q17: 6.5232 | R17: 6.5232 | S17: 6.5232 | T17: 6.5232 | U17: 6.5232 | V17: 6.5232 | W17: 6.5232 | X17: 6.5232 | Y17: 6.5232 | Z17: 6.5232 | AA17: 6.5232 | AB17: 6.5232 | AC17: 6.5232 | AD17: 6.5232 | AE17: 6.5232 | AF17: 6.5232 | AG17: 6.5232 | AH17: 6.5232 | AI17: 6.5232 | AJ17: 6.5232 | AK17: 6.5232 | AL17: 6.5232 | AM17: 6.5232 | AN17: 6.5232 | AO17: 6.5232 | AP17: 6.5232 | AQ17: 6.5232 | AR17: 6.5232 | AS17: 6.5232 | AT17: 6.5232 | AU17: 6.5232 | AV17: 6.5232
G18: Availability | H18: 1st Yr Producion
D19: Annual Production (kWh) - P50 Case | E19: kWh | F19: =INDEX('Project Database'!17:17,colum_num) -> -0.005 | G19: =INDEX('Project Database'!23:23,colum_num) -> 0.99 | H19: =INDEX('Project Database'!19:19,colum_num) -> 8101814.4 | I19: =H19*G19 -> 8020796.256 | J19: =+I19*(1+$F19)*J8 -> 7980692.275 | K19: =+J19*(1+$F$19)*K8 -> 7940788.813 | L19: 7901084.869 | M19: 7861579.445 | N19: 7822271.548 | O19: 7783160.19 | P19: 7744244.389 | Q19: 7705523.167 | R19: 7666995.551 | S19: 7628660.573 | T19: 7590517.271 | U19: 7552564.684 | V19: 7514801.861 | W19: 7477227.852 | X19: 7439841.712 | Y19: 7402642.504 | Z19: 7365629.291 | AA19: 7328801.145 | AB19: 7292157.139 | AC19: 0 | AD19: 0 | AE19: 0 | AF19: 0 | AG19: 0 | AH19: 0 | AI19: 0 | AJ19: 0 | AK19: 0 | AL19: 0 | AM19: 0 | AN19: 0 | AO19: 0 | AP19: 0 | AQ19: 0 | AR19: 0 | AS19: 0 | AT19: 0 | AU19: 0 | AV19: 0
D20: Annual Production (kWh) - P90 Case | E20: kWh | F20: =F19 -> -0.005 | G20: =G19 -> 0.99 | H20: =INDEX('Project Database'!26:26,colum_num) -> 7384000 | I20: =H20*G20 -> 7310160 | J20: =+I20*(1+$F20)*J9 -> 7273609.2 | K20: =+J20*(1+$F20)*K9 -> 7237241.154 | L20: 7201054.948 | M20: 7165049.673 | N20: 7129224.425 | O20: 7093578.303 | P20: 7058110.411 | Q20: 7022819.859 | R20: 6987705.76 | S20: 6952767.231 | T20: 6918003.395 | U20: 6883413.378 | V20: 6848996.311 | W20: 6814751.33 | X20: 6780677.573 | Y20: 6746774.185 | Z20: 6713040.314 | AA20: 6679475.113 | AB20: 6646077.737 | AC20: 0 | AD20: 0 | AE20: 0 | AF20: 0 | AG20: 0 | AH20: 0 | AI20: 0 | AJ20: 0 | AK20: 0 | AL20: 0 | AM20: 0 | AN20: 0 | AO20: 0 | AP20: 0 | AQ20: 0 | AR20: 0 | AS20: 0 | AT20: 0 | AU20: 0 | AV20: 0
D21: Annual Production (kWh) - P99 Case | E21: kWh | F21: =F20 -> -0.005 | G21: =G20 -> 0.99 | H21: =INDEX('Project Database'!29:29,colum_num) -> 6799000 | I21: =H21*G21 -> 6731010 | J21: =+I21*(1+$F21)*J10 -> 6697354.95 | K21: =+J21*(1+$F21)*K10 -> 6663868.175 | L21: 6630548.834 | M21: 6597396.09 | N21: 6564409.11 | O21: 6531587.064 | P21: 6498929.129 | Q21: 6466434.483 | R21: 6434102.311 | S21: 6401931.799 | T21: 6369922.14 | U21: 6338072.53 | V21: 6306382.167 | W21: 6274850.256 | X21: 6243476.005 | Y21: 6212258.625 | Z21: 6181197.332 | AA21: 6150291.345 | AB21: 6119539.888 | AC21: 0 | AD21: 0 | AE21: 0 | AF21: 0 | AG21: 0 | AH21: 0 | AI21: 0 | AJ21: 0 | AK21: 0 | AL21: 0 | AM21: 0 | AN21: 0 | AO21: 0 | AP21: 0 | AQ21: 0 | AR21: 0 | AS21: 0 | AT21: 0 | AU21: 0 | AV21: 0
D24: Rate Projections ($/kWh) ALL-IN RATE | E24: $/kWh | I24: =IF(I9,INDEX(all_in_rate,I7,colum_num)) -> 0.17163 | J24: =IF(J9,INDEX(all_in_rate,J7,colum_num)) -> 0.1715785 | K24: =IF(K9,INDEX(all_in_rate,K7,colum_num)) -> 0.1715267425 | L24: =IF(L9,INDEX(all_in_rate,L7,colum_num)) -> 0.1714747262 | M24: =IF(M9,INDEX(all_in_rate,M7,colum_num)) -> 0.1714224498 | N24: =IF(N9,INDEX(all_in_rate,N7,colum_num)) -> 0.1713699121 | O24: =IF(O9,INDEX(all_in_rate,O7,colum_num)) -> 0.1713171117 | P24: =IF(P9,INDEX(all_in_rate,P7,colum_num)) -> 0.1712640472 | Q24: =IF(Q9,INDEX(all_in_rate,Q7,colum_num)) -> 0.1712107174 | R24: =IF(R9,INDEX(all_in_rate,R7,colum_num)) -> 0.171157121 | S24: =IF(S9,INDEX(all_in_rate,S7,colum_num)) -> 0.1711032566 | T24: =IF(T9,INDEX(all_in_rate,T7,colum_num)) -> 0.1710491229 | U24: =IF(U9,INDEX(all_in_rate,U7,colum_num)) -> 0.1709947185 | V24: =IF(V9,INDEX(all_in_rate,V7,colum_num)) -> 0.1709400421 | W24: =IF(W9,INDEX(all_in_rate,W7,colum_num)) -> 0.1708850923 | X24: =IF(X9,INDEX(all_in_rate,X7,colum_num)) -> 0.1708298678 | Y24: =IF(Y9,INDEX(all_in_rate,Y7,colum_num)) -> 0.1707743671 | Z24: =IF(Z9,INDEX(all_in_rate,Z7,colum_num)) -> 0.170718589 | AA24: =IF(AA9,INDEX(all_in_rate,AA7,colum_num)) -> 0.1706625319 | AB24: =IF(AB9,INDEX(all_in_rate,AB7,colum_num)) -> 0.1706061946 | AC24: =IF(AC9,INDEX(all_in_rate,AC7,colum_num)) -> FALSE | AD24: =IF(AD9,INDEX(all_in_rate,AD7,colum_num)) -> FALSE | AE24: =IF(AE9,INDEX(all_in_rate,AE7,colum_num)) -> FALSE | AF24: =IF(AF9,INDEX(all_in_rate,AF7,colum_num)) -> FALSE | AG24: =IF(AG9,INDEX(all_in_rate,AG7,colum_num)) -> FALSE | AH24: =IF(AH9,INDEX(all_in_rate,AH7,colum_num)) -> FALSE | AI24: =IF(AI9,INDEX(all_in_rate,AI7,colum_num)) -> FALSE | AJ24: =IF(AJ9,INDEX(all_in_rate,AJ7,colum_num)) -> FALSE | AK24: =IF(AK9,INDEX(all_in_rate,AK7,colum_num)) -> FALSE | AL24: =IF(AL9,INDEX(all_in_rate,AL7,colum_num)) -> FALSE | AM24: =IF(AM9,INDEX(all_in_rate,AM7,colum_num)) -> FALSE | AN24: =IF(AN9,INDEX(all_in_rate,AN7,colum_num)) -> FALSE | AO24: =IF(AO9,INDEX(all_in_rate,AO7,colum_num)) -> FALSE | AP24: =IF(AP9,INDEX(all_in_rate,AP7,colum_num)) -> FALSE | AQ24: =IF(AQ9,INDEX(all_in_rate,AQ7,colum_num)) -> FALSE | AR24: =IF(AR9,INDEX(all_in_rate,AR7,colum_num)) -> FALSE | AS24: =IF(AS9,INDEX(all_in_rate,AS7,colum_num)) -> FALSE | AT24: =IF(AT9,INDEX(all_in_rate,AT7,colum_num)) -> FALSE | AU24: =IF(AU9,INDEX(all_in_rate,AU7,colum_num)) -> FALSE | AV24: =IF(AV9,INDEX(all_in_rate,AV7,colum_num)) -> FALSE
D25: Rate Projections ($/kWh) NO CS ADDER | E25: $/kWh | I25: =IF(I9,INDEX(no_cs_rate,I7,colum_num)*I9) -> 0.12739 | J25: =IF(J9,INDEX(no_cs_rate,J7,colum_num)*J9) -> 0.1273385 | K25: =IF(K9,INDEX(no_cs_rate,K7,colum_num)*K9) -> 0.1272867425 | L25: =IF(L9,INDEX(no_cs_rate,L7,colum_num)*L9) -> 0.1272347262 | M25: =IF(M9,INDEX(no_cs_rate,M7,colum_num)*M9) -> 0.1271824498 | N25: =IF(N9,INDEX(no_cs_rate,N7,colum_num)*N9) -> 0.1271299121 | O25: =IF(O9,INDEX(no_cs_rate,O7,colum_num)*O9) -> 0.1270771117 | P25: =IF(P9,INDEX(no_cs_rate,P7,colum_num)*P9) -> 0.1270240472 | Q25: =IF(Q9,INDEX(no_cs_rate,Q7,colum_num)*Q9) -> 0.1269707174 | R25: =IF(R9,INDEX(no_cs_rate,R7,colum_num)*R9) -> 0.126917121 | S25: =IF(S9,INDEX(no_cs_rate,S7,colum_num)*S9) -> 0.1268632566 | T25: =IF(T9,INDEX(no_cs_rate,T7,colum_num)*T9) -> 0.1268091229 | U25: =IF(U9,INDEX(no_cs_rate,U7,colum_num)*U9) -> 0.1267547185 | V25: =IF(V9,INDEX(no_cs_rate,V7,colum_num)*V9) -> 0.1267000421 | W25: =IF(W9,INDEX(no_cs_rate,W7,colum_num)*W9) -> 0.1266450923 | X25: =IF(X9,INDEX(no_cs_rate,X7,colum_num)*X9) -> 0.1265898678 | Y25: =IF(Y9,INDEX(no_cs_rate,Y7,colum_num)*Y9) -> 0.1265343671 | Z25: =IF(Z9,INDEX(no_cs_rate,Z7,colum_num)*Z9) -> 0.126478589 | AA25: =IF(AA9,INDEX(no_cs_rate,AA7,colum_num)*AA9) -> 0.1264225319 | AB25: =IF(AB9,INDEX(no_cs_rate,AB7,colum_num)*AB9) -> 0.1263661946 | AC25: =IF(AC9,INDEX(no_cs_rate,AC7,colum_num)*AC9) -> FALSE | AD25: =IF(AD9,INDEX(no_cs_rate,AD7,colum_num)*AD9) -> FALSE | AE25: =IF(AE9,INDEX(no_cs_rate,AE7,colum_num)*AE9) -> FALSE | AF25: =IF(AF9,INDEX(no_cs_rate,AF7,colum_num)*AF9) -> FALSE | AG25: =IF(AG9,INDEX(no_cs_rate,AG7,colum_num)*AG9) -> FALSE | AH25: =IF(AH9,INDEX(no_cs_rate,AH7,colum_num)*AH9) -> FALSE | AI25: =IF(AI9,INDEX(no_cs_rate,AI7,colum_num)*AI9) -> FALSE | AJ25: =IF(AJ9,INDEX(no_cs_rate,AJ7,colum_num)*AJ9) -> FALSE | AK25: =IF(AK9,INDEX(no_cs_rate,AK7,colum_num)*AK9) -> FALSE | AL25: =IF(AL9,INDEX(no_cs_rate,AL7,colum_num)*AL9) -> FALSE | AM25: =IF(AM9,INDEX(no_cs_rate,AM7,colum_num)*AM9) -> FALSE | AN25: =IF(AN9,INDEX(no_cs_rate,AN7,colum_num)*AN9) -> FALSE | AO25: =IF(AO9,INDEX(no_cs_rate,AO7,colum_num)*AO9) -> FALSE | AP25: =IF(AP9,INDEX(no_cs_rate,AP7,colum_num)*AP9) -> FALSE | AQ25: =IF(AQ9,INDEX(no_cs_rate,AQ7,colum_num)*AQ9) -> FALSE | AR25: =IF(AR9,INDEX(no_cs_rate,AR7,colum_num)*AR9) -> FALSE | AS25: =IF(AS9,INDEX(no_cs_rate,AS7,colum_num)*AS9) -> FALSE | AT25: =IF(AT9,INDEX(no_cs_rate,AT7,colum_num)*AT9) -> FALSE | AU25: =IF(AU9,INDEX(no_cs_rate,AU7,colum_num)*AU9) -> FALSE | AV25: =IF(AV9,INDEX(no_cs_rate,AV7,colum_num)*AV9) -> FALSE
D26: Rate Applied before Pollinator Adder | E26: $/kWh | F26: =INDEX('Project Database'!34:34,colum_num) -> TRUE | I26: =IF(F26,I24,I25) -> 0.17163 | J26: =IF(G26,J24,J25) -> 0.1273385 | K26: 0.1272867425 | L26: 0.1714747262 | M26: 0.1714224498 | N26: 0.1713699121 | O26: 0.1713171117 | P26: 0.1712640472 | Q26: 0.1712107174 | R26: 0.171157121 | S26: 0.1711032566 | T26: 0.1710491229 | U26: 0.1709947185 | V26: 0.1709400421 | W26: 0.1708850923 | X26: 0.1708298678 | Y26: 0.1707743671 | Z26: 0.170718589 | AA26: 0.1706625319 | AB26: 0.1706061946 | AC26: FALSE | AD26: FALSE | AE26: FALSE | AF26: FALSE | AG26: FALSE | AH26: FALSE | AI26: FALSE | AJ26: FALSE | AK26: FALSE | AL26: FALSE | AM26: FALSE | AN26: FALSE | AO26: FALSE | AP26: FALSE | AQ26: FALSE | AR26: FALSE | AS26: FALSE | AT26: FALSE | AU26: FALSE | AV26: FALSE
D27: Pollinator Adder | E27: $/kWh | F27: =INDEX('Project Database'!35:35,colum_num) -> 0.0025 | I27: =$F$27 -> 0.0025 | J27: =$F$27 -> 0.0025 | K27: 0.0025 | L27: 0.0025 | M27: 0.0025 | N27: 0.0025 | O27: 0.0025 | P27: 0.0025 | Q27: 0.0025 | R27: 0.0025 | S27: 0.0025 | T27: 0.0025 | U27: 0.0025 | V27: 0.0025 | W27: 0.0025 | X27: 0.0025 | Y27: 0.0025 | Z27: 0.0025 | AA27: 0.0025 | AB27: 0.0025 | AC27: 0.0025 | AD27: 0.0025 | AE27: 0.0025 | AF27: 0.0025 | AG27: 0.0025 | AH27: 0.0025 | AI27: 0.0025 | AJ27: 0.0025 | AK27: 0.0025 | AL27: 0.0025 | AM27: 0.0025 | AN27: 0.0025 | AO27: 0.0025 | AP27: 0.0025 | AQ27: 0.0025 | AR27: 0.0025 | AS27: 0.0025 | AT27: 0.0025 | AU27: 0.0025 | AV27: 0.0025
D28: Total PPA Rate Applied | E28: $/kWh | I28: =I27+I26 -> 0.17413 | J28: =J27+J26 -> 0.1298385 | K28: 0.1297867425 | L28: 0.1739747262 | M28: 0.1739224498 | N28: 0.1738699121 | O28: 0.1738171117 | P28: 0.1737640472 | Q28: 0.1737107174 | R28: 0.173657121 | S28: 0.1736032566 | T28: 0.1735491229 | U28: 0.1734947185 | V28: 0.1734400421 | W28: 0.1733850923 | X28: 0.1733298678 | Y28: 0.1732743671 | Z28: 0.173218589 | AA28: 0.1731625319 | AB28: 0.1731061946 | AC28: 0.0025 | AD28: 0.0025 | AE28: 0.0025 | AF28: 0.0025 | AG28: 0.0025 | AH28: 0.0025 | AI28: 0.0025 | AJ28: 0.0025 | AK28: 0.0025 | AL28: 0.0025 | AM28: 0.0025 | AN28: 0.0025 | AO28: 0.0025 | AP28: 0.0025 | AQ28: 0.0025 | AR28: 0.0025 | AS28: 0.0025 | AT28: 0.0025 | AU28: 0.0025 | AV28: 0.0025
D29: Post PPA Average Price ($/kWh) | E29: $/kWh | I29: 0 | J29: 0 | K29: 0 | L29: 0 | M29: 0 | N29: 0 | O29: 0 | P29: 0 | Q29: 0 | R29: 0 | S29: 0 | T29: 0 | U29: 0 | V29: 0 | W29: 0 | X29: 0 | Y29: 0 | Z29: 0 | AA29: 0 | AB29: 0 | AC29: 0 | AD29: 0 | AE29: 0 | AF29: 0 | AG29: 0 | AH29: 0 | AI29: 0 | AJ29: 0 | AK29: 0 | AL29: 0 | AM29: 0 | AN29: 0 | AO29: 0 | AP29: 0 | AQ29: 0 | AR29: 0 | AS29: 0 | AT29: 0 | AU29: 0 | AV29: 0
D30: Post PPA Base NG Price ($/kWh)* | E30: $/kWh | I30: =LOOKUP(I5,'General Inputs'!14:14,'General Inputs'!15:15) -> 0.03745 | J30: =LOOKUP(J5,'General Inputs'!14:14,'General Inputs'!15:15) -> 0.0357 | K30: =LOOKUP(K5,'General Inputs'!14:14,'General Inputs'!15:15) -> 0.03407 | L30: =LOOKUP(L5,'General Inputs'!14:14,'General Inputs'!15:15) -> 0.03483 | M30: =LOOKUP(M5,'General Inputs'!14:14,'General Inputs'!15:15) -> 0.03603 | N30: =LOOKUP(N5,'General Inputs'!14:14,'General Inputs'!15:15) -> 0.03789 | O30: =LOOKUP(O5,'General Inputs'!14:14,'General Inputs'!15:15) -> 0.03793 | P30: =LOOKUP(P5,'General Inputs'!14:14,'General Inputs'!15:15) -> 0.03826 | Q30: =LOOKUP(Q5,'General Inputs'!14:14,'General Inputs'!15:15) -> 0.03837 | R30: =LOOKUP(R5,'General Inputs'!14:14,'General Inputs'!15:15) -> 0.03879 | S30: =LOOKUP(S5,'General Inputs'!14:14,'General Inputs'!15:15) -> 0.03871 | T30: =LOOKUP(T5,'General Inputs'!14:14,'General Inputs'!15:15) -> 0.03876 | U30: =LOOKUP(U5,'General Inputs'!14:14,'General Inputs'!15:15) -> 0.03881 | V30: =LOOKUP(V5,'General Inputs'!14:14,'General Inputs'!15:15) -> 0.03882 | W30: =LOOKUP(W5,'General Inputs'!14:14,'General Inputs'!15:15) -> 0.03896 | X30: =LOOKUP(X5,'General Inputs'!14:14,'General Inputs'!15:15) -> 0.03937 | Y30: =LOOKUP(Y5,'General Inputs'!14:14,'General Inputs'!15:15) -> 0.03942 | Z30: =LOOKUP(Z5,'General Inputs'!14:14,'General Inputs'!15:15) -> 0.03934 | AA30: =LOOKUP(AA5,'General Inputs'!14:14,'General Inputs'!15:15) -> 0.03962 | AB30: =LOOKUP(AB5,'General Inputs'!14:14,'General Inputs'!15:15) -> 0.03961 | AC30: =LOOKUP(AC5,'General Inputs'!14:14,'General Inputs'!15:15) -> 0.03961 | AD30: =LOOKUP(AD5,'General Inputs'!14:14,'General Inputs'!15:15) -> 0.03961 | AE30: =LOOKUP(AE5,'General Inputs'!14:14,'General Inputs'!15:15) -> 0.03961 | AF30: =LOOKUP(AF5,'General Inputs'!14:14,'General Inputs'!15:15) -> 0.03961 | AG30: =LOOKUP(AG5,'General Inputs'!14:14,'General Inputs'!15:15) -> 0.03961 | AH30: =LOOKUP(AH5,'General Inputs'!14:14,'General Inputs'!15:15) -> 0.03961 | AI30: =LOOKUP(AI5,'General Inputs'!14:14,'General Inputs'!15:15) -> 0.03961 | AJ30: =LOOKUP(AJ5,'General Inputs'!14:14,'General Inputs'!15:15) -> 0.03961 | AK30: =LOOKUP(AK5,'General Inputs'!14:14,'General Inputs'!15:15) -> 0.03961 | AL30: =LOOKUP(AL5,'General Inputs'!14:14,'General Inputs'!15:15) -> 0.03961 | AM30: =LOOKUP(AM5,'General Inputs'!14:14,'General Inputs'!15:15) -> 0.03961 | AN30: =LOOKUP(AN5,'General Inputs'!14:14,'General Inputs'!15:15) -> 0.03961 | AO30: =LOOKUP(AO5,'General Inputs'!14:14,'General Inputs'!15:15) -> 0.03961 | AP30: =LOOKUP(AP5,'General Inputs'!14:14,'General Inputs'!15:15) -> 0.03961 | AQ30: =LOOKUP(AQ5,'General Inputs'!14:14,'General Inputs'!15:15) -> 0.03961 | AR30: =LOOKUP(AR5,'General Inputs'!14:14,'General Inputs'!15:15) -> 0.03961 | AS30: =LOOKUP(AS5,'General Inputs'!14:14,'General Inputs'!15:15) -> 0.03961 | AT30: =LOOKUP(AT5,'General Inputs'!14:14,'General Inputs'!15:15) -> 0.03961 | AU30: =LOOKUP(AU5,'General Inputs'!14:14,'General Inputs'!15:15) -> 0.03961 | AV30: =LOOKUP(AV5,'General Inputs'!14:14,'General Inputs'!15:15) -> 0.03961
D31: Estimated REC price ($/kWh) | I31: 0 | J31: 0 | K31: 0 | L31: 0 | M31: 0 | N31: 0 | O31: 0 | P31: 0 | Q31: 0 | R31: 0 | S31: 0 | T31: 0 | U31: 0 | V31: 0 | W31: 0 | X31: 0 | Y31: 0 | Z31: 0 | AA31: 0 | AB31: 0 | AC31: 0 | AD31: 0 | AE31: 0 | AF31: 0 | AG31: 0 | AH31: 0 | AI31: 0 | AJ31: 0 | AK31: 0 | AL31: 0 | AM31: 0 | AN31: 0 | AO31: 0 | AP31: 0 | AQ31: 0 | AR31: 0 | AS31: 0 | AT31: 0 | AU31: 0 | AV31: 0
C33: Revenues (P50)
D34: Contracted PPA Revenue | I34: =I19*(I28)*I9 -> 1396661.252 | J34: 1036201.114 | K34: 1030609.113 | L34: 1374589.077 | M34: 1367305.157 | N34: 1360057.666 | O34: 1352846.424 | P34: 1345671.248 | Q34: 1338531.958 | R34: 1331428.374 | S34: 1324360.319 | T34: 1317327.615 | U34: 1310330.084 | V34: 1303367.551 | W34: 1296439.841 | X34: 1289546.78 | Y34: 1282688.195 | Z34: 1275863.913 | AA34: 1269073.762 | AB34: 1262317.573 | AC34: 0 | AD34: 0 | AE34: 0 | AF34: 0 | AG34: 0 | AH34: 0 | AI34: 0 | AJ34: 0 | AK34: 0 | AL34: 0 | AM34: 0 | AN34: 0 | AO34: 0 | AP34: 0 | AQ34: 0 | AR34: 0 | AS34: 0 | AT34: 0 | AU34: 0 | AV34: 0
D35: Post PPA Revenue | I35: =I29*I19*NOT(I9) -> 0 | J35: 0 | K35: 0 | L35: 0 | M35: 0 | N35: 0 | O35: 0 | P35: 0 | Q35: 0 | R35: 0 | S35: 0 | T35: 0 | U35: 0 | V35: 0 | W35: 0 | X35: 0 | Y35: 0 | Z35: 0 | AA35: 0 | AB35: 0 | AC35: 0 | AD35: 0 | AE35: 0 | AF35: 0 | AG35: 0 | AH35: 0 | AI35: 0 | AJ35: 0 | AK35: 0 | AL35: 0 | AM35: 0 | AN35: 0 | AO35: 0 | AP35: 0 | AQ35: 0 | AR35: 0 | AS35: 0 | AT35: 0 | AU35: 0 | AV35: 0
D36: Post PPA Revenue Base NG | I36: =I19*I30*NOT(I9) -> 0 | J36: 0 | K36: 0 | L36: 0 | M36: 0 | N36: 0 | O36: 0 | P36: 0 | Q36: 0 | R36: 0 | S36: 0 | T36: 0 | U36: 0 | V36: 0 | W36: 0 | X36: 0 | Y36: 0 | Z36: 0 | AA36: 0 | AB36: 0 | AC36: 0 | AD36: 0 | AE36: 0 | AF36: 0 | AG36: 0 | AH36: 0 | AI36: 0 | AJ36: 0 | AK36: 0 | AL36: 0 | AM36: 0 | AN36: 0 | AO36: 0 | AP36: 0 | AQ36: 0 | AR36: 0 | AS36: 0 | AT36: 0 | AU36: 0 | AV36: 0
D37: Projected REC Revenue | I37: =I19*I31 -> 0 | J37: 0 | K37: 0 | L37: 0 | M37: 0 | N37: 0 | O37: 0 | P37: 0 | Q37: 0 | R37: 0 | S37: 0 | T37: 0 | U37: 0 | V37: 0 | W37: 0 | X37: 0 | Y37: 0 | Z37: 0 | AA37: 0 | AB37: 0
D38: Gross Projected Revenue | I38: =SUM(I34:I37) -> 1396661.252 | J38: =SUM(J34:J37) -> 1036201.114 | K38: 1030609.113 | L38: 1374589.077 | M38: 1367305.157 | N38: 1360057.666 | O38: 1352846.424 | P38: 1345671.248 | Q38: 1338531.958 | R38: 1331428.374 | S38: 1324360.319 | T38: 1317327.615 | U38: 1310330.084 | V38: 1303367.551 | W38: 1296439.841 | X38: 1289546.78 | Y38: 1282688.195 | Z38: 1275863.913 | AA38: 1269073.762 | AB38: 1262317.573 | AC38: =SUM(AC34:AC37) -> 0 | AD38: 0 | AE38: 0 | AF38: 0 | AG38: 0 | AH38: 0 | AI38: 0 | AJ38: 0 | AK38: 0 | AL38: 0 | AM38: 0 | AN38: 0 | AO38: 0 | AP38: 0 | AQ38: 0 | AR38: 0 | AS38: 0 | AT38: 0 | AU38: 0 | AV38: 0
C40: Operating Expenses | F40: price per kW | G40: Escalators
D41: Haircut % in Final Year | F41: 0.75
D42: O&M | F42: =IFERROR((I42/1000)/$F$17,"-") -> 11.45588055 | G42: =INDEX('Project Database'!94:94,colum_num) -> 0.015 | I42: =INDEX('Project Database'!82:82,colum_num) -> 74729 | J42: =I42*(1+$G$42)*J8 -> 75849.935 | K42: 76987.68402 | L42: 78142.49929 | M42: 79314.63677 | N42: 80504.35633 | O42: 81711.92167 | P42: 82937.6005 | Q42: 84181.6645 | R42: 85444.38947 | S42: 86726.05531 | T42: 88026.94614 | U42: 89347.35034 | V42: 90687.56059 | W42: 92047.874 | X42: 93428.59211 | Y42: 94830.02099 | Z42: 96252.47131 | AA42: 97696.25838 | AB42: 99161.70225 | AC42: 0 | AD42: 0 | AE42: 0 | AF42: 0 | AG42: 0 | AH42: 0 | AI42: 0 | AJ42: 0 | AK42: 0 | AL42: 0 | AM42: 0 | AN42: 0 | AO42: 0 | AP42: 0 | AQ42: 0 | AR42: 0 | AS42: 0 | AT42: 0 | AU42: 0 | AV42: 0
D43: Insurance | F43: 2.806597989 | G43: =INDEX('Project Database'!95:95,colum_num) -> 0 | I43: =INDEX('Project Database'!83:83,colum_num) -> 18308 | J43: =I43*(1+$G$42)*J8 -> 18582.62 | K43: 18861.3593 | L43: 19144.27969 | M43: 19431.44388 | N43: 19722.91554 | O43: 20018.75928 | P43: 20319.04067 | Q43: 20623.82628 | R43: 20933.18367 | S43: 21247.18142 | T43: 21565.88915 | U43: 21889.37748 | V43: 22217.71815 | W43: 22550.98392 | X43: 22889.24868 | Y43: 23232.58741 | Z43: 23581.07622 | AA43: 23934.79236 | AB43: 24293.81425 | AC43: 0 | AD43: 0 | AE43: 0 | AF43: 0 | AG43: 0 | AH43: 0 | AI43: 0 | AJ43: 0 | AK43: 0 | AL43: 0 | AM43: 0 | AN43: 0 | AO43: 0 | AP43: 0 | AQ43: 0 | AR43: 0 | AS43: 0 | AT43: 0 | AU43: 0 | AV43: 0
D44: Rent/Lease | F44: 14.59406426 | G44: =INDEX('Project Database'!96:96,colum_num) -> 0 | I44: =INDEX('Project Database'!84:84,colum_num) -> 95200 | J44: =I44*(1+$G$42)*J8 -> 96628 | K44: 98077.42 | L44: 99548.5813 | M44: 101041.81 | N44: 102557.4372 | O44: 104095.7987 | P44: 105657.2357 | Q44: 107242.0942 | R44: 108850.7257 | S44: 110483.4865 | T44: 112140.7388 | U44: 113822.8499 | V44: 115530.1927 | W44: 117263.1456 | X44: 119022.0927 | Y44: 120807.4241 | Z44: 122619.5355 | AA44: 124458.8285 | AB44: 126325.711 | AC44: 0 | AD44: 0 | AE44: 0 | AF44: 0 | AG44: 0 | AH44: 0 | AI44: 0 | AJ44: 0 | AK44: 0 | AL44: 0 | AM44: 0 | AN44: 0 | AO44: 0 | AP44: 0 | AQ44: 0 | AR44: 0 | AS44: 0 | AT44: 0 | AU44: 0 | AV44: 0
D45: PILOT Expense | F45: 7.013428992 | G45: =INDEX('Project Database'!97:97,colum_num) -> 0 | I45: =INDEX('Project Database'!85:85,colum_num) -> 45750 | J45: =I45*(1+$G$42)*J8 -> 46436.25 | K45: 47132.79375 | L45: 47839.78566 | M45: 48557.38244 | N45: 49285.74318 | O45: 50025.02933 | P45: 50775.40477 | Q45: 51537.03584 | R45: 52310.09137 | S45: 53094.74274 | T45: 53891.16389 | U45: 54699.53134 | V45: 55520.02431 | W45: 56352.82468 | X45: 57198.11705 | Y45: 58056.08881 | Z45: 58926.93014 | AA45: 59810.83409 | AB45: 60707.9966 | AC45: 0 | AD45: 0 | AE45: 0 | AF45: 0 | AG45: 0 | AH45: 0 | AI45: 0 | AJ45: 0 | AK45: 0 | AL45: 0 | AM45: 0 | AN45: 0 | AO45: 0 | AP45: 0 | AQ45: 0 | AR45: 0 | AS45: 0 | AT45: 0 | AU45: 0 | AV45: 0
D46: Property Tax Pmt | F46: 0.06193279372 | G46: =INDEX('Project Database'!98:98,colum_num) -> 0.02 | I46: =INDEX('Project Database'!86:86,colum_num) -> 404 | J46: =I46*(1+$G$42)*J8 -> 410.06 | K46: 416.2109 | L46: 422.4540635 | M46: 428.7908745 | N46: 435.2227376 | O46: 441.7510786 | P46: 448.3773448 | Q46: 455.103005 | R46: 461.9295501 | S46: 468.8584933 | T46: 475.8913707 | U46: 483.0297413 | V46: 490.2751874 | W46: 497.6293152 | X46: 505.0937549 | Y46: 512.6701613 | Z46: 520.3602137 | AA46: 528.1656169 | AB46: 536.0881011 | AC46: 0 | AD46: 0 | AE46: 0 | AF46: 0 | AG46: 0 | AH46: 0 | AI46: 0 | AJ46: 0 | AK46: 0 | AL46: 0 | AM46: 0 | AN46: 0 | AO46: 0 | AP46: 0 | AQ46: 0 | AR46: 0 | AS46: 0 | AT46: 0 | AU46: 0 | AV46: 0
D47: Audit Fee | F47: 1.534216336 | G47: =INDEX('Project Database'!99:99,colum_num) -> 0.02 | I47: =INDEX('Project Database'!87:87,colum_num) -> 10008 | J47: =I47*(1+$G$42)*J8 -> 10158.12 | K47: 10310.4918 | L47: 10465.14918 | M47: 10622.12641 | N47: 10781.45831 | O47: 10943.18019 | P47: 11107.32789 | Q47: 11273.93781 | R47: 11443.04687 | S47: 11614.69258 | T47: 11788.91297 | U47: 11965.74666 | V47: 12145.23286 | W47: 12327.41135 | X47: 12512.32252 | Y47: 12700.00736 | Z47: 12890.50747 | AA47: 13083.86508 | AB47: 13280.12306 | AC47: 0 | AD47: 0 | AE47: 0 | AF47: 0 | AG47: 0 | AH47: 0 | AI47: 0 | AJ47: 0 | AK47: 0 | AL47: 0 | AM47: 0 | AN47: 0 | AO47: 0 | AP47: 0 | AQ47: 0 | AR47: 0 | AS47: 0 | AT47: 0 | AU47: 0 | AV47: 0
D48: Community Solar Fees | F48: 12.2251349 | G48: =INDEX('Project Database'!100:100,colum_num) -> 0.02 | I48: =INDEX('Project Database'!88:88,colum_num) -> 79747 | J48: =I48*(1+$G$42)*J8 -> 80943.205 | K48: 82157.35307 | L48: 83389.71337 | M48: 84640.55907 | N48: 85910.16746 | O48: 87198.81997 | P48: 88506.80227 | Q48: 89834.4043 | R48: 91181.92037 | S48: 92549.64917 | T48: 93937.89391 | U48: 95346.96232 | V48: 96777.16675 | W48: 98228.82426 | X48: 99702.25662 | Y48: 101197.7905 | Z48: 102715.7573 | AA48: 104256.4937 | AB48: 105820.3411 | AC48: 0 | AD48: 0 | AE48: 0 | AF48: 0 | AG48: 0 | AH48: 0 | AI48: 0 | AJ48: 0 | AK48: 0 | AL48: 0 | AM48: 0 | AN48: 0 | AO48: 0 | AP48: 0 | AQ48: 0 | AR48: 0 | AS48: 0 | AT48: 0 | AU48: 0 | AV48: 0
D49: Other Exp (Accounting) | F49: 0.9999693402 | G49: =INDEX('Project Database'!101:101,colum_num) -> 0.02 | I49: =INDEX('Project Database'!89:89,colum_num) -> 6523 | J49: =I49*(1+$G$42)*J8 -> 6620.845 | K49: 6720.157675 | L49: 6820.96004 | M49: 6923.274441 | N49: 7027.123557 | O49: 7132.530411 | P49: 7239.518367 | Q49: 7348.111142 | R49: 7458.332809 | S49: 7570.207802 | T49: 7683.760919 | U49: 7799.017332 | V49: 7916.002592 | W49: 8034.742631 | X49: 8155.263771 | Y49: 8277.592727 | Z49: 8401.756618 | AA49: 8527.782968 | AB49: 8655.699712 | AC49: 0 | AD49: 0 | AE49: 0 | AF49: 0 | AG49: 0 | AH49: 0 | AI49: 0 | AJ49: 0 | AK49: 0 | AL49: 0 | AM49: 0 | AN49: 0 | AO49: 0 | AP49: 0 | AQ49: 0 | AR49: 0 | AS49: 0 | AT49: 0 | AU49: 0 | AV49: 0
D50: Other Exp (Ins Deductibles) | F50: 0.2396063282 | G50: =INDEX('Project Database'!102:102,colum_num) -> 0.02 | I50: =INDEX('Project Database'!90:90,colum_num) -> 1563 | J50: =I50*(1+$G$42)*J8 -> 1586.445 | K50: 1610.241675 | L50: 1634.3953 | M50: 1658.91123 | N50: 1683.794898 | O50: 1709.051822 | P50: 1734.687599 | Q50: 1760.707913 | R50: 1787.118532 | S50: 1813.92531 | T50: 1841.134189 | U50: 1868.751202 | V50: 1896.78247 | W50: 1925.234207 | X50: 1954.11272 | Y50: 1983.424411 | Z50: 2013.175777 | AA50: 2043.373414 | AB50: 2074.024015 | AC50: 0 | AD50: 0 | AE50: 0 | AF50: 0 | AG50: 0 | AH50: 0 | AI50: 0 | AJ50: 0 | AK50: 0 | AL50: 0 | AM50: 0 | AN50: 0 | AO50: 0 | AP50: 0 | AQ50: 0 | AR50: 0 | AS50: 0 | AT50: 0 | AU50: 0 | AV50: 0
D51: Other Exp (Meter fees) | F51: 0.7010363012 | G51: =INDEX('Project Database'!103:103,colum_num) -> 0.02 | I51: =INDEX('Project Database'!91:91,colum_num) -> 4573 | J51: =I51*(1+$G$42)*J8 -> 4641.595 | K51: 4711.218925 | L51: 4781.887209 | M51: 4853.615517 | N51: 4926.41975 | O51: 5000.316046 | P51: 5075.320787 | Q51: 5151.450599 | R51: 5228.722357 | S51: 5307.153193 | T51: 5386.760491 | U51: 5467.561898 | V51: 5549.575327 | W51: 5632.818956 | X51: 5717.311241 | Y51: 5803.070909 | Z51: 5890.116973 | AA51: 5978.468728 | AB51: 6068.145759 | AC51: 0 | AD51: 0 | AE51: 0 | AF51: 0 | AG51: 0 | AH51: 0 | AI51: 0 | AJ51: 0 | AK51: 0 | AL51: 0 | AM51: 0 | AN51: 0 | AO51: 0 | AP51: 0 | AQ51: 0 | AR51: 0 | AS51: 0 | AT51: 0 | AU51: 0 | AV51: 0
D53: Parasitic Power Consumption | F53: Percent of Revenue | G53: =INDEX('Project Database'!119:119,colum_num) -> 0.0027 | I53: =$G$53*I38 -> 3770.985381 | J53: =$G$53*J38*J8 -> 2797.743008 | K53: 2782.644605 | L53: 3711.390508 | M53: 3691.723923 | N53: 3672.155699 | O53: 3652.685344 | P53: 3633.312369 | Q53: 3614.036286 | R53: 3594.856611 | S53: 3575.772862 | T53: 3556.78456 | U53: 3537.891227 | V53: 3519.092389 | W53: 3500.387572 | X53: 3481.776307 | Y53: 3463.258127 | Z53: 3444.832564 | AA53: 3426.499158 | AB53: 3408.257446 | AC53: 0 | AD53: 0 | AE53: 0 | AF53: 0 | AG53: 0 | AH53: 0 | AI53: 0 | AJ53: 0 | AK53: 0 | AL53: 0 | AM53: 0 | AN53: 0 | AO53: 0 | AP53: 0 | AQ53: 0 | AR53: 0 | AS53: 0 | AT53: 0 | AU53: 0 | AV53: 0
D54: Inverter Replacement Reserve | F54: 35 | N54: =($F$54*$F$17*1000)/10 -> 22831.2 | O54: 22831.2 | P54: 22831.2 | Q54: 22831.2 | R54: 22831.2 | S54: 22831.2 | T54: 22831.2 | U54: 22831.2 | V54: 22831.2 | W54: 22831.2
D55: Total Operating Expense | H55: =SUM(I55:AB55) -> 8086314.785 | I55: =SUM(I42:I54) -> 340575.9854 | J55: =SUM(J42:J54) -> 344654.818 | K55: 349767.5757 | L55: 355901.0956 | M55: 361164.2746 | N55: 389337.9946 | O55: 394761.0439 | P55: 400265.8283 | Q55: 405853.5719 | R55: 411525.5173 | S55: 417282.9254 | T55: 423127.0764 | U55: 429059.2695 | V55: 435080.8233 | W55: 441193.0764 | X55: 424566.1875 | Y55: 430863.9355 | Z55: 437256.5201 | AA55: 443745.362 | AB55: 450331.9032 | AC55: =SUM(AC42:AC54) -> 0 | AD55: 0 | AE55: 0 | AF55: 0 | AG55: 0 | AH55: 0 | AI55: 0 | AJ55: 0 | AK55: 0 | AL55: 0 | AM55: 0 | AN55: 0 | AO55: 0 | AP55: 0 | AQ55: 0 | AR55: 0 | AS55: 0 | AT55: 0 | AU55: 0 | AV55: 0
D57: Cash Flow and Project IRR
D58: NOI/EBITDA | I58: =+I38-I55 -> 1056085.267 | J58: 691546.2959 | K58: 680841.5372 | L58: 1018687.981 | M58: 1006140.882 | N58: 970719.6717 | O58: 958085.3799 | P58: 945405.4194 | Q58: 932678.3857 | R58: 919902.8571 | S58: 907077.3939 | T58: 894200.5384 | U58: 881270.8147 | V58: 868286.728 | W58: 855246.765 | X58: 864980.5929 | Y58: 851824.2595 | Z58: 838607.3927 | AA58: 825328.4002 | AB58: 811985.6694 | AC58: =+AC38-AC55 -> 0 | AD58: 0 | AE58: 0 | AF58: 0 | AG58: 0 | AH58: 0 | AI58: 0 | AJ58: 0 | AK58: 0 | AL58: 0 | AM58: 0 | AN58: 0 | AO58: 0 | AP58: 0 | AQ58: 0 | AR58: 0 | AS58: 0 | AT58: 0 | AU58: 0 | AV58: 0
E59: Capacity MWp | F59: Cost/W
D60: Capital Expenditure | E60: =F17 -> 6.5232
D61: Project Cash Flow
C63: Debt Sizing in P50 Case
D64: CFADS for Debt Sizing over Debt Term | E64: $ | I64: =I10*I58 -> 1056085.267 | J64: 691546.2959 | K64: 680841.5372 | L64: 1018687.981 | M64: 1006140.882 | N64: 970719.6717 | O64: 958085.3799 | P64: 945405.4194 | Q64: 932678.3857 | R64: 919902.8571 | S64: 907077.3939 | T64: 894200.5384 | U64: 881270.8147 | V64: 868286.728 | W64: 855246.765 | X64: 864980.5929 | Y64: 851824.2595 | Z64: 838607.3927 | AA64: 825328.4002 | AB64: 811985.6694 | AC64: 0 | AD64: 0 | AE64: 0 | AF64: 0 | AG64: 0 | AH64: 0 | AI64: 0 | AJ64: 0 | AK64: 0 | AL64: 0 | AM64: 0 | AN64: 0 | AO64: 0 | AP64: 0 | AQ64: 0 | AR64: 0 | AS64: 0 | AT64: 0 | AU64: 0 | AV64: 0
D65: Target Debt Service | E65: $ | F65: ='General Inputs'!F9 -> 1.34 | I65: =I64/$F$65 -> 788123.3333 | J65: 516079.3253 | K65: 508090.6994 | L65: 760214.9114 | M65: 750851.4046 | N65: 724417.6655 | O65: 714989.0895 | P65: 705526.4324 | Q65: 696028.6461 | R65: 686494.6695 | S65: 676923.4283 | T65: 667313.8346 | U65: 657664.7871 | V65: 647975.1702 | W65: 638243.8545 | X65: 645507.9052 | Y65: 635689.7459 | Z65: 625826.4124 | AA65: 615916.7165 | AB65: 605959.4548 | AC65: 0 | AD65: 0 | AE65: 0 | AF65: 0 | AG65: 0 | AH65: 0 | AI65: 0 | AJ65: 0 | AK65: 0 | AL65: 0 | AM65: 0 | AN65: 0 | AO65: 0 | AP65: 0 | AQ65: 0 | AR65: 0 | AS65: 0 | AT65: 0 | AU65: 0 | AV65: 0
D66: Annual Intrest Rate Applied for P50 Debt Sizing | E66: % p.a. | F66: =INDEX('Project Database'!143:143,colum_num) -> 0.05434444444 | I66: =$F$66 -> 0.05434444444 | J66: 0.05434444444 | K66: 0.05434444444 | L66: 0.05434444444 | M66: 0.05434444444 | N66: 0.05434444444 | O66: 0.05434444444 | P66: 0.05434444444 | Q66: 0.05434444444 | R66: 0.05434444444 | S66: 0.05434444444 | T66: 0.05434444444 | U66: 0.05434444444 | V66: 0.05434444444 | W66: 0.05434444444 | X66: 0.05434444444 | Y66: 0.05434444444 | Z66: 0.05434444444 | AA66: 0.05434444444 | AB66: 0.05434444444 | AC66: 0.05434444444 | AD66: 0.05434444444 | AE66: 0.05434444444 | AF66: 0.05434444444 | AG66: 0.05434444444 | AH66: 0.05434444444 | AI66: 0.05434444444 | AJ66: 0.05434444444 | AK66: 0.05434444444 | AL66: 0.05434444444 | AM66: 0.05434444444 | AN66: 0.05434444444 | AO66: 0.05434444444 | AP66: 0.05434444444 | AQ66: 0.05434444444 | AR66: 0.05434444444 | AS66: 0.05434444444 | AT66: 0.05434444444 | AU66: 0.05434444444 | AV66: 0.05434444444
D67: Periodic Interest Rate | E67: % p.p. | F67: =F11 -> 12 | I67: =I66/12*$F$67 -> 0.05434444444 | J67: 0.05434444444 | K67: 0.05434444444 | L67: 0.05434444444 | M67: 0.05434444444 | N67: 0.05434444444 | O67: 0.05434444444 | P67: 0.05434444444 | Q67: 0.05434444444 | R67: 0.05434444444 | S67: 0.05434444444 | T67: 0.05434444444 | U67: 0.05434444444 | V67: 0.05434444444 | W67: 0.05434444444 | X67: 0.05434444444 | Y67: 0.05434444444 | Z67: 0.05434444444 | AA67: 0.05434444444 | AB67: 0.05434444444 | AC67: 0.05434444444 | AD67: 0.05434444444 | AE67: 0.05434444444 | AF67: 0.05434444444 | AG67: 0.05434444444 | AH67: 0.05434444444 | AI67: 0.05434444444 | AJ67: 0.05434444444 | AK67: 0.05434444444 | AL67: 0.05434444444 | AM67: 0.05434444444 | AN67: 0.05434444444 | AO67: 0.05434444444 | AP67: 0.05434444444 | AQ67: 0.05434444444 | AR67: 0.05434444444 | AS67: 0.05434444444 | AT67: 0.05434444444 | AU67: 0.05434444444 | AV67: 0.05434444444
D68: Interest Rate Factor for PV of Debt Service | E68: Index | H68: 1 | I68: =H68*(1+I67*I11) -> 1.054344444 | J68: 1.111642208 | K68: 1.172053786 | L68: 1.235748398 | M68: 1.302904458 | N68: 1.373710077 | O68: 1.448363588 | P68: 1.527074102 | Q68: 1.610062096 | R68: 1.697560026 | S68: 1.789812982 | T68: 1.887079375 | U68: 1.989631655 | V68: 2.097757082 | W68: 2.211758525 | X68: 2.331955313 | Y68: 2.458684129 | Z68: 2.592299952 | AA68: 2.733177053 | AB68: 2.881710042 | AC68: 2.881710042 | AD68: 2.881710042 | AE68: 2.881710042 | AF68: 2.881710042 | AG68: 2.881710042 | AH68: 2.881710042 | AI68: 2.881710042 | AJ68: 2.881710042 | AK68: 2.881710042 | AL68: 2.881710042 | AM68: 2.881710042 | AN68: 2.881710042 | AO68: 2.881710042 | AP68: 2.881710042 | AQ68: 2.881710042 | AR68: 2.881710042 | AS68: 2.881710042 | AT68: 2.881710042 | AU68: 2.881710042 | AV68: 2.881710042
D69: NPV of Debt Service | E69: $ | F69: =SUMPRODUCT(I65:AV65/I68:AV68) -> 8028677.689
D71: Fixed Debt Input | E71: $ | F71: =INDEX('Project Database'!127:127,colum_num) -> 8575000
D72: Level Payment with Fixed Issue | E72: $ | F72: =F66 -> 0.05434444444 | G72: =F10/F67*12 -> 20 | H72: =PMT(F72,G72,-F71) -> 713652.6117 | I72: =$H$72*I11 -> 713652.6117 | J72: 713652.6117 | K72: 713652.6117 | L72: 713652.6117 | M72: 713652.6117 | N72: 713652.6117 | O72: 713652.6117 | P72: 713652.6117 | Q72: 713652.6117 | R72: 713652.6117 | S72: 713652.6117 | T72: 713652.6117 | U72: 713652.6117 | V72: 713652.6117 | W72: 713652.6117 | X72: 713652.6117 | Y72: 713652.6117 | Z72: 713652.6117 | AA72: 713652.6117 | AB72: 713652.6117 | AC72: 0 | AD72: 0 | AE72: 0 | AF72: 0 | AG72: 0 | AH72: 0 | AI72: 0 | AJ72: 0 | AK72: 0 | AL72: 0 | AM72: 0 | AN72: 0 | AO72: 0 | AP72: 0 | AQ72: 0 | AR72: 0 | AS72: 0 | AT72: 0 | AU72: 0 | AV72: 0
D74: Apply Fixed Payment | E74: Flag | F74: ='General Inputs'!F10 -> FALSE | G74: =IF(F74,F71,F69) -> 8028677.689
D75: Debt Service Applied | E75: $ | F75: =F74 -> FALSE | I75: =IF($F$75,I72,I65) -> 788123.3333 | J75: 516079.3253 | K75: 508090.6994 | L75: 760214.9114 | M75: 750851.4046 | N75: 724417.6655 | O75: 714989.0895 | P75: 705526.4324 | Q75: 696028.6461 | R75: 686494.6695 | S75: 676923.4283 | T75: 667313.8346 | U75: 657664.7871 | V75: 647975.1702 | W75: 638243.8545 | X75: 645507.9052 | Y75: 635689.7459 | Z75: 625826.4124 | AA75: 615916.7165 | AB75: 605959.4548 | AC75: 0 | AD75: 0 | AE75: 0 | AF75: 0 | AG75: 0 | AH75: 0 | AI75: 0 | AJ75: 0 | AK75: 0 | AL75: 0 | AM75: 0 | AN75: 0 | AO75: 0 | AP75: 0 | AQ75: 0 | AR75: 0 | AS75: 0 | AT75: 0 | AU75: 0 | AV75: 0
D77: Opening Debt Balance | E77: $ | I77: =H79 -> 8575000 | J77: 8252880.278 | K77: 8185299.146 | L77: 8122033.982 | M77: 7803206.495 | N77: 7476416.012 | O77: 7158300.021 | P77: 6832324.769 | Q77: 6498097.231 | R77: 6155204.069 | S77: 5803210.545 | T77: 5441659.369 | U77: 5070069.49 | V77: 4687934.813 | W77: 4294722.856 | X77: 3889873.329 | Y77: 3455758.428 | Z77: 3007869.955 | AA77: 2545504.564 | AB77: 2067921.879 | AC77: 1574342.489 | AD77: 1659899.257 | AE77: 1750105.56 | AF77: 1845214.075 | AG77: 1945491.209 | AH77: 2051217.847 | AI77: 2162690.142 | AJ77: 2280220.336 | AK77: 2404137.643 | AL77: 2534789.168 | AM77: 2672540.877 | AN77: 2817778.626 | AO77: 2970909.24 | AP77: 3132361.653 | AQ77: 3302588.106 | AR77: 3482065.422 | AS77: 3671296.333 | AT77: 3870810.893 | AU77: 4081167.96 | AV77: 4302956.766
D78: Less: Repayment | E78: $ | I78: =I75-I80 -> 322119.7222 | J78: 67581.13154 | K78: 63265.16472 | L78: 318827.4869 | M78: 326790.4827 | N78: 318115.9909 | O78: 325975.2517 | P78: 334227.5385 | Q78: 342893.1621 | R78: 351993.524 | S78: 361551.1753 | T78: 371589.8794 | U78: 382134.6773 | V78: 393211.9572 | W78: 404849.5269 | X78: 434114.9002 | Y78: 447888.474 | Z78: 462365.3908 | AA78: 477582.6852 | AB78: 493579.3891 | AC78: -85556.76795 | AD78: -90206.30298 | AE78: -95108.5144 | AF78: -100277.1338 | AG78: -105726.6389 | AH78: -111472.2944 | AI78: -117530.1943 | AJ78: -123917.3074 | AK78: -130651.5246 | AL78: -137751.7091 | AM78: -145237.7492 | AN78: -153130.614 | AO78: -161452.4122 | AP78: -170226.4538 | AQ78: -179477.3159 | AR78: -189230.9109 | AS78: -199514.5596 | AT78: -210357.0675 | AU78: -221788.8055 | AV78: -233841.7949
D79: Closing Balance | E79: $ | F79: =F71 -> 8575000 | H79: =F79 -> 8575000 | I79: =I77-I78 -> 8252880.278 | J79: 8185299.146 | K79: 8122033.982 | L79: 7803206.495 | M79: 7476416.012 | N79: 7158300.021 | O79: 6832324.769 | P79: 6498097.231 | Q79: 6155204.069 | R79: 5803210.545 | S79: 5441659.369 | T79: 5070069.49 | U79: 4687934.813 | V79: 4294722.856 | W79: 3889873.329 | X79: 3455758.428 | Y79: 3007869.955 | Z79: 2545504.564 | AA79: 2067921.879 | AB79: 1574342.489 | AC79: 1659899.257 | AD79: 1750105.56 | AE79: 1845214.075 | AF79: 1945491.209 | AG79: 2051217.847 | AH79: 2162690.142 | AI79: 2280220.336 | AJ79: 2404137.643 | AK79: 2534789.168 | AL79: 2672540.877 | AM79: 2817778.626 | AN79: 2970909.24 | AO79: 3132361.653 | AP79: 3302588.106 | AQ79: 3482065.422 | AR79: 3671296.333 | AS79: 3870810.893 | AT79: 4081167.96 | AU79: 4302956.766 | AV79: 4536798.561
D80: Interest | E80: $ | I80: =I77*I67 -> 466003.6111 | J80: 448498.1938 | K80: 444825.5347 | L80: 441387.4245 | M80: 424060.9218 | N80: 406301.6746 | O80: 389013.8378 | P80: 371298.8939 | Q80: 353135.484 | R80: 334501.1456 | S80: 315372.253 | T80: 295723.9553 | U80: 275530.1097 | V80: 254763.213 | W80: 233394.3276 | X80: 211393.005 | Y80: 187801.2719 | Z80: 163461.0216 | AA80: 138334.0313 | AB80: 112380.0656 | AC80: 85556.76795 | AD80: 90206.30298 | AE80: 95108.5144 | AF80: 100277.1338 | AG80: 105726.6389 | AH80: 111472.2944 | AI80: 117530.1943 | AJ80: 123917.3074 | AK80: 130651.5246 | AL80: 137751.7091 | AM80: 145237.7492 | AN80: 153130.614 | AO80: 161452.4122 | AP80: 170226.4538 | AQ80: 179477.3159 | AR80: 189230.9109 | AS80: 199514.5596 | AT80: 210357.0675 | AU80: 221788.8055 | AV80: 233841.7949
D82: NPV of Cash Flow over Loan Life | E82: $ | F82: =SUMPRODUCT(I82:AV82/I68:AV68) -> 10758428.1 | I82: =I64 -> 1056085.267 | J82: 691546.2959 | K82: 680841.5372 | L82: 1018687.981 | M82: 1006140.882 | N82: 970719.6717 | O82: 958085.3799 | P82: 945405.4194 | Q82: 932678.3857 | R82: 919902.8571 | S82: 907077.3939 | T82: 894200.5384 | U82: 881270.8147 | V82: 868286.728 | W82: 855246.765 | X82: 864980.5929 | Y82: 851824.2595 | Z82: 838607.3927 | AA82: 825328.4002 | AB82: 811985.6694 | AC82: 0 | AD82: 0 | AE82: 0 | AF82: 0 | AG82: 0 | AH82: 0 | AI82: 0 | AJ82: 0 | AK82: 0 | AL82: 0 | AM82: 0 | AN82: 0 | AO82: 0 | AP82: 0 | AQ82: 0 | AR82: 0 | AS82: 0 | AT82: 0 | AU82: 0 | AV82: 0
D83: NPV of Cash Flow over Project Life | E83: $ | F83: =SUMPRODUCT(I83:AV83/I68:AV68) -> 10758428.1 | I83: =I58 -> 1056085.267 | J83: 691546.2959 | K83: 680841.5372 | L83: 1018687.981 | M83: 1006140.882 | N83: 970719.6717 | O83: 958085.3799 | P83: 945405.4194 | Q83: 932678.3857 | R83: 919902.8571 | S83: 907077.3939 | T83: 894200.5384 | U83: 881270.8147 | V83: 868286.728 | W83: 855246.765 | X83: 864980.5929 | Y83: 851824.2595 | Z83: 838607.3927 | AA83: 825328.4002 | AB83: 811985.6694 | AC83: 0 | AD83: 0 | AE83: 0 | AF83: 0 | AG83: 0 | AH83: 0 | AI83: 0 | AJ83: 0 | AK83: 0 | AL83: 0 | AM83: 0 | AN83: 0 | AO83: 0 | AP83: 0 | AQ83: 0 | AR83: 0 | AS83: 0 | AT83: 0 | AU83: 0 | AV83: 0
D85: DSCR | E85: x | I85: =IF(I75>0.1,I64/I75) -> 1.34 | J85: 1.34 | K85: 1.34 | L85: 1.34 | M85: 1.34 | N85: 1.34 | O85: 1.34 | P85: 1.34 | Q85: 1.34 | R85: 1.34 | S85: 1.34 | T85: 1.34 | U85: 1.34 | V85: 1.34 | W85: 1.34 | X85: 1.34 | Y85: 1.34 | Z85: 1.34 | AA85: 1.34 | AB85: 1.34 | AC85: FALSE | AD85: FALSE | AE85: FALSE | AF85: FALSE | AG85: FALSE | AH85: FALSE | AI85: FALSE | AJ85: FALSE | AK85: FALSE | AL85: FALSE | AM85: FALSE | AN85: FALSE | AO85: FALSE | AP85: FALSE | AQ85: FALSE | AR85: FALSE | AS85: FALSE | AT85: FALSE | AU85: FALSE | AV85: FALSE
D86: Minimum DSCR | E86: x | F86: =MIN(I85:AV85) -> 1.34
D87: Average DSCR | E87: x | F87: =AVERAGE(I85:AV85) -> 1.34
D89: LLCR | E89: x | F89: =F82/F79 -> 1.254627184
D90: PLCR | E90: x | F90: =F83/F79 -> 1.254627184
D92: Average Debt Yield
B95: P99 Stress Case
C96: Revenues | E96: Yrs 1-10 | F96: Yrs 11-20
D97: Revenue Stress
D98: First Stress Period | E98: 10 | F98: ='General Inputs'!F26 -> 0.15 | I98: =(I7<=$E$98)*$F$98 -> 0.15 | J98: 0.15 | K98: 0.15 | L98: 0.15 | M98: 0.15 | N98: 0.15 | O98: 0.15 | P98: 0.15 | Q98: 0.15 | R98: 0.15 | S98: 0 | T98: 0 | U98: 0 | V98: 0 | W98: 0 | X98: 0 | Y98: 0 | Z98: 0 | AA98: 0 | AB98: 0 | AC98: 0 | AD98: 0 | AE98: 0 | AF98: 0 | AG98: 0 | AH98: 0 | AI98: 0 | AJ98: 0 | AK98: 0 | AL98: 0 | AM98: 0 | AN98: 0 | AO98: 0 | AP98: 0 | AQ98: 0 | AR98: 0 | AS98: 0 | AT98: 0 | AU98: 0 | AV98: 0
D99: Second Stress Period | E99: =E98 -> 10 | F99: ='General Inputs'!F27 -> 0.25 | I99: =(I7>$E$99)*$F$99 -> 0 | J99: 0 | K99: 0 | L99: 0 | M99: 0 | N99: 0 | O99: 0 | P99: 0 | Q99: 0 | R99: 0 | S99: 0.25 | T99: 0.25 | U99: 0.25 | V99: 0.25 | W99: 0.25 | X99: 0.25 | Y99: 0.25 | Z99: 0.25 | AA99: 0.25 | AB99: 0.25 | AC99: 0.25 | AD99: 0.25 | AE99: 0.25 | AF99: 0.25 | AG99: 0.25 | AH99: 0.25 | AI99: 0.25 | AJ99: 0.25 | AK99: 0.25 | AL99: 0.25 | AM99: 0.25 | AN99: 0.25 | AO99: 0.25 | AP99: 0.25 | AQ99: 0.25 | AR99: 0.25 | AS99: 0.25 | AT99: 0.25 | AU99: 0.25 | AV99: 0.25
D100: Revenue Reduction from Stress Assumptions | I100: =(1-I98-I99) -> 0.85 | J100: =(1-J98-J99) -> 0.85 | K100: 0.85 | L100: 0.85 | M100: 0.85 | N100: 0.85 | O100: 0.85 | P100: 0.85 | Q100: 0.85 | R100: 0.85 | S100: 0.75 | T100: 0.75 | U100: 0.75 | V100: 0.75 | W100: 0.75 | X100: 0.75 | Y100: 0.75 | Z100: 0.75 | AA100: 0.75 | AB100: 0.75 | AC100: 0.75 | AD100: 0.75 | AE100: 0.75 | AF100: 0.75 | AG100: 0.75 | AH100: 0.75 | AI100: 0.75 | AJ100: 0.75 | AK100: 0.75 | AL100: 0.75 | AM100: 0.75 | AN100: 0.75 | AO100: 0.75 | AP100: 0.75 | AQ100: 0.75 | AR100: 0.75 | AS100: 0.75 | AT100: 0.75 | AU100: 0.75 | AV100: 0.75
D101: Base Case Revenues | I101: =I38 -> 1396661.252 | J101: =J38 -> 1036201.114 | K101: 1030609.113 | L101: 1374589.077 | M101: 1367305.157 | N101: 1360057.666 | O101: 1352846.424 | P101: 1345671.248 | Q101: 1338531.958 | R101: 1331428.374 | S101: 1324360.319 | T101: 1317327.615 | U101: 1310330.084 | V101: 1303367.551 | W101: 1296439.841 | X101: 1289546.78 | Y101: 1282688.195 | Z101: 1275863.913 | AA101: 1269073.762 | AB101: 1262317.573 | AC101: 0 | AD101: 0 | AE101: 0 | AF101: 0 | AG101: 0 | AH101: 0 | AI101: 0 | AJ101: 0 | AK101: 0 | AL101: 0 | AM101: 0 | AN101: 0 | AO101: 0 | AP101: 0 | AQ101: 0 | AR101: 0 | AS101: 0 | AT101: 0 | AU101: 0 | AV101: 0
D102: Stressed Revenues | I102: =I101*I100 -> 1187162.064 | J102: =J101*J100 -> 880770.9468 | K102: 876017.746 | L102: 1168400.715 | M102: 1162209.383 | N102: 1156049.016 | O102: 1149919.46 | P102: 1143820.56 | Q102: 1137752.164 | R102: 1131714.118 | S102: 993270.2395 | T102: 987995.7111 | U102: 982747.5631 | V102: 977525.6635 | W102: 972329.8811 | X102: 967160.0853 | Y102: 962016.1463 | Z102: 956897.9346 | AA102: 951805.3216 | AB102: 946738.1795 | AC102: 0 | AD102: 0 | AE102: 0 | AF102: 0 | AG102: 0 | AH102: 0 | AI102: 0 | AJ102: 0 | AK102: 0 | AL102: 0 | AM102: 0 | AN102: 0 | AO102: 0 | AP102: 0 | AQ102: 0 | AR102: 0 | AS102: 0 | AT102: 0 | AU102: 0 | AV102: 0
D104: P99 Production | I104: =I21 -> 6731010 | J104: =J21 -> 6697354.95 | K104: 6663868.175 | L104: 6630548.834 | M104: 6597396.09 | N104: 6564409.11 | O104: 6531587.064 | P104: 6498929.129 | Q104: 6466434.483 | R104: 6434102.311 | S104: 6401931.799 | T104: 6369922.14 | U104: 6338072.53 | V104: 6306382.167 | W104: 6274850.256 | X104: 6243476.005 | Y104: 6212258.625 | Z104: 6181197.332 | AA104: 6150291.345 | AB104: 6119539.888 | AC104: 0 | AD104: 0 | AE104: 0 | AF104: 0 | AG104: 0 | AH104: 0 | AI104: 0 | AJ104: 0 | AK104: 0 | AL104: 0 | AM104: 0 | AN104: 0 | AO104: 0 | AP104: 0 | AQ104: 0 | AR104: 0 | AS104: 0 | AT104: 0 | AU104: 0 | AV104: 0
D106: Contracted PPA Revenue | I106: =I104*I9*I28 -> 1172070.771 | J106: 869574.5207 | K106: 864881.7429 | L106: 1153547.918 | M106: 1147435.291 | N106: 1141353.235 | O106: 1135301.598 | P106: 1129280.228 | Q106: 1123288.973 | R106: 1117327.684 | S106: 1111396.209 | T106: 1105494.401 | U106: 1099622.11 | V106: 1093779.189 | W106: 1087965.491 | X106: 1082180.871 | Y106: 1076425.182 | Z106: 1070698.28 | AA106: 1065000.021 | AB106: 1059330.263 | AC106: 0 | AD106: 0 | AE106: 0 | AF106: 0 | AG106: 0 | AH106: 0 | AI106: 0 | AJ106: 0 | AK106: 0 | AL106: 0 | AM106: 0 | AN106: 0 | AO106: 0 | AP106: 0 | AQ106: 0 | AR106: 0 | AS106: 0 | AT106: 0 | AU106: 0 | AV106: 0
D107: Post PPA Revenue
D108: Post PPA Revenue Base NG | I108: =I104*NOT(I9)*I30 -> 0 | J108: 0 | K108: 0 | L108: 0 | M108: 0 | N108: 0 | O108: 0 | P108: 0 | Q108: 0 | R108: 0 | S108: 0 | T108: 0 | U108: 0 | V108: 0 | W108: 0 | X108: 0 | Y108: 0 | Z108: 0 | AA108: 0 | AB108: 0 | AC108: 0 | AD108: 0 | AE108: 0 | AF108: 0 | AG108: 0 | AH108: 0 | AI108: 0 | AJ108: 0 | AK108: 0 | AL108: 0 | AM108: 0 | AN108: 0 | AO108: 0 | AP108: 0 | AQ108: 0 | AR108: 0 | AS108: 0 | AT108: 0 | AU108: 0 | AV108: 0
D109: Projected REC Revenue
D110: Gross Projected Revenue - P99 Case | I110: =I109+I108+I107+I106 -> 1172070.771 | J110: =J109+J108+J107+J106 -> 869574.5207 | K110: 864881.7429 | L110: 1153547.918 | M110: 1147435.291 | N110: 1141353.235 | O110: 1135301.598 | P110: 1129280.228 | Q110: 1123288.973 | R110: 1117327.684 | S110: 1111396.209 | T110: 1105494.401 | U110: 1099622.11 | V110: 1093779.189 | W110: 1087965.491 | X110: 1082180.871 | Y110: 1076425.182 | Z110: 1070698.28 | AA110: 1065000.021 | AB110: 1059330.263 | AC110: 0 | AD110: 0 | AE110: 0 | AF110: 0 | AG110: 0 | AH110: 0 | AI110: 0 | AJ110: 0 | AK110: 0 | AL110: 0 | AM110: 0 | AN110: 0 | AO110: 0 | AP110: 0 | AQ110: 0 | AR110: 0 | AS110: 0 | AT110: 0 | AU110: 0 | AV110: 0
D112: Operating Expense | I112: =I55 -> 340575.9854 | J112: =J55 -> 344654.818 | K112: 349767.5757 | L112: 355901.0956 | M112: 361164.2746 | N112: 389337.9946 | O112: 394761.0439 | P112: 400265.8283 | Q112: 405853.5719 | R112: 411525.5173 | S112: 417282.9254 | T112: 423127.0764 | U112: 429059.2695 | V112: 435080.8233 | W112: 441193.0764 | X112: 424566.1875 | Y112: 430863.9355 | Z112: 437256.5201 | AA112: 443745.362 | AB112: 450331.9032 | AC112: 0 | AD112: 0 | AE112: 0 | AF112: 0 | AG112: 0 | AH112: 0 | AI112: 0 | AJ112: 0 | AK112: 0 | AL112: 0 | AM112: 0 | AN112: 0 | AO112: 0 | AP112: 0 | AQ112: 0 | AR112: 0 | AS112: 0 | AT112: 0 | AU112: 0 | AV112: 0
D113: Cash Flow in Stress Case | I113: =I110-I112 -> 831494.7859 | J113: =J110-J112 -> 524919.7027 | K113: 515114.1672 | L113: 797646.8225 | M113: 786271.016 | N113: 752015.2402 | O113: 740540.5542 | P113: 729014.3997 | Q113: 717435.4015 | R113: 705802.1665 | S113: 694113.2837 | T113: 682367.3241 | U113: 670562.8401 | V113: 658698.3654 | W113: 646772.4146 | X113: 657614.683 | Y113: 645561.2462 | Z113: 633441.7599 | AA113: 621254.6594 | AB113: 608998.3594 | AC113: 0 | AD113: 0 | AE113: 0 | AF113: 0 | AG113: 0 | AH113: 0 | AI113: 0 | AJ113: 0 | AK113: 0 | AL113: 0 | AM113: 0 | AN113: 0 | AO113: 0 | AP113: 0 | AQ113: 0 | AR113: 0 | AS113: 0 | AT113: 0 | AU113: 0 | AV113: 0
D115: CFADS for Debt Sizing over Debt Term | E115: $ | I115: =I113*I11 -> 831494.7859 | J115: 524919.7027 | K115: 515114.1672 | L115: 797646.8225 | M115: 786271.016 | N115: 752015.2402 | O115: 740540.5542 | P115: 729014.3997 | Q115: 717435.4015 | R115: 705802.1665 | S115: 694113.2837 | T115: 682367.3241 | U115: 670562.8401 | V115: 658698.3654 | W115: 646772.4146 | X115: 657614.683 | Y115: 645561.2462 | Z115: 633441.7599 | AA115: 621254.6594 | AB115: 608998.3594 | AC115: 0 | AD115: 0 | AE115: 0 | AF115: 0 | AG115: 0 | AH115: 0 | AI115: 0 | AJ115: 0 | AK115: 0 | AL115: 0 | AM115: 0 | AN115: 0 | AO115: 0 | AP115: 0 | AQ115: 0 | AR115: 0 | AS115: 0 | AT115: 0 | AU115: 0 | AV115: 0
D116: Target Debt Service | E116: $ | F116: ='General Inputs'!F30 -> 1 | I116: =I115/$F$116 -> 831494.7859 | J116: =J115/$F$116 -> 524919.7027 | K116: 515114.1672 | L116: 797646.8225 | M116: 786271.016 | N116: 752015.2402 | O116: 740540.5542 | P116: 729014.3997 | Q116: 717435.4015 | R116: 705802.1665 | S116: 694113.2837 | T116: 682367.3241 | U116: 670562.8401 | V116: 658698.3654 | W116: 646772.4146 | X116: 657614.683 | Y116: 645561.2462 | Z116: 633441.7599 | AA116: 621254.6594 | AB116: 608998.3594 | AC116: 0 | AD116: 0 | AE116: 0 | AF116: 0 | AG116: 0 | AH116: 0 | AI116: 0 | AJ116: 0 | AK116: 0 | AL116: 0 | AM116: 0 | AN116: 0 | AO116: 0 | AP116: 0 | AQ116: 0 | AR116: 0 | AS116: 0 | AT116: 0 | AU116: 0 | AV116: 0
D117: Annual Intrest Rate Applied for P50 Debt Sizing | E117: % p.a. | F117: =INDEX('Project Database'!163:163,colum_num) -> 0.05934444444 | I117: =$F$117 -> 0.05934444444 | J117: =$F$117 -> 0.05934444444 | K117: 0.05934444444 | L117: 0.05934444444 | M117: 0.05934444444 | N117: 0.05934444444 | O117: 0.05934444444 | P117: 0.05934444444 | Q117: 0.05934444444 | R117: 0.05934444444 | S117: 0.05934444444 | T117: 0.05934444444 | U117: 0.05934444444 | V117: 0.05934444444 | W117: 0.05934444444 | X117: 0.05934444444 | Y117: 0.05934444444 | Z117: 0.05934444444 | AA117: 0.05934444444 | AB117: 0.05934444444 | AC117: 0.05934444444 | AD117: 0.05934444444 | AE117: 0.05934444444 | AF117: 0.05934444444 | AG117: 0.05934444444 | AH117: 0.05934444444 | AI117: 0.05934444444 | AJ117: 0.05934444444 | AK117: 0.05934444444 | AL117: 0.05934444444 | AM117: 0.05934444444 | AN117: 0.05934444444 | AO117: 0.05934444444 | AP117: 0.05934444444 | AQ117: 0.05934444444 | AR117: 0.05934444444 | AS117: 0.05934444444 | AT117: 0.05934444444 | AU117: 0.05934444444 | AV117: 0.05934444444
D118: Periodic Interest Rate | E118: % p.p. | F118: =F62 -> 0 | I118: =I117/12*$F$118 -> 0 | J118: =J117/12*$F$118 -> 0 | K118: 0 | L118: 0 | M118: 0 | N118: 0 | O118: 0 | P118: 0 | Q118: 0 | R118: 0 | S118: 0 | T118: 0 | U118: 0 | V118: 0 | W118: 0 | X118: 0 | Y118: 0 | Z118: 0 | AA118: 0 | AB118: 0 | AC118: 0 | AD118: 0 | AE118: 0 | AF118: 0 | AG118: 0 | AH118: 0 | AI118: 0 | AJ118: 0 | AK118: 0 | AL118: 0 | AM118: 0 | AN118: 0 | AO118: 0 | AP118: 0 | AQ118: 0 | AR118: 0 | AS118: 0 | AT118: 0 | AU118: 0 | AV118: 0
D119: Interest Rate Factor for PV of Debt Service | E119: Index | H119: 1 | I119: =H119*(1+I118*I62) -> 1 | J119: 1 | K119: 1 | L119: 1 | M119: 1 | N119: 1 | O119: 1 | P119: 1 | Q119: 1 | R119: 1 | S119: 1 | T119: 1 | U119: 1 | V119: 1 | W119: 1 | X119: 1 | Y119: 1 | Z119: 1 | AA119: 1 | AB119: 1 | AC119: 1 | AD119: 1 | AE119: 1 | AF119: 1 | AG119: 1 | AH119: 1 | AI119: 1 | AJ119: 1 | AK119: 1 | AL119: 1 | AM119: 1 | AN119: 1 | AO119: 1 | AP119: 1 | AQ119: 1 | AR119: 1 | AS119: 1 | AT119: 1 | AU119: 1 | AV119: 1
D120: NPV of Debt Service | E120: $ | F120: =SUMPRODUCT(I116:AV116/I119:AV119) -> 13619639.19
D122: Opening Debt Balance | E122: $ | I122: =H124 -> 13619639.19 | J122: =I124 -> 12788144.41 | K122: =J124 -> 12263224.7 | L122: =K124 -> 11748110.54 | M122: =L124 -> 10950463.71 | N122: =M124 -> 10164192.7 | O122: =N124 -> 9412177.458 | P122: =O124 -> 8671636.904 | Q122: =P124 -> 7942622.504 | R122: =Q124 -> 7225187.102 | S122: =R124 -> 6519384.936 | T122: =S124 -> 5825271.652 | U122: =T124 -> 5142904.328 | V122: =U124 -> 4472341.488 | W122: =V124 -> 3813643.123 | X122: =W124 -> 3166870.708 | Y122: =X124 -> 2509256.025 | Z122: =Y124 -> 1863694.779 | AA122: =Z124 -> 1230253.019 | AB122: =AA124 -> 608998.3594 | AC122: =AB124 -> -2.211891115e-09 | AD122: =AC124 -> -2.211891115e-09 | AE122: =AD124 -> -2.211891115e-09 | AF122: =AE124 -> -2.211891115e-09 | AG122: =AF124 -> -2.211891115e-09 | AH122: =AG124 -> -2.211891115e-09 | AI122: =AH124 -> -2.211891115e-09 | AJ122: =AI124 -> -2.211891115e-09 | AK122: =AJ124 -> -2.211891115e-09 | AL122: =AK124 -> -2.211891115e-09 | AM122: =AL124 -> -2.211891115e-09 | AN122: =AM124 -> -2.211891115e-09 | AO122: =AN124 -> -2.211891115e-09 | AP122: =AO124 -> -2.211891115e-09 | AQ122: =AP124 -> -2.211891115e-09 | AR122: =AQ124 -> -2.211891115e-09 | AS122: =AR124 -> -2.211891115e-09 | AT122: =AS124 -> -2.211891115e-09 | AU122: =AT124 -> -2.211891115e-09 | AV122: =AU124 -> -2.211891115e-09
D123: Less: Repayment | E123: $ | I123: =I116-I125 -> 831494.7859 | J123: =J116-J125 -> 524919.7027 | K123: 515114.1672 | L123: 797646.8225 | M123: 786271.016 | N123: 752015.2402 | O123: 740540.5542 | P123: 729014.3997 | Q123: 717435.4015 | R123: 705802.1665 | S123: 694113.2837 | T123: 682367.3241 | U123: 670562.8401 | V123: 658698.3654 | W123: 646772.4146 | X123: 657614.683 | Y123: 645561.2462 | Z123: 633441.7599 | AA123: 621254.6594 | AB123: 608998.3594 | AC123: 0 | AD123: 0 | AE123: 0 | AF123: 0 | AG123: 0 | AH123: 0 | AI123: 0 | AJ123: 0 | AK123: 0 | AL123: 0 | AM123: 0 | AN123: 0 | AO123: 0 | AP123: 0 | AQ123: 0 | AR123: 0 | AS123: 0 | AT123: 0 | AU123: 0 | AV123: 0
D124: Closing Balance | E124: $ | F124: =F120 -> 13619639.19 | H124: =F124 -> 13619639.19 | I124: =I122-I123 -> 12788144.41 | J124: 12263224.7 | K124: 11748110.54 | L124: 10950463.71 | M124: 10164192.7 | N124: 9412177.458 | O124: 8671636.904 | P124: 7942622.504 | Q124: 7225187.102 | R124: 6519384.936 | S124: 5825271.652 | T124: 5142904.328 | U124: 4472341.488 | V124: 3813643.123 | W124: 3166870.708 | X124: 2509256.025 | Y124: 1863694.779 | Z124: 1230253.019 | AA124: 608998.3594 | AB124: -2.211891115e-09 | AC124: -2.211891115e-09 | AD124: -2.211891115e-09 | AE124: -2.211891115e-09 | AF124: -2.211891115e-09 | AG124: -2.211891115e-09 | AH124: -2.211891115e-09 | AI124: -2.211891115e-09 | AJ124: -2.211891115e-09 | AK124: -2.211891115e-09 | AL124: -2.211891115e-09 | AM124: -2.211891115e-09 | AN124: -2.211891115e-09 | AO124: -2.211891115e-09 | AP124: -2.211891115e-09 | AQ124: -2.211891115e-09 | AR124: -2.211891115e-09 | AS124: -2.211891115e-09 | AT124: -2.211891115e-09 | AU124: -2.211891115e-09 | AV124: -2.211891115e-09
D125: Interest | E125: $ | I125: =I122*I118 -> 0 | J125: 0 | K125: 0 | L125: 0 | M125: 0 | N125: 0 | O125: 0 | P125: 0 | Q125: 0 | R125: 0 | S125: 0 | T125: 0 | U125: 0 | V125: 0 | W125: 0 | X125: 0 | Y125: 0 | Z125: 0 | AA125: 0 | AB125: 0 | AC125: 0 | AD125: 0 | AE125: 0 | AF125: 0 | AG125: 0 | AH125: 0 | AI125: 0 | AJ125: 0 | AK125: 0 | AL125: 0 | AM125: 0 | AN125: 0 | AO125: 0 | AP125: 0 | AQ125: 0 | AR125: 0 | AS125: 0 | AT125: 0 | AU125: 0 | AV125: 0
D127: NPV of Cash Flow over Loan Life | E127: $ | F127: =SUMPRODUCT(I127:AV127/I119:AV119) -> 13619639.19 | I127: =I115 -> 831494.7859 | J127: 524919.7027 | K127: 515114.1672 | L127: 797646.8225 | M127: 786271.016 | N127: 752015.2402 | O127: 740540.5542 | P127: 729014.3997 | Q127: 717435.4015 | R127: 705802.1665 | S127: 694113.2837 | T127: 682367.3241 | U127: 670562.8401 | V127: 658698.3654 | W127: 646772.4146 | X127: 657614.683 | Y127: 645561.2462 | Z127: 633441.7599 | AA127: 621254.6594 | AB127: 608998.3594 | AC127: 0 | AD127: 0 | AE127: 0 | AF127: 0 | AG127: 0 | AH127: 0 | AI127: 0 | AJ127: 0 | AK127: 0 | AL127: 0 | AM127: 0 | AN127: 0 | AO127: 0 | AP127: 0 | AQ127: 0 | AR127: 0 | AS127: 0 | AT127: 0 | AU127: 0 | AV127: 0
D128: NPV of Cash Flow over Project Life | E128: $ | F128: =SUMPRODUCT(I128:AV128/I119:AV119) -> 0 | I128: =I107 -> 0 | J128: 0 | K128: 0 | L128: 0 | M128: 0 | N128: 0 | O128: 0 | P128: 0 | Q128: 0 | R128: 0 | S128: 0 | T128: 0 | U128: 0 | V128: 0 | W128: 0 | X128: 0 | Y128: 0 | Z128: 0 | AA128: 0 | AB128: 0 | AC128: 0 | AD128: 0 | AE128: 0 | AF128: 0 | AG128: 0 | AH128: 0 | AI128: 0 | AJ128: 0 | AK128: 0 | AL128: 0 | AM128: 0 | AN128: 0 | AO128: 0 | AP128: 0 | AQ128: 0 | AR128: 0 | AS128: 0 | AT128: 0 | AU128: 0 | AV128: 0
D130: DSCR | E130: x | I130: =IF(I116>0.1,I115/I116) -> 1 | J130: =IF(J116>0.1,J115/J116) -> 1 | K130: 1 | L130: 1 | M130: 1 | N130: 1 | O130: 1 | P130: 1 | Q130: 1 | R130: 1 | S130: 1 | T130: 1 | U130: 1 | V130: 1 | W130: 1 | X130: 1 | Y130: 1 | Z130: 1 | AA130: 1 | AB130: 1 | AC130: FALSE | AD130: FALSE | AE130: FALSE | AF130: FALSE | AG130: FALSE | AH130: FALSE | AI130: FALSE | AJ130: FALSE | AK130: FALSE | AL130: FALSE | AM130: FALSE | AN130: FALSE | AO130: FALSE | AP130: FALSE | AQ130: FALSE | AR130: FALSE | AS130: FALSE | AT130: FALSE | AU130: FALSE | AV130: FALSE
D131: Minimum DSCR | E131: x | F131: =MIN(I130:AV130) -> 1
D132: Average DSCR | E132: x | F132: =AVERAGE(I130:AV130) -> 1
B134: Credit Analysis
C135: Scenario
D136: Production with Sensitivity
D138: Contracted PPA Revenue
D139: Post PPA Revenue
D140: Post PPA Revenue Base NG
D141: Projected REC Revenue
D142: Gross Projected Revenue - P99 Case | I142: 0 | J142: 0 | K142: 0 | L142: 0 | M142: 0 | N142: 0 | O142: 0 | P142: 0 | Q142: 0 | R142: 0 | S142: 0 | T142: 0 | U142: 0 | V142: 0 | W142: 0 | X142: 0 | Y142: 0 | Z142: 0 | AA142: 0 | AB142: 0 | AC142: 0 | AD142: 0 | AE142: 0 | AF142: 0 | AG142: 0 | AH142: 0 | AI142: 0 | AJ142: 0 | AK142: 0 | AL142: 0 | AM142: 0 | AN142: 0 | AO142: 0 | AP142: 0 | AQ142: 0 | AR142: 0 | AS142: 0 | AT142: 0 | AU142: 0 | AV142: 0
D144: Operating Expense
D146: Accrued Debt Service
D148: Loss on Default
D149: DSCR
D150: LLCR
D151: PLCR
D154: Operating Expense | I154: =I55 -> 340575.9854 | J154: 344654.818 | K154: 349767.5757 | L154: 355901.0956 | M154: 361164.2746 | N154: 389337.9946 | O154: 394761.0439 | P154: 400265.8283 | Q154: 405853.5719 | R154: 411525.5173 | S154: 417282.9254 | T154: 423127.0764 | U154: 429059.2695 | V154: 435080.8233 | W154: 441193.0764 | X154: 424566.1875 | Y154: 430863.9355 | Z154: 437256.5201 | AA154: 443745.362 | AB154: 450331.9032
D155: Operating Expense | I155: 340575.9854 | J155: 345608.0957 | K155: 350716.0871 | L155: 355901.0956 | M155: 361164.2746 | N155: 389337.9946 | O155: 394761.0439 | P155: 400265.8283 | Q155: 405853.5719 | R155: 411525.5173 | S155: 417282.9254 | T155: 423127.0764 | U155: 429059.2695 | V155: 435080.8233 | W155: 441193.0764 | X155: 424566.1875 | Y155: 430863.9355 | Z155: 437256.5201 | AA155: 443745.362 | AB155: 424050.365
H161: =COLUMN() -> 8 | I161: =COLUMN() -> 9 | J161: =COLUMN() -> 10 | K161: =COLUMN() -> 11 | L161: =COLUMN() -> 12 | M161: =COLUMN() -> 13 | N161: =COLUMN() -> 14 | O161: =COLUMN() -> 15 | P161: =COLUMN() -> 16 | Q161: =COLUMN() -> 17 | R161: =COLUMN() -> 18 | S161: =COLUMN() -> 19 | T161: =COLUMN() -> 20 | U161: =COLUMN() -> 21 | V161: =COLUMN() -> 22 | W161: =COLUMN() -> 23 | X161: =COLUMN() -> 24 | Y161: =COLUMN() -> 25 | Z161: =COLUMN() -> 26 | AA161: =COLUMN() -> 27 | AB161: =COLUMN() -> 28 | AC161: =COLUMN() -> 29 | AD161: =COLUMN() -> 30 | AE161: =COLUMN() -> 31 | AF161: =COLUMN() -> 32 | AG161: =COLUMN() -> 33 | AH161: =COLUMN() -> 34 | AI161: =COLUMN() -> 35 | AJ161: =COLUMN() -> 36 | AK161: =COLUMN() -> 37 | AL161: =COLUMN() -> 38 | AM161: =COLUMN() -> 39 | AN161: =COLUMN() -> 40 | AO161: =COLUMN() -> 41 | AP161: =COLUMN() -> 42 | AQ161: =COLUMN() -> 43 | AR161: =COLUMN() -> 44 | AS161: =COLUMN() -> 45 | AT161: =COLUMN() -> 46 | AU161: =COLUMN() -> 47 | AV161: =COLUMN() -> 48 | AW161: =COLUMN() -> 49 | AX161: =COLUMN() -> 50 | AY161: =COLUMN() -> 51 | AZ161: =COLUMN() -> 52 | BA161: =COLUMN() -> 53 | BB161: =COLUMN() -> 54 | BC161: =COLUMN() -> 55 | BD161: =COLUMN() -> 56 | BE161: =COLUMN() -> 57 | BF161: =COLUMN() -> 58 | BG161: =COLUMN() -> 59 | BH161: =COLUMN() -> 60 | BI161: =COLUMN() -> 61 | BJ161: =COLUMN() -> 62 | BK161: =COLUMN() -> 63 | BL161: =COLUMN() -> 64 | BM161: =COLUMN() -> 65 | BN161: =COLUMN() -> 66 | BO161: =COLUMN() -> 67 | BP161: =COLUMN() -> 68 | BQ161: =COLUMN() -> 69 | BR161: =COLUMN() -> 70 | BS161: =COLUMN() -> 71 | BT161: =COLUMN() -> 72 | BU161: =COLUMN() -> 73 | BV161: =COLUMN() -> 74 | BW161: =COLUMN() -> 75 | BX161: =COLUMN() -> 76 | BY161: =COLUMN() -> 77 | BZ161: =COLUMN() -> 78 | CA161: =COLUMN() -> 79 | CB161: =COLUMN() -> 80 | CC161: =COLUMN() -> 81
H162: =ADDRESS(1,H161) -> $H$1 | I162: =ADDRESS(1,I161) -> $I$1 | J162: =ADDRESS(1,J161) -> $J$1 | K162: $K$1 | L162: $L$1 | M162: $M$1 | N162: $N$1 | O162: $O$1 | P162: $P$1 | Q162: $Q$1 | R162: $R$1 | S162: $S$1 | T162: $T$1 | U162: $U$1 | V162: $V$1 | W162: $W$1 | X162: $X$1 | Y162: $Y$1 | Z162: $Z$1 | AA162: $AA$1 | AB162: $AB$1 | AC162: =ADDRESS(1,AC161) -> $AC$1 | AD162: =ADDRESS(1,AD161) -> $AD$1 | AE162: =ADDRESS(1,AE161) -> $AE$1 | AF162: =ADDRESS(1,AF161) -> $AF$1 | AG162: =ADDRESS(1,AG161) -> $AG$1 | AH162: =ADDRESS(1,AH161) -> $AH$1 | AI162: =ADDRESS(1,AI161) -> $AI$1 | AJ162: =ADDRESS(1,AJ161) -> $AJ$1 | AK162: =ADDRESS(1,AK161) -> $AK$1 | AL162: =ADDRESS(1,AL161) -> $AL$1 | AM162: =ADDRESS(1,AM161) -> $AM$1 | AN162: =ADDRESS(1,AN161) -> $AN$1 | AO162: =ADDRESS(1,AO161) -> $AO$1 | AP162: =ADDRESS(1,AP161) -> $AP$1 | AQ162: =ADDRESS(1,AQ161) -> $AQ$1 | AR162: =ADDRESS(1,AR161) -> $AR$1 | AS162: =ADDRESS(1,AS161) -> $AS$1 | AT162: =ADDRESS(1,AT161) -> $AT$1 | AU162: =ADDRESS(1,AU161) -> $AU$1 | AV162: =ADDRESS(1,AV161) -> $AV$1 | AW162: =ADDRESS(1,AW161) -> $AW$1 | AX162: =ADDRESS(1,AX161) -> $AX$1 | AY162: =ADDRESS(1,AY161) -> $AY$1 | AZ162: =ADDRESS(1,AZ161) -> $AZ$1 | BA162: =ADDRESS(1,BA161) -> $BA$1 | BB162: =ADDRESS(1,BB161) -> $BB$1 | BC162: =ADDRESS(1,BC161) -> $BC$1 | BD162: =ADDRESS(1,BD161) -> $BD$1 | BE162: =ADDRESS(1,BE161) -> $BE$1 | BF162: =ADDRESS(1,BF161) -> $BF$1 | BG162: =ADDRESS(1,BG161) -> $BG$1 | BH162: =ADDRESS(1,BH161) -> $BH$1 | BI162: =ADDRESS(1,BI161) -> $BI$1 | BJ162: =ADDRESS(1,BJ161) -> $BJ$1 | BK162: =ADDRESS(1,BK161) -> $BK$1 | BL162: =ADDRESS(1,BL161) -> $BL$1 | BM162: =ADDRESS(1,BM161) -> $BM$1 | BN162: =ADDRESS(1,BN161) -> $BN$1 | BO162: =ADDRESS(1,BO161) -> $BO$1 | BP162: =ADDRESS(1,BP161) -> $BP$1 | BQ162: =ADDRESS(1,BQ161) -> $BQ$1 | BR162: =ADDRESS(1,BR161) -> $BR$1 | BS162: =ADDRESS(1,BS161) -> $BS$1 | BT162: =ADDRESS(1,BT161) -> $BT$1 | BU162: =ADDRESS(1,BU161) -> $BU$1 | BV162: =ADDRESS(1,BV161) -> $BV$1 | BW162: =ADDRESS(1,BW161) -> $BW$1 | BX162: =ADDRESS(1,BX161) -> $BX$1 | BY162: =ADDRESS(1,BY161) -> $BY$1 | BZ162: =ADDRESS(1,BZ161) -> $BZ$1 | CA162: =ADDRESS(1,CA161) -> $CA$1 | CB162: =ADDRESS(1,CB161) -> $CB$1 | CC162: =ADDRESS(1,CC161) -> $CC$1
H163: 1 | I163: 1 | J163: 1 | K163: 1 | L163: 1 | M163: 1 | N163: 1 | O163: 1 | P163: 1 | Q163: 1 | R163: 1 | S163: 1 | T163: 1 | U163: 1 | V163: 1 | W163: 1 | X163: 1 | Y163: 1 | Z163: 1 | AA163: 1 | AB163: 1 | AC163: 1 | AD163: 1 | AE163: 1 | AF163: 1 | AG163: 1 | AH163: 1 | AI163: 1 | AJ163: 1 | AK163: 1 | AL163: 1 | AM163: 1 | AN163: 1 | AO163: 1 | AP163: 1 | AQ163: 1 | AR163: 1 | AS163: 1 | AT163: 1 | AU163: 1 | AV163: 1 | AW163: 1 | AX163: 1 | AY163: 1 | AZ163: 1 | BA163: 1 | BB163: 1 | BC163: 1 | BD163: 1 | BE163: 1 | BF163: 1 | BG163: 1 | BH163: 1 | BI163: 1 | BJ163: 1 | BK163: 1 | BL163: 1 | BM163: 1 | BN163: 1 | BO163: 1 | BP163: 1 | BQ163: 1 | BR163: 1 | BS163: 1 | BT163: 1 | BU163: 1 | BV163: 1 | BW163: 1 | BX163: 1 | BY163: 1 | BZ163: 1 | CA163: 1 | CB163: 1 | CC163: 1
H164: =MID(H162,2,H163) -> H | I164: =MID(I162,2,I163) -> I | J164: =MID(J162,2,J163) -> J | K164: K | L164: L | M164: M | N164: N | O164: O | P164: P | Q164: Q | R164: R | S164: S | T164: T | U164: U | V164: V | W164: W | X164: X | Y164: Y | Z164: Z | AA164: A | AB164: A | AC164: =MID(AC162,2,AC163) -> A | AD164: =MID(AD162,2,AD163) -> A | AE164: =MID(AE162,2,AE163) -> A | AF164: =MID(AF162,2,AF163) -> A | AG164: =MID(AG162,2,AG163) -> A | AH164: =MID(AH162,2,AH163) -> A | AI164: =MID(AI162,2,AI163) -> A | AJ164: =MID(AJ162,2,AJ163) -> A | AK164: =MID(AK162,2,AK163) -> A | AL164: =MID(AL162,2,AL163) -> A | AM164: =MID(AM162,2,AM163) -> A | AN164: =MID(AN162,2,AN163) -> A | AO164: =MID(AO162,2,AO163) -> A | AP164: =MID(AP162,2,AP163) -> A | AQ164: =MID(AQ162,2,AQ163) -> A | AR164: =MID(AR162,2,AR163) -> A | AS164: =MID(AS162,2,AS163) -> A | AT164: =MID(AT162,2,AT163) -> A | AU164: =MID(AU162,2,AU163) -> A | AV164: =MID(AV162,2,AV163) -> A | AW164: =MID(AW162,2,AW163) -> A | AX164: =MID(AX162,2,AX163) -> A | AY164: =MID(AY162,2,AY163) -> A | AZ164: =MID(AZ162,2,AZ163) -> A | BA164: =MID(BA162,2,BA163) -> B | BB164: =MID(BB162,2,BB163) -> B | BC164: =MID(BC162,2,BC163) -> B | BD164: =MID(BD162,2,BD163) -> B | BE164: =MID(BE162,2,BE163) -> B | BF164: =MID(BF162,2,BF163) -> B | BG164: =MID(BG162,2,BG163) -> B | BH164: =MID(BH162,2,BH163) -> B | BI164: =MID(BI162,2,BI163) -> B | BJ164: =MID(BJ162,2,BJ163) -> B | BK164: =MID(BK162,2,BK163) -> B | BL164: =MID(BL162,2,BL163) -> B | BM164: =MID(BM162,2,BM163) -> B | BN164: =MID(BN162,2,BN163) -> B | BO164: =MID(BO162,2,BO163) -> B | BP164: =MID(BP162,2,BP163) -> B | BQ164: =MID(BQ162,2,BQ163) -> B | BR164: =MID(BR162,2,BR163) -> B | BS164: =MID(BS162,2,BS163) -> B | BT164: =MID(BT162,2,BT163) -> B | BU164: =MID(BU162,2,BU163) -> B | BV164: =MID(BV162,2,BV163) -> B | BW164: =MID(BW162,2,BW163) -> B | BX164: =MID(BX162,2,BX163) -> B | BY164: =MID(BY162,2,BY163) -> B | BZ164: =MID(BZ162,2,BZ163) -> B | CA164: =MID(CA162,2,CA163) -> C | CB164: =MID(CB162,2,CB163) -> C | CC164: =MID(CC162,2,CC163) -> C

Sheet General Inputs
M2: comment | N2: TRUE
D6: Start Date of Model | F6: 2020-01-01
D7: Months in Period in Model | F7: 12
D9: Target DSCR in Base Case | F9: 1.34
D10: Apply DSCR in P50 Debt Sizing | F10: =Control!L20 -> FALSE
D12: Target DSCR in Stress Case | F12: 1
D14: Year | F14: 2020 | G14: =F14+1 -> 2021 | H14: 2022 | I14: 2023 | J14: 2024 | K14: 2025 | L14: 2026 | M14: 2027 | N14: 2028 | O14: 2029 | P14: 2030 | Q14: 2031 | R14: 2032 | S14: 2033 | T14: 2034 | U14: 2035 | V14: 2036 | W14: 2037 | X14: 2038 | Y14: 2039 | Z14: 2040 | AA14: 2041 | AB14: 2042 | AC14: 2043 | AD14: 2044 | AE14: 2045 | AF14: 2046 | AG14: 2047 | AH14: 2048 | AI14: 2049 | AJ14: 2050 | AK14: 2051 | AL14: 2052 | AM14: 2053 | AN14: 2054 | AO14: 2055 | AP14: 2056 | AQ14: 2057 | AR14: 2058 | AS14: 2059
D15: Post PPA Base NG Price ($/kWh)* | F15: 0.03745 | G15: 0.0357 | H15: 0.03407 | I15: 0.03483 | J15: 0.03603 | K15: 0.03789 | L15: 0.03793 | M15: 0.03826 | N15: 0.03837 | O15: 0.03879 | P15: 0.03871 | Q15: 0.03876 | R15: 0.03881 | S15: 0.03882 | T15: 0.03896 | U15: 0.03937 | V15: 0.03942 | W15: 0.03934 | X15: 0.03962 | Y15: 0.03961 | Z15: 0.03961 | AA15: 0.03961 | AB15: 0.03961 | AC15: 0.03961 | AD15: 0.03961 | AE15: 0.03961 | AF15: 0.03961 | AG15: 0.03961 | AH15: 0.03961 | AI15: 0.03961 | AJ15: 0.03961 | AK15: 0.03961 | AL15: 0.03961 | AM15: 0.03961 | AN15: 0.03961 | AO15: 0.03961 | AP15: 0.03961 | AQ15: 0.03961 | AR15: 0.03961 | AS15: 0.03961
D17: Tenor | F17: =Control!P10 -> 20
D19: Libor Swap Rate | F19: =Control!N20 -> 0.0211
D20: Credit Spread | F20: 0.0325
D21: Total Rate Floor | F21: =Control!O20 -> 0.0425
D23: Month of Repayment | F23: 12
D26: Revenue Stress | E26: Yrs 1-10 | F26: 0.15
D27: Revenue Stress | E27: Yrs 11-20 | F27: 0.25
D29: Credit Spread Increase in Stress Case | E29: % p.a. | F29: =Control!S20 -> 0.005
D30: DSCR in Stress Case | F30: =Control!K20 -> 1

Sheet MA SMART PRICING
A3: Basic Service Rate Projections ($/kWh) | K3: CVE SMART Portfolio Project Name | P3: Tolland | Q3: Russell | R3: Westport | S3: Peru | T3: Westhampton | U3: New Marlborough
B4: Assumed Rate Inflation | C4: 0.005 | D4: 0.005 | E4: 0.005 | F4: 0.005 | G4: 0.005 | H4: 0.005
B5: Project Name | C5: Tolland | D5: Russell | E5: Westport | F5: Peru | G5: Westhampton | H5: New Marlborough | K5: Total Project Revenue Rate Breakdown (Yr 1 - 2020)
B6: Utility | C6: Eversource WCMA/WMECO | D6: Eversource WCMA/WMECO | E6: Eversource SEMA/Nstar | F6: Eversource WCMA/WMECO | G6: Eversource WCMA/WMECO | H6: National Grid WCMA | L6: SMART Incentive Payment Effective Rate | P6: 0.06808 | Q6: 0.04776 | R6: 0.09789 | S6: 0.05591 | T6: 0.05988 | U6: =U22-U11 -> 0.07893
B7: 2020 | C7: =AVERAGE(P37:P38) -> 0.10968 | D7: =AVERAGE(Q37:Q38) -> 0.10968 | E7: =AVERAGE(R37:R38) -> 0.11288 | F7: =AVERAGE(S37:S38) -> 0.10968 | G7: =AVERAGE(T37:T38) -> 0.10968 | H7: =AVERAGE(U38:U39) -> 0.103 | K7: (+) | L7: Basic Service Rate | P7: =P11 -> 0.10968 | Q7: 0.10968 | R7: 0.11288 | S7: 0.10968 | T7: 0.10968 | U7: 0.103
B8: =B7+1 -> 2021 | C8: =C7*(1+C$4) -> 0.1102284 | D8: 0.1102284 | E8: 0.1134444 | F8: 0.1102284 | G8: 0.1102284 | H8: =H7*(1+H$4) -> 0.103515 | K8: (-) | L8: 10% Customer Discount on Basic Service Rate | P8: =P11*P12 -> 0.010968 | Q8: 0.010968 | R8: 0.011288 | S8: 0.010968 | T8: 0.010968 | U8: 0.0103
B9: 2022 | C9: 0.110779542 | D9: 0.110779542 | E9: 0.114011622 | F9: 0.110779542 | G9: 0.110779542 | H9: 0.104032575 | K9: (=) | L9: Total Project Revenue Rate | P9: =P6+P7-P8 -> 0.166792 | Q9: 0.146472 | R9: 0.199482 | S9: 0.154622 | T9: 0.158592 | U9: 0.17163
B10: 2023 | C10: 0.1113334397 | D10: 0.1113334397 | E10: 0.1145816801 | F10: 0.1113334397 | G10: 0.1113334397 | H10: 0.1045527379
B11: 2024 | C11: 0.1118901069 | D11: 0.1118901069 | E11: 0.1151545885 | F11: 0.1118901069 | G11: 0.1118901069 | H11: 0.1050755016 | K11: where: | L11: Basic Service Rate - Avg TTM | M11: Historical Basic Service Rates | P11: =C7 -> 0.10968 | Q11: 0.10968 | R11: 0.11288 | S11: 0.10968 | T11: 0.10968 | U11: 0.103
B12: 2025 | C12: 0.1124495574 | D12: 0.1124495574 | E12: 0.1157303615 | F12: 0.1124495574 | G12: 0.1124495574 | H12: 0.1056008791 | K12: where: | L12: Customer Discount | M12: Various - Documented | P12: 0.1 | Q12: 0.1 | R12: 0.1 | S12: 0.1 | T12: 0.1 | U12: 0.1
B13: 2026 | C13: 0.1130118052 | D13: 0.1130118052 | E13: 0.1163090133 | F13: 0.1130118052 | G13: 0.1130118052 | H13: 0.1061288835
B14: 2027 | C14: 0.1135768643 | D14: 0.1135768643 | E14: 0.1168905583 | F14: 0.1135768643 | G14: 0.1135768643 | H14: 0.1066595279
B15: 2028 | C15: 0.1141447486 | D15: 0.1141447486 | E15: 0.1174750111 | F15: 0.1141447486 | G15: 0.1141447486 | H15: 0.1071928255 | K15: Total Compensation Rates | M15: DOER Preliminary SOQ
B16: 2029 | C16: 0.1147154723 | D16: 0.1147154723 | E16: 0.1180623862 | F16: 0.1147154723 | G16: 0.1147154723 | H16: 0.1077287897 | L16: Base Compensation Rate | P16: 0.13168 | Q16: 0.11831 | R16: 0.17 | S16: 0.12135 | T16: 0.12348 | U16: 0.13769
B17: 2030 | C17: 0.1152890497 | D17: 0.1152890497 | E17: 0.1186526981 | F17: 0.1152890497 | G17: 0.1152890497 | H17: 0.1082674336 | K17: (+) | L17: Location Based Adder | P17: 0 | Q17: 0 | R17: 0 | S17: 0 | T17: 0 | U17: 0
B18: 2031 | C18: 0.1158654949 | D18: 0.1158654949 | E18: 0.1192459616 | F18: 0.1158654949 | G18: 0.1158654949 | H18: 0.1088087708 | K18: (+) | L18: Community Shared Adder | P18: 0.04608 | Q18: 0.04424 | R18: 0.04077 | S18: 0.04424 | T18: 0.04608 | U18: 0.04424
B19: 2032 | C19: 0.1164448224 | D19: 0.1164448224 | E19: 0.1198421914 | F19: 0.1164448224 | G19: 0.1164448224 | H19: 0.1093528146 | K19: (+) | L19: Solar Tracking Adder | P19: 0 | Q19: 0 | R19: 0 | S19: 0 | T19: 0 | U19: 0
B20: 2033 | C20: 0.1170270465 | D20: 0.1170270465 | E20: 0.1204414024 | F20: 0.1170270465 | G20: 0.1170270465 | H20: 0.1098995787 | K20: (+) | L20: Energy Storage Adder | P20: 0 | Q20: 0 | R20: 0 | S20: 0 | T20: 0 | U20: 0
B21: 2034 | C21: 0.1176121817 | D21: 0.1176121817 | E21: 0.1210436094 | F21: 0.1176121817 | G21: 0.1176121817 | H21: 0.1104490766 | K21: (+) | L21: Greenfield Subtractor | P21: 0 | Q21: -0.00511 | R21: 0 | S21: 0 | T21: 0 | U21: 0
B22: 2035 | C22: 0.1182002427 | D22: 0.1182002427 | E22: 0.1216488274 | F22: 0.1182002427 | G22: 0.1182002427 | H22: 0.111001322 | K22: (=) | L22: Total Compensation Rate | P22: =SUM(P16:P21) -> 0.17776 | Q22: 0.15744 | R22: 0.21077 | S22: 0.16559 | T22: 0.16956 | U22: 0.18193
B23: 2036 | C23: 0.1187912439 | D23: 0.1187912439 | E23: 0.1222570716 | F23: 0.1187912439 | G23: 0.1187912439 | H23: 0.1115563286
B24: 2037 | C24: =C23*(1+C$4) -> 0.1193852001 | D24: 0.1193852001 | E24: 0.1228683569 | F24: 0.1193852001 | G24: 0.1193852001 | H24: 0.1121141102
B25: 2038 | C25: 0.1199821261 | D25: 0.1199821261 | E25: 0.1234826987 | F25: 0.1199821261 | G25: 0.1199821261 | H25: 0.1126746808 | K25: Historical Basic Service Rates (Massachusetts) | O25: Historical Basic Servie Rates - Sm C&I
B26: 2039 | C26: 0.1205820367 | D26: 0.1205820367 | E26: 0.1241001122 | F26: 0.1205820367 | G26: 0.1205820367 | H26: 0.1132380542 | K26: Utility | L26: WMECo/NSTAR Time Periods | N26: National Grid Time Periods | P26: Eversource WCMA/WMECo | Q26: Eversource WCMA/WMECo | R26: Eversource SEMA/NSTAR | S26: Eversource WCMA/WMECo | T26: Eversource WCMA/WMECo | U26: National Grid WCMA1
K27: Rate Class | P27: G(0)/3033 | Q27: G(0)/3033 | R27: G(0)/3033 | S27: G(0)/3033 | T27: G(0)/3033 | U27: G1
A28: Total Project Revenue Rate Projections ($/kWh) ALL-IN RATE | L28: 2015 | M28: January 1 to June 30 | N28: November 1 to April 30 | P28: 0.14431 | Q28: 0.14431 | R28: 0.14501 | S28: 0.14431 | T28: 0.14431 | U28: 0.15228
B29: Customer Discount Rate | C29: =P12 -> 0.1 | D29: 0.1 | E29: 0.1 | F29: 0.1 | G29: 0.1 | H29: 0.1 | K29: =P9-P18 -> 0.120712 | M29: July 1 to December 31 | N29: May 1 to October 31 | P29: 0.09938 | Q29: 0.09938 | R29: 0.09868 | S29: 0.09938 | T29: 0.09938 | U29: 0.0864
B30: Project Name | C30: Tolland | D30: Russell | E30: Westport | F30: Peru | G30: Westhampton | H30: New Marlborough | K30: =P6-P18+P7-P8 -> 0.120712 | L30: 2016 | M30: January 1 to June 30 | N30: November 1 to April 30 | P30: 0.10641 | Q30: 0.10641 | R30: 0.1061 | S30: 0.10641 | T30: 0.10641 | U30: 0.12619
B31: Utility | C31: Eversource WCMA/WMECO | D31: Eversource WCMA/WMECO | E31: Eversource SEMA/Nstar | F31: Eversource WCMA/WMECO | G31: Eversource WCMA/WMECO | H31: National Grid WCMA | M31: July 1 to December 31 | N31: May 1 to October 31 | P31: 0.0789 | Q31: 0.0789 | R31: 0.08071 | S31: 0.0789 | T31: 0.0789 | U31: 0.07542
B32: 2020 | C32: =(P$22-C7)+C7-(C7*C$29) -> 0.166792 | D32: 0.146472 | E32: 0.199482 | F32: =(S$22-F7)+F7-(F7*F$29) -> 0.154622 | G32: =(T$22-G7)+G7-(G7*G$29) -> 0.158592 | H32: =(U$22-H7)+H7-(H7*H$29) -> 0.17163 | K32: =C32-$P$18 -> 0.120712 | L32: 2017 | M32: January 1 to June 30 | N32: November 1 to April 30 | P32: 0.09331 | Q32: 0.09331 | R32: 0.10033 | S32: 0.09331 | T32: 0.09331 | U32: 0.09094
B33: 2021 | C33: 0.16673716 | D33: 0.14641716 | E33: 0.19942556 | F33: 0.15456716 | G33: 0.15853716 | H33: =($U$22-H8)+H8-(H8*$H$29) -> 0.1715785 | K33: =C33-$P$18 -> 0.12065716 | M33: July 1 to December 31 | N33: May 1 to October 31 | P33: 0.09309 | Q33: 0.09309 | R33: 0.10764 | S33: 0.09309 | T33: 0.09309 | U33: 0.08791
B34: 2022 | C34: 0.1666820458 | D34: 0.1463620458 | E34: 0.1993688378 | F34: 0.1545120458 | G34: 0.1584820458 | H34: =($U$22-H9)+H9-(H9*$H$29) -> 0.1715267425 | K34: 0.1206020458 | L34: 2018 | M34: January 1 to June 30 | N34: November 1 to April 30 | P34: 0.11421 | Q34: 0.11421 | R34: 0.12692 | S34: 0.11421 | T34: 0.11421 | U34: 0.11946
B35: 2023 | C35: 0.166626656 | D35: 0.146306656 | E35: 0.199311832 | F35: 0.154456656 | G35: 0.158426656 | H35: =($U$22-H10)+H10-(H10*$H$29) -> 0.1714747262 | K35: 0.120546656 | M35: July 1 to December 31 | N35: May 1 to October 31 | P35: 0.10859 | Q35: 0.10859 | R35: 0.11403 | S35: 0.10859 | T35: 0.10859 | U35: 0.10182
B36: 2024 | C36: 0.1665709893 | D36: 0.1462509893 | E36: 0.1992545411 | F36: 0.1544009893 | G36: 0.1583709893 | H36: 0.1714224498 | K36: 0.1204909893 | L36: 2019 | M36: January 1 to June 30 | N36: November 1 to April 30 | P36: 0.12355 | Q36: 0.12355 | R36: 0.13185 | S36: 0.12355 | T36: 0.12355 | U36: 0.13166
B37: 2025 | C37: 0.1665150443 | D37: 0.1461950443 | E37: 0.1991969639 | F37: 0.1543450443 | G37: 0.1583150443 | H37: 0.1713699121 | K37: 0.1204350443 | M37: July 1 to December 31 | N37: May 1 to October 31 | P37: 0.10145 | Q37: 0.10145 | R37: 0.10569 | S37: 0.10145 | T37: 0.10145 | U37: 0.09646
B38: 2026 | C38: 0.1664588195 | D38: 0.1461388195 | E38: 0.1991390987 | F38: 0.1542888195 | G38: 0.1582588195 | H38: 0.1713171117 | K38: 0.1203788195 | L38: 2020 | M38: January 1 to June 30 | N38: November 1 to April 30 | P38: 0.11791 | Q38: 0.11791 | R38: 0.12007 | S38: 0.11791 | T38: 0.11791 | U38: 0.1216
B39: 2027 | C39: 0.1664023136 | D39: 0.1460823136 | E39: 0.1990809442 | F39: 0.1542323136 | G39: 0.1582023136 | H39: 0.1712640472 | K39: 0.1203223136 | M39: July 1 to December 31 | N39: May 1 to October 31 | P39: n/a | Q39: n/a | R39: n/a | S39: n/a | T39: n/a | U39: 0.0844
B40: 2028 | C40: 0.1663455251 | D40: 0.1460255251 | E40: 0.1990224989 | F40: 0.1541755251 | G40: 0.1581455251 | H40: 0.1712107174 | K40: 0.1202655251
B41: 2029 | C41: 0.1662884528 | D41: 0.1459684528 | E41: 0.1989637614 | F41: 0.1541184528 | G41: 0.1580884528 | H41: 0.171157121 | K41: 0.1202084528
B42: 2030 | C42: 0.166231095 | D42: 0.145911095 | E42: 0.1989047302 | F42: 0.154061095 | G42: 0.158031095 | H42: 0.1711032566 | K42: 0.120151095
B43: 2031 | C43: 0.1661734505 | D43: 0.1458534505 | E43: 0.1988454038 | F43: 0.1540034505 | G43: 0.1579734505 | H43: 0.1710491229 | K43: 0.1200934505
B44: 2032 | C44: 0.1661155178 | D44: 0.1457955178 | E44: 0.1987857809 | F44: 0.1539455178 | G44: 0.1579155178 | H44: 0.1709947185 | K44: 0.1200355178
B45: 2033 | C45: 0.1660572953 | D45: 0.1457372953 | E45: 0.1987258598 | F45: 0.1538872953 | G45: 0.1578572953 | H45: 0.1709400421 | K45: 0.1199772953
B46: 2034 | C46: 0.1659987818 | D46: 0.1456787818 | E46: 0.1986656391 | F46: 0.1538287818 | G46: 0.1577987818 | H46: 0.1708850923 | K46: 0.1199187818
B47: 2035 | C47: 0.1659399757 | D47: 0.1456199757 | E47: 0.1986051173 | F47: 0.1537699757 | G47: 0.1577399757 | H47: 0.1708298678 | K47: 0.1198599757
B48: 2036 | C48: =(P$22-C23)+C23-(C23*C$29) -> 0.1658808756 | D48: 0.1455608756 | E48: 0.1985442928 | F48: 0.1537108756 | G48: 0.1576808756 | H48: 0.1707743671 | K48: 0.1198008756
B49: 2037 | C49: 0.16582148 | D49: 0.14550148 | E49: 0.1984831643 | F49: 0.15365148 | G49: 0.15762148 | H49: 0.170718589 | K49: 0.11974148
B50: 2038 | C50: 0.1657617874 | D50: 0.1454417874 | E50: 0.1984217301 | F50: 0.1535917874 | G50: 0.1575617874 | H50: 0.1706625319 | K50: 0.1196817874
B51: 2039 | C51: 0.1657017963 | D51: 0.1453817963 | E51: 0.1983599888 | F51: 0.1535317963 | G51: 0.1575017963 | H51: 0.1706061946 | K51: 0.1196217963
A54: Total Project Revenue Rate Projections ($/kWh) NO CS ADDER
B55: Customer Discount Rate | C55: =C29 -> 0.1 | D55: 0.1 | E55: 0.1 | F55: 0.1 | G55: 0.1 | H55: 0.1
B56: Project Name | C56: Tolland | D56: Russell | E56: Westport | F56: Peru | G56: Westhampton | H56: New Marlborough
B57: Utility | C57: Eversource WCMA/WMECO | D57: Eversource WCMA/WMECO | E57: Eversource SEMA/Nstar | F57: Eversource WCMA/WMECO | G57: Eversource WCMA/WMECO | H57: National Grid WCMA
B58: 2020 | C58: =C32-$P$18 -> 0.120712 | D58: =D32-$Q$18 -> 0.102232 | E58: =E32-$R$18 -> 0.158712 | F58: =F32-$S$18 -> 0.110382 | G58: =G32-$T$18 -> 0.112512 | H58: =H32-$U$18 -> 0.12739
B59: 2021 | C59: =C33-$P$18 -> 0.12065716 | D59: =D33-$Q$18 -> 0.10217716 | E59: =E33-$R$18 -> 0.15865556 | F59: =F33-$S$18 -> 0.11032716 | G59: =G33-$T$18 -> 0.11245716 | H59: =H33-$U$18 -> 0.1273385
B60: 2022 | C60: 0.1206020458 | D60: 0.1021220458 | E60: 0.1585988378 | F60: 0.1102720458 | G60: 0.1124020458 | H60: 0.1272867425
B61: 2023 | C61: 0.120546656 | D61: 0.102066656 | E61: 0.158541832 | F61: 0.110216656 | G61: 0.112346656 | H61: 0.1272347262
B62: 2024 | C62: 0.1204909893 | D62: 0.1020109893 | E62: 0.1584845411 | F62: 0.1101609893 | G62: 0.1122909893 | H62: 0.1271824498
B63: 2025 | C63: 0.1204350443 | D63: 0.1019550443 | E63: 0.1584269639 | F63: 0.1101050443 | G63: 0.1122350443 | H63: 0.1271299121
B64: 2026 | C64: 0.1203788195 | D64: 0.1018988195 | E64: 0.1583690987 | F64: 0.1100488195 | G64: 0.1121788195 | H64: 0.1270771117
B65: 2027 | C65: 0.1203223136 | D65: 0.1018423136 | E65: 0.1583109442 | F65: 0.1099923136 | G65: 0.1121223136 | H65: 0.1270240472
B66: 2028 | C66: 0.1202655251 | D66: 0.1017855251 | E66: 0.1582524989 | F66: 0.1099355251 | G66: 0.1120655251 | H66: 0.1269707174
B67: 2029 | C67: 0.1202084528 | D67: 0.1017284528 | E67: 0.1581937614 | F67: 0.1098784528 | G67: 0.1120084528 | H67: 0.126917121
B68: 2030 | C68: 0.120151095 | D68: 0.101671095 | E68: 0.1581347302 | F68: 0.109821095 | G68: 0.111951095 | H68: 0.1268632566
B69: 2031 | C69: 0.1200934505 | D69: 0.1016134505 | E69: 0.1580754038 | F69: 0.1097634505 | G69: 0.1118934505 | H69: 0.1268091229
B70: 2032 | C70: 0.1200355178 | D70: 0.1015555178 | E70: 0.1580157809 | F70: 0.1097055178 | G70: 0.1118355178 | H70: 0.1267547185
B71: 2033 | C71: 0.1199772953 | D71: 0.1014972953 | E71: 0.1579558598 | F71: 0.1096472953 | G71: 0.1117772953 | H71: 0.1267000421
B72: 2034 | C72: 0.1199187818 | D72: 0.1014387818 | E72: 0.1578956391 | F72: 0.1095887818 | G72: 0.1117187818 | H72: 0.1266450923
B73: 2035 | C73: 0.1198599757 | D73: 0.1013799757 | E73: 0.1578351173 | F73: 0.1095299757 | G73: 0.1116599757 | H73: 0.1265898678
B74: 2036 | C74: 0.1198008756 | D74: 0.1013208756 | E74: 0.1577742928 | F74: 0.1094708756 | G74: 0.1116008756 | H74: 0.1265343671
B75: 2037 | C75: 0.11974148 | D75: 0.10126148 | E75: 0.1577131643 | F75: 0.10941148 | G75: 0.11154148 | H75: 0.126478589
B76: 2038 | C76: 0.1196817874 | D76: 0.1012017874 | E76: 0.1576517301 | F76: 0.1093517874 | G76: 0.1114817874 | H76: 0.1264225319
B77: 2039 | C77: 0.1196217963 | D77: 0.1011417963 | E77: 0.1575899888 | F77: 0.1092917963 | G77: 0.1114217963 | H77: 0.1263661946
A80: Total SMART Incentive Rate Projections ($/kWh) NO CS ADDER
B81: Customer Discount Rate | C81: =C55 -> 0.1 | D81: 0.1 | E81: 0.1 | F81: 0.1 | G81: 0.1 | H81: 0.1
B82: Project Name | C82: Tolland | D82: Russell | E82: Westport | F82: Peru | G82: Westhampton | H82: New Marlborough
B83: Utility | C83: Eversource WCMA/WMECO | D83: Eversource WCMA/WMECO | E83: Eversource SEMA/Nstar | F83: Eversource WCMA/WMECO | G83: Eversource WCMA/WMECO | H83: National Grid WCMA
B84: 2020 | C84: =C58-C110 -> 0.022 | D84: -0.007448 | E84: 0.05712 | F84: 0.01167 | G84: 0.0138 | H84: 0.03469
B85: 2021 | C85: =C59-C111 -> 0.0214516 | D85: -0.00805124 | E85: 0.0565556 | F85: 0.0111216 | G85: 0.0132516 | H85: 0.034175
B86: 2022 | C86: 0.020900458 | D86: -0.0086574962 | E86: 0.055988378 | F86: 0.010570458 | G86: 0.012700458 | H86: 0.033657425
B87: 2023 | C87: 0.02034656029 | D87: -0.009266783681 | E87: 0.05541831989 | F87: 0.01001656029 | G87: 0.01214656029 | H87: 0.03313726213
B88: 2024 | C88: 0.01978989309 | D88: -0.009879117599 | E88: 0.05484541149 | F88: 0.009459893091 | G88: 0.01158989309 | H88: 0.03261449844
B89: 2025 | C89: 0.01923044256 | D89: -0.01049451319 | E89: 0.05426963855 | F89: 0.008900442557 | G89: 0.01103044256 | H89: 0.03208912093
B90: 2026 | C90: 0.01866819477 | D90: -0.01111298575 | E90: 0.05369098674 | F90: 0.00833819477 | G90: 0.01046819477 | H90: 0.03156111653
B91: 2027 | C91: 0.01810313574 | D91: -0.01173455068 | E91: 0.05310944167 | F91: 0.007773135744 | G91: 0.009903135744 | H91: 0.03103047212
B92: 2028 | C92: 0.01753525142 | D92: -0.01235922344 | E92: 0.05252498888 | F92: 0.007205251422 | G92: 0.009335251422 | H92: 0.03049717448
B93: 2029 | C93: 0.01696452768 | D93: -0.01298701955 | E93: 0.05193761383 | F93: 0.006634527679 | G93: 0.008764527679 | H93: 0.02996121035
B94: 2030 | C94: 0.01639095032 | D94: -0.01361795465 | E94: 0.0513473019 | F94: 0.006060950318 | G94: 0.008190950318 | H94: 0.0294225664
B95: 2031 | C95: 0.01581450507 | D95: -0.01425204442 | E95: 0.0507540384 | F95: 0.005484505069 | G95: 0.007614505069 | H95: 0.02888122923
B96: 2032 | C96: 0.01523517759 | D96: -0.01488930465 | E96: 0.0501578086 | F96: 0.004905177595 | G96: 0.007035177595 | H96: 0.02833718538
B97: 2033 | C97: 0.01465295348 | D97: -0.01552975117 | E97: 0.04955859764 | F97: 0.004322953483 | G97: 0.006452953483 | H97: 0.0277904213
B98: 2034 | C98: 0.01406781825 | D98: -0.01617339992 | E98: 0.04895639063 | F98: 0.00373781825 | G98: 0.00586781825 | H98: 0.02724092341
B99: 2035 | C99: 0.01347975734 | D99: -0.01682026692 | E99: 0.04835117258 | F99: 0.003149757341 | G99: 0.005279757341 | H99: 0.02668867803
B100: 2036 | C100: 0.01288875613 | D100: -0.01747036826 | E100: 0.04774292844 | F100: 0.002558756128 | G100: 0.004688756128 | H100: 0.02613367142
B101: 2037 | C101: =C75-C127 -> 0.01229479991 | D101: -0.0181237201 | E101: 0.04713164309 | F101: 0.001964799909 | G101: 0.004094799909 | H101: 0.02557588978
B102: 2038 | C102: 0.01169787391 | D102: -0.0187803387 | E102: 0.0465173013 | F102: 0.001367873908 | G102: 0.003497873908 | H102: 0.02501531922
B103: 2039 | C103: 0.01109796328 | D103: -0.01944024039 | E103: 0.04589988781 | F103: 0.0007679632778 | G103: 0.002897963278 | H103: 0.02445194582
A106: Total Net Base Revenue Rate Projections ($/kWh) NO CS ADDER
B107: Customer Discount Rate | C107: =C81 -> 0.1 | D107: 0.1 | E107: 0.1 | F107: 0.1 | G107: 0.1 | H107: 0.1
B108: Project Name | C108: Tolland | D108: Russell | E108: Westport | F108: Peru | G108: Westhampton | H108: New Marlborough
B109: Utility | C109: Eversource WCMA/WMECO | D109: Eversource WCMA/WMECO | E109: Eversource SEMA/Nstar | F109: Eversource WCMA/WMECO | G109: Eversource WCMA/WMECO | H109: National Grid WCMA
B110: 2020 | C110: =$C7-($C7*C$107) -> 0.098712 | D110: =$D7-($DC7*D$107) -> 0.10968 | E110: =$E7-($E7*E$107) -> 0.101592 | F110: =$F7-($F7*F$107) -> 0.098712 | G110: =$G7-($G7*G$107) -> 0.098712 | H110: =$H7-($H7*H$107) -> 0.0927 | K110: 0.89
B111: 2021 | C111: =$C8-($C8*C$107) -> 0.09920556 | D111: =$D8-($DC8*D$107) -> 0.1102284 | E111: =$E8-($E8*E$107) -> 0.10209996 | F111: =$F8-($F8*F$107) -> 0.09920556 | G111: =$G8-($G8*G$107) -> 0.09920556 | H111: =$H8-($H8*H$107) -> 0.0931635 | K111: =K110-0.01 -> 0.88
B112: 2022 | C112: 0.0997015878 | D112: 0.110779542 | E112: 0.1026104598 | F112: 0.0997015878 | G112: 0.0997015878 | H112: 0.0936293175 | K112: =K111-0.01 -> 0.87
B113: 2023 | C113: 0.1002000957 | D113: 0.1113334397 | E113: 0.1031235121 | F113: 0.1002000957 | G113: 0.1002000957 | H113: 0.09409746409 | K113: 0.86
B114: 2024 | C114: 0.1007010962 | D114: 0.1118901069 | E114: 0.1036391297 | F114: 0.1007010962 | G114: 0.1007010962 | H114: 0.09456795141 | K114: 0.85
B115: 2025 | C115: 0.1012046017 | D115: 0.1124495574 | E115: 0.1041573253 | F115: 0.1012046017 | G115: 0.1012046017 | H115: 0.09504079116 | K115: 0.84
B116: 2026 | C116: 0.1017106247 | D116: 0.1130118052 | E116: 0.1046781119 | F116: 0.1017106247 | G116: 0.1017106247 | H116: 0.09551599512 | K116: 0.83
B117: 2027 | C117: 0.1022191778 | D117: 0.1135768643 | E117: 0.1052015025 | F117: 0.1022191778 | G117: 0.1022191778 | H117: 0.0959935751 | K117: 0.82
B118: 2028 | C118: 0.1027302737 | D118: 0.1141447486 | E118: 0.10572751 | F118: 0.1027302737 | G118: 0.1027302737 | H118: 0.09647354297 | K118: 0.81
B119: 2029 | C119: 0.1032439251 | D119: 0.1147154723 | E119: 0.1062561476 | F119: 0.1032439251 | G119: 0.1032439251 | H119: 0.09695591069 | K119: 0.8
B120: 2030 | C120: 0.1037601447 | D120: 0.1152890497 | E120: 0.1067874283 | F120: 0.1037601447 | G120: 0.1037601447 | H120: 0.09744069024 | K120: 0.79
B121: 2031 | C121: 0.1042789454 | D121: 0.1158654949 | E121: 0.1073213654 | F121: 0.1042789454 | G121: 0.1042789454 | H121: 0.09792789369 | K121: 0.78
B122: 2032 | C122: 0.1048003402 | D122: 0.1164448224 | E122: 0.1078579723 | F122: 0.1048003402 | G122: 0.1048003402 | H122: 0.09841753316 | K122: 0.77
B123: 2033 | C123: 0.1053243419 | D123: 0.1170270465 | E123: 0.1083972621 | F123: 0.1053243419 | G123: 0.1053243419 | H123: 0.09890962083 | K123: 0.76
B124: 2034 | C124: 0.1058509636 | D124: 0.1176121817 | E124: 0.1089392484 | F124: 0.1058509636 | G124: 0.1058509636 | H124: 0.09940416893 | K124: 0.75
B125: 2035 | C125: 0.1063802184 | D125: 0.1182002427 | E125: 0.1094839447 | F125: 0.1063802184 | G125: 0.1063802184 | H125: 0.09990118977
B126: 2036 | C126: 0.1069121195 | D126: 0.1187912439 | E126: 0.1100313644 | F126: 0.1069121195 | G126: 0.1069121195 | H126: 0.1004006957
B127: 2037 | C127: 0.1074466801 | D127: 0.1193852001 | E127: 0.1105815212 | F127: 0.1074466801 | G127: 0.1074466801 | H127: 0.1009026992
B128: 2038 | C128: 0.1079839135 | D128: 0.1199821261 | E128: 0.1111344288 | F128: 0.1079839135 | G128: 0.1079839135 | H128: 0.1014072127
B129: 2039 | C129: 0.1085238331 | D129: 0.1205820367 | E129: 0.111690101 | F129: 0.1085238331 | G129: 0.1085238331 | H129: 0.1019142488

Sheet Production Tables
D3: 0.8 | E3: P90 | F3: P99 | G3: Loan Amount | H3: Weight | I3: Production | J3: Weights
C4: Tolland | D4: 0.8 | E4: =AO42 -> 0.9218623948 | F4: =AP42 -> 0.8581306903 | G4: =INDEX('Sizing Summary'!#REF!,MATCH('Production Tables'!C4,'Sizing Summary'!#REF!,0)) ->  | I4: =AM14 -> 8677 | J4: =I4/$I$9 -> 0.2691126756 | L4: Weighted Avg P90 | M4: =SUMPRODUCT(J4:J8,E4:E8) -> 0.9126321992 | O4: P99 | P4: =SUMPRODUCT(J4:J8,F4:F8) -> 0.8414229445
C5: Westport | D5: =S42 -> 0.9561883899 | E5: =T42 -> 0.9165388828 | F5: =U42 -> 0.8486308872 | G5: =INDEX('Sizing Summary'!#REF!,MATCH('Production Tables'!C5,'Sizing Summary'!#REF!,0)) ->  | I5: =R14 -> 4565 | J5: =I5/$I$9 -> 0.1415811184 | L5: Haircut: | M5: =1-M4 -> 0.08736780076 | O5: Haircut: | P5: =1-P4 -> 0.1585770555
C6: Russell | D6: =AG42 -> 0.9497228063 | E6: =AH42 -> 0.9046071497 | F6: =AI42 -> 0.8268017587 | G6: =INDEX('Sizing Summary'!#REF!,MATCH('Production Tables'!C6,'Sizing Summary'!#REF!,0)) ->  | I6: =AF14 -> 5231 | J6: =I6/$I$9 -> 0.1622367646
C7: Peru | D7: =Z42 -> 0.9497177135 | E7: =AA42 -> 0.9045518701 | F7: =AB42 -> 0.8267466478 | G7: =INDEX('Sizing Summary'!#REF!,MATCH('Production Tables'!C7,'Sizing Summary'!#REF!,0)) ->  | I7: =Y14 -> 5668 | J7: =I7/$I$9 -> 0.175790094
C8: New Marlborough | D8: =E42 -> 0.9533448531 | E8: =F42 -> 0.9113799062 | F8: =G42 -> 0.8391755122 | I8: =D14 -> 8102 | J8: =I8/$I$9 -> 0.2512793475
I9: =SUM(I4:I8) -> 32243 | J9: =SUM(J4:J8) -> 1
C12: New Marlborough | J12: Westhampton | Q12: Westport | S12: Westport | X12: Peru | AE12: Russell | AL12: Tolland
C13: Year | D13: P50 | E13: P75 | F13: P90 | G13: P99 | J13: Year | K13: P50 | L13: P75 | M13: P90 | N13: P99 | Q13: Year | R13: P50 | S13: P75 | T13: P90 | U13: P99 | X13: Year | Y13: P50 | Z13: P75 | AA13: P90 | AB13: P99 | AE13: Year | AF13: P50 | AG13: P75 | AH13: P90 | AI13: P99 | AL13: Year | AM13: P50 | AN13: P75 | AO13: P90 | AP13: P99
C14: 1 | D14: 8102 | E14: 7724 | F14: 7384 | G14: 6799 | J14: 1 | K14: 8647 | L14: 8310 | M14: 8008 | N14: 7487 | Q14: 1 | R14: 4565 | S14: 4365 | T14: 4184 | U14: 3874 | X14: 1 | Y14: 5668 | Z14: 5383 | AA14: 5127 | AB14: 4686 | AE14: 1 | AF14: 5231 | AG14: 4968 | AH14: 4732 | AI14: 4325 | AL14: 1 | AM14: 8677 | AN14: 8320 | AO14: 7999 | AP14: 7446
C15: 2 | D15: 8061 | E15: 7685 | F15: 7347 | G15: 6765 | J15: 2 | K15: 8603 | L15: 8269 | M15: 7968 | N15: 7449 | Q15: 2 | R15: 4542 | S15: 4343 | T15: 4163 | U15: 3855 | X15: 2 | Y15: 5639 | Z15: 5356 | AA15: 5102 | AB15: 4663 | AE15: 2 | AF15: 5205 | AG15: 4943 | AH15: 4708 | AI15: 4303 | AL15: 2 | AM15: 8634 | AN15: 8279 | AO15: 7959 | AP15: 7409
C16: 3 | D16: 8021 | E16: 7647 | F16: 7311 | G16: 6732 | J16: 3 | K16: 8560 | L16: 8228 | M16: 7928 | N16: 7412 | Q16: 3 | R16: 4519 | S16: 4321 | T16: 4143 | U16: 3835 | X16: 3 | Y16: 5611 | Z16: 5330 | AA16: 5076 | AB16: 4640 | AE16: 3 | AF16: 5179 | AG16: 4919 | AH16: 4685 | AI16: 4282 | AL16: 3 | AM16: 8591 | AN16: 8237 | AO16: 7919 | AP16: 7372
C17: 4 | D17: 7981 | E17: 7609 | F17: 7274 | G17: 6698 | J17: 4 | K17: 8518 | L17: 8186 | M17: 7888 | N17: 7375 | Q17: 4 | R17: 4497 | S17: 4300 | T17: 4122 | U17: 3816 | X17: 4 | Y17: 5583 | Z17: 5303 | AA17: 5051 | AB17: 4616 | AE17: 4 | AF17: 5153 | AG17: 4894 | AH17: 4661 | AI17: 4261 | AL17: 4 | AM17: 8548 | AN17: 8196 | AO17: 7880 | AP17: 7335
C18: 5 | D18: 7941 | E18: 7571 | F18: 7238 | G18: 6664 | J18: 5 | K18: 8475 | L18: 8145 | M18: 7849 | N18: 7338 | Q18: 5 | R18: 4474 | S18: 4278 | T18: 4101 | U18: 3797 | X18: 5 | Y18: 5555 | Z18: 5276 | AA18: 5025 | AB18: 4593 | AE18: 5 | AF18: 5127 | AG18: 4870 | AH18: 4638 | AI18: 4239 | AL18: 5 | AM18: 8505 | AN18: 8155 | AO18: 7840 | AP18: 7298
C19: 6 | D19: 7901 | E19: 7533 | F19: 7201 | G19: 6631 | J19: 6 | K19: 8433 | L19: 8105 | M19: 7810 | N19: 7302 | Q19: 6 | R19: 4452 | S19: 4257 | T19: 4081 | U19: 3778 | X19: 6 | Y19: 5528 | Z19: 5250 | AA19: 5000 | AB19: 4570 | AE19: 6 | AF19: 5101 | AG19: 4845 | AH19: 4615 | AI19: 4218 | AL19: 6 | AM19: 8463 | AN19: 8114 | AO19: 7801 | AP19: 7262
C20: 7 | D20: 7862 | E20: 7495 | F20: 7165 | G20: 6598 | J20: 7 | K20: 8391 | L20: 8064 | M20: 7771 | N20: 7265 | Q20: 7 | R20: 4430 | S20: 4235 | T20: 4060 | U20: 3759 | X20: 7 | Y20: 5500 | Z20: 5224 | AA20: 4975 | AB20: 4548 | AE20: 7 | AF20: 5076 | AG20: 4821 | AH20: 4592 | AI20: 4197 | AL20: 7 | AM20: 8420 | AN20: 8074 | AO20: 7762 | AP20: 7225
C21: 8 | D21: 7822 | E21: 7458 | F21: 7130 | G21: 6565 | J21: 8 | K21: 8349 | L21: 8024 | M21: 7732 | N21: 7229 | Q21: 8 | R21: 4408 | S21: 4214 | T21: 4040 | U21: 3740 | X21: 8 | Y21: 5472 | Z21: 5198 | AA21: 4950 | AB21: 4525 | AE21: 8 | AF21: 5050 | AG21: 4797 | AH21: 4569 | AI21: 4176 | AL21: 8 | AM21: 8378 | AN21: 8033 | AO21: 7723 | AP21: 7189
C22: 9 | D22: 7783 | E22: 7420 | F22: 7094 | G22: 6532 | J22: 9 | K22: 8307 | L22: 7984 | M22: 7693 | N22: 7193 | Q22: 9 | R22: 4386 | S22: 4193 | T22: 4020 | U22: 3722 | X22: 9 | Y22: 5445 | Z22: 5172 | AA22: 4926 | AB22: 4502 | AE22: 9 | AF22: 5025 | AG22: 4773 | AH22: 4546 | AI22: 4155 | AL22: 9 | AM22: 8336 | AN22: 7993 | AO22: 7685 | AP22: 7153
C23: 10 | D23: 7744 | E23: 7383 | F23: 7058 | G23: 6499 | J23: 10 | K23: 8265 | L23: 7944 | M23: 7655 | N23: 7157 | Q23: 10 | R23: 4364 | S23: 4172 | T23: 4000 | U23: 3703 | X23: 10 | Y23: 5418 | Z23: 5146 | AA23: 4901 | AB23: 4480 | AE23: 10 | AF23: 5000 | AG23: 4749 | AH23: 4523 | AI23: 4134 | AL23: 10 | AM23: 8295 | AN23: 7953 | AO23: 7646 | AP23: 7118
C24: 11 | D24: 7705 | E24: 7346 | F24: 7023 | G24: 6467 | J24: 11 | K24: 8224 | L24: 7904 | M24: 7616 | N24: 7121 | Q24: 11 | R24: 4342 | S24: 4151 | T24: 3980 | U24: 3685 | X24: 11 | Y24: 5391 | Z24: 5120 | AA24: 4877 | AB24: 4457 | AE24: 11 | AF24: 4975 | AG24: 4725 | AH24: 4501 | AI24: 4114 | AL24: 11 | AM24: 8253 | AN24: 7914 | AO24: 7608 | AP24: 7082
C25: 12 | D25: 7667 | E25: 7310 | F25: 6988 | G25: 6435 | J25: 12 | K25: 8183 | L25: 7865 | M25: 7578 | N25: 7085 | Q25: 12 | R25: 4320 | S25: 4131 | T25: 3960 | U25: 3666 | X25: 12 | Y25: 5364 | Z25: 5094 | AA25: 4852 | AB25: 4435 | AE25: 12 | AF25: 4950 | AG25: 4702 | AH25: 4478 | AI25: 4093 | AL25: 12 | AM25: 8212 | AN25: 7874 | AO25: 7570 | AP25: 7047
C26: 13 | D26: 7629 | E26: 7273 | F26: 6953 | G26: 6402 | J26: 13 | K26: 8142 | L26: 7825 | M26: 7540 | N26: 7050 | Q26: 13 | R26: 4299 | S26: 4110 | T26: 3940 | U26: 3648 | X26: 13 | Y26: 5337 | Z26: 5069 | AA26: 4828 | AB26: 4413 | AE26: 13 | AF26: 4925 | AG26: 4678 | AH26: 4456 | AI26: 4073 | AL26: 13 | AM26: 8171 | AN26: 7835 | AO26: 7532 | AP26: 7011
C27: 14 | D27: 7590 | E27: 7237 | F27: 6918 | G27: 6370 | J27: 14 | K27: 8101 | L27: 7786 | M27: 7503 | N27: 7015 | Q27: 14 | R27: 4277 | S27: 4089 | T27: 3920 | U27: 3630 | X27: 14 | Y27: 5310 | Z27: 5044 | AA27: 4804 | AB27: 4391 | AE27: 14 | AF27: 4901 | AG27: 4655 | AH27: 4433 | AI27: 4052 | AL27: 14 | AM27: 8130 | AN27: 7795 | AO27: 7494 | AP27: 6976
C28: 15 | D28: 7553 | E28: 7201 | F28: 6884 | G28: 6339 | J28: 15 | K28: 8061 | L28: 7747 | M28: 7465 | N28: 6979 | Q28: 15 | R28: 4256 | S28: 4069 | T28: 3901 | U28: 3611 | X28: 15 | Y28: 5284 | Z28: 5018 | AA28: 4780 | AB28: 4369 | AE28: 15 | AF28: 4876 | AG28: 4632 | AH28: 4411 | AI28: 4032 | AL28: 15 | AM28: 8089 | AN28: 7756 | AO28: 7457 | AP28: 6941
C29: 16 | D29: 7515 | E29: 7165 | F29: 6849 | G29: 6307 | J29: 16 | K29: 8020 | L29: 7708 | M29: 7428 | N29: 6945 | Q29: 16 | R29: 4234 | S29: 4049 | T29: 3881 | U29: 3593 | X29: 16 | Y29: 5257 | Z29: 4993 | AA29: 4756 | AB29: 4347 | AE29: 16 | AF29: 4852 | AG29: 4608 | AH29: 4389 | AI29: 4012 | AL29: 16 | AM29: 8049 | AN29: 7718 | AO29: 7420 | AP29: 6907
C30: 17 | D30: 7477 | E30: 7129 | F30: 6815 | G30: 6275 | J30: 17 | K30: 7980 | L30: 7670 | M30: 7391 | N30: 6910 | Q30: 17 | R30: 4213 | S30: 4028 | T30: 3862 | U30: 3575 | X30: 17 | Y30: 5231 | Z30: 4968 | AA30: 4732 | AB30: 4325 | AE30: 17 | AF30: 4828 | AG30: 4585 | AH30: 4367 | AI30: 3992 | AL30: 17 | AM30: 8009 | AN30: 7679 | AO30: 7383 | AP30: 6872
C31: 18 | D31: 7440 | E31: 7093 | F31: 6781 | G31: 6244 | J31: 18 | K31: 7940 | L31: 7632 | M31: 7354 | N31: 6875 | Q31: 18 | R31: 4192 | S31: 4008 | T31: 3843 | U31: 3558 | X31: 18 | Y31: 5205 | Z31: 4944 | AA31: 4708 | AB31: 4304 | AE31: 18 | AF31: 4804 | AG31: 4562 | AH31: 4345 | AI31: 3972 | AL31: 18 | AM31: 7969 | AN31: 7641 | AO31: 7346 | AP31: 6838
C32: 19 | D32: 7403 | E32: 7058 | F32: 6747 | G32: 6213 | J32: 19 | K32: 7901 | L32: 7593 | M32: 7317 | N32: 6841 | Q32: 19 | R32: 4171 | S32: 3988 | T32: 3823 | U32: 3540 | X32: 19 | Y32: 5179 | Z32: 4919 | AA32: 4685 | AB32: 4282 | AE32: 19 | AF32: 4780 | AG32: 4540 | AH32: 4324 | AI32: 3952 | AL32: 19 | AM32: 7929 | AN32: 7603 | AO32: 7309 | AP32: 6804
C33: 20 | D33: 7366 | E33: 7022 | F33: 6713 | G33: 6182 | J33: 20 | K33: 7861 | L33: 7555 | M33: 7280 | N33: 6807 | Q33: 20 | R33: 4150 | S33: 3968 | T33: 3804 | U33: 3522 | X33: 20 | Y33: 5153 | Z33: 4894 | AA33: 4661 | AB33: 4261 | AE33: 20 | AF33: 4756 | AG33: 4517 | AH33: 4302 | AI33: 3932 | AL33: 20 | AM33: 7889 | AN33: 7564 | AO33: 7272 | AP33: 6770
C34: 21 | D34: 7329 | E34: 6987 | F34: 6680 | G34: 6151 | J34: 21 | K34: 7822 | L34: 7518 | M34: 7244 | N34: 6773 | Q34: 21 | R34: 4130 | S34: 3948 | T34: 3785 | U34: 3504 | X34: 21 | Y34: 5127 | Z34: 4870 | AA34: 4638 | AB34: 4239 | AE34: 21 | AF34: 4732 | AG34: 4494 | AH34: 4281 | AI34: 3913 | AL34: 21 | AM34: 7850 | AN34: 7527 | AO34: 7236 | AP34: 6736
C35: 22 | D35: 7292 | E35: 6952 | F35: 6646 | G35: 6120 | J35: 22 | K35: 7783 | L35: 7480 | M35: 7208 | N35: 6739 | Q35: 22 | R35: 4109 | S35: 3929 | T35: 3766 | U35: 3487 | X35: 22 | Y35: 5102 | Z35: 4845 | AA35: 4615 | AB35: 4218 | AE35: 22 | AF35: 4708 | AG35: 4472 | AH35: 4259 | AI35: 3893 | AL35: 22 | AM35: 7810 | AN35: 7489 | AO35: 7200 | AP35: 6702
C36: 23 | D36: 7256 | E36: 6917 | F36: 6613 | G36: 6089 | J36: 23 | K36: 7744 | L36: 7443 | M36: 7172 | N36: 6705 | Q36: 23 | R36: 4088 | S36: 3909 | T36: 3747 | U36: 3470 | X36: 23 | Y36: 5076 | Z36: 4821 | AA36: 4592 | AB36: 4197 | AE36: 23 | AF36: 4685 | AG36: 4449 | AH36: 4238 | AI36: 3874 | AL36: 23 | AM36: 7771 | AN36: 7452 | AO36: 7164 | AP36: 6669
C37: 24 | D37: 7219 | E37: 6883 | F37: 6580 | G37: 6059 | J37: 24 | K37: 7705 | L37: 7405 | M37: 7136 | N37: 6672 | Q37: 24 | R37: 4068 | S37: 3889 | T37: 3729 | U37: 3452 | X37: 24 | Y37: 5051 | Z37: 4797 | AA37: 4569 | AB37: 4176 | AE37: 24 | AF37: 4661 | AG37: 4427 | AH37: 4217 | AI37: 3854 | AL37: 24 | AM37: 7732 | AN37: 7414 | AO37: 7128 | AP37: 6635
C38: 25 | D38: 7183 | E38: 6848 | F38: 6547 | G38: 6029 | J38: 25 | K38: 7667 | L38: 7368 | M38: 7100 | N38: 6638 | Q38: 25 | R38: 4048 | S38: 3870 | T38: 3710 | U38: 3435 | X38: 25 | Y38: 5025 | Z38: 4773 | AA38: 4546 | AB38: 4155 | AE38: 25 | AF38: 4638 | AG38: 4405 | AH38: 4196 | AI38: 3835 | AL38: 25 | AM38: 7694 | AN38: 7377 | AO38: 7092 | AP38: 6602
C41: =C13 -> Year | D41: =D13 -> P50 | E41: =E13 -> P75 | F41: =F13 -> P90 | G41: =G13 -> P99 | J41: =J13 -> Year | K41: =K13 -> P50 | L41: =L13 -> P75 | M41: =M13 -> P90 | N41: =N13 -> P99 | Q41: =Q13 -> Year | R41: =R13 -> P50 | S41: =S13 -> P75 | T41: =T13 -> P90 | U41: =U13 -> P99 | X41: =X13 -> Year | Y41: =Y13 -> P50 | Z41: =Z13 -> P75 | AA41: =AA13 -> P90 | AB41: =AB13 -> P99 | AE41: =AE13 -> Year | AF41: =AF13 -> P50 | AG41: =AG13 -> P75 | AH41: =AH13 -> P90 | AI41: =AI13 -> P99 | AL41: =AL13 -> Year | AM41: =AM13 -> P50 | AN41: =AN13 -> P75 | AO41: =AO13 -> P90 | AP41: =AP13 -> P99
C42: =C14 -> 1 | D42: =D14/D14 -> 1 | E42: =E14/D14 -> 0.9533448531 | F42: =F14/D14 -> 0.9113799062 | G42: =G14/D14 -> 0.8391755122 | J42: =J14 -> 1 | K42: =K14/K14 -> 1 | L42: =L14/K14 -> 0.9610269458 | M42: =M14/K14 -> 0.9261015381 | N42: =N14/K14 -> 0.8658494275 | Q42: =Q14 -> 1 | R42: =R14/R14 -> 1 | S42: =S14/R14 -> 0.9561883899 | T42: =T14/R14 -> 0.9165388828 | U42: =U14/R14 -> 0.8486308872 | X42: =X14 -> 1 | Y42: =Y14/Y14 -> 1 | Z42: =Z14/Y14 -> 0.9497177135 | AA42: =AA14/Y14 -> 0.9045518701 | AB42: =AB14/Y14 -> 0.8267466478 | AE42: =AE14 -> 1 | AF42: =AF14/AF14 -> 1 | AG42: =AG14/AF14 -> 0.9497228063 | AH42: =AH14/AF14 -> 0.9046071497 | AI42: =AI14/AF14 -> 0.8268017587 | AL42: =AL14 -> 1 | AM42: =AM14/AM14 -> 1 | AN42: =AN14/AM14 -> 0.9588567477 | AO42: =AO14/AM14 -> 0.9218623948 | AP42: =AP14/AM14 -> 0.8581306903

Sheet Economics
B4: Source | C4: Amount | G4: Scenario 1: | N4: Scenario 2:
B5: Loan Amount | G5: summary: | N5: summary:
B6: Origination Fee | G6: Senior Loan: | H6: 30908950.87 | J6: Sub Loan: | K6: 3209049.13 | N6: Senior Loan: | O6: 34118000 | Q6: Sub Loan: | R6: 3586608.382
B7: Series A Proceeds | G7: Senior Rate | H7: 20 | J7: Sub Term | K7: 20 | N7: Senior Rate | O7: 20 | Q7: Sub Term | R7: 20
B8: Series B Proceeds | G8: Senior Term | H8: 0.0435 | I8: 0.0375 | J8: Sub Rate | K8: 0.06727922035 | L8: 0.08 | N8: Senior Term | O8: 0.045 | Q8: Sub Rate | R8: 0.09269421434
B9: Gross | G9: Senior DSC | H9: 1.35 | J9: Avg DSC | K9: 1.2 | N9: Senior DSC | O9: 1.35 | Q9: Avg DSC | R9: 1.156631666
B10: Pts | J10: min DSC | K10: 1.2 | Q10: min DSC | R10: 1.143582478
B11: Expenses | G11: Resudiual Income | H11: 2778254.704 | N11: =G11 -> Resudiual Income | O11: 850649.947
B12: Pts | G12: Proceeds from sale of bond | H12: 726071.0198 | N12: Proceeds from Sale | O12: 1706466.539
B13: Net Cash For Distribution | G13: Servicing income | H13: 772363.0583 | N13: Servicing | O13: 772363.0583
B14: Pts | H14: =SUM(H11:H13) -> 4276688.783 | O14: =SUM(O11:O13) -> 3329479.544
C16: LOB | D16: RW | E16: Cumulative
B17: Total Points | C17: =SUM(C18:C21) -> 2 | D17: =SUM(D18:D21) -> -2 | E17: =D17+C17 -> 0
B18: Origination Split | C18: 0.75 | D18: 0.25 | E18: =D18+C18 -> 1
B19: LOB recieves 100% of remaining pts up to 2.0 Cumulative pts | C19: =IF(C14<(C14-C18),C14,2-C18) -> 1.25 | D19: 0 | E19: =E18+D19+C19 -> 2.25
B20: RW recieves 100% of remaining pts up to 2.0 cumulative pts | C20: 0 | D20: =IF(C14-E19+D18<2,C14-E19,2-D18) -> -2.25 | E20: =E19+D20+C20 -> 0
B21: Remaining pts are split 50/50 | C21: =(C14-E20)/2 -> 0 | D21: =C21 -> 0 | E21: =E20+D21+C21 -> 0
B22: Cash Distributed | C22: =C17*$C$5/100 -> 0 | D22: =D17*$C$5/100 -> 0 | E22: =D22+C22 -> 0
B23: Rockwood Residual Income
B24: Servicing Income
B25: Total Proceeds

Sheet PROJECTS

Sheet New Marlborough
D1: New Marlborough | F1: Column Number | G1: =MATCH(D1,'Project Database'!4:4,0) -> 5
D3: Date of Model | E3: Months in Period | F3: ='General Inputs'!F7 -> 12 | H3: ='General Inputs'!F6-1 -> 2019-12-31 | I3: =EDATE(H3,$F$3) -> 2020-12-31 | J3: =EDATE(I3,$F$3) -> 2021-12-31 | K3: 2022-12-31 | L3: 2023-12-31 | M3: 2024-12-31 | N3: 2025-12-31 | O3: 2026-12-31 | P3: 2027-12-31 | Q3: 2028-12-31 | R3: 2029-12-31 | S3: 2030-12-31 | T3: 2031-12-31 | U3: 2032-12-31 | V3: 2033-12-31 | W3: 2034-12-31 | X3: 2035-12-31 | Y3: 2036-12-31 | Z3: 2037-12-31 | AA3: 2038-12-31 | AB3: 2039-12-31 | AC3: 2040-12-31 | AD3: 2041-12-31 | AE3: 2042-12-31 | AF3: 2043-12-31 | AG3: 2044-12-31 | AH3: 2045-12-31 | AI3: 2046-12-31 | AJ3: 2047-12-31 | AK3: 2048-12-31 | AL3: 2049-12-31 | AM3: 2050-12-31 | AN3: 2051-12-31 | AO3: 2052-12-31 | AP3: 2053-12-31 | AQ3: 2054-12-31 | AR3: 2055-12-31 | AS3: 2056-12-31 | AT3: 2057-12-31 | AU3: 2058-12-31 | AV3: 2059-12-31
D4: Month of Model | E4: Month | H4: =MONTH(H3) -> 12 | I4: 12 | J4: 12 | K4: 12 | L4: 12 | M4: 12 | N4: 12 | O4: 12 | P4: 12 | Q4: 12 | R4: 12 | S4: 12 | T4: 12 | U4: 12 | V4: 12 | W4: 12 | X4: 12 | Y4: 12 | Z4: 12 | AA4: 12 | AB4: 12 | AC4: 12 | AD4: 12 | AE4: 12 | AF4: 12 | AG4: 12 | AH4: 12 | AI4: 12 | AJ4: 12 | AK4: 12 | AL4: 12 | AM4: 12 | AN4: 12 | AO4: 12 | AP4: 12 | AQ4: 12 | AR4: 12 | AS4: 12 | AT4: 12 | AU4: 12 | AV4: 12
D5: Year of Model | E5: Year | H5: =YEAR(H3) -> 2019 | I5: =YEAR(I3) -> 2020 | J5: =YEAR(J3) -> 2021 | K5: 2022 | L5: 2023 | M5: 2024 | N5: 2025 | O5: 2026 | P5: 2027 | Q5: 2028 | R5: 2029 | S5: 2030 | T5: 2031 | U5: 2032 | V5: 2033 | W5: 2034 | X5: 2035 | Y5: 2036 | Z5: 2037 | AA5: 2038 | AB5: 2039 | AC5: 2040 | AD5: 2041 | AE5: 2042 | AF5: 2043 | AG5: 2044 | AH5: 2045 | AI5: 2046 | AJ5: 2047 | AK5: 2048 | AL5: 2049 | AM5: 2050 | AN5: 2051 | AO5: 2052 | AP5: 2053 | AQ5: 2054 | AR5: 2055 | AS5: 2056 | AT5: 2057 | AU5: 2058 | AV5: 2059
D6: New Year Flag | E6: Flag | I6: =I5<>H5 -> TRUE | J6: =J5<>I5 -> TRUE | K6: TRUE | L6: TRUE | M6: TRUE | N6: TRUE | O6: TRUE | P6: TRUE | Q6: TRUE | R6: TRUE | S6: TRUE | T6: TRUE | U6: TRUE | V6: TRUE | W6: TRUE | X6: TRUE | Y6: TRUE | Z6: TRUE | AA6: TRUE | AB6: TRUE | AC6: TRUE | AD6: TRUE | AE6: TRUE | AF6: TRUE | AG6: TRUE | AH6: TRUE | AI6: TRUE | AJ6: TRUE | AK6: TRUE | AL6: TRUE | AM6: TRUE | AN6: TRUE | AO6: TRUE | AP6: TRUE | AQ6: TRUE | AR6: TRUE | AS6: TRUE | AT6: TRUE | AU6: TRUE | AV6: TRUE
D7: Year Counter for Row Number | E7: Period | H7: 0 | I7: 1 | J7: =I7+1 -> 2 | K7: =J7+1 -> 3 | L7: 4 | M7: 5 | N7: 6 | O7: 7 | P7: 8 | Q7: 9 | R7: 10 | S7: 11 | T7: 12 | U7: 13 | V7: 14 | W7: 15 | X7: 16 | Y7: 17 | Z7: 18 | AA7: 19 | AB7: 20 | AC7: 21 | AD7: 22 | AE7: 23 | AF7: 24 | AG7: 25 | AH7: 26 | AI7: 27 | AJ7: 28 | AK7: 29 | AL7: 30 | AM7: 31 | AN7: 32 | AO7: 33 | AP7: 34 | AQ7: 35 | AR7: 36 | AS7: 37 | AT7: 38 | AU7: 39 | AV7: 40
D8: Project Life | E8: Flag | F8: =INDEX('Project Database'!11:11,colum_num) -> 20 | I8: =I7<=$F$8 -> TRUE | J8: TRUE | K8: TRUE | L8: TRUE | M8: TRUE | N8: TRUE | O8: TRUE | P8: TRUE | Q8: TRUE | R8: TRUE | S8: TRUE | T8: TRUE | U8: TRUE | V8: TRUE | W8: TRUE | X8: TRUE | Y8: TRUE | Z8: TRUE | AA8: TRUE | AB8: TRUE | AC8: FALSE | AD8: FALSE | AE8: FALSE | AF8: FALSE | AG8: FALSE | AH8: FALSE | AI8: FALSE | AJ8: FALSE | AK8: FALSE | AL8: FALSE | AM8: FALSE | AN8: FALSE | AO8: FALSE | AP8: FALSE | AQ8: FALSE | AR8: FALSE | AS8: FALSE | AT8: FALSE | AU8: FALSE | AV8: FALSE
D9: PPA Term (years) | E9: Flag | F9: =INDEX('Project Database'!12:12,colum_num) -> 20 | I9: =I7<=$F$9 -> TRUE | J9: TRUE | K9: TRUE | L9: TRUE | M9: TRUE | N9: TRUE | O9: TRUE | P9: TRUE | Q9: TRUE | R9: TRUE | S9: TRUE | T9: TRUE | U9: TRUE | V9: TRUE | W9: TRUE | X9: TRUE | Y9: TRUE | Z9: TRUE | AA9: TRUE | AB9: TRUE | AC9: FALSE | AD9: FALSE | AE9: FALSE | AF9: FALSE | AG9: FALSE | AH9: FALSE | AI9: FALSE | AJ9: FALSE | AK9: FALSE | AL9: FALSE | AM9: FALSE | AN9: FALSE | AO9: FALSE | AP9: FALSE | AQ9: FALSE | AR9: FALSE | AS9: FALSE | AT9: FALSE | AU9: FALSE | AV9: FALSE
D10: LOB Loan Term (years) | E10: Flag | F10: =INDEX('Project Database'!13:13,colum_num) -> 20 | I10: =I7<=$F$10 -> TRUE | J10: TRUE | K10: TRUE | L10: TRUE | M10: TRUE | N10: TRUE | O10: TRUE | P10: TRUE | Q10: TRUE | R10: TRUE | S10: TRUE | T10: TRUE | U10: TRUE | V10: TRUE | W10: TRUE | X10: TRUE | Y10: TRUE | Z10: TRUE | AA10: TRUE | AB10: TRUE | AC10: FALSE | AD10: FALSE | AE10: FALSE | AF10: FALSE | AG10: FALSE | AH10: FALSE | AI10: FALSE | AJ10: FALSE | AK10: FALSE | AL10: FALSE | AM10: FALSE | AN10: FALSE | AO10: FALSE | AP10: FALSE | AQ10: FALSE | AR10: FALSE | AS10: FALSE | AT10: FALSE | AU10: FALSE | AV10: FALSE
D11: Debt Repayment Period | E11: Flag | F11: ='General Inputs'!F23 -> 12 | I11: =IF(I10,I4=$F$11) -> TRUE | J11: TRUE | K11: TRUE | L11: TRUE | M11: TRUE | N11: TRUE | O11: TRUE | P11: TRUE | Q11: TRUE | R11: TRUE | S11: TRUE | T11: TRUE | U11: TRUE | V11: TRUE | W11: TRUE | X11: TRUE | Y11: TRUE | Z11: TRUE | AA11: TRUE | AB11: TRUE | AC11: FALSE | AD11: FALSE | AE11: FALSE | AF11: FALSE | AG11: FALSE | AH11: FALSE | AI11: FALSE | AJ11: FALSE | AK11: FALSE | AL11: FALSE | AM11: FALSE | AN11: FALSE | AO11: FALSE | AP11: FALSE | AQ11: FALSE | AR11: FALSE | AS11: FALSE | AT11: FALSE | AU11: FALSE | AV11: FALSE
D13: Developer | E13: =INDEX('Project Database'!5:5,colum_num) -> Cap Vert Energie | H13: Location | J13: New Marlborough, MA | M13: NERC Region | N13: =INDEX('Project Database'!8:8,colum_num) -> ISONE - WCMA | P13: PPA Off-Taker | Q13: =INDEX('Project Database'!9:9,colum_num) -> NGRID | T13: Knight Road
B15: Operating Cash Flow
C16: Production
D17: Capacity (MW DC) | E17: MWp | F17: =INDEX('Project Database'!18:18,colum_num) -> 6.5232 | I17: =$F$17 -> 6.5232 | J17: =$F$17 -> 6.5232 | K17: 6.5232 | L17: 6.5232 | M17: 6.5232 | N17: 6.5232 | O17: 6.5232 | P17: 6.5232 | Q17: 6.5232 | R17: 6.5232 | S17: 6.5232 | T17: 6.5232 | U17: 6.5232 | V17: 6.5232 | W17: 6.5232 | X17: 6.5232 | Y17: 6.5232 | Z17: 6.5232 | AA17: 6.5232 | AB17: 6.5232 | AC17: 6.5232 | AD17: 6.5232 | AE17: 6.5232 | AF17: 6.5232 | AG17: 6.5232 | AH17: 6.5232 | AI17: 6.5232 | AJ17: 6.5232 | AK17: 6.5232 | AL17: 6.5232 | AM17: 6.5232 | AN17: 6.5232 | AO17: 6.5232 | AP17: 6.5232 | AQ17: 6.5232 | AR17: 6.5232 | AS17: 6.5232 | AT17: 6.5232 | AU17: 6.5232 | AV17: 6.5232
G18: Availability | H18: 1st Yr Producion
D19: Annual Production (kWh) - P50 Case | E19: kWh | F19: =INDEX('Project Database'!17:17,colum_num) -> -0.005 | G19: =INDEX('Project Database'!23:23,colum_num) -> 0.99 | H19: =INDEX('Project Database'!19:19,colum_num) -> 8101814.4 | I19: =H19*G19 -> 8020796.256 | J19: =+I19*(1+$F19)*J8 -> 7980692.275 | K19: =+J19*(1+$F$19)*K8 -> 7940788.813 | L19: 7901084.869 | M19: 7861579.445 | N19: 7822271.548 | O19: 7783160.19 | P19: 7744244.389 | Q19: 7705523.167 | R19: 7666995.551 | S19: 7628660.573 | T19: 7590517.271 | U19: 7552564.684 | V19: 7514801.861 | W19: 7477227.852 | X19: 7439841.712 | Y19: 7402642.504 | Z19: 7365629.291 | AA19: 7328801.145 | AB19: 7292157.139 | AC19: 0 | AD19: 0 | AE19: 0 | AF19: 0 | AG19: 0 | AH19: 0 | AI19: 0 | AJ19: 0 | AK19: 0 | AL19: 0 | AM19: 0 | AN19: 0 | AO19: 0 | AP19: 0 | AQ19: 0 | AR19: 0 | AS19: 0 | AT19: 0 | AU19: 0 | AV19: 0
D20: Annual Production (kWh) - P90 Case | E20: kWh | F20: =F19 -> -0.005 | G20: =G19 -> 0.99 | H20: =INDEX('Project Database'!26:26,colum_num) -> 7384000 | I20: =H20*G20 -> 7310160 | J20: =+I20*(1+$F20)*J9 -> 7273609.2 | K20: =+J20*(1+$F20)*K9 -> 7237241.154 | L20: 7201054.948 | M20: 7165049.673 | N20: 7129224.425 | O20: 7093578.303 | P20: 7058110.411 | Q20: 7022819.859 | R20: 6987705.76 | S20: 6952767.231 | T20: 6918003.395 | U20: 6883413.378 | V20: 6848996.311 | W20: 6814751.33 | X20: 6780677.573 | Y20: 6746774.185 | Z20: 6713040.314 | AA20: 6679475.113 | AB20: 6646077.737 | AC20: 0 | AD20: 0 | AE20: 0 | AF20: 0 | AG20: 0 | AH20: 0 | AI20: 0 | AJ20: 0 | AK20: 0 | AL20: 0 | AM20: 0 | AN20: 0 | AO20: 0 | AP20: 0 | AQ20: 0 | AR20: 0 | AS20: 0 | AT20: 0 | AU20: 0 | AV20: 0
D21: Annual Production (kWh) - P99 Case | E21: kWh | F21: =F20 -> -0.005 | G21: =G20 -> 0.99 | H21: =INDEX('Project Database'!29:29,colum_num) -> 6799000 | I21: =H21*G21 -> 6731010 | J21: =+I21*(1+$F21)*J10 -> 6697354.95 | K21: 6663868.175 | L21: 6630548.834 | M21: 6597396.09 | N21: 6564409.11 | O21: 6531587.064 | P21: 6498929.129 | Q21: 6466434.483 | R21: 6434102.311 | S21: 6401931.799 | T21: 6369922.14 | U21: 6338072.53 | V21: 6306382.167 | W21: 6274850.256 | X21: 6243476.005 | Y21: 6212258.625 | Z21: 6181197.332 | AA21: 6150291.345 | AB21: 6119539.888 | AC21: 0 | AD21: 0 | AE21: 0 | AF21: 0 | AG21: 0 | AH21: 0 | AI21: 0 | AJ21: 0 | AK21: 0 | AL21: 0 | AM21: 0 | AN21: 0 | AO21: 0 | AP21: 0 | AQ21: 0 | AR21: 0 | AS21: 0 | AT21: 0 | AU21: 0 | AV21: 0
D24: Rate Projections ($/kWh) ALL-IN RATE | E24: $/kWh | I24: =IF(I9,INDEX(all_in_rate,I7,colum_num)) -> 0.17163 | J24: =IF(J9,INDEX(all_in_rate,J7,colum_num)) -> 0.1715785 | K24: =IF(K9,INDEX(all_in_rate,K7,colum_num)) -> 0.1715267425 | L24: =IF(L9,INDEX(all_in_rate,L7,colum_num)) -> 0.1714747262 | M24: =IF(M9,INDEX(all_in_rate,M7,colum_num)) -> 0.1714224498 | N24: =IF(N9,INDEX(all_in_rate,N7,colum_num)) -> 0.1713699121 | O24: =IF(O9,INDEX(all_in_rate,O7,colum_num)) -> 0.1713171117 | P24: =IF(P9,INDEX(all_in_rate,P7,colum_num)) -> 0.1712640472 | Q24: =IF(Q9,INDEX(all_in_rate,Q7,colum_num)) -> 0.1712107174 | R24: =IF(R9,INDEX(all_in_rate,R7,colum_num)) -> 0.171157121 | S24: =IF(S9,INDEX(all_in_rate,S7,colum_num)) -> 0.1711032566 | T24: =IF(T9,INDEX(all_in_rate,T7,colum_num)) -> 0.1710491229 | U24: =IF(U9,INDEX(all_in_rate,U7,colum_num)) -> 0.1709947185 | V24: =IF(V9,INDEX(all_in_rate,V7,colum_num)) -> 0.1709400421 | W24: =IF(W9,INDEX(all_in_rate,W7,colum_num)) -> 0.1708850923 | X24: =IF(X9,INDEX(all_in_rate,X7,colum_num)) -> 0.1708298678 | Y24: =IF(Y9,INDEX(all_in_rate,Y7,colum_num)) -> 0.1707743671 | Z24: =IF(Z9,INDEX(all_in_rate,Z7,colum_num)) -> 0.170718589 | AA24: =IF(AA9,INDEX(all_in_rate,AA7,colum_num)) -> 0.1706625319 | AB24: =IF(AB9,INDEX(all_in_rate,AB7,colum_num)) -> 0.1706061946 | AC24: =IF(AC9,INDEX(all_in_rate,AC7,colum_num)) -> FALSE | AD24: =IF(AD9,INDEX(all_in_rate,AD7,colum_num)) -> FALSE | AE24: =IF(AE9,INDEX(all_in_rate,AE7,colum_num)) -> FALSE | AF24: =IF(AF9,INDEX(all_in_rate,AF7,colum_num)) -> FALSE | AG24: =IF(AG9,INDEX(all_in_rate,AG7,colum_num)) -> FALSE | AH24: =IF(AH9,INDEX(all_in_rate,AH7,colum_num)) -> FALSE | AI24: =IF(AI9,INDEX(all_in_rate,AI7,colum_num)) -> FALSE | AJ24: =IF(AJ9,INDEX(all_in_rate,AJ7,colum_num)) -> FALSE | AK24: =IF(AK9,INDEX(all_in_rate,AK7,colum_num)) -> FALSE | AL24: =IF(AL9,INDEX(all_in_rate,AL7,colum_num)) -> FALSE | AM24: =IF(AM9,INDEX(all_in_rate,AM7,colum_num)) -> FALSE | AN24: =IF(AN9,INDEX(all_in_rate,AN7,colum_num)) -> FALSE | AO24: =IF(AO9,INDEX(all_in_rate,AO7,colum_num)) -> FALSE | AP24: =IF(AP9,INDEX(all_in_rate,AP7,colum_num)) -> FALSE | AQ24: =IF(AQ9,INDEX(all_in_rate,AQ7,colum_num)) -> FALSE | AR24: =IF(AR9,INDEX(all_in_rate,AR7,colum_num)) -> FALSE | AS24: =IF(AS9,INDEX(all_in_rate,AS7,colum_num)) -> FALSE | AT24: =IF(AT9,INDEX(all_in_rate,AT7,colum_num)) -> FALSE | AU24: =IF(AU9,INDEX(all_in_rate,AU7,colum_num)) -> FALSE | AV24: =IF(AV9,INDEX(all_in_rate,AV7,colum_num)) -> FALSE
D25: Rate Projections ($/kWh) NO CS ADDER | E25: $/kWh | I25: =IF(I9,INDEX(no_cs_rate,I7,colum_num)*I9) -> 0.12739 | J25: =IF(J9,INDEX(no_cs_rate,J7,colum_num)*J9) -> 0.1273385 | K25: =IF(K9,INDEX(no_cs_rate,K7,colum_num)*K9) -> 0.1272867425 | L25: =IF(L9,INDEX(no_cs_rate,L7,colum_num)*L9) -> 0.1272347262 | M25: =IF(M9,INDEX(no_cs_rate,M7,colum_num)*M9) -> 0.1271824498 | N25: =IF(N9,INDEX(no_cs_rate,N7,colum_num)*N9) -> 0.1271299121 | O25: =IF(O9,INDEX(no_cs_rate,O7,colum_num)*O9) -> 0.1270771117 | P25: =IF(P9,INDEX(no_cs_rate,P7,colum_num)*P9) -> 0.1270240472 | Q25: =IF(Q9,INDEX(no_cs_rate,Q7,colum_num)*Q9) -> 0.1269707174 | R25: =IF(R9,INDEX(no_cs_rate,R7,colum_num)*R9) -> 0.126917121 | S25: =IF(S9,INDEX(no_cs_rate,S7,colum_num)*S9) -> 0.1268632566 | T25: =IF(T9,INDEX(no_cs_rate,T7,colum_num)*T9) -> 0.1268091229 | U25: =IF(U9,INDEX(no_cs_rate,U7,colum_num)*U9) -> 0.1267547185 | V25: =IF(V9,INDEX(no_cs_rate,V7,colum_num)*V9) -> 0.1267000421 | W25: =IF(W9,INDEX(no_cs_rate,W7,colum_num)*W9) -> 0.1266450923 | X25: =IF(X9,INDEX(no_cs_rate,X7,colum_num)*X9) -> 0.1265898678 | Y25: =IF(Y9,INDEX(no_cs_rate,Y7,colum_num)*Y9) -> 0.1265343671 | Z25: =IF(Z9,INDEX(no_cs_rate,Z7,colum_num)*Z9) -> 0.126478589 | AA25: =IF(AA9,INDEX(no_cs_rate,AA7,colum_num)*AA9) -> 0.1264225319 | AB25: =IF(AB9,INDEX(no_cs_rate,AB7,colum_num)*AB9) -> 0.1263661946 | AC25: =IF(AC9,INDEX(no_cs_rate,AC7,colum_num)*AC9) -> FALSE | AD25: =IF(AD9,INDEX(no_cs_rate,AD7,colum_num)*AD9) -> FALSE | AE25: =IF(AE9,INDEX(no_cs_rate,AE7,colum_num)*AE9) -> FALSE | AF25: =IF(AF9,INDEX(no_cs_rate,AF7,colum_num)*AF9) -> FALSE | AG25: =IF(AG9,INDEX(no_cs_rate,AG7,colum_num)*AG9) -> FALSE | AH25: =IF(AH9,INDEX(no_cs_rate,AH7,colum_num)*AH9) -> FALSE | AI25: =IF(AI9,INDEX(no_cs_rate,AI7,colum_num)*AI9) -> FALSE | AJ25: =IF(AJ9,INDEX(no_cs_rate,AJ7,colum_num)*AJ9) -> FALSE | AK25: =IF(AK9,INDEX(no_cs_rate,AK7,colum_num)*AK9) -> FALSE | AL25: =IF(AL9,INDEX(no_cs_rate,AL7,colum_num)*AL9) -> FALSE | AM25: =IF(AM9,INDEX(no_cs_rate,AM7,colum_num)*AM9) -> FALSE | AN25: =IF(AN9,INDEX(no_cs_rate,AN7,colum_num)*AN9) -> FALSE | AO25: =IF(AO9,INDEX(no_cs_rate,AO7,colum_num)*AO9) -> FALSE | AP25: =IF(AP9,INDEX(no_cs_rate,AP7,colum_num)*AP9) -> FALSE | AQ25: =IF(AQ9,INDEX(no_cs_rate,AQ7,colum_num)*AQ9) -> FALSE | AR25: =IF(AR9,INDEX(no_cs_rate,AR7,colum_num)*AR9) -> FALSE | AS25: =IF(AS9,INDEX(no_cs_rate,AS7,colum_num)*AS9) -> FALSE | AT25: =IF(AT9,INDEX(no_cs_rate,AT7,colum_num)*AT9) -> FALSE | AU25: =IF(AU9,INDEX(no_cs_rate,AU7,colum_num)*AU9) -> FALSE | AV25: =IF(AV9,INDEX(no_cs_rate,AV7,colum_num)*AV9) -> FALSE
D26: Rate Applied before Pollinator Adder | E26: $/kWh | F26: =INDEX('Project Database'!34:34,colum_num) -> TRUE | I26: =IF(F26,I24,I25) -> 0.17163 | J26: =IF(G26,J24,J25) -> 0.1273385 | K26: 0.1272867425 | L26: 0.1714747262 | M26: 0.1714224498 | N26: 0.1713699121 | O26: 0.1713171117 | P26: 0.1712640472 | Q26: 0.1712107174 | R26: 0.171157121 | S26: 0.1711032566 | T26: 0.1710491229 | U26: 0.1709947185 | V26: 0.1709400421 | W26: 0.1708850923 | X26: 0.1708298678 | Y26: 0.1707743671 | Z26: 0.170718589 | AA26: 0.1706625319 | AB26: 0.1706061946 | AC26: FALSE | AD26: FALSE | AE26: FALSE | AF26: FALSE | AG26: FALSE | AH26: FALSE | AI26: FALSE | AJ26: FALSE | AK26: FALSE | AL26: FALSE | AM26: FALSE | AN26: FALSE | AO26: FALSE | AP26: FALSE | AQ26: FALSE | AR26: FALSE | AS26: FALSE | AT26: FALSE | AU26: FALSE | AV26: FALSE
D27: Pollinator Adder | E27: $/kWh | F27: =INDEX('Project Database'!35:35,colum_num) -> 0.0025 | I27: =$F$27 -> 0.0025 | J27: =$F$27 -> 0.0025 | K27: 0.0025 | L27: 0.0025 | M27: 0.0025 | N27: 0.0025 | O27: 0.0025 | P27: 0.0025 | Q27: 0.0025 | R27: 0.0025 | S27: 0.0025 | T27: 0.0025 | U27: 0.0025 | V27: 0.0025 | W27: 0.0025 | X27: 0.0025 | Y27: 0.0025 | Z27: 0.0025 | AA27: 0.0025 | AB27: 0.0025 | AC27: 0.0025 | AD27: 0.0025 | AE27: 0.0025 | AF27: 0.0025 | AG27: 0.0025 | AH27: 0.0025 | AI27: 0.0025 | AJ27: 0.0025 | AK27: 0.0025 | AL27: 0.0025 | AM27: 0.0025 | AN27: 0.0025 | AO27: 0.0025 | AP27: 0.0025 | AQ27: 0.0025 | AR27: 0.0025 | AS27: 0.0025 | AT27: 0.0025 | AU27: 0.0025 | AV27: 0.0025
D28: Total PPA Rate Applied | E28: $/kWh | I28: =I27+I26 -> 0.17413 | J28: =J27+J26 -> 0.1298385 | K28: 0.1297867425 | L28: 0.1739747262 | M28: 0.1739224498 | N28: 0.1738699121 | O28: 0.1738171117 | P28: 0.1737640472 | Q28: 0.1737107174 | R28: 0.173657121 | S28: 0.1736032566 | T28: 0.1735491229 | U28: 0.1734947185 | V28: 0.1734400421 | W28: 0.1733850923 | X28: 0.1733298678 | Y28: 0.1732743671 | Z28: 0.173218589 | AA28: 0.1731625319 | AB28: 0.1731061946 | AC28: 0.0025 | AD28: 0.0025 | AE28: 0.0025 | AF28: 0.0025 | AG28: 0.0025 | AH28: 0.0025 | AI28: 0.0025 | AJ28: 0.0025 | AK28: 0.0025 | AL28: 0.0025 | AM28: 0.0025 | AN28: 0.0025 | AO28: 0.0025 | AP28: 0.0025 | AQ28: 0.0025 | AR28: 0.0025 | AS28: 0.0025 | AT28: 0.0025 | AU28: 0.0025 | AV28: 0.0025
D29: Post PPA Average Price ($/kWh) | E29: $/kWh | I29: 0 | J29: 0 | K29: 0 | L29: 0 | M29: 0 | N29: 0 | O29: 0 | P29: 0 | Q29: 0 | R29: 0 | S29: 0 | T29: 0 | U29: 0 | V29: 0 | W29: 0 | X29: 0 | Y29: 0 | Z29: 0 | AA29: 0 | AB29: 0 | AC29: 0 | AD29: 0 | AE29: 0 | AF29: 0 | AG29: 0 | AH29: 0 | AI29: 0 | AJ29: 0 | AK29: 0 | AL29: 0 | AM29: 0 | AN29: 0 | AO29: 0 | AP29: 0 | AQ29: 0 | AR29: 0 | AS29: 0 | AT29: 0 | AU29: 0 | AV29: 0
D30: Post PPA Base NG Price ($/kWh)* | E30: $/kWh | I30: =LOOKUP(I5,'General Inputs'!14:14,'General Inputs'!15:15) -> 0.03745 | J30: =LOOKUP(J5,'General Inputs'!14:14,'General Inputs'!15:15) -> 0.0357 | K30: =LOOKUP(K5,'General Inputs'!14:14,'General Inputs'!15:15) -> 0.03407 | L30: =LOOKUP(L5,'General Inputs'!14:14,'General Inputs'!15:15) -> 0.03483 | M30: =LOOKUP(M5,'General Inputs'!14:14,'General Inputs'!15:15) -> 0.03603 | N30: =LOOKUP(N5,'General Inputs'!14:14,'General Inputs'!15:15) -> 0.03789 | O30: =LOOKUP(O5,'General Inputs'!14:14,'General Inputs'!15:15) -> 0.03793 | P30: =LOOKUP(P5,'General Inputs'!14:14,'General Inputs'!15:15) -> 0.03826 | Q30: =LOOKUP(Q5,'General Inputs'!14:14,'General Inputs'!15:15) -> 0.03837 | R30: =LOOKUP(R5,'General Inputs'!14:14,'General Inputs'!15:15) -> 0.03879 | S30: =LOOKUP(S5,'General Inputs'!14:14,'General Inputs'!15:15) -> 0.03871 | T30: =LOOKUP(T5,'General Inputs'!14:14,'General Inputs'!15:15) -> 0.03876 | U30: =LOOKUP(U5,'General Inputs'!14:14,'General Inputs'!15:15) -> 0.03881 | V30: =LOOKUP(V5,'General Inputs'!14:14,'General Inputs'!15:15) -> 0.03882 | W30: =LOOKUP(W5,'General Inputs'!14:14,'General Inputs'!15:15) -> 0.03896 | X30: =LOOKUP(X5,'General Inputs'!14:14,'General Inputs'!15:15) -> 0.03937 | Y30: =LOOKUP(Y5,'General Inputs'!14:14,'General Inputs'!15:15) -> 0.03942 | Z30: =LOOKUP(Z5,'General Inputs'!14:14,'General Inputs'!15:15) -> 0.03934 | AA30: =LOOKUP(AA5,'General Inputs'!14:14,'General Inputs'!15:15) -> 0.03962 | AB30: =LOOKUP(AB5,'General Inputs'!14:14,'General Inputs'!15:15) -> 0.03961 | AC30: =LOOKUP(AC5,'General Inputs'!14:14,'General Inputs'!15:15) -> 0.03961 | AD30: =LOOKUP(AD5,'General Inputs'!14:14,'General Inputs'!15:15) -> 0.03961 | AE30: =LOOKUP(AE5,'General Inputs'!14:14,'General Inputs'!15:15) -> 0.03961 | AF30: =LOOKUP(AF5,'General Inputs'!14:14,'General Inputs'!15:15) -> 0.03961 | AG30: =LOOKUP(AG5,'General Inputs'!14:14,'General Inputs'!15:15) -> 0.03961 | AH30: =LOOKUP(AH5,'General Inputs'!14:14,'General Inputs'!15:15) -> 0.03961 | AI30: =LOOKUP(AI5,'General Inputs'!14:14,'General Inputs'!15:15) -> 0.03961 | AJ30: =LOOKUP(AJ5,'General Inputs'!14:14,'General Inputs'!15:15) -> 0.03961 | AK30: =LOOKUP(AK5,'General Inputs'!14:14,'General Inputs'!15:15) -> 0.03961 | AL30: =LOOKUP(AL5,'General Inputs'!14:14,'General Inputs'!15:15) -> 0.03961 | AM30: =LOOKUP(AM5,'General Inputs'!14:14,'General Inputs'!15:15) -> 0.03961 | AN30: =LOOKUP(AN5,'General Inputs'!14:14,'General Inputs'!15:15) -> 0.03961 | AO30: =LOOKUP(AO5,'General Inputs'!14:14,'General Inputs'!15:15) -> 0.03961 | AP30: =LOOKUP(AP5,'General Inputs'!14:14,'General Inputs'!15:15) -> 0.03961 | AQ30: =LOOKUP(AQ5,'General Inputs'!14:14,'General Inputs'!15:15) -> 0.03961 | AR30: =LOOKUP(AR5,'General Inputs'!14:14,'General Inputs'!15:15) -> 0.03961 | AS30: =LOOKUP(AS5,'General Inputs'!14:14,'General Inputs'!15:15) -> 0.03961 | AT30: =LOOKUP(AT5,'General Inputs'!14:14,'General Inputs'!15:15) -> 0.03961 | AU30: =LOOKUP(AU5,'General Inputs'!14:14,'General Inputs'!15:15) -> 0.03961 | AV30: =LOOKUP(AV5,'General Inputs'!14:14,'General Inputs'!15:15) -> 0.03961
D31: Estimated REC price ($/kWh) | I31: 0 | J31: 0 | K31: 0 | L31: 0 | M31: 0 | N31: 0 | O31: 0 | P31: 0 | Q31: 0 | R31: 0 | S31: 0 | T31: 0 | U31: 0 | V31: 0 | W31: 0 | X31: 0 | Y31: 0 | Z31: 0 | AA31: 0 | AB31: 0 | AC31: 0 | AD31: 0 | AE31: 0 | AF31: 0 | AG31: 0 | AH31: 0 | AI31: 0 | AJ31: 0 | AK31: 0 | AL31: 0 | AM31: 0 | AN31: 0 | AO31: 0 | AP31: 0 | AQ31: 0 | AR31: 0 | AS31: 0 | AT31: 0 | AU31: 0 | AV31: 0
C33: Revenues (P50)
D34: Contracted PPA Revenue | I34: =I19*(I28)*I9 -> 1396661.252 | J34: 1036201.114 | K34: 1030609.113 | L34: 1374589.077 | M34: 1367305.157 | N34: 1360057.666 | O34: 1352846.424 | P34: 1345671.248 | Q34: 1338531.958 | R34: 1331428.374 | S34: 1324360.319 | T34: 1317327.615 | U34: 1310330.084 | V34: 1303367.551 | W34: 1296439.841 | X34: 1289546.78 | Y34: 1282688.195 | Z34: 1275863.913 | AA34: 1269073.762 | AB34: 1262317.573 | AC34: 0 | AD34: 0 | AE34: 0 | AF34: 0 | AG34: 0 | AH34: 0 | AI34: 0 | AJ34: 0 | AK34: 0 | AL34: 0 | AM34: 0 | AN34: 0 | AO34: 0 | AP34: 0 | AQ34: 0 | AR34: 0 | AS34: 0 | AT34: 0 | AU34: 0 | AV34: 0
D35: Post PPA Revenue | I35: =I29*I19*NOT(I9) -> 0 | J35: 0 | K35: 0 | L35: 0 | M35: 0 | N35: 0 | O35: 0 | P35: 0 | Q35: 0 | R35: 0 | S35: 0 | T35: 0 | U35: 0 | V35: 0 | W35: 0 | X35: 0 | Y35: 0 | Z35: 0 | AA35: 0 | AB35: 0 | AC35: 0 | AD35: 0 | AE35: 0 | AF35: 0 | AG35: 0 | AH35: 0 | AI35: 0 | AJ35: 0 | AK35: 0 | AL35: 0 | AM35: 0 | AN35: 0 | AO35: 0 | AP35: 0 | AQ35: 0 | AR35: 0 | AS35: 0 | AT35: 0 | AU35: 0 | AV35: 0
D36: Post PPA Revenue Base NG | I36: =I19*I30*NOT(I9) -> 0 | J36: 0 | K36: 0 | L36: 0 | M36: 0 | N36: 0 | O36: 0 | P36: 0 | Q36: 0 | R36: 0 | S36: 0 | T36: 0 | U36: 0 | V36: 0 | W36: 0 | X36: 0 | Y36: 0 | Z36: 0 | AA36: 0 | AB36: 0 | AC36: 0 | AD36: 0 | AE36: 0 | AF36: 0 | AG36: 0 | AH36: 0 | AI36: 0 | AJ36: 0 | AK36: 0 | AL36: 0 | AM36: 0 | AN36: 0 | AO36: 0 | AP36: 0 | AQ36: 0 | AR36: 0 | AS36: 0 | AT36: 0 | AU36: 0 | AV36: 0
D37: Projected REC Revenue | I37: =I19*I31 -> 0 | J37: 0 | K37: 0 | L37: 0 | M37: 0 | N37: 0 | O37: 0 | P37: 0 | Q37: 0 | R37: 0 | S37: 0 | T37: 0 | U37: 0 | V37: 0 | W37: 0 | X37: 0 | Y37: 0 | Z37: 0 | AA37: 0 | AB37: 0
D38: Gross Projected Revenue | I38: =SUM(I34:I37) -> 1396661.252 | J38: =SUM(J34:J37) -> 1036201.114 | K38: 1030609.113 | L38: 1374589.077 | M38: 1367305.157 | N38: 1360057.666 | O38: 1352846.424 | P38: 1345671.248 | Q38: 1338531.958 | R38: 1331428.374 | S38: 1324360.319 | T38: 1317327.615 | U38: 1310330.084 | V38: 1303367.551 | W38: 1296439.841 | X38: 1289546.78 | Y38: 1282688.195 | Z38: 1275863.913 | AA38: 1269073.762 | AB38: 1262317.573 | AC38: 0 | AD38: 0 | AE38: 0 | AF38: 0 | AG38: 0 | AH38: 0 | AI38: 0 | AJ38: 0 | AK38: 0 | AL38: 0 | AM38: 0 | AN38: 0 | AO38: 0 | AP38: 0 | AQ38: 0 | AR38: 0 | AS38: 0 | AT38: 0 | AU38: 0 | AV38: 0
C40: Operating Expenses | F40: price per kW | G40: Escalators
D41: Haircut % in Final Year | F41: 0.75
D42: O&M | F42: =IFERROR((I42/1000)/$F$17,"-") -> 11.45588055 | G42: =INDEX('Project Database'!94:94,colum_num) -> 0.015 | I42: =INDEX('Project Database'!82:82,colum_num) -> 74729 | J42: =I42*(1+$G$42)*J8 -> 75849.935 | K42: 76987.68402 | L42: 78142.49929 | M42: 79314.63677 | N42: 80504.35633 | O42: 81711.92167 | P42: 82937.6005 | Q42: 84181.6645 | R42: 85444.38947 | S42: 86726.05531 | T42: 88026.94614 | U42: 89347.35034 | V42: 90687.56059 | W42: 92047.874 | X42: 93428.59211 | Y42: 94830.02099 | Z42: 96252.47131 | AA42: 97696.25838 | AB42: 99161.70225 | AC42: 0 | AD42: 0 | AE42: 0 | AF42: 0 | AG42: 0 | AH42: 0 | AI42: 0 | AJ42: 0 | AK42: 0 | AL42: 0 | AM42: 0 | AN42: 0 | AO42: 0 | AP42: 0 | AQ42: 0 | AR42: 0 | AS42: 0 | AT42: 0 | AU42: 0 | AV42: 0
D43: Insurance | F43: 2.806597989 | G43: =INDEX('Project Database'!95:95,colum_num) -> 0 | I43: =INDEX('Project Database'!83:83,colum_num) -> 18308 | J43: =I43*(1+$G$42)*J8 -> 18582.62 | K43: 18861.3593 | L43: 19144.27969 | M43: 19431.44388 | N43: 19722.91554 | O43: 20018.75928 | P43: 20319.04067 | Q43: 20623.82628 | R43: 20933.18367 | S43: 21247.18142 | T43: 21565.88915 | U43: 21889.37748 | V43: 22217.71815 | W43: 22550.98392 | X43: 22889.24868 | Y43: 23232.58741 | Z43: 23581.07622 | AA43: 23934.79236 | AB43: 24293.81425 | AC43: 0 | AD43: 0 | AE43: 0 | AF43: 0 | AG43: 0 | AH43: 0 | AI43: 0 | AJ43: 0 | AK43: 0 | AL43: 0 | AM43: 0 | AN43: 0 | AO43: 0 | AP43: 0 | AQ43: 0 | AR43: 0 | AS43: 0 | AT43: 0 | AU43: 0 | AV43: 0
D44: Rent/Lease | F44: 14.59406426 | G44: =INDEX('Project Database'!96:96,colum_num) -> 0 | I44: =INDEX('Project Database'!84:84,colum_num) -> 95200 | J44: =I44*(1+$G$42)*J8 -> 96628 | K44: 98077.42 | L44: 99548.5813 | M44: 101041.81 | N44: 102557.4372 | O44: 104095.7987 | P44: 105657.2357 | Q44: 107242.0942 | R44: 108850.7257 | S44: 110483.4865 | T44: 112140.7388 | U44: 113822.8499 | V44: 115530.1927 | W44: 117263.1456 | X44: 119022.0927 | Y44: 120807.4241 | Z44: 122619.5355 | AA44: 124458.8285 | AB44: 126325.711 | AC44: 0 | AD44: 0 | AE44: 0 | AF44: 0 | AG44: 0 | AH44: 0 | AI44: 0 | AJ44: 0 | AK44: 0 | AL44: 0 | AM44: 0 | AN44: 0 | AO44: 0 | AP44: 0 | AQ44: 0 | AR44: 0 | AS44: 0 | AT44: 0 | AU44: 0 | AV44: 0
D45: PILOT Expense | F45: 7.013428992 | G45: =INDEX('Project Database'!97:97,colum_num) -> 0 | I45: =INDEX('Project Database'!85:85,colum_num) -> 45750 | J45: =I45*(1+$G$42)*J8 -> 46436.25 | K45: 47132.79375 | L45: 47839.78566 | M45: 48557.38244 | N45: 49285.74318 | O45: 50025.02933 | P45: 50775.40477 | Q45: 51537.03584 | R45: 52310.09137 | S45: 53094.74274 | T45: 53891.16389 | U45: 54699.53134 | V45: 55520.02431 | W45: 56352.82468 | X45: 57198.11705 | Y45: 58056.08881 | Z45: 58926.93014 | AA45: 59810.83409 | AB45: 60707.9966 | AC45: 0 | AD45: 0 | AE45: 0 | AF45: 0 | AG45: 0 | AH45: 0 | AI45: 0 | AJ45: 0 | AK45: 0 | AL45: 0 | AM45: 0 | AN45: 0 | AO45: 0 | AP45: 0 | AQ45: 0 | AR45: 0 | AS45: 0 | AT45: 0 | AU45: 0 | AV45: 0
D46: Property Tax Pmt | F46: 0.06193279372 | G46: =INDEX('Project Database'!98:98,colum_num) -> 0.02 | I46: =INDEX('Project Database'!86:86,colum_num) -> 404 | J46: =I46*(1+$G$42)*J8 -> 410.06 | K46: 416.2109 | L46: 422.4540635 | M46: 428.7908745 | N46: 435.2227376 | O46: 441.7510786 | P46: 448.3773448 | Q46: 455.103005 | R46: 461.9295501 | S46: 468.8584933 | T46: 475.8913707 | U46: 483.0297413 | V46: 490.2751874 | W46: 497.6293152 | X46: 505.0937549 | Y46: 512.6701613 | Z46: 520.3602137 | AA46: 528.1656169 | AB46: 536.0881011 | AC46: 0 | AD46: 0 | AE46: 0 | AF46: 0 | AG46: 0 | AH46: 0 | AI46: 0 | AJ46: 0 | AK46: 0 | AL46: 0 | AM46: 0 | AN46: 0 | AO46: 0 | AP46: 0 | AQ46: 0 | AR46: 0 | AS46: 0 | AT46: 0 | AU46: 0 | AV46: 0
D47: Audit Fee | F47: 1.534216336 | G47: =INDEX('Project Database'!99:99,colum_num) -> 0.02 | I47: =INDEX('Project Database'!87:87,colum_num) -> 10008 | J47: =I47*(1+$G$42)*J8 -> 10158.12 | K47: 10310.4918 | L47: 10465.14918 | M47: 10622.12641 | N47: 10781.45831 | O47: 10943.18019 | P47: 11107.32789 | Q47: 11273.93781 | R47: 11443.04687 | S47: 11614.69258 | T47: 11788.91297 | U47: 11965.74666 | V47: 12145.23286 | W47: 12327.41135 | X47: 12512.32252 | Y47: 12700.00736 | Z47: 12890.50747 | AA47: 13083.86508 | AB47: 13280.12306 | AC47: 0 | AD47: 0 | AE47: 0 | AF47: 0 | AG47: 0 | AH47: 0 | AI47: 0 | AJ47: 0 | AK47: 0 | AL47: 0 | AM47: 0 | AN47: 0 | AO47: 0 | AP47: 0 | AQ47: 0 | AR47: 0 | AS47: 0 | AT47: 0 | AU47: 0 | AV47: 0
D48: Community Solar Fees | F48: 12.2251349 | G48: =INDEX('Project Database'!100:100,colum_num) -> 0.02 | I48: =INDEX('Project Database'!88:88,colum_num) -> 79747 | J48: =I48*(1+$G$42)*J8 -> 80943.205 | K48: 82157.35307 | L48: 83389.71337 | M48: 84640.55907 | N48: 85910.16746 | O48: 87198.81997 | P48: 88506.80227 | Q48: 89834.4043 | R48: 91181.92037 | S48: 92549.64917 | T48: 93937.89391 | U48: 95346.96232 | V48: 96777.16675 | W48: 98228.82426 | X48: 99702.25662 | Y48: 101197.7905 | Z48: 102715.7573 | AA48: 104256.4937 | AB48: 105820.3411 | AC48: 0 | AD48: 0 | AE48: 0 | AF48: 0 | AG48: 0 | AH48: 0 | AI48: 0 | AJ48: 0 | AK48: 0 | AL48: 0 | AM48: 0 | AN48: 0 | AO48: 0 | AP48: 0 | AQ48: 0 | AR48: 0 | AS48: 0 | AT48: 0 | AU48: 0 | AV48: 0
D49: Other Exp (Accounting) | F49: 0.9999693402 | G49: =INDEX('Project Database'!101:101,colum_num) -> 0.02 | I49: =INDEX('Project Database'!89:89,colum_num) -> 6523 | J49: =I49*(1+$G$42)*J8 -> 6620.845 | K49: 6720.157675 | L49: 6820.96004 | M49: 6923.274441 | N49: 7027.123557 | O49: 7132.530411 | P49: 7239.518367 | Q49: 7348.111142 | R49: 7458.332809 | S49: 7570.207802 | T49: 7683.760919 | U49: 7799.017332 | V49: 7916.002592 | W49: 8034.742631 | X49: 8155.263771 | Y49: 8277.592727 | Z49: 8401.756618 | AA49: 8527.782968 | AB49: 8655.699712 | AC49: 0 | AD49: 0 | AE49: 0 | AF49: 0 | AG49: 0 | AH49: 0 | AI49: 0 | AJ49: 0 | AK49: 0 | AL49: 0 | AM49: 0 | AN49: 0 | AO49: 0 | AP49: 0 | AQ49: 0 | AR49: 0 | AS49: 0 | AT49: 0 | AU49: 0 | AV49: 0
D50: Other Exp (Ins Deductibles) | F50: 0.2396063282 | G50: =INDEX('Project Database'!102:102,colum_num) -> 0.02 | I50: =INDEX('Project Database'!90:90,colum_num) -> 1563 | J50: =I50*(1+$G$42)*J8 -> 1586.445 | K50: 1610.241675 | L50: 1634.3953 | M50: 1658.91123 | N50: 1683.794898 | O50: 1709.051822 | P50: 1734.687599 | Q50: 1760.707913 | R50: 1787.118532 | S50: 1813.92531 | T50: 1841.134189 | U50: 1868.751202 | V50: 1896.78247 | W50: 1925.234207 | X50: 1954.11272 | Y50: 1983.424411 | Z50: 2013.175777 | AA50: 2043.373414 | AB50: 2074.024015 | AC50: 0 | AD50: 0 | AE50: 0 | AF50: 0 | AG50: 0 | AH50: 0 | AI50: 0 | AJ50: 0 | AK50: 0 | AL50: 0 | AM50: 0 | AN50: 0 | AO50: 0 | AP50: 0 | AQ50: 0 | AR50: 0 | AS50: 0 | AT50: 0 | AU50: 0 | AV50: 0
D51: Other Exp (Meter fees) | F51: 0.7010363012 | G51: =INDEX('Project Database'!103:103,colum_num) -> 0.02 | I51: =INDEX('Project Database'!91:91,colum_num) -> 4573 | J51: =I51*(1+$G$42)*J8 -> 4641.595 | K51: 4711.218925 | L51: 4781.887209 | M51: 4853.615517 | N51: 4926.41975 | O51: 5000.316046 | P51: 5075.320787 | Q51: 5151.450599 | R51: 5228.722357 | S51: 5307.153193 | T51: 5386.760491 | U51: 5467.561898 | V51: 5549.575327 | W51: 5632.818956 | X51: 5717.311241 | Y51: 5803.070909 | Z51: 5890.116973 | AA51: 5978.468728 | AB51: 6068.145759 | AC51: 0 | AD51: 0 | AE51: 0 | AF51: 0 | AG51: 0 | AH51: 0 | AI51: 0 | AJ51: 0 | AK51: 0 | AL51: 0 | AM51: 0 | AN51: 0 | AO51: 0 | AP51: 0 | AQ51: 0 | AR51: 0 | AS51: 0 | AT51: 0 | AU51: 0 | AV51: 0
D53: Parasitic Power Consumption | F53: Percent of Revenue | G53: =INDEX('Project Database'!119:119,colum_num) -> 0.0027 | I53: =$G$53*I38 -> 3770.985381 | J53: =$G$53*J38*J8 -> 2797.743008 | K53: 2782.644605 | L53: 3711.390508 | M53: 3691.723923 | N53: 3672.155699 | O53: 3652.685344 | P53: 3633.312369 | Q53: 3614.036286 | R53: 3594.856611 | S53: 3575.772862 | T53: 3556.78456 | U53: 3537.891227 | V53: 3519.092389 | W53: 3500.387572 | X53: 3481.776307 | Y53: 3463.258127 | Z53: 3444.832564 | AA53: 3426.499158 | AB53: 3408.257446 | AC53: 0 | AD53: 0 | AE53: 0 | AF53: 0 | AG53: 0 | AH53: 0 | AI53: 0 | AJ53: 0 | AK53: 0 | AL53: 0 | AM53: 0 | AN53: 0 | AO53: 0 | AP53: 0 | AQ53: 0 | AR53: 0 | AS53: 0 | AT53: 0 | AU53: 0 | AV53: 0
D54: Inverter Replacement Reserve | F54: 35 | N54: =($F$54*$F$17*1000)/10 -> 22831.2 | O54: 22831.2 | P54: 22831.2 | Q54: 22831.2 | R54: 22831.2 | S54: 22831.2 | T54: 22831.2 | U54: 22831.2 | V54: 22831.2 | W54: 22831.2
D55: Total Operating Expense | H55: =SUM(I55:AB55) -> 8086314.785 | I55: =SUM(I42:I54) -> 340575.9854 | J55: =SUM(J42:J54) -> 344654.818 | K55: 349767.5757 | L55: 355901.0956 | M55: 361164.2746 | N55: 389337.9946 | O55: 394761.0439 | P55: 400265.8283 | Q55: 405853.5719 | R55: 411525.5173 | S55: 417282.9254 | T55: 423127.0764 | U55: 429059.2695 | V55: 435080.8233 | W55: 441193.0764 | X55: 424566.1875 | Y55: 430863.9355 | Z55: 437256.5201 | AA55: 443745.362 | AB55: 450331.9032 | AC55: 0 | AD55: 0 | AE55: 0 | AF55: 0 | AG55: 0 | AH55: 0 | AI55: 0 | AJ55: 0 | AK55: 0 | AL55: 0 | AM55: 0 | AN55: 0 | AO55: 0 | AP55: 0 | AQ55: 0 | AR55: 0 | AS55: 0 | AT55: 0 | AU55: 0 | AV55: 0
D57: Cash Flow and Project IRR
D58: NOI/EBITDA | I58: =+I38-I55 -> 1056085.267 | J58: 691546.2959 | K58: 680841.5372 | L58: 1018687.981 | M58: 1006140.882 | N58: 970719.6717 | O58: 958085.3799 | P58: 945405.4194 | Q58: 932678.3857 | R58: 919902.8571 | S58: 907077.3939 | T58: 894200.5384 | U58: 881270.8147 | V58: 868286.728 | W58: 855246.765 | X58: 864980.5929 | Y58: 851824.2595 | Z58: 838607.3927 | AA58: 825328.4002 | AB58: 811985.6694 | AC58: 0 | AD58: 0 | AE58: 0 | AF58: 0 | AG58: 0 | AH58: 0 | AI58: 0 | AJ58: 0 | AK58: 0 | AL58: 0 | AM58: 0 | AN58: 0 | AO58: 0 | AP58: 0 | AQ58: 0 | AR58: 0 | AS58: 0 | AT58: 0 | AU58: 0 | AV58: 0
E59: Capacity MWp | F59: Cost/W
D60: Capital Expenditure | E60: =F17 -> 6.5232
D61: Project Cash Flow
C63: Debt Sizing in P50 Case
D64: CFADS for Debt Sizing over Debt Term | E64: $ | I64: =I10*I58 -> 1056085.267 | J64: 691546.2959 | K64: 680841.5372 | L64: 1018687.981 | M64: 1006140.882 | N64: 970719.6717 | O64: 958085.3799 | P64: 945405.4194 | Q64: 932678.3857 | R64: 919902.8571 | S64: 907077.3939 | T64: 894200.5384 | U64: 881270.8147 | V64: 868286.728 | W64: 855246.765 | X64: 864980.5929 | Y64: 851824.2595 | Z64: 838607.3927 | AA64: 825328.4002 | AB64: 811985.6694 | AC64: 0 | AD64: 0 | AE64: 0 | AF64: 0 | AG64: 0 | AH64: 0 | AI64: 0 | AJ64: 0 | AK64: 0 | AL64: 0 | AM64: 0 | AN64: 0 | AO64: 0 | AP64: 0 | AQ64: 0 | AR64: 0 | AS64: 0 | AT64: 0 | AU64: 0 | AV64: 0
D65: Target Debt Service | E65: $ | F65: ='General Inputs'!F9 -> 1.34 | I65: =I64/$F$65 -> 788123.3333 | J65: 516079.3253 | K65: 508090.6994 | L65: 760214.9114 | M65: 750851.4046 | N65: 724417.6655 | O65: 714989.0895 | P65: 705526.4324 | Q65: 696028.6461 | R65: 686494.6695 | S65: 676923.4283 | T65: 667313.8346 | U65: 657664.7871 | V65: 647975.1702 | W65: 638243.8545 | X65: 645507.9052 | Y65: 635689.7459 | Z65: 625826.4124 | AA65: 615916.7165 | AB65: 605959.4548 | AC65: 0 | AD65: 0 | AE65: 0 | AF65: 0 | AG65: 0 | AH65: 0 | AI65: 0 | AJ65: 0 | AK65: 0 | AL65: 0 | AM65: 0 | AN65: 0 | AO65: 0 | AP65: 0 | AQ65: 0 | AR65: 0 | AS65: 0 | AT65: 0 | AU65: 0 | AV65: 0
D66: Annual Intrest Rate Applied for P50 Debt Sizing | E66: % p.a. | F66: =INDEX('Project Database'!143:143,colum_num) -> 0.05434444444 | I66: =$F$66 -> 0.05434444444 | J66: 0.05434444444 | K66: 0.05434444444 | L66: 0.05434444444 | M66: 0.05434444444 | N66: 0.05434444444 | O66: 0.05434444444 | P66: 0.05434444444 | Q66: 0.05434444444 | R66: 0.05434444444 | S66: 0.05434444444 | T66: 0.05434444444 | U66: 0.05434444444 | V66: 0.05434444444 | W66: 0.05434444444 | X66: 0.05434444444 | Y66: 0.05434444444 | Z66: 0.05434444444 | AA66: 0.05434444444 | AB66: 0.05434444444 | AC66: 0.05434444444 | AD66: 0.05434444444 | AE66: 0.05434444444 | AF66: 0.05434444444 | AG66: 0.05434444444 | AH66: 0.05434444444 | AI66: 0.05434444444 | AJ66: 0.05434444444 | AK66: 0.05434444444 | AL66: 0.05434444444 | AM66: 0.05434444444 | AN66: 0.05434444444 | AO66: 0.05434444444 | AP66: 0.05434444444 | AQ66: 0.05434444444 | AR66: 0.05434444444 | AS66: 0.05434444444 | AT66: 0.05434444444 | AU66: 0.05434444444 | AV66: 0.05434444444
D67: Periodic Interest Rate | E67: % p.p. | F67: =F11 -> 12 | I67: =I66/12*$F$67 -> 0.05434444444 | J67: 0.05434444444 | K67: 0.05434444444 | L67: 0.05434444444 | M67: 0.05434444444 | N67: 0.05434444444 | O67: 0.05434444444 | P67: 0.05434444444 | Q67: 0.05434444444 | R67: 0.05434444444 | S67: 0.05434444444 | T67: 0.05434444444 | U67: 0.05434444444 | V67: 0.05434444444 | W67: 0.05434444444 | X67: 0.05434444444 | Y67: 0.05434444444 | Z67: 0.05434444444 | AA67: 0.05434444444 | AB67: 0.05434444444 | AC67: 0.05434444444 | AD67: 0.05434444444 | AE67: 0.05434444444 | AF67: 0.05434444444 | AG67: 0.05434444444 | AH67: 0.05434444444 | AI67: 0.05434444444 | AJ67: 0.05434444444 | AK67: 0.05434444444 | AL67: 0.05434444444 | AM67: 0.05434444444 | AN67: 0.05434444444 | AO67: 0.05434444444 | AP67: 0.05434444444 | AQ67: 0.05434444444 | AR67: 0.05434444444 | AS67: 0.05434444444 | AT67: 0.05434444444 | AU67: 0.05434444444 | AV67: 0.05434444444
D68: Interest Rate Factor for PV of Debt Service | E68: Index | H68: 1 | I68: =H68*(1+I67*I11) -> 1.054344444 | J68: 1.111642208 | K68: 1.172053786 | L68: 1.235748398 | M68: 1.302904458 | N68: 1.373710077 | O68: 1.448363588 | P68: 1.527074102 | Q68: 1.610062096 | R68: 1.697560026 | S68: 1.789812982 | T68: 1.887079375 | U68: 1.989631655 | V68: 2.097757082 | W68: 2.211758525 | X68: 2.331955313 | Y68: 2.458684129 | Z68: 2.592299952 | AA68: 2.733177053 | AB68: 2.881710042 | AC68: 2.881710042 | AD68: 2.881710042 | AE68: 2.881710042 | AF68: 2.881710042 | AG68: 2.881710042 | AH68: 2.881710042 | AI68: 2.881710042 | AJ68: 2.881710042 | AK68: 2.881710042 | AL68: 2.881710042 | AM68: 2.881710042 | AN68: 2.881710042 | AO68: 2.881710042 | AP68: 2.881710042 | AQ68: 2.881710042 | AR68: 2.881710042 | AS68: 2.881710042 | AT68: 2.881710042 | AU68: 2.881710042 | AV68: 2.881710042
D69: NPV of Debt Service | E69: $ | F69: =SUMPRODUCT(I65:AV65/I68:AV68) -> 8028677.689
D71: Fixed Debt Input | E71: $ | F71: =INDEX('Project Database'!127:127,colum_num) -> 8575000
D72: Level Payment with Fixed Issue | E72: $ | F72: =F66 -> 0.05434444444 | G72: =F10/F67*12 -> 20 | H72: =PMT(F72,G72,-F71) -> 713652.6117 | I72: =$H$72*I11 -> 713652.6117 | J72: 713652.6117 | K72: 713652.6117 | L72: 713652.6117 | M72: 713652.6117 | N72: 713652.6117 | O72: 713652.6117 | P72: 713652.6117 | Q72: 713652.6117 | R72: 713652.6117 | S72: 713652.6117 | T72: 713652.6117 | U72: 713652.6117 | V72: 713652.6117 | W72: 713652.6117 | X72: 713652.6117 | Y72: 713652.6117 | Z72: 713652.6117 | AA72: 713652.6117 | AB72: 713652.6117 | AC72: 0 | AD72: 0 | AE72: 0 | AF72: 0 | AG72: 0 | AH72: 0 | AI72: 0 | AJ72: 0 | AK72: 0 | AL72: 0 | AM72: 0 | AN72: 0 | AO72: 0 | AP72: 0 | AQ72: 0 | AR72: 0 | AS72: 0 | AT72: 0 | AU72: 0 | AV72: 0
D74: Apply Fixed Payment | E74: Flag | F74: ='General Inputs'!F10 -> FALSE | G74: =IF(F74,F71,F69) -> 8028677.689
D75: Debt Service Applied | E75: $ | F75: =F74 -> FALSE | I75: =IF($F$75,I72,I65) -> 788123.3333 | J75: 516079.3253 | K75: 508090.6994 | L75: 760214.9114 | M75: 750851.4046 | N75: 724417.6655 | O75: 714989.0895 | P75: 705526.4324 | Q75: 696028.6461 | R75: 686494.6695 | S75: 676923.4283 | T75: 667313.8346 | U75: 657664.7871 | V75: 647975.1702 | W75: 638243.8545 | X75: 645507.9052 | Y75: 635689.7459 | Z75: 625826.4124 | AA75: 615916.7165 | AB75: 605959.4548 | AC75: 0 | AD75: 0 | AE75: 0 | AF75: 0 | AG75: 0 | AH75: 0 | AI75: 0 | AJ75: 0 | AK75: 0 | AL75: 0 | AM75: 0 | AN75: 0 | AO75: 0 | AP75: 0 | AQ75: 0 | AR75: 0 | AS75: 0 | AT75: 0 | AU75: 0 | AV75: 0
D77: Opening Debt Balance | E77: $ | I77: =H79 -> 8575000 | J77: 8252880.278 | K77: 8185299.146 | L77: 8122033.982 | M77: 7803206.495 | N77: 7476416.012 | O77: 7158300.021 | P77: 6832324.769 | Q77: 6498097.231 | R77: 6155204.069 | S77: 5803210.545 | T77: 5441659.369 | U77: 5070069.49 | V77: 4687934.813 | W77: 4294722.856 | X77: 3889873.329 | Y77: 3455758.428 | Z77: 3007869.955 | AA77: 2545504.564 | AB77: 2067921.879 | AC77: 1574342.489 | AD77: 1659899.257 | AE77: 1750105.56 | AF77: 1845214.075 | AG77: 1945491.209 | AH77: 2051217.847 | AI77: 2162690.142 | AJ77: 2280220.336 | AK77: 2404137.643 | AL77: 2534789.168 | AM77: 2672540.877 | AN77: 2817778.626 | AO77: 2970909.24 | AP77: 3132361.653 | AQ77: 3302588.106 | AR77: 3482065.422 | AS77: 3671296.333 | AT77: 3870810.893 | AU77: 4081167.96 | AV77: 4302956.766
D78: Less: Repayment | E78: $ | I78: =I75-I80 -> 322119.7222 | J78: 67581.13154 | K78: 63265.16472 | L78: 318827.4869 | M78: 326790.4827 | N78: 318115.9909 | O78: 325975.2517 | P78: 334227.5385 | Q78: 342893.1621 | R78: 351993.524 | S78: 361551.1753 | T78: 371589.8794 | U78: 382134.6773 | V78: 393211.9572 | W78: 404849.5269 | X78: 434114.9002 | Y78: 447888.474 | Z78: 462365.3908 | AA78: 477582.6852 | AB78: 493579.3891 | AC78: -85556.76795 | AD78: -90206.30298 | AE78: -95108.5144 | AF78: -100277.1338 | AG78: -105726.6389 | AH78: -111472.2944 | AI78: -117530.1943 | AJ78: -123917.3074 | AK78: -130651.5246 | AL78: -137751.7091 | AM78: -145237.7492 | AN78: -153130.614 | AO78: -161452.4122 | AP78: -170226.4538 | AQ78: -179477.3159 | AR78: -189230.9109 | AS78: -199514.5596 | AT78: -210357.0675 | AU78: -221788.8055 | AV78: -233841.7949
D79: Closing Balance | E79: $ | F79: =F71 -> 8575000 | H79: =F79 -> 8575000 | I79: =I77-I78 -> 8252880.278 | J79: 8185299.146 | K79: 8122033.982 | L79: 7803206.495 | M79: 7476416.012 | N79: 7158300.021 | O79: 6832324.769 | P79: 6498097.231 | Q79: 6155204.069 | R79: 5803210.545 | S79: 5441659.369 | T79: 5070069.49 | U79: 4687934.813 | V79: 4294722.856 | W79: 3889873.329 | X79: 3455758.428 | Y79: 3007869.955 | Z79: 2545504.564 | AA79: 2067921.879 | AB79: 1574342.489 | AC79: 1659899.257 | AD79: 1750105.56 | AE79: 1845214.075 | AF79: 1945491.209 | AG79: 2051217.847 | AH79: 2162690.142 | AI79: 2280220.336 | AJ79: 2404137.643 | AK79: 2534789.168 | AL79: 2672540.877 | AM79: 2817778.626 | AN79: 2970909.24 | AO79: 3132361.653 | AP79: 3302588.106 | AQ79: 3482065.422 | AR79: 3671296.333 | AS79: 3870810.893 | AT79: 4081167.96 | AU79: 4302956.766 | AV79: 4536798.561
D80: Interest | E80: $ | I80: =I77*I67 -> 466003.6111 | J80: 448498.1938 | K80: 444825.5347 | L80: 441387.4245 | M80: 424060.9218 | N80: 406301.6746 | O80: 389013.8378 | P80: 371298.8939 | Q80: 353135.484 | R80: 334501.1456 | S80: 315372.253 | T80: 295723.9553 | U80: 275530.1097 | V80: 254763.213 | W80: 233394.3276 | X80: 211393.005 | Y80: 187801.2719 | Z80: 163461.0216 | AA80: 138334.0313 | AB80: 112380.0656 | AC80: 85556.76795 | AD80: 90206.30298 | AE80: 95108.5144 | AF80: 100277.1338 | AG80: 105726.6389 | AH80: 111472.2944 | AI80: 117530.1943 | AJ80: 123917.3074 | AK80: 130651.5246 | AL80: 137751.7091 | AM80: 145237.7492 | AN80: 153130.614 | AO80: 161452.4122 | AP80: 170226.4538 | AQ80: 179477.3159 | AR80: 189230.9109 | AS80: 199514.5596 | AT80: 210357.0675 | AU80: 221788.8055 | AV80: 233841.7949
D82: NPV of Cash Flow over Loan Life | E82: $ | F82: =SUMPRODUCT(I82:AV82/I68:AV68) -> 10758428.1 | I82: =I64 -> 1056085.267 | J82: 691546.2959 | K82: 680841.5372 | L82: 1018687.981 | M82: 1006140.882 | N82: 970719.6717 | O82: 958085.3799 | P82: 945405.4194 | Q82: 932678.3857 | R82: 919902.8571 | S82: 907077.3939 | T82: 894200.5384 | U82: 881270.8147 | V82: 868286.728 | W82: 855246.765 | X82: 864980.5929 | Y82: 851824.2595 | Z82: 838607.3927 | AA82: 825328.4002 | AB82: 811985.6694 | AC82: 0 | AD82: 0 | AE82: 0 | AF82: 0 | AG82: 0 | AH82: 0 | AI82: 0 | AJ82: 0 | AK82: 0 | AL82: 0 | AM82: 0 | AN82: 0 | AO82: 0 | AP82: 0 | AQ82: 0 | AR82: 0 | AS82: 0 | AT82: 0 | AU82: 0 | AV82: 0
D83: NPV of Cash Flow over Project Life | E83: $ | F83: =SUMPRODUCT(I83:AV83/I68:AV68) -> 10758428.1 | I83: =I58 -> 1056085.267 | J83: 691546.2959 | K83: 680841.5372 | L83: 1018687.981 | M83: 1006140.882 | N83: 970719.6717 | O83: 958085.3799 | P83: 945405.4194 | Q83: 932678.3857 | R83: 919902.8571 | S83: 907077.3939 | T83: 894200.5384 | U83: 881270.8147 | V83: 868286.728 | W83: 855246.765 | X83: 864980.5929 | Y83: 851824.2595 | Z83: 838607.3927 | AA83: 825328.4002 | AB83: 811985.6694 | AC83: 0 | AD83: 0 | AE83: 0 | AF83: 0 | AG83: 0 | AH83: 0 | AI83: 0 | AJ83: 0 | AK83: 0 | AL83: 0 | AM83: 0 | AN83: 0 | AO83: 0 | AP83: 0 | AQ83: 0 | AR83: 0 | AS83: 0 | AT83: 0 | AU83: 0 | AV83: 0
D85: DSCR | E85: x | I85: =IF(I75>0.1,I64/I75) -> 1.34 | J85: 1.34 | K85: 1.34 | L85: 1.34 | M85: 1.34 | N85: 1.34 | O85: 1.34 | P85: 1.34 | Q85: 1.34 | R85: 1.34 | S85: 1.34 | T85: 1.34 | U85: 1.34 | V85: 1.34 | W85: 1.34 | X85: 1.34 | Y85: 1.34 | Z85: 1.34 | AA85: 1.34 | AB85: 1.34 | AC85: FALSE | AD85: FALSE | AE85: FALSE | AF85: FALSE | AG85: FALSE | AH85: FALSE | AI85: FALSE | AJ85: FALSE | AK85: FALSE | AL85: FALSE | AM85: FALSE | AN85: FALSE | AO85: FALSE | AP85: FALSE | AQ85: FALSE | AR85: FALSE | AS85: FALSE | AT85: FALSE | AU85: FALSE | AV85: FALSE
D86: Minimum DSCR | E86: x | F86: =MIN(I85:AV85) -> 1.34
D87: Average DSCR | E87: x | F87: =AVERAGE(I85:AV85) -> 1.34
D89: LLCR | E89: x | F89: =F82/F79 -> 1.254627184
D90: PLCR | E90: x | F90: =F83/F79 -> 1.254627184
D92: Average Debt Yield
B95: P99 Stress Case
C96: Revenues | E96: Yrs 1-10 | F96: Yrs 11-20
D97: Revenue Stress
D98: First Stress Period | E98: 10 | F98: ='General Inputs'!F26 -> 0.15 | I98: =(I7<=$E$98)*$F$98 -> 0.15 | J98: 0.15 | K98: 0.15 | L98: 0.15 | M98: 0.15 | N98: 0.15 | O98: 0.15 | P98: 0.15 | Q98: 0.15 | R98: 0.15 | S98: 0 | T98: 0 | U98: 0 | V98: 0 | W98: 0 | X98: 0 | Y98: 0 | Z98: 0 | AA98: 0 | AB98: 0 | AC98: 0 | AD98: 0 | AE98: 0 | AF98: 0 | AG98: 0 | AH98: 0 | AI98: 0 | AJ98: 0 | AK98: 0 | AL98: 0 | AM98: 0 | AN98: 0 | AO98: 0 | AP98: 0 | AQ98: 0 | AR98: 0 | AS98: 0 | AT98: 0 | AU98: 0 | AV98: 0
D99: Second Stress Period | E99: =E98 -> 10 | F99: ='General Inputs'!F27 -> 0.25 | I99: =(I7>$E$99)*$F$99 -> 0 | J99: 0 | K99: 0 | L99: 0 | M99: 0 | N99: 0 | O99: 0 | P99: 0 | Q99: 0 | R99: 0 | S99: 0.25 | T99: 0.25 | U99: 0.25 | V99: 0.25 | W99: 0.25 | X99: 0.25 | Y99: 0.25 | Z99: 0.25 | AA99: 0.25 | AB99: 0.25 | AC99: 0.25 | AD99: 0.25 | AE99: 0.25 | AF99: 0.25 | AG99: 0.25 | AH99: 0.25 | AI99: 0.25 | AJ99: 0.25 | AK99: 0.25 | AL99: 0.25 | AM99: 0.25 | AN99: 0.25 | AO99: 0.25 | AP99: 0.25 | AQ99: 0.25 | AR99: 0.25 | AS99: 0.25 | AT99: 0.25 | AU99: 0.25 | AV99: 0.25
D100: Revenue Reduction from Stress Assumptions | I100: =(1-I98-I99) -> 0.85 | J100: =(1-J98-J99) -> 0.85 | K100: 0.85 | L100: 0.85 | M100: 0.85 | N100: 0.85 | O100: 0.85 | P100: 0.85 | Q100: 0.85 | R100: 0.85 | S100: 0.75 | T100: 0.75 | U100: 0.75 | V100: 0.75 | W100: 0.75 | X100: 0.75 | Y100: 0.75 | Z100: 0.75 | AA100: 0.75 | AB100: 0.75 | AC100: 0.75 | AD100: 0.75 | AE100: 0.75 | AF100: 0.75 | AG100: 0.75 | AH100: 0.75 | AI100: 0.75 | AJ100: 0.75 | AK100: 0.75 | AL100: 0.75 | AM100: 0.75 | AN100: 0.75 | AO100: 0.75 | AP100: 0.75 | AQ100: 0.75 | AR100: 0.75 | AS100: 0.75 | AT100: 0.75 | AU100: 0.75 | AV100: 0.75
D101: Base Case Revenues | I101: =I38 -> 1396661.252 | J101: =J38 -> 1036201.114 | K101: 1030609.113 | L101: 1374589.077 | M101: 1367305.157 | N101: 1360057.666 | O101: 1352846.424 | P101: 1345671.248 | Q101: 1338531.958 | R101: 1331428.374 | S101: 1324360.319 | T101: 1317327.615 | U101: 1310330.084 | V101: 1303367.551 | W101: 1296439.841 | X101: 1289546.78 | Y101: 1282688.195 | Z101: 1275863.913 | AA101: 1269073.762 | AB101: 1262317.573 | AC101: 0 | AD101: 0 | AE101: 0 | AF101: 0 | AG101: 0 | AH101: 0 | AI101: 0 | AJ101: 0 | AK101: 0 | AL101: 0 | AM101: 0 | AN101: 0 | AO101: 0 | AP101: 0 | AQ101: 0 | AR101: 0 | AS101: 0 | AT101: 0 | AU101: 0 | AV101: 0
D102: Stressed Revenues | I102: =I101*I100 -> 1187162.064 | J102: =J101*J100 -> 880770.9468 | K102: 876017.746 | L102: 1168400.715 | M102: 1162209.383 | N102: 1156049.016 | O102: 1149919.46 | P102: 1143820.56 | Q102: 1137752.164 | R102: 1131714.118 | S102: 993270.2395 | T102: 987995.7111 | U102: 982747.5631 | V102: 977525.6635 | W102: 972329.8811 | X102: 967160.0853 | Y102: 962016.1463 | Z102: 956897.9346 | AA102: 951805.3216 | AB102: 946738.1795 | AC102: 0 | AD102: 0 | AE102: 0 | AF102: 0 | AG102: 0 | AH102: 0 | AI102: 0 | AJ102: 0 | AK102: 0 | AL102: 0 | AM102: 0 | AN102: 0 | AO102: 0 | AP102: 0 | AQ102: 0 | AR102: 0 | AS102: 0 | AT102: 0 | AU102: 0 | AV102: 0
D104: P99 Production | I104: =I21 -> 6731010 | J104: =J21 -> 6697354.95 | K104: 6663868.175 | L104: 6630548.834 | M104: 6597396.09 | N104: 6564409.11 | O104: 6531587.064 | P104: 6498929.129 | Q104: 6466434.483 | R104: 6434102.311 | S104: 6401931.799 | T104: 6369922.14 | U104: 6338072.53 | V104: 6306382.167 | W104: 6274850.256 | X104: 6243476.005 | Y104: 6212258.625 | Z104: 6181197.332 | AA104: 6150291.345 | AB104: 6119539.888 | AC104: 0 | AD104: 0 | AE104: 0 | AF104: 0 | AG104: 0 | AH104: 0 | AI104: 0 | AJ104: 0 | AK104: 0 | AL104: 0 | AM104: 0 | AN104: 0 | AO104: 0 | AP104: 0 | AQ104: 0 | AR104: 0 | AS104: 0 | AT104: 0 | AU104: 0 | AV104: 0
D106: Contracted PPA Revenue | I106: =I104*I9*I28 -> 1172070.771 | J106: 869574.5207 | K106: 864881.7429 | L106: 1153547.918 | M106: 1147435.291 | N106: 1141353.235 | O106: 1135301.598 | P106: 1129280.228 | Q106: 1123288.973 | R106: 1117327.684 | S106: 1111396.209 | T106: 1105494.401 | U106: 1099622.11 | V106: 1093779.189 | W106: 1087965.491 | X106: 1082180.871 | Y106: 1076425.182 | Z106: 1070698.28 | AA106: 1065000.021 | AB106: 1059330.263 | AC106: 0 | AD106: 0 | AE106: 0 | AF106: 0 | AG106: 0 | AH106: 0 | AI106: 0 | AJ106: 0 | AK106: 0 | AL106: 0 | AM106: 0 | AN106: 0 | AO106: 0 | AP106: 0 | AQ106: 0 | AR106: 0 | AS106: 0 | AT106: 0 | AU106: 0 | AV106: 0
D107: Post PPA Revenue
D108: Post PPA Revenue Base NG | I108: =I104*NOT(I9)*I30 -> 0 | J108: 0 | K108: 0 | L108: 0 | M108: 0 | N108: 0 | O108: 0 | P108: 0 | Q108: 0 | R108: 0 | S108: 0 | T108: 0 | U108: 0 | V108: 0 | W108: 0 | X108: 0 | Y108: 0 | Z108: 0 | AA108: 0 | AB108: 0 | AC108: 0 | AD108: 0 | AE108: 0 | AF108: 0 | AG108: 0 | AH108: 0 | AI108: 0 | AJ108: 0 | AK108: 0 | AL108: 0 | AM108: 0 | AN108: 0 | AO108: 0 | AP108: 0 | AQ108: 0 | AR108: 0 | AS108: 0 | AT108: 0 | AU108: 0 | AV108: 0
D109: Projected REC Revenue
D110: Gross Projected Revenue - P99 Case | I110: =I109+I108+I107+I106 -> 1172070.771 | J110: =J109+J108+J107+J106 -> 869574.5207 | K110: 864881.7429 | L110: 1153547.918 | M110: 1147435.291 | N110: 1141353.235 | O110: 1135301.598 | P110: 1129280.228 | Q110: 1123288.973 | R110: 1117327.684 | S110: 1111396.209 | T110: 1105494.401 | U110: 1099622.11 | V110: 1093779.189 | W110: 1087965.491 | X110: 1082180.871 | Y110: 1076425.182 | Z110: 1070698.28 | AA110: 1065000.021 | AB110: 1059330.263 | AC110: 0 | AD110: 0 | AE110: 0 | AF110: 0 | AG110: 0 | AH110: 0 | AI110: 0 | AJ110: 0 | AK110: 0 | AL110: 0 | AM110: 0 | AN110: 0 | AO110: 0 | AP110: 0 | AQ110: 0 | AR110: 0 | AS110: 0 | AT110: 0 | AU110: 0 | AV110: 0
D112: Operating Expense | I112: =I55 -> 340575.9854 | J112: =J55 -> 344654.818 | K112: 349767.5757 | L112: 355901.0956 | M112: 361164.2746 | N112: 389337.9946 | O112: 394761.0439 | P112: 400265.8283 | Q112: 405853.5719 | R112: 411525.5173 | S112: 417282.9254 | T112: 423127.0764 | U112: 429059.2695 | V112: 435080.8233 | W112: 441193.0764 | X112: 424566.1875 | Y112: 430863.9355 | Z112: 437256.5201 | AA112: 443745.362 | AB112: 450331.9032 | AC112: 0 | AD112: 0 | AE112: 0 | AF112: 0 | AG112: 0 | AH112: 0 | AI112: 0 | AJ112: 0 | AK112: 0 | AL112: 0 | AM112: 0 | AN112: 0 | AO112: 0 | AP112: 0 | AQ112: 0 | AR112: 0 | AS112: 0 | AT112: 0 | AU112: 0 | AV112: 0
D113: Cash Flow in Stress Case | I113: =I110-I112 -> 831494.7859 | J113: =J110-J112 -> 524919.7027 | K113: 515114.1672 | L113: 797646.8225 | M113: 786271.016 | N113: 752015.2402 | O113: 740540.5542 | P113: 729014.3997 | Q113: 717435.4015 | R113: 705802.1665 | S113: 694113.2837 | T113: 682367.3241 | U113: 670562.8401 | V113: 658698.3654 | W113: 646772.4146 | X113: 657614.683 | Y113: 645561.2462 | Z113: 633441.7599 | AA113: 621254.6594 | AB113: 608998.3594 | AC113: 0 | AD113: 0 | AE113: 0 | AF113: 0 | AG113: 0 | AH113: 0 | AI113: 0 | AJ113: 0 | AK113: 0 | AL113: 0 | AM113: 0 | AN113: 0 | AO113: 0 | AP113: 0 | AQ113: 0 | AR113: 0 | AS113: 0 | AT113: 0 | AU113: 0 | AV113: 0
D115: CFADS for Debt Sizing over Debt Term | E115: $ | I115: =I113*I11 -> 831494.7859 | J115: 524919.7027 | K115: 515114.1672 | L115: 797646.8225 | M115: 786271.016 | N115: 752015.2402 | O115: 740540.5542 | P115: 729014.3997 | Q115: 717435.4015 | R115: 705802.1665 | S115: 694113.2837 | T115: 682367.3241 | U115: 670562.8401 | V115: 658698.3654 | W115: 646772.4146 | X115: 657614.683 | Y115: 645561.2462 | Z115: 633441.7599 | AA115: 621254.6594 | AB115: 608998.3594 | AC115: 0 | AD115: 0 | AE115: 0 | AF115: 0 | AG115: 0 | AH115: 0 | AI115: 0 | AJ115: 0 | AK115: 0 | AL115: 0 | AM115: 0 | AN115: 0 | AO115: 0 | AP115: 0 | AQ115: 0 | AR115: 0 | AS115: 0 | AT115: 0 | AU115: 0 | AV115: 0
D116: Target Debt Service | E116: $ | F116: ='General Inputs'!F30 -> 1 | I116: =I115/$F$116 -> 831494.7859 | J116: =J115/$F$116 -> 524919.7027 | K116: 515114.1672 | L116: 797646.8225 | M116: 786271.016 | N116: 752015.2402 | O116: 740540.5542 | P116: 729014.3997 | Q116: 717435.4015 | R116: 705802.1665 | S116: 694113.2837 | T116: 682367.3241 | U116: 670562.8401 | V116: 658698.3654 | W116: 646772.4146 | X116: 657614.683 | Y116: 645561.2462 | Z116: 633441.7599 | AA116: 621254.6594 | AB116: 608998.3594 | AC116: 0 | AD116: 0 | AE116: 0 | AF116: 0 | AG116: 0 | AH116: 0 | AI116: 0 | AJ116: 0 | AK116: 0 | AL116: 0 | AM116: 0 | AN116: 0 | AO116: 0 | AP116: 0 | AQ116: 0 | AR116: 0 | AS116: 0 | AT116: 0 | AU116: 0 | AV116: 0
D117: Annual Intrest Rate Applied for P50 Debt Sizing | E117: % p.a. | F117: =INDEX('Project Database'!163:163,colum_num) -> 0.05934444444 | I117: =$F$117 -> 0.05934444444 | J117: =$F$117 -> 0.05934444444 | K117: 0.05934444444 | L117: 0.05934444444 | M117: 0.05934444444 | N117: 0.05934444444 | O117: 0.05934444444 | P117: 0.05934444444 | Q117: 0.05934444444 | R117: 0.05934444444 | S117: 0.05934444444 | T117: 0.05934444444 | U117: 0.05934444444 | V117: 0.05934444444 | W117: 0.05934444444 | X117: 0.05934444444 | Y117: 0.05934444444 | Z117: 0.05934444444 | AA117: 0.05934444444 | AB117: 0.05934444444 | AC117: 0.05934444444 | AD117: 0.05934444444 | AE117: 0.05934444444 | AF117: 0.05934444444 | AG117: 0.05934444444 | AH117: 0.05934444444 | AI117: 0.05934444444 | AJ117: 0.05934444444 | AK117: 0.05934444444 | AL117: 0.05934444444 | AM117: 0.05934444444 | AN117: 0.05934444444 | AO117: 0.05934444444 | AP117: 0.05934444444 | AQ117: 0.05934444444 | AR117: 0.05934444444 | AS117: 0.05934444444 | AT117: 0.05934444444 | AU117: 0.05934444444 | AV117: 0.05934444444
D118: Periodic Interest Rate | E118: % p.p. | F118: =F62 -> 0 | I118: =I117/12*$F$118 -> 0 | J118: =J117/12*$F$118 -> 0 | K118: 0 | L118: 0 | M118: 0 | N118: 0 | O118: 0 | P118: 0 | Q118: 0 | R118: 0 | S118: 0 | T118: 0 | U118: 0 | V118: 0 | W118: 0 | X118: 0 | Y118: 0 | Z118: 0 | AA118: 0 | AB118: 0 | AC118: 0 | AD118: 0 | AE118: 0 | AF118: 0 | AG118: 0 | AH118: 0 | AI118: 0 | AJ118: 0 | AK118: 0 | AL118: 0 | AM118: 0 | AN118: 0 | AO118: 0 | AP118: 0 | AQ118: 0 | AR118: 0 | AS118: 0 | AT118: 0 | AU118: 0 | AV118: 0
D119: Interest Rate Factor for PV of Debt Service | E119: Index | H119: 1 | I119: =H119*(1+I118*I62) -> 1 | J119: 1 | K119: 1 | L119: 1 | M119: 1 | N119: 1 | O119: 1 | P119: 1 | Q119: 1 | R119: 1 | S119: 1 | T119: 1 | U119: 1 | V119: 1 | W119: 1 | X119: 1 | Y119: 1 | Z119: 1 | AA119: 1 | AB119: 1 | AC119: 1 | AD119: 1 | AE119: 1 | AF119: 1 | AG119: 1 | AH119: 1 | AI119: 1 | AJ119: 1 | AK119: 1 | AL119: 1 | AM119: 1 | AN119: 1 | AO119: 1 | AP119: 1 | AQ119: 1 | AR119: 1 | AS119: 1 | AT119: 1 | AU119: 1 | AV119: 1
D120: NPV of Debt Service | E120: $ | F120: =SUMPRODUCT(I116:AV116/I119:AV119) -> 13619639.19
D122: Opening Debt Balance | E122: $ | I122: =H124 -> 13619639.19 | J122: 12788144.41 | K122: 12263224.7 | L122: 11748110.54 | M122: 10950463.71 | N122: 10164192.7 | O122: 9412177.458 | P122: 8671636.904 | Q122: 7942622.504 | R122: 7225187.102 | S122: 6519384.936 | T122: 5825271.652 | U122: 5142904.328 | V122: 4472341.488 | W122: 3813643.123 | X122: 3166870.708 | Y122: 2509256.025 | Z122: 1863694.779 | AA122: 1230253.019 | AB122: 608998.3594 | AC122: -2.211891115e-09 | AD122: -2.211891115e-09 | AE122: -2.211891115e-09 | AF122: -2.211891115e-09 | AG122: -2.211891115e-09 | AH122: -2.211891115e-09 | AI122: -2.211891115e-09 | AJ122: -2.211891115e-09 | AK122: -2.211891115e-09 | AL122: -2.211891115e-09 | AM122: -2.211891115e-09 | AN122: -2.211891115e-09 | AO122: -2.211891115e-09 | AP122: -2.211891115e-09 | AQ122: -2.211891115e-09 | AR122: -2.211891115e-09 | AS122: -2.211891115e-09 | AT122: -2.211891115e-09 | AU122: -2.211891115e-09 | AV122: -2.211891115e-09
D123: Less: Repayment | E123: $ | I123: =I116-I125 -> 831494.7859 | J123: =J116-J125 -> 524919.7027 | K123: 515114.1672 | L123: 797646.8225 | M123: 786271.016 | N123: 752015.2402 | O123: 740540.5542 | P123: 729014.3997 | Q123: 717435.4015 | R123: 705802.1665 | S123: 694113.2837 | T123: 682367.3241 | U123: 670562.8401 | V123: 658698.3654 | W123: 646772.4146 | X123: 657614.683 | Y123: 645561.2462 | Z123: 633441.7599 | AA123: 621254.6594 | AB123: 608998.3594 | AC123: 0 | AD123: 0 | AE123: 0 | AF123: 0 | AG123: 0 | AH123: 0 | AI123: 0 | AJ123: 0 | AK123: 0 | AL123: 0 | AM123: 0 | AN123: 0 | AO123: 0 | AP123: 0 | AQ123: 0 | AR123: 0 | AS123: 0 | AT123: 0 | AU123: 0 | AV123: 0
D124: Closing Balance | E124: $ | F124: =F120 -> 13619639.19 | H124: =F124 -> 13619639.19 | I124: =I122-I123 -> 12788144.41 | J124: 12263224.7 | K124: 11748110.54 | L124: 10950463.71 | M124: 10164192.7 | N124: 9412177.458 | O124: 8671636.904 | P124: 7942622.504 | Q124: 7225187.102 | R124: 6519384.936 | S124: 5825271.652 | T124: 5142904.328 | U124: 4472341.488 | V124: 3813643.123 | W124: 3166870.708 | X124: 2509256.025 | Y124: 1863694.779 | Z124: 1230253.019 | AA124: 608998.3594 | AB124: -2.211891115e-09 | AC124: -2.211891115e-09 | AD124: -2.211891115e-09 | AE124: -2.211891115e-09 | AF124: -2.211891115e-09 | AG124: -2.211891115e-09 | AH124: -2.211891115e-09 | AI124: -2.211891115e-09 | AJ124: -2.211891115e-09 | AK124: -2.211891115e-09 | AL124: -2.211891115e-09 | AM124: -2.211891115e-09 | AN124: -2.211891115e-09 | AO124: -2.211891115e-09 | AP124: -2.211891115e-09 | AQ124: -2.211891115e-09 | AR124: -2.211891115e-09 | AS124: -2.211891115e-09 | AT124: -2.211891115e-09 | AU124: -2.211891115e-09 | AV124: -2.211891115e-09
D125: Interest | E125: $ | I125: =I122*I118 -> 0 | J125: 0 | K125: 0 | L125: 0 | M125: 0 | N125: 0 | O125: 0 | P125: 0 | Q125: 0 | R125: 0 | S125: 0 | T125: 0 | U125: 0 | V125: 0 | W125: 0 | X125: 0 | Y125: 0 | Z125: 0 | AA125: 0 | AB125: 0 | AC125: 0 | AD125: 0 | AE125: 0 | AF125: 0 | AG125: 0 | AH125: 0 | AI125: 0 | AJ125: 0 | AK125: 0 | AL125: 0 | AM125: 0 | AN125: 0 | AO125: 0 | AP125: 0 | AQ125: 0 | AR125: 0 | AS125: 0 | AT125: 0 | AU125: 0 | AV125: 0
D127: NPV of Cash Flow over Loan Life | E127: $ | F127: =SUMPRODUCT(I127:AV127/I119:AV119) -> 13619639.19 | I127: =I115 -> 831494.7859 | J127: 524919.7027 | K127: 515114.1672 | L127: 797646.8225 | M127: 786271.016 | N127: 752015.2402 | O127: 740540.5542 | P127: 729014.3997 | Q127: 717435.4015 | R127: 705802.1665 | S127: 694113.2837 | T127: 682367.3241 | U127: 670562.8401 | V127: 658698.3654 | W127: 646772.4146 | X127: 657614.683 | Y127: 645561.2462 | Z127: 633441.7599 | AA127: 621254.6594 | AB127: 608998.3594 | AC127: 0 | AD127: 0 | AE127: 0 | AF127: 0 | AG127: 0 | AH127: 0 | AI127: 0 | AJ127: 0 | AK127: 0 | AL127: 0 | AM127: 0 | AN127: 0 | AO127: 0 | AP127: 0 | AQ127: 0 | AR127: 0 | AS127: 0 | AT127: 0 | AU127: 0 | AV127: 0
D128: NPV of Cash Flow over Project Life | E128: $ | F128: =SUMPRODUCT(I128:AV128/I119:AV119) -> 0 | I128: =I107 -> 0 | J128: 0 | K128: 0 | L128: 0 | M128: 0 | N128: 0 | O128: 0 | P128: 0 | Q128: 0 | R128: 0 | S128: 0 | T128: 0 | U128: 0 | V128: 0 | W128: 0 | X128: 0 | Y128: 0 | Z128: 0 | AA128: 0 | AB128: 0 | AC128: 0 | AD128: 0 | AE128: 0 | AF128: 0 | AG128: 0 | AH128: 0 | AI128: 0 | AJ128: 0 | AK128: 0 | AL128: 0 | AM128: 0 | AN128: 0 | AO128: 0 | AP128: 0 | AQ128: 0 | AR128: 0 | AS128: 0 | AT128: 0 | AU128: 0 | AV128: 0
D130: DSCR | E130: x | I130: =IF(I116>0.1,I115/I116) -> 1 | J130: =IF(J116>0.1,J115/J116) -> 1 | K130: 1 | L130: 1 | M130: 1 | N130: 1 | O130: 1 | P130: 1 | Q130: 1 | R130: 1 | S130: 1 | T130: 1 | U130: 1 | V130: 1 | W130: 1 | X130: 1 | Y130: 1 | Z130: 1 | AA130: 1 | AB130: 1 | AC130: FALSE | AD130: FALSE | AE130: FALSE | AF130: FALSE | AG130: FALSE | AH130: FALSE | AI130: FALSE | AJ130: FALSE | AK130: FALSE | AL130: FALSE | AM130: FALSE | AN130: FALSE | AO130: FALSE | AP130: FALSE | AQ130: FALSE | AR130: FALSE | AS130: FALSE | AT130: FALSE | AU130: FALSE | AV130: FALSE
D131: Minimum DSCR | E131: x | F131: =MIN(I130:AV130) -> 1
D132: Average DSCR | E132: x | F132: =AVERAGE(I130:AV130) -> 1
B134: Credit Analysis
C135: Scenario
D136: Production with Sensitivity
D138: Contracted PPA Revenue
D139: Post PPA Revenue
D140: Post PPA Revenue Base NG
D141: Projected REC Revenue
D142: Gross Projected Revenue - P99 Case | I142: 0 | J142: 0 | K142: 0 | L142: 0 | M142: 0 | N142: 0 | O142: 0 | P142: 0 | Q142: 0 | R142: 0 | S142: 0 | T142: 0 | U142: 0 | V142: 0 | W142: 0 | X142: 0 | Y142: 0 | Z142: 0 | AA142: 0 | AB142: 0 | AC142: 0 | AD142: 0 | AE142: 0 | AF142: 0 | AG142: 0 | AH142: 0 | AI142: 0 | AJ142: 0 | AK142: 0 | AL142: 0 | AM142: 0 | AN142: 0 | AO142: 0 | AP142: 0 | AQ142: 0 | AR142: 0 | AS142: 0 | AT142: 0 | AU142: 0 | AV142: 0
D144: Operating Expense
D146: Accrued Debt Service
D148: Loss on Default
D149: DSCR
D150: LLCR
D151: PLCR
D154: Operating Expense | I154: =I55 -> 340575.9854 | J154: 344654.818 | K154: 349767.5757 | L154: 355901.0956 | M154: 361164.2746 | N154: 389337.9946 | O154: 394761.0439 | P154: 400265.8283 | Q154: 405853.5719 | R154: 411525.5173 | S154: 417282.9254 | T154: 423127.0764 | U154: 429059.2695 | V154: 435080.8233 | W154: 441193.0764 | X154: 424566.1875 | Y154: 430863.9355 | Z154: 437256.5201 | AA154: 443745.362 | AB154: 450331.9032
D155: Operating Expense | I155: 340575.9854 | J155: 345608.0957 | K155: 350716.0871 | L155: 355901.0956 | M155: 361164.2746 | N155: 389337.9946 | O155: 394761.0439 | P155: 400265.8283 | Q155: 405853.5719 | R155: 411525.5173 | S155: 417282.9254 | T155: 423127.0764 | U155: 429059.2695 | V155: 435080.8233 | W155: 441193.0764 | X155: 424566.1875 | Y155: 430863.9355 | Z155: 437256.5201 | AA155: 443745.362 | AB155: 424050.365

Sheet Peru
D1: Peru | F1: Column Number | G1: =MATCH(D1,'Project Database'!4:4,0) -> 6
D3: Date of Model | E3: Months in Period | F3: ='General Inputs'!F7 -> 12 | H3: ='General Inputs'!F6-1 -> 2019-12-31 | I3: =EDATE(H3,$F$3) -> 2020-12-31 | J3: =EDATE(I3,$F$3) -> 2021-12-31 | K3: 2022-12-31 | L3: 2023-12-31 | M3: 2024-12-31 | N3: 2025-12-31 | O3: 2026-12-31 | P3: 2027-12-31 | Q3: 2028-12-31 | R3: 2029-12-31 | S3: 2030-12-31 | T3: 2031-12-31 | U3: 2032-12-31 | V3: 2033-12-31 | W3: 2034-12-31 | X3: 2035-12-31 | Y3: 2036-12-31 | Z3: 2037-12-31 | AA3: 2038-12-31 | AB3: 2039-12-31 | AC3: 2040-12-31 | AD3: 2041-12-31 | AE3: 2042-12-31 | AF3: 2043-12-31 | AG3: 2044-12-31 | AH3: 2045-12-31 | AI3: 2046-12-31 | AJ3: 2047-12-31 | AK3: 2048-12-31 | AL3: 2049-12-31 | AM3: 2050-12-31 | AN3: 2051-12-31 | AO3: 2052-12-31 | AP3: 2053-12-31 | AQ3: 2054-12-31 | AR3: 2055-12-31 | AS3: 2056-12-31 | AT3: 2057-12-31 | AU3: 2058-12-31 | AV3: 2059-12-31
D4: Month of Model | E4: Month | H4: =MONTH(H3) -> 12 | I4: 12 | J4: 12 | K4: 12 | L4: 12 | M4: 12 | N4: 12 | O4: 12 | P4: 12 | Q4: 12 | R4: 12 | S4: 12 | T4: 12 | U4: 12 | V4: 12 | W4: 12 | X4: 12 | Y4: 12 | Z4: 12 | AA4: 12 | AB4: 12 | AC4: 12 | AD4: 12 | AE4: 12 | AF4: 12 | AG4: 12 | AH4: 12 | AI4: 12 | AJ4: 12 | AK4: 12 | AL4: 12 | AM4: 12 | AN4: 12 | AO4: 12 | AP4: 12 | AQ4: 12 | AR4: 12 | AS4: 12 | AT4: 12 | AU4: 12 | AV4: 12
D5: Year of Model | E5: Year | H5: =YEAR(H3) -> 2019 | I5: =YEAR(I3) -> 2020 | J5: =YEAR(J3) -> 2021 | K5: 2022 | L5: 2023 | M5: 2024 | N5: 2025 | O5: 2026 | P5: 2027 | Q5: 2028 | R5: 2029 | S5: 2030 | T5: 2031 | U5: 2032 | V5: 2033 | W5: 2034 | X5: 2035 | Y5: 2036 | Z5: 2037 | AA5: 2038 | AB5: 2039 | AC5: 2040 | AD5: 2041 | AE5: 2042 | AF5: 2043 | AG5: 2044 | AH5: 2045 | AI5: 2046 | AJ5: 2047 | AK5: 2048 | AL5: 2049 | AM5: 2050 | AN5: 2051 | AO5: 2052 | AP5: 2053 | AQ5: 2054 | AR5: 2055 | AS5: 2056 | AT5: 2057 | AU5: 2058 | AV5: 2059
D6: New Year Flag | E6: Flag | I6: =I5<>H5 -> TRUE | J6: =J5<>I5 -> TRUE | K6: TRUE | L6: TRUE | M6: TRUE | N6: TRUE | O6: TRUE | P6: TRUE | Q6: TRUE | R6: TRUE | S6: TRUE | T6: TRUE | U6: TRUE | V6: TRUE | W6: TRUE | X6: TRUE | Y6: TRUE | Z6: TRUE | AA6: TRUE | AB6: TRUE | AC6: TRUE | AD6: TRUE | AE6: TRUE | AF6: TRUE | AG6: TRUE | AH6: TRUE | AI6: TRUE | AJ6: TRUE | AK6: TRUE | AL6: TRUE | AM6: TRUE | AN6: TRUE | AO6: TRUE | AP6: TRUE | AQ6: TRUE | AR6: TRUE | AS6: TRUE | AT6: TRUE | AU6: TRUE | AV6: TRUE
D7: Year Counter for Row Number | E7: Period | H7: 0 | I7: 1 | J7: =I7+1 -> 2 | K7: =J7+1 -> 3 | L7: 4 | M7: 5 | N7: 6 | O7: 7 | P7: 8 | Q7: 9 | R7: 10 | S7: 11 | T7: 12 | U7: 13 | V7: 14 | W7: 15 | X7: 16 | Y7: 17 | Z7: 18 | AA7: 19 | AB7: 20 | AC7: 21 | AD7: 22 | AE7: 23 | AF7: 24 | AG7: 25 | AH7: 26 | AI7: 27 | AJ7: 28 | AK7: 29 | AL7: 30 | AM7: 31 | AN7: 32 | AO7: 33 | AP7: 34 | AQ7: 35 | AR7: 36 | AS7: 37 | AT7: 38 | AU7: 39 | AV7: 40
D8: Project Life | E8: Flag | F8: =INDEX('Project Database'!11:11,colum_num) -> 20 | I8: =I7<=$F$8 -> TRUE | J8: TRUE | K8: TRUE | L8: TRUE | M8: TRUE | N8: TRUE | O8: TRUE | P8: TRUE | Q8: TRUE | R8: TRUE | S8: TRUE | T8: TRUE | U8: TRUE | V8: TRUE | W8: TRUE | X8: TRUE | Y8: TRUE | Z8: TRUE | AA8: TRUE | AB8: TRUE | AC8: FALSE | AD8: FALSE | AE8: FALSE | AF8: FALSE | AG8: FALSE | AH8: FALSE | AI8: FALSE | AJ8: FALSE | AK8: FALSE | AL8: FALSE | AM8: FALSE | AN8: FALSE | AO8: FALSE | AP8: FALSE | AQ8: FALSE | AR8: FALSE | AS8: FALSE | AT8: FALSE | AU8: FALSE | AV8: FALSE
D9: PPA Term (years) | E9: Flag | F9: =INDEX('Project Database'!12:12,colum_num) -> 20 | I9: =I7<=$F$9 -> TRUE | J9: TRUE | K9: TRUE | L9: TRUE | M9: TRUE | N9: TRUE | O9: TRUE | P9: TRUE | Q9: TRUE | R9: TRUE | S9: TRUE | T9: TRUE | U9: TRUE | V9: TRUE | W9: TRUE | X9: TRUE | Y9: TRUE | Z9: TRUE | AA9: TRUE | AB9: TRUE | AC9: FALSE | AD9: FALSE | AE9: FALSE | AF9: FALSE | AG9: FALSE | AH9: FALSE | AI9: FALSE | AJ9: FALSE | AK9: FALSE | AL9: FALSE | AM9: FALSE | AN9: FALSE | AO9: FALSE | AP9: FALSE | AQ9: FALSE | AR9: FALSE | AS9: FALSE | AT9: FALSE | AU9: FALSE | AV9: FALSE
D10: LOB Loan Term (years) | E10: Flag | F10: =INDEX('Project Database'!13:13,colum_num) -> 20 | I10: =I7<=$F$10 -> TRUE | J10: TRUE | K10: TRUE | L10: TRUE | M10: TRUE | N10: TRUE | O10: TRUE | P10: TRUE | Q10: TRUE | R10: TRUE | S10: TRUE | T10: TRUE | U10: TRUE | V10: TRUE | W10: TRUE | X10: TRUE | Y10: TRUE | Z10: TRUE | AA10: TRUE | AB10: TRUE | AC10: FALSE | AD10: FALSE | AE10: FALSE | AF10: FALSE | AG10: FALSE | AH10: FALSE | AI10: FALSE | AJ10: FALSE | AK10: FALSE | AL10: FALSE | AM10: FALSE | AN10: FALSE | AO10: FALSE | AP10: FALSE | AQ10: FALSE | AR10: FALSE | AS10: FALSE | AT10: FALSE | AU10: FALSE | AV10: FALSE
D11: Debt Repayment Period | E11: Flag | F11: ='General Inputs'!F23 -> 12 | I11: =IF(I10,I4=$F$11) -> TRUE | J11: TRUE | K11: TRUE | L11: TRUE | M11: TRUE | N11: TRUE | O11: TRUE | P11: TRUE | Q11: TRUE | R11: TRUE | S11: TRUE | T11: TRUE | U11: TRUE | V11: TRUE | W11: TRUE | X11: TRUE | Y11: TRUE | Z11: TRUE | AA11: TRUE | AB11: TRUE | AC11: FALSE | AD11: FALSE | AE11: FALSE | AF11: FALSE | AG11: FALSE | AH11: FALSE | AI11: FALSE | AJ11: FALSE | AK11: FALSE | AL11: FALSE | AM11: FALSE | AN11: FALSE | AO11: FALSE | AP11: FALSE | AQ11: FALSE | AR11: FALSE | AS11: FALSE | AT11: FALSE | AU11: FALSE | AV11: FALSE
D13: Developer | E13: =INDEX('Project Database'!5:5,colum_num) -> Cap Vert Energie | H13: Location | J13: New Marlborough, MA | M13: NERC Region | N13: =INDEX('Project Database'!8:8,colum_num) -> ISONE - WCMA | P13: PPA Off-Taker | Q13: =INDEX('Project Database'!9:9,colum_num) -> Eversource | T13: Knight Road
B15: Operating Cash Flow
C16: Production
D17: Capacity (MW DC) | E17: MWp | F17: =INDEX('Project Database'!18:18,colum_num) -> 4.43664 | I17: =$F$17 -> 4.43664 | J17: =$F$17 -> 4.43664 | K17: 4.43664 | L17: 4.43664 | M17: 4.43664 | N17: 4.43664 | O17: 4.43664 | P17: 4.43664 | Q17: 4.43664 | R17: 4.43664 | S17: 4.43664 | T17: 4.43664 | U17: 4.43664 | V17: 4.43664 | W17: 4.43664 | X17: 4.43664 | Y17: 4.43664 | Z17: 4.43664 | AA17: 4.43664 | AB17: 4.43664 | AC17: 4.43664 | AD17: 4.43664 | AE17: 4.43664 | AF17: 4.43664 | AG17: 4.43664 | AH17: 4.43664 | AI17: 4.43664 | AJ17: 4.43664 | AK17: 4.43664 | AL17: 4.43664 | AM17: 4.43664 | AN17: 4.43664 | AO17: 4.43664 | AP17: 4.43664 | AQ17: 4.43664 | AR17: 4.43664 | AS17: 4.43664 | AT17: 4.43664 | AU17: 4.43664 | AV17: 4.43664
G18: Availability | H18: 1st Yr Producion
D19: Annual Production (kWh) - P50 Case | E19: kWh | F19: =INDEX('Project Database'!17:17,colum_num) -> -0.005 | G19: =INDEX('Project Database'!23:23,colum_num) -> 0.99 | H19: =INDEX('Project Database'!19:19,colum_num) -> 5673000 | I19: =H19*G19 -> 5616270 | J19: =+I19*(1+$F19)*J8 -> 5588188.65 | K19: =+J19*(1+$F$19)*K8 -> 5560247.707 | L19: 5532446.468 | M19: 5504784.236 | N19: 5477260.315 | O19: 5449874.013 | P19: 5422624.643 | Q19: 5395511.52 | R19: 5368533.962 | S19: 5341691.292 | T19: 5314982.836 | U19: 5288407.922 | V19: 5261965.882 | W19: 5235656.053 | X19: 5209477.773 | Y19: 5183430.384 | Z19: 5157513.232 | AA19: 5131725.666 | AB19: 5106067.037 | AC19: 0 | AD19: 0 | AE19: 0 | AF19: 0 | AG19: 0 | AH19: 0 | AI19: 0 | AJ19: 0 | AK19: 0 | AL19: 0 | AM19: 0 | AN19: 0 | AO19: 0 | AP19: 0 | AQ19: 0 | AR19: 0 | AS19: 0 | AT19: 0 | AU19: 0 | AV19: 0
D20: Annual Production (kWh) - P90 Case | E20: kWh | F20: =F19 -> -0.005 | G20: =G19 -> 0.99 | H20: =INDEX('Project Database'!26:26,colum_num) -> 5127000 | I20: =H20*G20 -> 5075730 | J20: =+I20*(1+$F20)*J9 -> 5050351.35 | K20: =+J20*(1+$F20)*K9 -> 5025099.593 | L20: 4999974.095 | M20: 4974974.225 | N20: 4950099.354 | O20: 4925348.857 | P20: 4900722.113 | Q20: 4876218.502 | R20: 4851837.41 | S20: 4827578.223 | T20: 4803440.331 | U20: 4779423.13 | V20: 4755526.014 | W20: 4731748.384 | X20: 4708089.642 | Y20: 4684549.194 | Z20: 4661126.448 | AA20: 4637820.816 | AB20: 4614631.712 | AC20: 0 | AD20: 0 | AE20: 0 | AF20: 0 | AG20: 0 | AH20: 0 | AI20: 0 | AJ20: 0 | AK20: 0 | AL20: 0 | AM20: 0 | AN20: 0 | AO20: 0 | AP20: 0 | AQ20: 0 | AR20: 0 | AS20: 0 | AT20: 0 | AU20: 0 | AV20: 0
D21: Annual Production (kWh) - P99 Case | E21: kWh | F21: =F20 -> -0.005 | G21: =G20 -> 0.99 | H21: =INDEX('Project Database'!29:29,colum_num) -> 4325000 | I21: =H21*G21 -> 4281750 | J21: =+I21*(1+$F21)*J10 -> 4260341.25 | K21: 4239039.544 | L21: 4217844.346 | M21: 4196755.124 | N21: 4175771.349 | O21: 4154892.492 | P21: 4134118.029 | Q21: 4113447.439 | R21: 4092880.202 | S21: 4072415.801 | T21: 4052053.722 | U21: 4031793.454 | V21: 4011634.486 | W21: 3991576.314 | X21: 3971618.432 | Y21: 3951760.34 | Z21: 3932001.538 | AA21: 3912341.531 | AB21: 3892779.823 | AC21: 0 | AD21: 0 | AE21: 0 | AF21: 0 | AG21: 0 | AH21: 0 | AI21: 0 | AJ21: 0 | AK21: 0 | AL21: 0 | AM21: 0 | AN21: 0 | AO21: 0 | AP21: 0 | AQ21: 0 | AR21: 0 | AS21: 0 | AT21: 0 | AU21: 0 | AV21: 0
D24: Rate Projections ($/kWh) ALL-IN RATE | E24: $/kWh | I24: =IF(I9,INDEX(all_in_rate,I7,colum_num)) -> 0.154622 | J24: =IF(J9,INDEX(all_in_rate,J7,colum_num)) -> 0.15456716 | K24: =IF(K9,INDEX(all_in_rate,K7,colum_num)) -> 0.1545120458 | L24: =IF(L9,INDEX(all_in_rate,L7,colum_num)) -> 0.154456656 | M24: =IF(M9,INDEX(all_in_rate,M7,colum_num)) -> 0.1544009893 | N24: =IF(N9,INDEX(all_in_rate,N7,colum_num)) -> 0.1543450443 | O24: =IF(O9,INDEX(all_in_rate,O7,colum_num)) -> 0.1542888195 | P24: =IF(P9,INDEX(all_in_rate,P7,colum_num)) -> 0.1542323136 | Q24: =IF(Q9,INDEX(all_in_rate,Q7,colum_num)) -> 0.1541755251 | R24: =IF(R9,INDEX(all_in_rate,R7,colum_num)) -> 0.1541184528 | S24: =IF(S9,INDEX(all_in_rate,S7,colum_num)) -> 0.154061095 | T24: =IF(T9,INDEX(all_in_rate,T7,colum_num)) -> 0.1540034505 | U24: =IF(U9,INDEX(all_in_rate,U7,colum_num)) -> 0.1539455178 | V24: =IF(V9,INDEX(all_in_rate,V7,colum_num)) -> 0.1538872953 | W24: =IF(W9,INDEX(all_in_rate,W7,colum_num)) -> 0.1538287818 | X24: =IF(X9,INDEX(all_in_rate,X7,colum_num)) -> 0.1537699757 | Y24: =IF(Y9,INDEX(all_in_rate,Y7,colum_num)) -> 0.1537108756 | Z24: =IF(Z9,INDEX(all_in_rate,Z7,colum_num)) -> 0.15365148 | AA24: =IF(AA9,INDEX(all_in_rate,AA7,colum_num)) -> 0.1535917874 | AB24: =IF(AB9,INDEX(all_in_rate,AB7,colum_num)) -> 0.1535317963 | AC24: =IF(AC9,INDEX(all_in_rate,AC7,colum_num)) -> FALSE | AD24: =IF(AD9,INDEX(all_in_rate,AD7,colum_num)) -> FALSE | AE24: =IF(AE9,INDEX(all_in_rate,AE7,colum_num)) -> FALSE | AF24: =IF(AF9,INDEX(all_in_rate,AF7,colum_num)) -> FALSE | AG24: =IF(AG9,INDEX(all_in_rate,AG7,colum_num)) -> FALSE | AH24: =IF(AH9,INDEX(all_in_rate,AH7,colum_num)) -> FALSE | AI24: =IF(AI9,INDEX(all_in_rate,AI7,colum_num)) -> FALSE | AJ24: =IF(AJ9,INDEX(all_in_rate,AJ7,colum_num)) -> FALSE | AK24: =IF(AK9,INDEX(all_in_rate,AK7,colum_num)) -> FALSE | AL24: =IF(AL9,INDEX(all_in_rate,AL7,colum_num)) -> FALSE | AM24: =IF(AM9,INDEX(all_in_rate,AM7,colum_num)) -> FALSE | AN24: =IF(AN9,INDEX(all_in_rate,AN7,colum_num)) -> FALSE | AO24: =IF(AO9,INDEX(all_in_rate,AO7,colum_num)) -> FALSE | AP24: =IF(AP9,INDEX(all_in_rate,AP7,colum_num)) -> FALSE | AQ24: =IF(AQ9,INDEX(all_in_rate,AQ7,colum_num)) -> FALSE | AR24: =IF(AR9,INDEX(all_in_rate,AR7,colum_num)) -> FALSE | AS24: =IF(AS9,INDEX(all_in_rate,AS7,colum_num)) -> FALSE | AT24: =IF(AT9,INDEX(all_in_rate,AT7,colum_num)) -> FALSE | AU24: =IF(AU9,INDEX(all_in_rate,AU7,colum_num)) -> FALSE | AV24: =IF(AV9,INDEX(all_in_rate,AV7,colum_num)) -> FALSE
D25: Rate Projections ($/kWh) NO CS ADDER | E25: $/kWh | I25: =IF(I9,INDEX(no_cs_rate,I7,colum_num)*I9) -> 0.110382 | J25: =IF(J9,INDEX(no_cs_rate,J7,colum_num)*J9) -> 0.11032716 | K25: =IF(K9,INDEX(no_cs_rate,K7,colum_num)*K9) -> 0.1102720458 | L25: =IF(L9,INDEX(no_cs_rate,L7,colum_num)*L9) -> 0.110216656 | M25: =IF(M9,INDEX(no_cs_rate,M7,colum_num)*M9) -> 0.1101609893 | N25: =IF(N9,INDEX(no_cs_rate,N7,colum_num)*N9) -> 0.1101050443 | O25: =IF(O9,INDEX(no_cs_rate,O7,colum_num)*O9) -> 0.1100488195 | P25: =IF(P9,INDEX(no_cs_rate,P7,colum_num)*P9) -> 0.1099923136 | Q25: =IF(Q9,INDEX(no_cs_rate,Q7,colum_num)*Q9) -> 0.1099355251 | R25: =IF(R9,INDEX(no_cs_rate,R7,colum_num)*R9) -> 0.1098784528 | S25: =IF(S9,INDEX(no_cs_rate,S7,colum_num)*S9) -> 0.109821095 | T25: =IF(T9,INDEX(no_cs_rate,T7,colum_num)*T9) -> 0.1097634505 | U25: =IF(U9,INDEX(no_cs_rate,U7,colum_num)*U9) -> 0.1097055178 | V25: =IF(V9,INDEX(no_cs_rate,V7,colum_num)*V9) -> 0.1096472953 | W25: =IF(W9,INDEX(no_cs_rate,W7,colum_num)*W9) -> 0.1095887818 | X25: =IF(X9,INDEX(no_cs_rate,X7,colum_num)*X9) -> 0.1095299757 | Y25: =IF(Y9,INDEX(no_cs_rate,Y7,colum_num)*Y9) -> 0.1094708756 | Z25: =IF(Z9,INDEX(no_cs_rate,Z7,colum_num)*Z9) -> 0.10941148 | AA25: =IF(AA9,INDEX(no_cs_rate,AA7,colum_num)*AA9) -> 0.1093517874 | AB25: =IF(AB9,INDEX(no_cs_rate,AB7,colum_num)*AB9) -> 0.1092917963 | AC25: =IF(AC9,INDEX(no_cs_rate,AC7,colum_num)*AC9) -> FALSE | AD25: =IF(AD9,INDEX(no_cs_rate,AD7,colum_num)*AD9) -> FALSE | AE25: =IF(AE9,INDEX(no_cs_rate,AE7,colum_num)*AE9) -> FALSE | AF25: =IF(AF9,INDEX(no_cs_rate,AF7,colum_num)*AF9) -> FALSE | AG25: =IF(AG9,INDEX(no_cs_rate,AG7,colum_num)*AG9) -> FALSE | AH25: =IF(AH9,INDEX(no_cs_rate,AH7,colum_num)*AH9) -> FALSE | AI25: =IF(AI9,INDEX(no_cs_rate,AI7,colum_num)*AI9) -> FALSE | AJ25: =IF(AJ9,INDEX(no_cs_rate,AJ7,colum_num)*AJ9) -> FALSE | AK25: =IF(AK9,INDEX(no_cs_rate,AK7,colum_num)*AK9) -> FALSE | AL25: =IF(AL9,INDEX(no_cs_rate,AL7,colum_num)*AL9) -> FALSE | AM25: =IF(AM9,INDEX(no_cs_rate,AM7,colum_num)*AM9) -> FALSE | AN25: =IF(AN9,INDEX(no_cs_rate,AN7,colum_num)*AN9) -> FALSE | AO25: =IF(AO9,INDEX(no_cs_rate,AO7,colum_num)*AO9) -> FALSE | AP25: =IF(AP9,INDEX(no_cs_rate,AP7,colum_num)*AP9) -> FALSE | AQ25: =IF(AQ9,INDEX(no_cs_rate,AQ7,colum_num)*AQ9) -> FALSE | AR25: =IF(AR9,INDEX(no_cs_rate,AR7,colum_num)*AR9) -> FALSE | AS25: =IF(AS9,INDEX(no_cs_rate,AS7,colum_num)*AS9) -> FALSE | AT25: =IF(AT9,INDEX(no_cs_rate,AT7,colum_num)*AT9) -> FALSE | AU25: =IF(AU9,INDEX(no_cs_rate,AU7,colum_num)*AU9) -> FALSE | AV25: =IF(AV9,INDEX(no_cs_rate,AV7,colum_num)*AV9) -> FALSE
D26: Rate Applied before Pollinator Adder | E26: $/kWh | F26: =INDEX('Project Database'!34:34,colum_num) -> TRUE | I26: =IF(F26,I24,I25) -> 0.154622 | J26: =IF(G26,J24,J25) -> 0.11032716 | K26: 0.1102720458 | L26: 0.154456656 | M26: 0.1544009893 | N26: 0.1543450443 | O26: 0.1542888195 | P26: 0.1542323136 | Q26: 0.1541755251 | R26: 0.1541184528 | S26: 0.154061095 | T26: 0.1540034505 | U26: 0.1539455178 | V26: 0.1538872953 | W26: 0.1538287818 | X26: 0.1537699757 | Y26: 0.1537108756 | Z26: 0.15365148 | AA26: 0.1535917874 | AB26: 0.1535317963 | AC26: FALSE | AD26: FALSE | AE26: FALSE | AF26: FALSE | AG26: FALSE | AH26: FALSE | AI26: FALSE | AJ26: FALSE | AK26: FALSE | AL26: FALSE | AM26: FALSE | AN26: FALSE | AO26: FALSE | AP26: FALSE | AQ26: FALSE | AR26: FALSE | AS26: FALSE | AT26: FALSE | AU26: FALSE | AV26: FALSE
D27: Pollinator Adder | E27: $/kWh | F27: =INDEX('Project Database'!35:35,colum_num) -> 0.0025 | I27: =$F$27 -> 0.0025 | J27: =$F$27 -> 0.0025 | K27: 0.0025 | L27: 0.0025 | M27: 0.0025 | N27: 0.0025 | O27: 0.0025 | P27: 0.0025 | Q27: 0.0025 | R27: 0.0025 | S27: 0.0025 | T27: 0.0025 | U27: 0.0025 | V27: 0.0025 | W27: 0.0025 | X27: 0.0025 | Y27: 0.0025 | Z27: 0.0025 | AA27: 0.0025 | AB27: 0.0025 | AC27: 0.0025 | AD27: 0.0025 | AE27: 0.0025 | AF27: 0.0025 | AG27: 0.0025 | AH27: 0.0025 | AI27: 0.0025 | AJ27: 0.0025 | AK27: 0.0025 | AL27: 0.0025 | AM27: 0.0025 | AN27: 0.0025 | AO27: 0.0025 | AP27: 0.0025 | AQ27: 0.0025 | AR27: 0.0025 | AS27: 0.0025 | AT27: 0.0025 | AU27: 0.0025 | AV27: 0.0025
D28: Total PPA Rate Applied | E28: $/kWh | I28: =I27+I26 -> 0.157122 | J28: =J27+J26 -> 0.11282716 | K28: 0.1127720458 | L28: 0.156956656 | M28: 0.1569009893 | N28: 0.1568450443 | O28: 0.1567888195 | P28: 0.1567323136 | Q28: 0.1566755251 | R28: 0.1566184528 | S28: 0.156561095 | T28: 0.1565034505 | U28: 0.1564455178 | V28: 0.1563872953 | W28: 0.1563287818 | X28: 0.1562699757 | Y28: 0.1562108756 | Z28: 0.15615148 | AA28: 0.1560917874 | AB28: 0.1560317963 | AC28: 0.0025 | AD28: 0.0025 | AE28: 0.0025 | AF28: 0.0025 | AG28: 0.0025 | AH28: 0.0025 | AI28: 0.0025 | AJ28: 0.0025 | AK28: 0.0025 | AL28: 0.0025 | AM28: 0.0025 | AN28: 0.0025 | AO28: 0.0025 | AP28: 0.0025 | AQ28: 0.0025 | AR28: 0.0025 | AS28: 0.0025 | AT28: 0.0025 | AU28: 0.0025 | AV28: 0.0025
D29: Post PPA Average Price ($/kWh) | E29: $/kWh | I29: 0 | J29: 0 | K29: 0 | L29: 0 | M29: 0 | N29: 0 | O29: 0 | P29: 0 | Q29: 0 | R29: 0 | S29: 0 | T29: 0 | U29: 0 | V29: 0 | W29: 0 | X29: 0 | Y29: 0 | Z29: 0 | AA29: 0 | AB29: 0 | AC29: 0 | AD29: 0 | AE29: 0 | AF29: 0 | AG29: 0 | AH29: 0 | AI29: 0 | AJ29: 0 | AK29: 0 | AL29: 0 | AM29: 0 | AN29: 0 | AO29: 0 | AP29: 0 | AQ29: 0 | AR29: 0 | AS29: 0 | AT29: 0 | AU29: 0 | AV29: 0
D30: Post PPA Base NG Price ($/kWh)* | E30: $/kWh | I30: =LOOKUP(I5,'General Inputs'!14:14,'General Inputs'!15:15) -> 0.03745 | J30: =LOOKUP(J5,'General Inputs'!14:14,'General Inputs'!15:15) -> 0.0357 | K30: =LOOKUP(K5,'General Inputs'!14:14,'General Inputs'!15:15) -> 0.03407 | L30: =LOOKUP(L5,'General Inputs'!14:14,'General Inputs'!15:15) -> 0.03483 | M30: =LOOKUP(M5,'General Inputs'!14:14,'General Inputs'!15:15) -> 0.03603 | N30: =LOOKUP(N5,'General Inputs'!14:14,'General Inputs'!15:15) -> 0.03789 | O30: =LOOKUP(O5,'General Inputs'!14:14,'General Inputs'!15:15) -> 0.03793 | P30: =LOOKUP(P5,'General Inputs'!14:14,'General Inputs'!15:15) -> 0.03826 | Q30: =LOOKUP(Q5,'General Inputs'!14:14,'General Inputs'!15:15) -> 0.03837 | R30: =LOOKUP(R5,'General Inputs'!14:14,'General Inputs'!15:15) -> 0.03879 | S30: =LOOKUP(S5,'General Inputs'!14:14,'General Inputs'!15:15) -> 0.03871 | T30: =LOOKUP(T5,'General Inputs'!14:14,'General Inputs'!15:15) -> 0.03876 | U30: =LOOKUP(U5,'General Inputs'!14:14,'General Inputs'!15:15) -> 0.03881 | V30: =LOOKUP(V5,'General Inputs'!14:14,'General Inputs'!15:15) -> 0.03882 | W30: =LOOKUP(W5,'General Inputs'!14:14,'General Inputs'!15:15) -> 0.03896 | X30: =LOOKUP(X5,'General Inputs'!14:14,'General Inputs'!15:15) -> 0.03937 | Y30: =LOOKUP(Y5,'General Inputs'!14:14,'General Inputs'!15:15) -> 0.03942 | Z30: =LOOKUP(Z5,'General Inputs'!14:14,'General Inputs'!15:15) -> 0.03934 | AA30: =LOOKUP(AA5,'General Inputs'!14:14,'General Inputs'!15:15) -> 0.03962 | AB30: =LOOKUP(AB5,'General Inputs'!14:14,'General Inputs'!15:15) -> 0.03961 | AC30: =LOOKUP(AC5,'General Inputs'!14:14,'General Inputs'!15:15) -> 0.03961 | AD30: =LOOKUP(AD5,'General Inputs'!14:14,'General Inputs'!15:15) -> 0.03961 | AE30: =LOOKUP(AE5,'General Inputs'!14:14,'General Inputs'!15:15) -> 0.03961 | AF30: =LOOKUP(AF5,'General Inputs'!14:14,'General Inputs'!15:15) -> 0.03961 | AG30: =LOOKUP(AG5,'General Inputs'!14:14,'General Inputs'!15:15) -> 0.03961 | AH30: =LOOKUP(AH5,'General Inputs'!14:14,'General Inputs'!15:15) -> 0.03961 | AI30: =LOOKUP(AI5,'General Inputs'!14:14,'General Inputs'!15:15) -> 0.03961 | AJ30: =LOOKUP(AJ5,'General Inputs'!14:14,'General Inputs'!15:15) -> 0.03961 | AK30: =LOOKUP(AK5,'General Inputs'!14:14,'General Inputs'!15:15) -> 0.03961 | AL30: =LOOKUP(AL5,'General Inputs'!14:14,'General Inputs'!15:15) -> 0.03961 | AM30: =LOOKUP(AM5,'General Inputs'!14:14,'General Inputs'!15:15) -> 0.03961 | AN30: =LOOKUP(AN5,'General Inputs'!14:14,'General Inputs'!15:15) -> 0.03961 | AO30: =LOOKUP(AO5,'General Inputs'!14:14,'General Inputs'!15:15) -> 0.03961 | AP30: =LOOKUP(AP5,'General Inputs'!14:14,'General Inputs'!15:15) -> 0.03961 | AQ30: =LOOKUP(AQ5,'General Inputs'!14:14,'General Inputs'!15:15) -> 0.03961 | AR30: =LOOKUP(AR5,'General Inputs'!14:14,'General Inputs'!15:15) -> 0.03961 | AS30: =LOOKUP(AS5,'General Inputs'!14:14,'General Inputs'!15:15) -> 0.03961 | AT30: =LOOKUP(AT5,'General Inputs'!14:14,'General Inputs'!15:15) -> 0.03961 | AU30: =LOOKUP(AU5,'General Inputs'!14:14,'General Inputs'!15:15) -> 0.03961 | AV30: =LOOKUP(AV5,'General Inputs'!14:14,'General Inputs'!15:15) -> 0.03961
D31: Estimated REC price ($/kWh) | I31: 0 | J31: 0 | K31: 0 | L31: 0 | M31: 0 | N31: 0 | O31: 0 | P31: 0 | Q31: 0 | R31: 0 | S31: 0 | T31: 0 | U31: 0 | V31: 0 | W31: 0 | X31: 0 | Y31: 0 | Z31: 0 | AA31: 0 | AB31: 0 | AC31: 0 | AD31: 0 | AE31: 0 | AF31: 0 | AG31: 0 | AH31: 0 | AI31: 0 | AJ31: 0 | AK31: 0 | AL31: 0 | AM31: 0 | AN31: 0 | AO31: 0 | AP31: 0 | AQ31: 0 | AR31: 0 | AS31: 0 | AT31: 0 | AU31: 0 | AV31: 0
C33: Revenues (P50)
D34: Contracted PPA Revenue | I34: =I19*(I28)*I9 -> 882439.5749 | J34: 630499.4549 | K34: 627040.509 | L34: 868354.2973 | M34: 863706.0925 | N34: 859081.1365 | O34: 854479.3128 | P34: 849900.506 | Q34: 845344.6008 | R34: 840811.4828 | S34: 836301.0381 | T34: 831813.1532 | U34: 827347.7154 | V34: 822904.6125 | W34: 818483.7328 | X34: 814084.9651 | Y34: 809708.1989 | Z34: 805353.3242 | AA34: 801020.2315 | AB34: 796708.812 | AC34: 0 | AD34: 0 | AE34: 0 | AF34: 0 | AG34: 0 | AH34: 0 | AI34: 0 | AJ34: 0 | AK34: 0 | AL34: 0 | AM34: 0 | AN34: 0 | AO34: 0 | AP34: 0 | AQ34: 0 | AR34: 0 | AS34: 0 | AT34: 0 | AU34: 0 | AV34: 0
D35: Post PPA Revenue | I35: =I29*I19*NOT(I9) -> 0 | J35: 0 | K35: 0 | L35: 0 | M35: 0 | N35: 0 | O35: 0 | P35: 0 | Q35: 0 | R35: 0 | S35: 0 | T35: 0 | U35: 0 | V35: 0 | W35: 0 | X35: 0 | Y35: 0 | Z35: 0 | AA35: 0 | AB35: 0 | AC35: 0 | AD35: 0 | AE35: 0 | AF35: 0 | AG35: 0 | AH35: 0 | AI35: 0 | AJ35: 0 | AK35: 0 | AL35: 0 | AM35: 0 | AN35: 0 | AO35: 0 | AP35: 0 | AQ35: 0 | AR35: 0 | AS35: 0 | AT35: 0 | AU35: 0 | AV35: 0
D36: Post PPA Revenue Base NG | I36: =I19*I30*NOT(I9) -> 0 | J36: 0 | K36: 0 | L36: 0 | M36: 0 | N36: 0 | O36: 0 | P36: 0 | Q36: 0 | R36: 0 | S36: 0 | T36: 0 | U36: 0 | V36: 0 | W36: 0 | X36: 0 | Y36: 0 | Z36: 0 | AA36: 0 | AB36: 0 | AC36: 0 | AD36: 0 | AE36: 0 | AF36: 0 | AG36: 0 | AH36: 0 | AI36: 0 | AJ36: 0 | AK36: 0 | AL36: 0 | AM36: 0 | AN36: 0 | AO36: 0 | AP36: 0 | AQ36: 0 | AR36: 0 | AS36: 0 | AT36: 0 | AU36: 0 | AV36: 0
D37: Projected REC Revenue | I37: =I19*I31 -> 0 | J37: 0 | K37: 0 | L37: 0 | M37: 0 | N37: 0 | O37: 0 | P37: 0 | Q37: 0 | R37: 0 | S37: 0 | T37: 0 | U37: 0 | V37: 0 | W37: 0 | X37: 0 | Y37: 0 | Z37: 0 | AA37: 0 | AB37: 0
D38: Gross Projected Revenue | I38: =SUM(I34:I37) -> 882439.5749 | J38: =SUM(J34:J37) -> 630499.4549 | K38: 627040.509 | L38: 868354.2973 | M38: 863706.0925 | N38: 859081.1365 | O38: 854479.3128 | P38: 849900.506 | Q38: 845344.6008 | R38: 840811.4828 | S38: 836301.0381 | T38: 831813.1532 | U38: 827347.7154 | V38: 822904.6125 | W38: 818483.7328 | X38: 814084.9651 | Y38: 809708.1989 | Z38: 805353.3242 | AA38: 801020.2315 | AB38: 796708.812 | AC38: 0 | AD38: 0 | AE38: 0 | AF38: 0 | AG38: 0 | AH38: 0 | AI38: 0 | AJ38: 0 | AK38: 0 | AL38: 0 | AM38: 0 | AN38: 0 | AO38: 0 | AP38: 0 | AQ38: 0 | AR38: 0 | AS38: 0 | AT38: 0 | AU38: 0 | AV38: 0
C40: Operating Expenses | F40: price per kW | G40: Escalators
D41: Haircut % in Final Year | F41: 0.75
D42: O&M | F42: =IFERROR((I42/1000)/$F$17,"-") -> 13.00105485 | G42: =INDEX('Project Database'!94:94,colum_num) -> 0.015 | I42: =INDEX('Project Database'!82:82,colum_num) -> 57681 | J42: =I42*(1+$G$42)*J8 -> 58546.215 | K42: 59424.40822 | L42: 60315.77435 | M42: 61220.51096 | N42: 62138.81863 | O42: 63070.90091 | P42: 64016.96442 | Q42: 64977.21889 | R42: 65951.87717 | S42: 66941.15533 | T42: 67945.27266 | U42: 68964.45175 | V42: 69998.91852 | W42: 71048.9023 | X42: 72114.63584 | Y42: 73196.35537 | Z42: 74294.3007 | AA42: 75408.71522 | AB42: 76539.84594 | AC42: 0 | AD42: 0 | AE42: 0 | AF42: 0 | AG42: 0 | AH42: 0 | AI42: 0 | AJ42: 0 | AK42: 0 | AL42: 0 | AM42: 0 | AN42: 0 | AO42: 0 | AP42: 0 | AQ42: 0 | AR42: 0 | AS42: 0 | AT42: 0 | AU42: 0 | AV42: 0
D43: Insurance | F43: 2.725035162 | G43: =INDEX('Project Database'!95:95,colum_num) -> 0 | I43: =INDEX('Project Database'!83:83,colum_num) -> 12090 | J43: =I43*(1+$G$42)*J8 -> 12271.35 | K43: 12455.42025 | L43: 12642.25155 | M43: 12831.88533 | N43: 13024.36361 | O43: 13219.72906 | P43: 13418.025 | Q43: 13619.29537 | R43: 13823.5848 | S43: 14030.93857 | T43: 14241.40265 | U43: 14455.02369 | V43: 14671.84905 | W43: 14891.92678 | X43: 15115.30569 | Y43: 15342.03527 | Z43: 15572.1658 | AA43: 15805.74829 | AB43: 16042.83451 | AC43: 0 | AD43: 0 | AE43: 0 | AF43: 0 | AG43: 0 | AH43: 0 | AI43: 0 | AJ43: 0 | AK43: 0 | AL43: 0 | AM43: 0 | AN43: 0 | AO43: 0 | AP43: 0 | AQ43: 0 | AR43: 0 | AS43: 0 | AT43: 0 | AU43: 0 | AV43: 0
D44: Rent/Lease | F44: 9.917414981 | G44: =INDEX('Project Database'!96:96,colum_num) -> 0.02 | I44: =INDEX('Project Database'!84:84,colum_num) -> 44000 | J44: =I44*(1+$G$42)*J8 -> 44660 | K44: 45329.9 | L44: 46009.8485 | M44: 46699.99623 | N44: 47400.49617 | O44: 48111.50361 | P44: 48833.17617 | Q44: 49565.67381 | R44: 50309.15892 | S44: 51063.7963 | T44: 51829.75325 | U44: 52607.19954 | V44: 53396.30754 | W44: 54197.25215 | X44: 55010.21093 | Y44: 55835.3641 | Z44: 56672.89456 | AA44: 57522.98798 | AB44: 58385.8328 | AC44: 0 | AD44: 0 | AE44: 0 | AF44: 0 | AG44: 0 | AH44: 0 | AI44: 0 | AJ44: 0 | AK44: 0 | AL44: 0 | AM44: 0 | AN44: 0 | AO44: 0 | AP44: 0 | AQ44: 0 | AR44: 0 | AS44: 0 | AT44: 0 | AU44: 0 | AV44: 0
D45: PILOT Expense | F45: 11.32816726 | G45: =INDEX('Project Database'!97:97,colum_num) -> 0.01 | I45: =INDEX('Project Database'!85:85,colum_num) -> 50259 | J45: =I45*(1+$G$42)*J8 -> 51012.885 | K45: 51778.07827 | L45: 52554.74945 | M45: 53343.07069 | N45: 54143.21675 | O45: 54955.365 | P45: 55779.69548 | Q45: 56616.39091 | R45: 57465.63677 | S45: 58327.62132 | T45: 59202.53564 | U45: 60090.57368 | V45: 60991.93228 | W45: 61906.81127 | X45: 62835.41344 | Y45: 63777.94464 | Z45: 64734.61381 | AA45: 65705.63302 | AB45: 66691.21751 | AC45: 0 | AD45: 0 | AE45: 0 | AF45: 0 | AG45: 0 | AH45: 0 | AI45: 0 | AJ45: 0 | AK45: 0 | AL45: 0 | AM45: 0 | AN45: 0 | AO45: 0 | AP45: 0 | AQ45: 0 | AR45: 0 | AS45: 0 | AT45: 0 | AU45: 0 | AV45: 0
D46: Property Tax Pmt | F46: 0.1893324678 | G46: =INDEX('Project Database'!98:98,colum_num) -> 0.02 | I46: =INDEX('Project Database'!86:86,colum_num) -> 840 | J46: =I46*(1+$G$42)*J8 -> 852.6 | K46: 865.389 | L46: 878.369835 | M46: 891.5453825 | N46: 904.9185633 | O46: 918.4923417 | P46: 932.2697268 | Q46: 946.2537727 | R46: 960.4475793 | S46: 974.854293 | T46: 989.4771074 | U46: 1004.319264 | V46: 1019.384053 | W46: 1034.674814 | X46: 1050.194936 | Y46: 1065.94786 | Z46: 1081.937078 | AA46: 1098.166134 | AB46: 1114.638626 | AC46: 0 | AD46: 0 | AE46: 0 | AF46: 0 | AG46: 0 | AH46: 0 | AI46: 0 | AJ46: 0 | AK46: 0 | AL46: 0 | AM46: 0 | AN46: 0 | AO46: 0 | AP46: 0 | AQ46: 0 | AR46: 0 | AS46: 0 | AT46: 0 | AU46: 0 | AV46: 0
D47: Audit Fee | F47: 1.628710015 | G47: =INDEX('Project Database'!99:99,colum_num) -> 0.02 | I47: =INDEX('Project Database'!87:87,colum_num) -> 7226 | J47: =I47*(1+$G$42)*J8 -> 7334.39 | K47: 7444.40585 | L47: 7556.071938 | M47: 7669.413017 | N47: 7784.454212 | O47: 7901.221025 | P47: 8019.739341 | Q47: 8140.035431 | R47: 8262.135962 | S47: 8386.068002 | T47: 8511.859022 | U47: 8639.536907 | V47: 8769.129961 | W47: 8900.66691 | X47: 9034.176914 | Y47: 9169.689567 | Z47: 9307.234911 | AA47: 9446.843435 | AB47: 9588.546086 | AC47: 0 | AD47: 0 | AE47: 0 | AF47: 0 | AG47: 0 | AH47: 0 | AI47: 0 | AJ47: 0 | AK47: 0 | AL47: 0 | AM47: 0 | AN47: 0 | AO47: 0 | AP47: 0 | AQ47: 0 | AR47: 0 | AS47: 0 | AT47: 0 | AU47: 0 | AV47: 0
D48: Community Solar Fees | F48: 11.98316744 | G48: =INDEX('Project Database'!100:100,colum_num) -> 0.02 | I48: =INDEX('Project Database'!88:88,colum_num) -> 53165 | J48: =I48*(1+$G$42)*J8 -> 53962.475 | K48: 54771.91212 | L48: 55593.49081 | M48: 56427.39317 | N48: 57273.80407 | O48: 58132.91113 | P48: 59004.90479 | Q48: 59889.97837 | R48: 60788.32804 | S48: 61700.15296 | T48: 62625.65526 | U48: 63565.04009 | V48: 64518.51569 | W48: 65486.29342 | X48: 66468.58782 | Y48: 67465.61664 | Z48: 68477.60089 | AA48: 69504.7649 | AB48: 70547.33638 | AC48: 0 | AD48: 0 | AE48: 0 | AF48: 0 | AG48: 0 | AH48: 0 | AI48: 0 | AJ48: 0 | AK48: 0 | AL48: 0 | AM48: 0 | AN48: 0 | AO48: 0 | AP48: 0 | AQ48: 0 | AR48: 0 | AS48: 0 | AT48: 0 | AU48: 0 | AV48: 0
D49: Other Exp (Accounting) | F49: 1.000081142 | G49: =INDEX('Project Database'!101:101,colum_num) -> 0.02 | I49: =INDEX('Project Database'!89:89,colum_num) -> 4437 | J49: =I49*(1+$G$42)*J8 -> 4503.555 | K49: 4571.108325 | L49: 4639.67495 | M49: 4709.270074 | N49: 4779.909125 | O49: 4851.607762 | P49: 4924.381879 | Q49: 4998.247607 | R49: 5073.221321 | S49: 5149.319641 | T49: 5226.559435 | U49: 5304.957827 | V49: 5384.532194 | W49: 5465.300177 | X49: 5547.27968 | Y49: 5630.488875 | Z49: 5714.946208 | AA49: 5800.670401 | AB49: 5887.680457 | AC49: 0 | AD49: 0 | AE49: 0 | AF49: 0 | AG49: 0 | AH49: 0 | AI49: 0 | AJ49: 0 | AK49: 0 | AL49: 0 | AM49: 0 | AN49: 0 | AO49: 0 | AP49: 0 | AQ49: 0 | AR49: 0 | AS49: 0 | AT49: 0 | AU49: 0 | AV49: 0
D50: Other Exp (Ins Deductibles) | F50: 0.3522936276 | G50: =INDEX('Project Database'!102:102,colum_num) -> 0.02 | I50: =INDEX('Project Database'!90:90,colum_num) -> 1563 | J50: =I50*(1+$G$42)*J8 -> 1586.445 | K50: 1610.241675 | L50: 1634.3953 | M50: 1658.91123 | N50: 1683.794898 | O50: 1709.051822 | P50: 1734.687599 | Q50: 1760.707913 | R50: 1787.118532 | S50: 1813.92531 | T50: 1841.134189 | U50: 1868.751202 | V50: 1896.78247 | W50: 1925.234207 | X50: 1954.11272 | Y50: 1983.424411 | Z50: 2013.175777 | AA50: 2043.373414 | AB50: 2074.024015 | AC50: 0 | AD50: 0 | AE50: 0 | AF50: 0 | AG50: 0 | AH50: 0 | AI50: 0 | AJ50: 0 | AK50: 0 | AL50: 0 | AM50: 0 | AN50: 0 | AO50: 0 | AP50: 0 | AQ50: 0 | AR50: 0 | AS50: 0 | AT50: 0 | AU50: 0 | AV50: 0
D51: Other Exp (Meter fees) | F51: 0.742228353 | G51: =INDEX('Project Database'!103:103,colum_num) -> 0.02 | I51: =INDEX('Project Database'!91:91,colum_num) -> 3293 | J51: =I51*(1+$G$42)*J8 -> 3342.395 | K51: 3392.530925 | L51: 3443.418889 | M51: 3495.070172 | N51: 3547.496225 | O51: 3600.708668 | P51: 3654.719298 | Q51: 3709.540088 | R51: 3765.183189 | S51: 3821.660937 | T51: 3878.985851 | U51: 3937.170639 | V51: 3996.228198 | W51: 4056.171621 | X51: 4117.014195 | Y51: 4178.769408 | Z51: 4241.45095 | AA51: 4305.072714 | AB51: 4369.648805 | AC51: 0 | AD51: 0 | AE51: 0 | AF51: 0 | AG51: 0 | AH51: 0 | AI51: 0 | AJ51: 0 | AK51: 0 | AL51: 0 | AM51: 0 | AN51: 0 | AO51: 0 | AP51: 0 | AQ51: 0 | AR51: 0 | AS51: 0 | AT51: 0 | AU51: 0 | AV51: 0
D53: Parasitic Power Consumption | F53: Percent of Revenue | G53: =INDEX('Project Database'!119:119,colum_num) -> 0.0027 | I53: =$G$53*I38 -> 2382.586852 | J53: =$G$53*J38*J8 -> 1702.348528 | K53: 1693.009374 | L53: 2344.556603 | M53: 2332.00645 | N53: 2319.519068 | O53: 2307.094145 | P53: 2294.731366 | Q53: 2282.430422 | R53: 2270.191004 | S53: 2258.012803 | T53: 2245.895514 | U53: 2233.838832 | V53: 2221.842454 | W53: 2209.906079 | X53: 2198.029406 | Y53: 2186.212137 | Z53: 2174.453975 | AA53: 2162.754625 | AB53: 2151.113792 | AC53: 0 | AD53: 0 | AE53: 0 | AF53: 0 | AG53: 0 | AH53: 0 | AI53: 0 | AJ53: 0 | AK53: 0 | AL53: 0 | AM53: 0 | AN53: 0 | AO53: 0 | AP53: 0 | AQ53: 0 | AR53: 0 | AS53: 0 | AT53: 0 | AU53: 0 | AV53: 0
D54: Inverter Replacement Reserve | F54: 35 | N54: =($F$54*$F$17*1000)/10 -> 15528.24 | O54: 15528.24 | P54: 15528.24 | Q54: 15528.24 | R54: 15528.24 | S54: 15528.24 | T54: 15528.24 | U54: 15528.24 | V54: 15528.24 | W54: 15528.24
D55: Total Operating Expense | H55: =SUM(I55:AB55) -> 5623001.547 | I55: =SUM(I42:I54) -> 236936.5869 | J55: =SUM(J42:J54) -> 239774.6585 | K55: 243336.404 | L55: 247612.6022 | M55: 251279.0727 | N55: 270529.0313 | O55: 274306.8255 | P55: 278141.5351 | Q55: 282034.0126 | R55: 285985.1233 | S55: 289995.7455 | T55: 294066.7706 | U55: 298199.1034 | V55: 302393.6624 | W55: 306651.3797 | X55: 295444.9616 | Y55: 299831.8483 | Z55: 304284.7747 | AA55: 308804.7301 | AB55: 313392.7189 | AC55: 0 | AD55: 0 | AE55: 0 | AF55: 0 | AG55: 0 | AH55: 0 | AI55: 0 | AJ55: 0 | AK55: 0 | AL55: 0 | AM55: 0 | AN55: 0 | AO55: 0 | AP55: 0 | AQ55: 0 | AR55: 0 | AS55: 0 | AT55: 0 | AU55: 0 | AV55: 0
D57: Cash Flow and Project IRR
D58: NOI/EBITDA | I58: =+I38-I55 -> 645502.9881 | J58: 390724.7964 | K58: 383704.105 | L58: 620741.6951 | M58: 612427.0198 | N58: 588552.1051 | O58: 580172.4873 | P58: 571758.9709 | Q58: 563310.5882 | R58: 554826.3595 | S58: 546305.2926 | T58: 537746.3826 | U58: 529148.612 | V58: 520510.9501 | W58: 511832.353 | X58: 518640.0035 | Y58: 509876.3506 | Z58: 501068.5495 | AA58: 492215.5014 | AB58: 483316.0931 | AC58: 0 | AD58: 0 | AE58: 0 | AF58: 0 | AG58: 0 | AH58: 0 | AI58: 0 | AJ58: 0 | AK58: 0 | AL58: 0 | AM58: 0 | AN58: 0 | AO58: 0 | AP58: 0 | AQ58: 0 | AR58: 0 | AS58: 0 | AT58: 0 | AU58: 0 | AV58: 0
E59: Capacity MWp | F59: Cost/W
D60: Capital Expenditure | E60: =F17 -> 4.43664
D61: Project Cash Flow
C63: Debt Sizing in P50 Case
D64: CFADS for Debt Sizing over Debt Term | E64: $ | I64: =I10*I58 -> 645502.9881 | J64: 390724.7964 | K64: 383704.105 | L64: 620741.6951 | M64: 612427.0198 | N64: 588552.1051 | O64: 580172.4873 | P64: 571758.9709 | Q64: 563310.5882 | R64: 554826.3595 | S64: 546305.2926 | T64: 537746.3826 | U64: 529148.612 | V64: 520510.9501 | W64: 511832.353 | X64: 518640.0035 | Y64: 509876.3506 | Z64: 501068.5495 | AA64: 492215.5014 | AB64: 483316.0931 | AC64: 0 | AD64: 0 | AE64: 0 | AF64: 0 | AG64: 0 | AH64: 0 | AI64: 0 | AJ64: 0 | AK64: 0 | AL64: 0 | AM64: 0 | AN64: 0 | AO64: 0 | AP64: 0 | AQ64: 0 | AR64: 0 | AS64: 0 | AT64: 0 | AU64: 0 | AV64: 0
D65: Target Debt Service | E65: $ | F65: ='General Inputs'!F9 -> 1.34 | I65: =I64/$F$65 -> 481718.6478 | J65: 291585.669 | K65: 286346.347 | L65: 463240.071 | M65: 457035.0894 | N65: 439217.9889 | O65: 432964.5428 | P65: 426685.7992 | Q65: 420381.036 | R65: 414049.522 | S65: 407690.5169 | T65: 401303.2706 | U65: 394887.0239 | V65: 388441.0076 | W65: 381964.4426 | X65: 387044.7788 | Y65: 380504.7393 | Z65: 373931.7534 | AA65: 367325.0011 | AB65: 360683.6515 | AC65: 0 | AD65: 0 | AE65: 0 | AF65: 0 | AG65: 0 | AH65: 0 | AI65: 0 | AJ65: 0 | AK65: 0 | AL65: 0 | AM65: 0 | AN65: 0 | AO65: 0 | AP65: 0 | AQ65: 0 | AR65: 0 | AS65: 0 | AT65: 0 | AU65: 0 | AV65: 0
D66: Annual Intrest Rate Applied for P50 Debt Sizing | E66: % p.a. | F66: =INDEX('Project Database'!143:143,colum_num) -> 0.05434444444 | I66: =$F$66 -> 0.05434444444 | J66: 0.05434444444 | K66: 0.05434444444 | L66: 0.05434444444 | M66: 0.05434444444 | N66: 0.05434444444 | O66: 0.05434444444 | P66: 0.05434444444 | Q66: 0.05434444444 | R66: 0.05434444444 | S66: 0.05434444444 | T66: 0.05434444444 | U66: 0.05434444444 | V66: 0.05434444444 | W66: 0.05434444444 | X66: 0.05434444444 | Y66: 0.05434444444 | Z66: 0.05434444444 | AA66: 0.05434444444 | AB66: 0.05434444444 | AC66: 0.05434444444 | AD66: 0.05434444444 | AE66: 0.05434444444 | AF66: 0.05434444444 | AG66: 0.05434444444 | AH66: 0.05434444444 | AI66: 0.05434444444 | AJ66: 0.05434444444 | AK66: 0.05434444444 | AL66: 0.05434444444 | AM66: 0.05434444444 | AN66: 0.05434444444 | AO66: 0.05434444444 | AP66: 0.05434444444 | AQ66: 0.05434444444 | AR66: 0.05434444444 | AS66: 0.05434444444 | AT66: 0.05434444444 | AU66: 0.05434444444 | AV66: 0.05434444444
D67: Periodic Interest Rate | E67: % p.p. | F67: =F11 -> 12 | I67: =I66/12*$F$67 -> 0.05434444444 | J67: 0.05434444444 | K67: 0.05434444444 | L67: 0.05434444444 | M67: 0.05434444444 | N67: 0.05434444444 | O67: 0.05434444444 | P67: 0.05434444444 | Q67: 0.05434444444 | R67: 0.05434444444 | S67: 0.05434444444 | T67: 0.05434444444 | U67: 0.05434444444 | V67: 0.05434444444 | W67: 0.05434444444 | X67: 0.05434444444 | Y67: 0.05434444444 | Z67: 0.05434444444 | AA67: 0.05434444444 | AB67: 0.05434444444 | AC67: 0.05434444444 | AD67: 0.05434444444 | AE67: 0.05434444444 | AF67: 0.05434444444 | AG67: 0.05434444444 | AH67: 0.05434444444 | AI67: 0.05434444444 | AJ67: 0.05434444444 | AK67: 0.05434444444 | AL67: 0.05434444444 | AM67: 0.05434444444 | AN67: 0.05434444444 | AO67: 0.05434444444 | AP67: 0.05434444444 | AQ67: 0.05434444444 | AR67: 0.05434444444 | AS67: 0.05434444444 | AT67: 0.05434444444 | AU67: 0.05434444444 | AV67: 0.05434444444
D68: Interest Rate Factor for PV of Debt Service | E68: Index | H68: 1 | I68: =H68*(1+I67*I11) -> 1.054344444 | J68: 1.111642208 | K68: 1.172053786 | L68: 1.235748398 | M68: 1.302904458 | N68: 1.373710077 | O68: 1.448363588 | P68: 1.527074102 | Q68: 1.610062096 | R68: 1.697560026 | S68: 1.789812982 | T68: 1.887079375 | U68: 1.989631655 | V68: 2.097757082 | W68: 2.211758525 | X68: 2.331955313 | Y68: 2.458684129 | Z68: 2.592299952 | AA68: 2.733177053 | AB68: 2.881710042 | AC68: 2.881710042 | AD68: 2.881710042 | AE68: 2.881710042 | AF68: 2.881710042 | AG68: 2.881710042 | AH68: 2.881710042 | AI68: 2.881710042 | AJ68: 2.881710042 | AK68: 2.881710042 | AL68: 2.881710042 | AM68: 2.881710042 | AN68: 2.881710042 | AO68: 2.881710042 | AP68: 2.881710042 | AQ68: 2.881710042 | AR68: 2.881710042 | AS68: 2.881710042 | AT68: 2.881710042 | AU68: 2.881710042 | AV68: 2.881710042
D69: NPV of Debt Service | E69: $ | F69: =SUMPRODUCT(I65:AV65/I68:AV68) -> 4813554.319
D71: Fixed Debt Input | E71: $ | F71: =INDEX('Project Database'!127:127,colum_num) -> 5183000
D72: Level Payment with Fixed Issue | E72: $ | F72: =F66 -> 0.05434444444 | G72: =F10/F67*12 -> 20 | H72: =PMT(F72,G72,-F71) -> 431354.1092 | I72: =$H$72*I11 -> 431354.1092 | J72: 431354.1092 | K72: 431354.1092 | L72: 431354.1092 | M72: 431354.1092 | N72: 431354.1092 | O72: 431354.1092 | P72: 431354.1092 | Q72: 431354.1092 | R72: 431354.1092 | S72: 431354.1092 | T72: 431354.1092 | U72: 431354.1092 | V72: 431354.1092 | W72: 431354.1092 | X72: 431354.1092 | Y72: 431354.1092 | Z72: 431354.1092 | AA72: 431354.1092 | AB72: 431354.1092 | AC72: 0 | AD72: 0 | AE72: 0 | AF72: 0 | AG72: 0 | AH72: 0 | AI72: 0 | AJ72: 0 | AK72: 0 | AL72: 0 | AM72: 0 | AN72: 0 | AO72: 0 | AP72: 0 | AQ72: 0 | AR72: 0 | AS72: 0 | AT72: 0 | AU72: 0 | AV72: 0
D74: Apply Fixed Payment | E74: Flag | F74: ='General Inputs'!F10 -> FALSE | G74: =IF(F74,F71,F69) -> 4813554.319
D75: Debt Service Applied | E75: $ | F75: =F74 -> FALSE | I75: =IF($F$75,I72,I65) -> 481718.6478 | J75: 291585.669 | K75: 286346.347 | L75: 463240.071 | M75: 457035.0894 | N75: 439217.9889 | O75: 432964.5428 | P75: 426685.7992 | Q75: 420381.036 | R75: 414049.522 | S75: 407690.5169 | T75: 401303.2706 | U75: 394887.0239 | V75: 388441.0076 | W75: 381964.4426 | X75: 387044.7788 | Y75: 380504.7393 | Z75: 373931.7534 | AA75: 367325.0011 | AB75: 360683.6515 | AC75: 0 | AD75: 0 | AE75: 0 | AF75: 0 | AG75: 0 | AH75: 0 | AI75: 0 | AJ75: 0 | AK75: 0 | AL75: 0 | AM75: 0 | AN75: 0 | AO75: 0 | AP75: 0 | AQ75: 0 | AR75: 0 | AS75: 0 | AT75: 0 | AU75: 0 | AV75: 0
D77: Opening Debt Balance | E77: $ | I77: =H79 -> 5183000 | J77: 4982948.608 | K77: 4962158.513 | L77: 4945477.913 | M77: 4750997.092 | N77: 4552152.3 | O77: 4360318.499 | P77: 4164313.042 | Q77: 3963934.522 | R77: 3758971.305 | S77: 3549200.991 | T77: 3334389.83 | U77: 3114292.122 | V77: 2888649.573 | W77: 2657190.622 | X77: 2419629.728 | Y77: 2164078.382 | Z77: 1901179.28 | AA77: 1630566.059 | AB77: 1351853.264 | AC77: 1064635.328 | AD77: 1122492.343 | AE77: 1183493.566 | AF77: 1247809.866 | AG77: 1315621.4 | AH77: 1387118.114 | AI77: 1462500.277 | AJ77: 1541979.042 | AK77: 1625777.037 | AL77: 1714128.987 | AM77: 1807282.374 | AN77: 1905498.131 | AO77: 2009051.368 | AP77: 2118232.148 | AQ77: 2233346.298 | AR77: 2354716.262 | AS77: 2482682.009 | AT77: 2617601.983 | AU77: 2759854.109 | AV77: 2909836.847
D78: Less: Repayment | E78: $ | I78: =I75-I80 -> 200051.3923 | J78: 20790.09517 | K78: 16680.59942 | L78: 194480.8213 | M78: 198844.7919 | N78: 191833.8011 | O78: 196005.4564 | P78: 200378.5204 | Q78: 204963.2166 | R78: 209770.3147 | S78: 214811.1608 | T78: 220097.7078 | U78: 225642.5487 | V78: 231458.9513 | W78: 237560.8944 | X78: 255551.3454 | Y78: 262899.1019 | Z78: 270613.2216 | AA78: 278712.7945 | AB78: 287217.9369 | AC78: -57857.01541 | AD78: -61001.22277 | AE78: -64316.30033 | AF78: -67811.53394 | AG78: -71496.71408 | AH78: -75382.16329 | AI78: -79478.76507 | AJ78: -83797.9944 | AK78: -88351.94985 | AL78: -93153.38749 | AM78: -98215.75658 | AN78: -103553.2373 | AO78: -109180.7805 | AP78: -115114.1493 | AQ78: -121369.9638 | AR78: -127965.7471 | AS78: -134919.9745 | AT78: -142252.1255 | AU78: -149982.7383 | AV78: -158133.4669
D79: Closing Balance | E79: $ | F79: =F71 -> 5183000 | H79: =F79 -> 5183000 | I79: =I77-I78 -> 4982948.608 | J79: 4962158.513 | K79: 4945477.913 | L79: 4750997.092 | M79: 4552152.3 | N79: 4360318.499 | O79: 4164313.042 | P79: 3963934.522 | Q79: 3758971.305 | R79: 3549200.991 | S79: 3334389.83 | T79: 3114292.122 | U79: 2888649.573 | V79: 2657190.622 | W79: 2419629.728 | X79: 2164078.382 | Y79: 1901179.28 | Z79: 1630566.059 | AA79: 1351853.264 | AB79: 1064635.328 | AC79: 1122492.343 | AD79: 1183493.566 | AE79: 1247809.866 | AF79: 1315621.4 | AG79: 1387118.114 | AH79: 1462500.277 | AI79: 1541979.042 | AJ79: 1625777.037 | AK79: 1714128.987 | AL79: 1807282.374 | AM79: 1905498.131 | AN79: 2009051.368 | AO79: 2118232.148 | AP79: 2233346.298 | AQ79: 2354716.262 | AR79: 2482682.009 | AS79: 2617601.983 | AT79: 2759854.109 | AU79: 2909836.847 | AV79: 3067970.314
D80: Interest | E80: $ | I80: =I77*I67 -> 281667.2556 | J80: 270795.5738 | K80: 269665.7476 | L80: 268759.2497 | M80: 258190.2975 | N80: 247384.1878 | O80: 236959.0864 | P80: 226307.2788 | Q80: 215417.8194 | R80: 204279.2073 | S80: 192879.3561 | T80: 181205.5629 | U80: 169244.4752 | V80: 156982.0563 | W80: 144403.5481 | X80: 131493.4333 | Y80: 117605.6374 | Z80: 103318.5318 | AA80: 88612.2066 | AB80: 73465.71463 | AC80: 57857.01541 | AD80: 61001.22277 | AE80: 64316.30033 | AF80: 67811.53394 | AG80: 71496.71408 | AH80: 75382.16329 | AI80: 79478.76507 | AJ80: 83797.9944 | AK80: 88351.94985 | AL80: 93153.38749 | AM80: 98215.75658 | AN80: 103553.2373 | AO80: 109180.7805 | AP80: 115114.1493 | AQ80: 121369.9638 | AR80: 127965.7471 | AS80: 134919.9745 | AT80: 142252.1255 | AU80: 149982.7383 | AV80: 158133.4669
D82: NPV of Cash Flow over Loan Life | E82: $ | F82: =SUMPRODUCT(I82:AV82/I68:AV68) -> 6450162.788 | I82: =I64 -> 645502.9881 | J82: 390724.7964 | K82: 383704.105 | L82: 620741.6951 | M82: 612427.0198 | N82: 588552.1051 | O82: 580172.4873 | P82: 571758.9709 | Q82: 563310.5882 | R82: 554826.3595 | S82: 546305.2926 | T82: 537746.3826 | U82: 529148.612 | V82: 520510.9501 | W82: 511832.353 | X82: 518640.0035 | Y82: 509876.3506 | Z82: 501068.5495 | AA82: 492215.5014 | AB82: 483316.0931 | AC82: 0 | AD82: 0 | AE82: 0 | AF82: 0 | AG82: 0 | AH82: 0 | AI82: 0 | AJ82: 0 | AK82: 0 | AL82: 0 | AM82: 0 | AN82: 0 | AO82: 0 | AP82: 0 | AQ82: 0 | AR82: 0 | AS82: 0 | AT82: 0 | AU82: 0 | AV82: 0
D83: NPV of Cash Flow over Project Life | E83: $ | F83: =SUMPRODUCT(I83:AV83/I68:AV68) -> 6450162.788 | I83: =I58 -> 645502.9881 | J83: 390724.7964 | K83: 383704.105 | L83: 620741.6951 | M83: 612427.0198 | N83: 588552.1051 | O83: 580172.4873 | P83: 571758.9709 | Q83: 563310.5882 | R83: 554826.3595 | S83: 546305.2926 | T83: 537746.3826 | U83: 529148.612 | V83: 520510.9501 | W83: 511832.353 | X83: 518640.0035 | Y83: 509876.3506 | Z83: 501068.5495 | AA83: 492215.5014 | AB83: 483316.0931 | AC83: 0 | AD83: 0 | AE83: 0 | AF83: 0 | AG83: 0 | AH83: 0 | AI83: 0 | AJ83: 0 | AK83: 0 | AL83: 0 | AM83: 0 | AN83: 0 | AO83: 0 | AP83: 0 | AQ83: 0 | AR83: 0 | AS83: 0 | AT83: 0 | AU83: 0 | AV83: 0
D85: DSCR | E85: x | I85: =IF(I75>0.1,I64/I75) -> 1.34 | J85: 1.34 | K85: 1.34 | L85: 1.34 | M85: 1.34 | N85: 1.34 | O85: 1.34 | P85: 1.34 | Q85: 1.34 | R85: 1.34 | S85: 1.34 | T85: 1.34 | U85: 1.34 | V85: 1.34 | W85: 1.34 | X85: 1.34 | Y85: 1.34 | Z85: 1.34 | AA85: 1.34 | AB85: 1.34 | AC85: FALSE | AD85: FALSE | AE85: FALSE | AF85: FALSE | AG85: FALSE | AH85: FALSE | AI85: FALSE | AJ85: FALSE | AK85: FALSE | AL85: FALSE | AM85: FALSE | AN85: FALSE | AO85: FALSE | AP85: FALSE | AQ85: FALSE | AR85: FALSE | AS85: FALSE | AT85: FALSE | AU85: FALSE | AV85: FALSE
D86: Minimum DSCR | E86: x | F86: =MIN(I85:AV85) -> 1.34
D87: Average DSCR | E87: x | F87: =AVERAGE(I85:AV85) -> 1.34
D89: LLCR | E89: x | F89: =F82/F79 -> 1.244484428
D90: PLCR | E90: x | F90: =F83/F79 -> 1.244484428
D92: Average Debt Yield
B95: P99 Stress Case
C96: Revenues | E96: Yrs 1-10 | F96: Yrs 11-20
D97: Revenue Stress
D98: First Stress Period | E98: 10 | F98: ='General Inputs'!F26 -> 0.15 | I98: =(I7<=$E$98)*$F$98 -> 0.15 | J98: 0.15 | K98: 0.15 | L98: 0.15 | M98: 0.15 | N98: 0.15 | O98: 0.15 | P98: 0.15 | Q98: 0.15 | R98: 0.15 | S98: 0 | T98: 0 | U98: 0 | V98: 0 | W98: 0 | X98: 0 | Y98: 0 | Z98: 0 | AA98: 0 | AB98: 0 | AC98: 0 | AD98: 0 | AE98: 0 | AF98: 0 | AG98: 0 | AH98: 0 | AI98: 0 | AJ98: 0 | AK98: 0 | AL98: 0 | AM98: 0 | AN98: 0 | AO98: 0 | AP98: 0 | AQ98: 0 | AR98: 0 | AS98: 0 | AT98: 0 | AU98: 0 | AV98: 0
D99: Second Stress Period | E99: =E98 -> 10 | F99: ='General Inputs'!F27 -> 0.25 | I99: =(I7>$E$99)*$F$99 -> 0 | J99: 0 | K99: 0 | L99: 0 | M99: 0 | N99: 0 | O99: 0 | P99: 0 | Q99: 0 | R99: 0 | S99: 0.25 | T99: 0.25 | U99: 0.25 | V99: 0.25 | W99: 0.25 | X99: 0.25 | Y99: 0.25 | Z99: 0.25 | AA99: 0.25 | AB99: 0.25 | AC99: 0.25 | AD99: 0.25 | AE99: 0.25 | AF99: 0.25 | AG99: 0.25 | AH99: 0.25 | AI99: 0.25 | AJ99: 0.25 | AK99: 0.25 | AL99: 0.25 | AM99: 0.25 | AN99: 0.25 | AO99: 0.25 | AP99: 0.25 | AQ99: 0.25 | AR99: 0.25 | AS99: 0.25 | AT99: 0.25 | AU99: 0.25 | AV99: 0.25
D100: Revenue Reduction from Stress Assumptions | I100: =(1-I98-I99) -> 0.85 | J100: =(1-J98-J99) -> 0.85 | K100: 0.85 | L100: 0.85 | M100: 0.85 | N100: 0.85 | O100: 0.85 | P100: 0.85 | Q100: 0.85 | R100: 0.85 | S100: 0.75 | T100: 0.75 | U100: 0.75 | V100: 0.75 | W100: 0.75 | X100: 0.75 | Y100: 0.75 | Z100: 0.75 | AA100: 0.75 | AB100: 0.75 | AC100: 0.75 | AD100: 0.75 | AE100: 0.75 | AF100: 0.75 | AG100: 0.75 | AH100: 0.75 | AI100: 0.75 | AJ100: 0.75 | AK100: 0.75 | AL100: 0.75 | AM100: 0.75 | AN100: 0.75 | AO100: 0.75 | AP100: 0.75 | AQ100: 0.75 | AR100: 0.75 | AS100: 0.75 | AT100: 0.75 | AU100: 0.75 | AV100: 0.75
D101: Base Case Revenues | I101: =I38 -> 882439.5749 | J101: =J38 -> 630499.4549 | K101: 627040.509 | L101: 868354.2973 | M101: 863706.0925 | N101: 859081.1365 | O101: 854479.3128 | P101: 849900.506 | Q101: 845344.6008 | R101: 840811.4828 | S101: 836301.0381 | T101: 831813.1532 | U101: 827347.7154 | V101: 822904.6125 | W101: 818483.7328 | X101: 814084.9651 | Y101: 809708.1989 | Z101: 805353.3242 | AA101: 801020.2315 | AB101: 796708.812 | AC101: 0 | AD101: 0 | AE101: 0 | AF101: 0 | AG101: 0 | AH101: 0 | AI101: 0 | AJ101: 0 | AK101: 0 | AL101: 0 | AM101: 0 | AN101: 0 | AO101: 0 | AP101: 0 | AQ101: 0 | AR101: 0 | AS101: 0 | AT101: 0 | AU101: 0 | AV101: 0
D102: Stressed Revenues | I102: =I101*I100 -> 750073.6387 | J102: =J101*J100 -> 535924.5367 | K102: 532984.4327 | L102: 738101.1527 | M102: 734150.1787 | N102: 730218.966 | O102: 726307.4159 | P102: 722415.4301 | Q102: 718542.9107 | R102: 714689.7604 | S102: 627225.7785 | T102: 623859.8649 | U102: 620510.7866 | V102: 617178.4594 | W102: 613862.7996 | X102: 610563.7238 | Y102: 607281.1492 | Z102: 604014.9932 | AA102: 600765.1737 | AB102: 597531.609 | AC102: 0 | AD102: 0 | AE102: 0 | AF102: 0 | AG102: 0 | AH102: 0 | AI102: 0 | AJ102: 0 | AK102: 0 | AL102: 0 | AM102: 0 | AN102: 0 | AO102: 0 | AP102: 0 | AQ102: 0 | AR102: 0 | AS102: 0 | AT102: 0 | AU102: 0 | AV102: 0
D104: P99 Production | I104: =I21 -> 4281750 | J104: =J21 -> 4260341.25 | K104: 4239039.544 | L104: 4217844.346 | M104: 4196755.124 | N104: 4175771.349 | O104: 4154892.492 | P104: 4134118.029 | Q104: 4113447.439 | R104: 4092880.202 | S104: 4072415.801 | T104: 4052053.722 | U104: 4031793.454 | V104: 4011634.486 | W104: 3991576.314 | X104: 3971618.432 | Y104: 3951760.34 | Z104: 3932001.538 | AA104: 3912341.531 | AB104: 3892779.823 | AC104: 0 | AD104: 0 | AE104: 0 | AF104: 0 | AG104: 0 | AH104: 0 | AI104: 0 | AJ104: 0 | AK104: 0 | AL104: 0 | AM104: 0 | AN104: 0 | AO104: 0 | AP104: 0 | AQ104: 0 | AR104: 0 | AS104: 0 | AT104: 0 | AU104: 0 | AV104: 0
D106: Contracted PPA Revenue | I106: =I104*I9*I28 -> 672757.1235 | J106: 480682.2039 | K106: 478045.1616 | L106: 662018.7442 | M106: 658475.0309 | N106: 654949.042 | O106: 651440.6889 | P106: 647949.8833 | Q106: 644476.5377 | R106: 641020.5646 | S106: 637581.8772 | T106: 634160.3892 | U106: 630756.0143 | V106: 627368.6672 | W106: 623998.2627 | X106: 620644.716 | Y106: 617307.9429 | Z106: 613987.8595 | AA106: 610684.3824 | AB106: 607397.4285 | AC106: 0 | AD106: 0 | AE106: 0 | AF106: 0 | AG106: 0 | AH106: 0 | AI106: 0 | AJ106: 0 | AK106: 0 | AL106: 0 | AM106: 0 | AN106: 0 | AO106: 0 | AP106: 0 | AQ106: 0 | AR106: 0 | AS106: 0 | AT106: 0 | AU106: 0 | AV106: 0
D107: Post PPA Revenue
D108: Post PPA Revenue Base NG | I108: =I104*NOT(I9)*I30 -> 0 | J108: 0 | K108: 0 | L108: 0 | M108: 0 | N108: 0 | O108: 0 | P108: 0 | Q108: 0 | R108: 0 | S108: 0 | T108: 0 | U108: 0 | V108: 0 | W108: 0 | X108: 0 | Y108: 0 | Z108: 0 | AA108: 0 | AB108: 0 | AC108: 0 | AD108: 0 | AE108: 0 | AF108: 0 | AG108: 0 | AH108: 0 | AI108: 0 | AJ108: 0 | AK108: 0 | AL108: 0 | AM108: 0 | AN108: 0 | AO108: 0 | AP108: 0 | AQ108: 0 | AR108: 0 | AS108: 0 | AT108: 0 | AU108: 0 | AV108: 0
D109: Projected REC Revenue
D110: Gross Projected Revenue - P99 Case | I110: =I109+I108+I107+I106 -> 672757.1235 | J110: =J109+J108+J107+J106 -> 480682.2039 | K110: 478045.1616 | L110: 662018.7442 | M110: 658475.0309 | N110: 654949.042 | O110: 651440.6889 | P110: 647949.8833 | Q110: 644476.5377 | R110: 641020.5646 | S110: 637581.8772 | T110: 634160.3892 | U110: 630756.0143 | V110: 627368.6672 | W110: 623998.2627 | X110: 620644.716 | Y110: 617307.9429 | Z110: 613987.8595 | AA110: 610684.3824 | AB110: 607397.4285 | AC110: 0 | AD110: 0 | AE110: 0 | AF110: 0 | AG110: 0 | AH110: 0 | AI110: 0 | AJ110: 0 | AK110: 0 | AL110: 0 | AM110: 0 | AN110: 0 | AO110: 0 | AP110: 0 | AQ110: 0 | AR110: 0 | AS110: 0 | AT110: 0 | AU110: 0 | AV110: 0
D112: Operating Expense | I112: =I55 -> 236936.5869 | J112: =J55 -> 239774.6585 | K112: 243336.404 | L112: 247612.6022 | M112: 251279.0727 | N112: 270529.0313 | O112: 274306.8255 | P112: 278141.5351 | Q112: 282034.0126 | R112: 285985.1233 | S112: 289995.7455 | T112: 294066.7706 | U112: 298199.1034 | V112: 302393.6624 | W112: 306651.3797 | X112: 295444.9616 | Y112: 299831.8483 | Z112: 304284.7747 | AA112: 308804.7301 | AB112: 313392.7189 | AC112: 0 | AD112: 0 | AE112: 0 | AF112: 0 | AG112: 0 | AH112: 0 | AI112: 0 | AJ112: 0 | AK112: 0 | AL112: 0 | AM112: 0 | AN112: 0 | AO112: 0 | AP112: 0 | AQ112: 0 | AR112: 0 | AS112: 0 | AT112: 0 | AU112: 0 | AV112: 0
D113: Cash Flow in Stress Case | I113: =I110-I112 -> 435820.5366 | J113: =J110-J112 -> 240907.5453 | K113: 234708.7576 | L113: 414406.142 | M113: 407195.9582 | N113: 384420.0107 | O113: 377133.8634 | P113: 369808.3483 | Q113: 362442.5251 | R113: 355035.4413 | S113: 347586.1318 | T113: 340093.6186 | U113: 332556.9109 | V113: 324975.0048 | W113: 317346.883 | X113: 325199.7545 | Y113: 317476.0947 | Z113: 309703.0849 | AA113: 301879.6523 | AB113: 294004.7096 | AC113: 0 | AD113: 0 | AE113: 0 | AF113: 0 | AG113: 0 | AH113: 0 | AI113: 0 | AJ113: 0 | AK113: 0 | AL113: 0 | AM113: 0 | AN113: 0 | AO113: 0 | AP113: 0 | AQ113: 0 | AR113: 0 | AS113: 0 | AT113: 0 | AU113: 0 | AV113: 0
D115: CFADS for Debt Sizing over Debt Term | E115: $ | I115: =I113*I11 -> 435820.5366 | J115: 240907.5453 | K115: 234708.7576 | L115: 414406.142 | M115: 407195.9582 | N115: 384420.0107 | O115: 377133.8634 | P115: 369808.3483 | Q115: 362442.5251 | R115: 355035.4413 | S115: 347586.1318 | T115: 340093.6186 | U115: 332556.9109 | V115: 324975.0048 | W115: 317346.883 | X115: 325199.7545 | Y115: 317476.0947 | Z115: 309703.0849 | AA115: 301879.6523 | AB115: 294004.7096 | AC115: 0 | AD115: 0 | AE115: 0 | AF115: 0 | AG115: 0 | AH115: 0 | AI115: 0 | AJ115: 0 | AK115: 0 | AL115: 0 | AM115: 0 | AN115: 0 | AO115: 0 | AP115: 0 | AQ115: 0 | AR115: 0 | AS115: 0 | AT115: 0 | AU115: 0 | AV115: 0
D116: Target Debt Service | E116: $ | F116: ='General Inputs'!F30 -> 1 | I116: =I115/$F$116 -> 435820.5366 | J116: =J115/$F$116 -> 240907.5453 | K116: 234708.7576 | L116: 414406.142 | M116: 407195.9582 | N116: 384420.0107 | O116: 377133.8634 | P116: 369808.3483 | Q116: 362442.5251 | R116: 355035.4413 | S116: 347586.1318 | T116: 340093.6186 | U116: 332556.9109 | V116: 324975.0048 | W116: 317346.883 | X116: 325199.7545 | Y116: 317476.0947 | Z116: 309703.0849 | AA116: 301879.6523 | AB116: 294004.7096 | AC116: 0 | AD116: 0 | AE116: 0 | AF116: 0 | AG116: 0 | AH116: 0 | AI116: 0 | AJ116: 0 | AK116: 0 | AL116: 0 | AM116: 0 | AN116: 0 | AO116: 0 | AP116: 0 | AQ116: 0 | AR116: 0 | AS116: 0 | AT116: 0 | AU116: 0 | AV116: 0
D117: Annual Intrest Rate Applied for P50 Debt Sizing | E117: % p.a. | F117: =INDEX('Project Database'!163:163,colum_num) -> 0.05934444444 | I117: =$F$117 -> 0.05934444444 | J117: =$F$117 -> 0.05934444444 | K117: 0.05934444444 | L117: 0.05934444444 | M117: 0.05934444444 | N117: 0.05934444444 | O117: 0.05934444444 | P117: 0.05934444444 | Q117: 0.05934444444 | R117: 0.05934444444 | S117: 0.05934444444 | T117: 0.05934444444 | U117: 0.05934444444 | V117: 0.05934444444 | W117: 0.05934444444 | X117: 0.05934444444 | Y117: 0.05934444444 | Z117: 0.05934444444 | AA117: 0.05934444444 | AB117: 0.05934444444 | AC117: 0.05934444444 | AD117: 0.05934444444 | AE117: 0.05934444444 | AF117: 0.05934444444 | AG117: 0.05934444444 | AH117: 0.05934444444 | AI117: 0.05934444444 | AJ117: 0.05934444444 | AK117: 0.05934444444 | AL117: 0.05934444444 | AM117: 0.05934444444 | AN117: 0.05934444444 | AO117: 0.05934444444 | AP117: 0.05934444444 | AQ117: 0.05934444444 | AR117: 0.05934444444 | AS117: 0.05934444444 | AT117: 0.05934444444 | AU117: 0.05934444444 | AV117: 0.05934444444
D118: Periodic Interest Rate | E118: % p.p. | F118: =F62 -> 0 | I118: =I117/12*$F$118 -> 0 | J118: =J117/12*$F$118 -> 0 | K118: 0 | L118: 0 | M118: 0 | N118: 0 | O118: 0 | P118: 0 | Q118: 0 | R118: 0 | S118: 0 | T118: 0 | U118: 0 | V118: 0 | W118: 0 | X118: 0 | Y118: 0 | Z118: 0 | AA118: 0 | AB118: 0 | AC118: 0 | AD118: 0 | AE118: 0 | AF118: 0 | AG118: 0 | AH118: 0 | AI118: 0 | AJ118: 0 | AK118: 0 | AL118: 0 | AM118: 0 | AN118: 0 | AO118: 0 | AP118: 0 | AQ118: 0 | AR118: 0 | AS118: 0 | AT118: 0 | AU118: 0 | AV118: 0
D119: Interest Rate Factor for PV of Debt Service | E119: Index | H119: 1 | I119: =H119*(1+I118*I62) -> 1 | J119: 1 | K119: 1 | L119: 1 | M119: 1 | N119: 1 | O119: 1 | P119: 1 | Q119: 1 | R119: 1 | S119: 1 | T119: 1 | U119: 1 | V119: 1 | W119: 1 | X119: 1 | Y119: 1 | Z119: 1 | AA119: 1 | AB119: 1 | AC119: 1 | AD119: 1 | AE119: 1 | AF119: 1 | AG119: 1 | AH119: 1 | AI119: 1 | AJ119: 1 | AK119: 1 | AL119: 1 | AM119: 1 | AN119: 1 | AO119: 1 | AP119: 1 | AQ119: 1 | AR119: 1 | AS119: 1 | AT119: 1 | AU119: 1 | AV119: 1
D120: NPV of Debt Service | E120: $ | F120: =SUMPRODUCT(I116:AV116/I119:AV119) -> 6792700.973
D122: Opening Debt Balance | E122: $ | I122: =H124 -> 6792700.973 | J122: 6356880.437 | K122: 6115972.891 | L122: 5881264.134 | M122: 5466857.992 | N122: 5059662.034 | O122: 4675242.023 | P122: 4298108.16 | Q122: 3928299.811 | R122: 3565857.286 | S122: 3210821.845 | T122: 2863235.713 | U122: 2523142.095 | V122: 2190585.184 | W122: 1865610.179 | X122: 1548263.296 | Y122: 1223063.541 | Z122: 905587.4467 | AA122: 595884.3619 | AB122: 294004.7096 | AC122: -1.28056854e-09 | AD122: -1.28056854e-09 | AE122: -1.28056854e-09 | AF122: -1.28056854e-09 | AG122: -1.28056854e-09 | AH122: -1.28056854e-09 | AI122: -1.28056854e-09 | AJ122: -1.28056854e-09 | AK122: -1.28056854e-09 | AL122: -1.28056854e-09 | AM122: -1.28056854e-09 | AN122: -1.28056854e-09 | AO122: -1.28056854e-09 | AP122: -1.28056854e-09 | AQ122: -1.28056854e-09 | AR122: -1.28056854e-09 | AS122: -1.28056854e-09 | AT122: -1.28056854e-09 | AU122: -1.28056854e-09 | AV122: -1.28056854e-09
